Workbook

Sheet Notes
A1: BollingerWithCandlesticks.xlsm; Traders Tip spreadsheet created for the October 2019 Issue
A2: Coded beginning 2019-August -10 by Ronald McAllister (rpmac_xltt@sprynet.com)
A4: This Workbook demonstrates an EXCEL version of the ideas presented
A5: by Pawel Kosinski in an article titled "2019-10 Combining Bollinger Bands With Candlesticks"
A6: which originally appeared in the October 2019 issue of
A7: "Technical Analysis of Stocks and Commodities" magazine.
A9: Computations and output
A10: Just an observation or two as I was looking for a stock to use as an example for this T-Tip:
A11: Bullish Engulfing patterns, while easy to define in a cell formula, are not super abundant in the wild.
A12: Lower Bollinger band touches, again, easy to define in a cell formula. Fairly abundant in the wild.
A13: Having both occur on the same bar, a buy signal as defined in this article, not so much.
A14: When they do happen on the same bar, you are definitely not guaranteed that a bullish trend will follow.
A15: So best to keep your stop loss technique of choice handy.
A17: As uploaded to the magazine, computations on this spreadsheet only accomodate 1,000 bars of a possibly
A18: much larger pricing data space for a given symbol. (IBM > 14,000 bars available from Yahoo) .
A19: I chose 1,000 bars as a space saving measure; it keeps the file download and on disk sizes reasonable.
A20: 1,000 bars allows an adequate demonstration of the concepts contained in Mr. Kosinski's article.
A21: 1,000 bars does limit the depth of any back test.
A22: However, one may move the Price chart window back in time by way of cell A11 to look for earlier transactions.
A25: Bug Fix 6/14/2019
A26: On or about Saturday, June 08, 2019, Yahoo Finance introduced web page changes that
A27: removed the "crumbstore" from the surface of all pages retrieved when using a
A28: Windows Internet Explorer 11 "User-Agent" string.
A30: By trial and error, today I determined that requests using a Windows Chrome "User-Agent' string will retrieve pages
A31: containing the expected crumb store and, oh by the way, one additional crumb store with a different crumb value.
A33: Using a Windows Chrome user agent string can get my recent spread sheets back on the air, at least temporarily.
A35: I say temporarily as I believe that the folks at Yahoo Finance will be propogating similar changes
A36: to all of the supported browser types over time.
A38: The following bug fix instructions are applicable to spreadsheets as old as "WeeklyDailyStochastics.xlsm",
A39: the September of 2018 traders tip, where I first introduced the “DataViaWinHTTP” module.
A41: For spreadsheets older than September of 2018 replacing the User-Agent string "may" turn out to be helpful.
A42: I have tried this successfully with a few of the earlier 2018 spreadsheets. But I make no guarantees as to earlier spreadsheets.
A43: You will most likely only find one instance of the User-Agent" spec, in a different module, instead of the 4 instances described below.
A45: How to apply this bug fix to your copy of these older spreadsheets.
A47: You will need to get into the VBA editor (ALT-F11) and then open a FIND (Ctrl-F) dialog box.
A49: Make sure the "Current Project" radio button is selected in the Search box.
A51: What you want to find: .SetRequestHeader statements with the "User-Agent", specification.
A53: There should be 4 occurrences, all in module “DataViaWinHTTP”.
A55: Replace each of these user-agent statements with the one provided below
A57: .SetRequestHeader _
A58: "User-Agent", _
A59: "Mozilla/5.0 (Windows NT 10.0; Win64; x64) " & _
A60: "AppleWebKit/537.36 (KHTML, like Gecko) Chrome/60.0.3112.90 Safari/537.36"
A62: General Construction Notes
A64: One can replicate the chart in Figure 1 of the article by retrieving data for symbol SPY.
A65: Next, on the CalculationsAndCharts tab, set cell B26 to 01/03/2018 and cell B27 to 03/08/2019.
A66: Then Click on the "I would like to chart these dates" button.
A69: Development Notes:
C70: This workbook contains and uses VBA macros and may use VBA Class structures.
C71: Input Data
C72: The data in this workbook is sorted date descending (most recent date at the top). All formulas and
C73: VBA routines are built accordingly.
A75: 2019-06-04 Set price chart vertical axis to show tick marks and labels at each 1/10th of the vertical price spread
A77: 2019-04-04 Finally came up with a mechanism to align the left location and overall length of the cursor scroll bar so that the left most and right most
A78: scroll bar thumb positions visually align reasonably well with the left and right ends of the price chart horizontal axis.
A79: Makes it a little easier to visually align the Thumb and thus the cursor with points of interest on the charts.
A81: Older:
B82: My sincere apologies to our Macintosh based readers: Neither MSXML nor WinHttpRequest are supported in your environment. So as it stands this version of the spreadsheet will not work for you.
B83: See "Why this approach does not work for Macintosh" below.
B84: I am investigating cURL as a non-Querytable based approach for the Macintosh environment.
A86: The new Yahoo Finance history download interface has changed rather radically. The biggest hurdle being a pseudo-security requirement of adding a
B87: crumb character string to any URL requesting any type of history download. That crumb must match up (by way of some sort of hash algorithm) with
B88: the Yahoo Finance cookie that must also be sent with any request to the new Yahoo History down load interface.
B90: A crumb value is returned, buried in the HTML for any of what I call the "entry level" Yahoo Finance web pages (no crumb security requirement for entry level pages).
B91: A crumb may come with other Yahoo Finance pages. A crumb may even accompany some of the secured pages as well. I have not checked.
B93: Entry level pages are the top level pages of the various Yahoo Finance dialogs and include: Quote Lookup, Stock Summary Quote, and any of the pages
B94: with links in the horizontal row with the "Summary" link on the quote summary page such as Options, Historical Data, and the rest.
B96: To date I have found no way to get at this crumb value using any native EXCEL capabilities.
B98: So this crumb requirement effectively shuts out any solution that attempts to exclusively use built-in facilities of EXCEL, which is to say a purely Querytables solution.
B100: The approach built for this Traders Tip spreadsheet uses a combination of MSXML and EXCEL Querytable calls to Load the InputPriceData worksheet.
B102: First I call MSXML to get the HTML text for the Yahoo Summary Quote page using the requested symbol. From this HTML text I extract the full company name,
B103: the market it trades, the market status and time stamp, and finally the associated crumb string. There is a bunch of other useful bits buried in this HTML
B104: text that do not necessarily appear on the web page your browser presents. Perhaps some day I will go after and build a worksheet with these other bits.
B106: Next I add the freshly extracted crumb string to the URLs I use in three separate Querytable calls to retrieve Price history, Split history, and Dividend history respectively.
B108: From there VBA code proceeds as in the past to fill in the cell formulas and formatting that make the "prettied up" InputPriceData sheet.
A110: Why this approach works for Windows:
B111: First, MSXML shares the permanent Internet Explorer web cache where cookies are maintained. Both IE and MSXML automatically
B112: update this cache when a "set cookie" header accompanies a web response. And they both automatically search this shared cache for
B113: cookies and add any "appropriate" cookies to the headers of any web requests they send out.
B114: This cookie handling automation means that even if the response to our MSXML call for the Summary web page includes a new version of
B115: the Yahoo Finance cookie, the imbedded Crumb value will always match the cookie newly installed in the cache!
B117: Second, in the Windows environment the EXCEL Querytable mechanism leans heavily on bits from Internet Explorer. This means that cookie
B118: handling is also automated from the shared cache for Querytable calls. We can count on any appropriate cookies being added to any Querytable call.
B119: We only need to do our part by adding the corresponding Crumb value to complete the security for the Querytable to access Yahoo History downloads.
A121: Why this approach does not work for Macintosh:
B122: For what it is worth, the Macintosh version of the MS Office suite of products do in fact maintain a special, shared amongst themselves only, cookie cache.
B123: They automate cookie handling into and from this cache JUST for the Office products and any Querytable activity they might originate.
B125: This cache is not tied to, nor shared with, any browser that might be installed on the MAC. And I have not found anything with HTTP capabilities similar to
B126: MSXML that can work with that Office product cookie cache.
B128: When working in the MAC EXCEL environment, without that MSXML like capability against the office shared cache, l have no mechanism
B129: to obtain a crumb value that would be a valid match to the Yahoo Finance cookie that will be automatically attached to a Querytable call.
B130: This missing facility pretty much eliminates the use of Mac environment Querytables to access the new Yahoo Finance history download interface.
A132: One very low probability potential "Gottcha" for any Querytables approach.
B133: Yahoo Finance cookies typically have an assigned expiration that is a year out (to the second) from the time they are issued.
B134: Further, these cookies are unique. Yours will not match mine.
B136: If for testing purposes, instead of MSXML, you use a fresh instance of Winhttp (Fresh instance = empty cache = no cookie to automatically send)
B137: every time you call an entry level page, the Yahoo server says "What? Entry level page? With no inbound cookie? Get them a cookie!!"
B138: and will send you a new, unique cookie and will imbed the matching crumb value in the response HTML text for each of these "no cookie attached" calls.
B140: The Gottcha: Lets say that the Yahoo Finance cookie presently in the IE cache has an expiration date and time that just happens
B141: to fall between our MSXML call to the summary page to fetch our crumb and our first (or second, or third) Querytable call.
B142: The Querytable call after the cookie expiration may fail with a cookie and crumb validation error.
B144: Querytable error reporting is atrocious. So we will not get any sort of helpful message here. Just a very generalized message like "failed to connect".
B146: The workaround is to simply go to the InputPriceData tab and click the download button.
B147: This second time through the retrieval process should not fail on a mismatch.
B148: After all, you now have a year before the new cookie that just got put into the cache expires!
A150: Calculation and Chart Worksheet Usage Comments:
C151: In General, Items in Bolded BLUE are items you may freely change to play what-if games.
C152: Be sure to have a backup copy of the spreadsheet before you alter anything else.
A154: Features carried forward from the June 2016 version of my T-Tips Template
A155: Added a pair of buttons near cell F12 that will allow the user to step the charting window forward or backward one bar for each click.
A156: I find this to be a good way to test my understanding of the author's ideas as I step through the evolution of the price behavior and the indicators.
B158: First: In the "Help! I would like to plot data" area.
B159: Added button to resolve #NA problems by locating the bar in the input data with a slightly more recent date than what the user actually requested.
B160: I find this particularly useful when I have a general idea of where I want to be date wise. Now I can pick a set of dates "out of the air".
B161: If either (or both) of my date specifications fall between dates that are available in the price history,
B162: this button will resolve them to the dates of the nearest, slightly more recent input bars.
B163: I can then refine my data interval search as necessary from there.
B164: Really great when working with Weekly or Monthly studies!
C165: 2016Jun11 - added logic to the "I would like to chart.." button to detect #N/A values and terminate
C166: gracefully with a message instead of blowing up in the charting logic.
B168: Second: In the "Price Chart Windowing Controls" area. (A11 and A12)
B169: When retrieving data for a new symbol or when changing from daily to weekly or monthly data, there was the possibility that the
B170: residual settings in A11 and A12 would fall outside of the number bars available on the input data tab after the new data retrieval.
B171: In certain combinations, this could create a serious error in the chart sizing logic and crash the spreadsheet.
B172: I have taken this opportunity to update the validity checking logic used in the chart sizing macros
B173: to adjust these values as necessary so that they fall within the boundaries of the newly retrieved input data.
A174: Features carried forward from the October 2015 Traders Tips Template
B175: Improved automation: changes to any of the following will automatically initiate calculations appropriate to reflect a change.
C176: Changing either of cells A11 (pan) or A12 (zoom) will automatically initiate the same chart sizing macros that the manual
C177: "Set Chart" button uses.

Sheet InputPriceData
A1: International Business Machines Corporation (IBM) -NYSE (Daily)
IJ2: 241.79
A3: Request Online Yahoo History for: | F3: Market State == > | G3: As of | H3: 11:24:00 | I3: EDT. Market open.
A4: Symbol | B4: IBM | D4: Valid | I4: =OFFSET(I4,-2,0,1,1) -> 0
A5: From | B5: 1950-01-01 | D5: Data | AD5: Trailing 12 Div return (Cur Close)
A6: To | B6: =NOW() -> 2019-08-16T15:58:01.750 | D6: Types | E6: =VLOOKUP(B7,D7:E10,2,FALSE) -> d
A7: Data Type | B7: Daily | D7: Daily | E7: d
A8: Crumb | B8: qtNPCozf71P | D8: Weekly | E8: w
A9: Available Data | D9: Monthly | E9: m
A10: Bar Count: | B10: 14503 | AD10: =OFFSET(AC15,1,0,1,1)/OFFSET(N15,1,0,1,1) -> 0.04816548392
A11: From: | B11: =IF(B10<=0,"",OFFSET(B15,B10,IF(HistReqDataType="v",1,0),1,1)) -> 1962-01-02 | W11: Trailing 12 Month Dividend Returns
A12: To: | B12: =IF(B10<=0,"",IF(HistReqDataType="v",OFFSET(B15,2,1,1,1),OFFSET(B15,1,0,1,1))) -> 2019-08-14 | W12: Raw Close price on Dividend date | X12: Div Year and Month | Y12: Looking for year ago Div Year and Month | Z12: Year ago Div Date we found | AA12: row offset to year ago div Date | AB12: Same month flag | AC12: Trailing 12 Div Total | AD12: Trailing 12 Div return
Q13: Split History | S13: 7 | T13: Running | U13: Dividend History
B14: Raw Data Values | H14: Adjusted | I14: Price Adjust | J14: Vol Adjust | K14: Adjusted Values | P14: Last | Q14: Effective | R14: Shares | T14: Vol Adjust | V14: 231
A15: RelRow | B15: Date | C15: Open | D15: High | E15: Low | F15: Close | G15: Volume | H15: Close | I15: Factor | J15: Factor | K15: Open | L15: High | M15: Low | N15: Close | O15: Volume | P15: Trade | Q15: 43692 | R15: New | S15: Old | T15: 1 | U15: Date | V15: $ / Share
A16: 1 | B16: 2019-08-14 | C16: 133.910004 | D16: 134.160004 | E16: 132.130005 | F16: 132.460098 | G16: 1281528 | H16: 132.460098 | I16: =IF(F16=0,1,H16/F16) -> 1 | J16: =INDEX(OFFSET($T$15,0,0,$S$13+1,1),MATCH(B16,OFFSET($Q$15,0,0,$S$13+1,1),-1)) -> 1 | K16: =ROUND($I16*C16,2) -> 133.91 | L16: =ROUND($I16*D16,2) -> 134.16 | M16: 132.13 | N16: 132.46 | O16: =G16*J16 -> 1281528 | Q16: 1999-05-27 | R16: 1 | S16: 2 | T16: 0.5 | U16: 2019-08-08 | V16: 1.62 | W16: =(INDEX(OFFSET($F$15,1,0,$B$10,1),MATCH(U16,OFFSET($B$15,1,0,$B$10,1),-1))) -> 140.100006 | X16: =YEAR(U16)&RIGHT("0"&MONTH(U16),2) -> 201908 | Y16: =YEAR(U16)-1&RIGHT("0"&MONTH(U16),2) -> 201808 | Z16: =OFFSET(U15,AA16,0,1,1) -> 2018-08-09 | AA16: =MATCH(Y16,OFFSET($X$15,A16,0,$V$14+1-A16,1),-1) -> 5 | AB16: =IF(OR(AND(YEAR(U16)=YEAR(Z16),MONTH(U16)=MONTH(Z16)),MONTH(U16)=MONTH(Z16)),1,0) -> 1 | AC16: =(V16+IF(AA16-AB16=0,0,IFERROR(SUM(OFFSET(V16,1,0,AA16-AB16-1,1)),0))) -> 6.38 | AD16: =AC16/(INDEX(OFFSET($F$15,1,0,$B$10,1),MATCH(U16,OFFSET($B$15,1,0,$B$10,1),-1))) -> 0.04553889883
A17: 2 | B17: 2019-08-12 | C17: 135.660004 | D17: 135.869995 | E17: 133.179993 | F17: 134.119995 | G17: 3895600 | H17: 134.119995 | I17: =IF(F17=0,1,H17/F17) -> 1 | J17: =INDEX(OFFSET($T$15,0,0,$S$13+1,1),MATCH(B17,OFFSET($Q$15,0,0,$S$13+1,1),-1)) -> 1 | K17: =ROUND($I17*C17,2) -> 135.66 | L17: =ROUND($I17*D17,2) -> 135.87 | M17: =ROUND($I17*E17,2) -> 133.18 | N17: =ROUND($I17*F17,2) -> 134.12 | O17: =G17*J17 -> 3895600 | Q17: 1997-05-28 | R17: 1 | S17: 2 | T17: 0.25 | U17: 2019-05-09 | V17: 1.62 | W17: =(INDEX(OFFSET($F$15,1,0,$B$10,1),MATCH(U17,OFFSET($B$15,1,0,$B$10,1),-1))) -> 135.339996 | X17: =YEAR(U17)&RIGHT("0"&MONTH(U17),2) -> 201905 | Y17: =YEAR(U17)-1&RIGHT("0"&MONTH(U17),2) -> 201805 | Z17: =OFFSET(U16,AA17,0,1,1) -> 2018-05-09 | AA17: =MATCH(Y17,OFFSET($X$15,A17,0,$V$14+1-A17,1),-1) -> 5 | AB17: =IF(OR(AND(YEAR(U17)=YEAR(Z17),MONTH(U17)=MONTH(Z17)),MONTH(U17)=MONTH(Z17)),1,0) -> 1 | AC17: =(V17+IF(AA17-AB17=0,0,IFERROR(SUM(OFFSET(V17,1,0,AA17-AB17-1,1)),0))) -> 6.33 | AD17: =AC17/(INDEX(OFFSET($F$15,1,0,$B$10,1),MATCH(U17,OFFSET($B$15,1,0,$B$10,1),-1))) -> 0.0467710964
A18: 3 | B18: 2019-08-09 | C18: 139.270004 | D18: 139.309998 | E18: 135.350006 | F18: 136.130005 | G18: 5244600 | H18: 136.130005 | I18: 1 | J18: 1 | K18: 139.27 | L18: 139.31 | M18: 135.35 | N18: 136.13 | O18: 5244600 | Q18: 1979-06-01 | R18: 1 | S18: 4 | T18: 0.0625 | U18: 2019-02-07 | V18: 1.57 | W18: 133.190002 | X18: 201902 | Y18: 201802 | Z18: 2018-02-08 | AA18: 5 | AB18: 1 | AC18: 6.28 | AD18: 0.04715068628
A19: 4 | B19: 2019-08-08 | C19: 138.449997 | D19: 140.419998 | E19: 137.759995 | F19: 140.100006 | G19: 5261100 | H19: 140.100006 | I19: 1 | J19: 1 | K19: 138.45 | L19: 140.42 | M19: 137.76 | N19: 140.1 | O19: 5261100 | Q19: 1973-05-29 | R19: 4 | S19: 5 | T19: 0.05 | U19: 2018-11-08 | V19: 1.57 | W19: 123.379997 | X19: 201811 | Y19: 201711 | Z19: 2017-11-09 | AA19: 5 | AB19: 1 | AC19: 6.21 | AD19: 0.05033230792
A20: 5 | B20: 2019-08-07 | C20: 138.740005 | D20: 139.580002 | E20: 136.410004 | F20: 139.110001 | G20: 5931900 | H20: 137.490005 | I20: 0.9883545684 | J20: 1 | K20: 137.12 | L20: 137.95 | M20: 134.82 | N20: 137.49 | O20: 5931900 | Q20: 1968-04-23 | R20: 1 | S20: 2 | T20: 0.025 | U20: 2018-08-09 | V20: 1.57 | W20: 144.770004 | X20: 201808 | Y20: 201708 | Z20: 2017-08-08 | AA20: 5 | AB20: 1 | AC20: 6.14 | AD20: 0.04241210078
A21: 6 | B21: 2019-08-06 | C21: 142.029999 | D21: 142.470001 | E21: 139.309998 | F21: 140.729996 | G21: 5070700 | H21: 139.091141 | I21: 0.9883546149 | J21: 1 | K21: 140.38 | L21: 140.81 | M21: 137.69 | N21: 139.09 | O21: 5070700 | Q21: 1966-05-18 | R21: 2 | S21: 3 | T21: 0.01666666667 | U21: 2018-05-09 | V21: 1.57 | W21: 142.610001 | X21: 201805 | Y21: 201705 | Z21: 2017-05-08 | AA21: 5 | AB21: 1 | AC21: 6.07 | AD21: 0.04256363479
A22: 7 | B22: 2019-08-05 | C22: 144.979996 | D22: 145.100006 | E22: 139.149994 | F22: 140.759995 | G22: 7114900 | H22: 139.120789 | I22: 0.9883546032 | J22: 1 | K22: 143.29 | L22: 143.41 | M22: 137.53 | N22: 139.12 | O22: 7114900 | Q22: 1964-05-18 | R22: 4 | S22: 5 | T22: 0.01333333333 | U22: 2018-02-08 | V22: 1.5 | W22: 147.589996 | X22: 201802 | Y22: 201702 | Z22: 2017-02-08 | AA22: 5 | AB22: 1 | AC22: 6 | AD22: 0.04065316189
A23: 8 | B23: 2019-08-02 | C23: 149.029999 | D23: 152.949997 | E23: 145.589996 | F23: 147.25 | G23: 8101700 | H23: 145.535202 | I23: 0.9883545127 | J23: 1 | K23: 147.29 | L23: 151.17 | M23: 143.89 | N23: 145.54 | O23: 8101700 | U23: 2017-11-09 | V23: 1.5 | W23: 150.300003 | X23: 201711 | Y23: 201611 | Z23: 2016-11-08 | AA23: 5 | AB23: 1 | AC23: 5.9 | AD23: 0.0392548229
A24: 9 | B24: 2019-08-01 | C24: 148.899994 | D24: 152.820007 | E24: 148.5 | F24: 150.320007 | G24: 6344000 | H24: 148.569458 | I24: 0.9883545176 | J24: 1 | K24: 147.17 | L24: 151.04 | M24: 146.77 | N24: 148.57 | O24: 6344000 | U24: 2017-08-08 | V24: 1.5 | W24: 142.110001 | X24: 201708 | Y24: 201608 | Z24: 2016-08-08 | AA24: 5 | AB24: 1 | AC24: 5.8 | AD24: 0.04081345408
A25: 10 | B25: 2019-07-31 | C25: 149.699997 | D25: 150.179993 | E25: 146.389999 | F25: 148.240005 | G25: 3722900 | H25: 146.513687 | I25: 0.9883545741 | J25: 1 | K25: 147.96 | L25: 148.43 | M25: 144.69 | N25: 146.51 | O25: 3722900 | U25: 2017-05-08 | V25: 1.5 | W25: 153.029999 | X25: 201705 | Y25: 201605 | Z25: 2016-05-09 | AA25: 5 | AB25: 1 | AC25: 5.7 | AD25: 0.03724759875
A26: 11 | B26: 2019-07-30 | C26: 150 | D26: 150.399994 | E26: 149.220001 | F26: 149.770004 | G26: 2632700 | H26: 148.025864 | I26: 0.9883545439 | J26: 1 | K26: 148.25 | L26: 148.65 | M26: 147.48 | N26: 148.03 | O26: 2632700 | U26: 2017-02-08 | V26: 1.4 | W26: 176.169998 | X26: 201702 | Y26: 201602 | Z26: 2016-02-08 | AA26: 6 | AB26: 1 | AC26: 7 | AD26: 0.03973434796
A27: 12 | B27: 2019-07-29 | C27: 151.110001 | D27: 151.479996 | E27: 150.320007 | F27: 150.880005 | G27: 2075500 | H27: 149.12294 | I27: 0.9883545537 | J27: 1 | K27: 149.35 | L27: 149.72 | M27: 148.57 | N27: 149.12 | O27: 2075500 | U27: 2016-11-08 | V27: 1.4 | W27: 155.169998 | X27: 201611 | Y27: 201511 | Z27: 2015-11-06 | AA27: 6 | AB27: 1 | AC27: 6.9 | AD27: 0.04446735895
A28: 13 | B28: 2019-07-26 | C28: 151 | D28: 151.410004 | E28: 150.100006 | F28: 151.360001 | G28: 2904300 | H28: 149.597351 | I28: 0.9883545852 | J28: 1 | K28: 149.24 | L28: 149.65 | M28: 148.35 | N28: 149.6 | O28: 2904300 | U28: 2016-08-08 | V28: 1.4 | W28: 162.039993 | X28: 201608 | Y28: 201508 | Z28: 2015-08-06 | AA28: 6 | AB28: 1 | AC28: 6.8 | AD28: 0.04196494874
A29: 14 | B29: 2019-07-25 | C29: 149.820007 | D29: 150.619995 | E29: 148.610001 | F29: 150.389999 | G29: 3102100 | H29: 148.638641 | I29: 0.9883545581 | J29: 1 | K29: 148.08 | L29: 148.87 | M29: 146.88 | N29: 148.64 | O29: 3102100 | U29: 2016-05-09 | V29: 1.4 | W29: 147.339996 | X29: 201605 | Y29: 201505 | Z29: 2015-05-07 | AA29: 6 | AB29: 1 | AC29: 6.7 | AD29: 0.04547305675
A30: 15 | B30: 2019-07-24 | C30: 150.119995 | D30: 151.449997 | E30: 149.199997 | F30: 150.029999 | G30: 2952400 | H30: 148.282837 | I30: 0.9883545823 | J30: 1 | K30: 148.37 | L30: 149.69 | M30: 147.46 | N30: 148.28 | O30: 2952400 | U30: 2016-05-06 | V30: 1.4 | W30: 147.289993 | X30: 201605 | Y30: 201505 | Z30: 2015-05-07 | AA30: 5 | AB30: 1 | AC30: 5.3 | AD30: 0.03598343575
A31: 16 | B31: 2019-07-23 | C31: 150.570007 | D31: 150.720001 | E31: 148.380005 | F31: 150.380005 | G31: 3742200 | H31: 148.628769 | I31: 0.9883545954 | J31: 1 | K31: 148.82 | L31: 148.96 | M31: 146.65 | N31: 148.63 | O31: 3742200 | U31: 2016-02-08 | V31: 1.3 | W31: 126.980003 | X31: 201602 | Y31: 201502 | Z31: 2015-02-06 | AA31: 6 | AB31: 1 | AC31: 6.5 | AD31: 0.05118916244
A32: 17 | B32: 2019-07-22 | C32: 150.160004 | D32: 151.940002 | E32: 149.699997 | F32: 149.740005 | G32: 4092600 | H32: 147.996216 | I32: 0.988354555 | J32: 1 | K32: 148.41 | L32: 150.17 | M32: 147.96 | N32: 148 | O32: 4092600 | U32: 2015-11-06 | V32: 1.3 | W32: 138.25 | X32: 201511 | Y32: 201411 | Z32: 2014-11-06 | AA32: 6 | AB32: 1 | AC32: 6.3 | AD32: 0.04556962025
A33: 18 | B33: 2019-07-19 | C33: 149.960007 | D33: 151.580002 | E33: 149.550003 | F33: 149.679993 | G33: 7290700 | H33: 147.936905 | I33: 0.9883545692 | J33: 1 | K33: 148.21 | L33: 149.81 | M33: 147.81 | N33: 147.94 | O33: 7290700 | U33: 2015-08-06 | V33: 1.3 | W33: 156.320007 | X33: 201508 | Y33: 201408 | Z33: 2014-08-06 | AA33: 6 | AB33: 1 | AC33: 6.1 | AD33: 0.03902251616
A34: 19 | B34: 2019-07-18 | C34: 142.5 | D34: 150.309998 | E34: 142.199997 | F34: 149.630005 | G34: 12695400 | H34: 147.887497 | I34: 0.988354555 | J34: 1 | K34: 140.84 | L34: 148.56 | M34: 140.54 | N34: 147.89 | O34: 12695400 | U34: 2015-05-07 | V34: 1.3 | W34: 170.990005 | X34: 201505 | Y34: 201405 | Z34: 2014-05-07 | AA34: 6 | AB34: 1 | AC34: 5.9 | AD34: 0.0345049408
A35: 20 | B35: 2019-07-17 | C35: 143.610001 | D35: 143.800003 | E35: 141.949997 | F35: 143.070007 | G35: 6064300 | H35: 141.4039 | I35: 0.9883546032 | J35: 1 | K35: 141.94 | L35: 142.13 | M35: 140.3 | N35: 141.4 | O35: 6064300 | U35: 2015-05-06 | V35: 1.3 | W35: 170.050003 | X35: 201505 | Y35: 201405 | Z35: 2014-05-07 | AA35: 5 | AB35: 1 | AC35: 4.6 | AD35: 0.02705086691
A36: 21 | B36: 2019-07-16 | C36: 143.169998 | D36: 144.039993 | E36: 143.020004 | F36: 143.529999 | G36: 3474700 | H36: 141.858536 | I36: 0.9883546087 | J36: 1 | K36: 141.5 | L36: 142.36 | M36: 141.35 | N36: 141.86 | O36: 3474700 | U36: 2015-02-06 | V36: 1.1 | W36: 156.720001 | X36: 201502 | Y36: 201402 | Z36: 2014-02-06 | AA36: 5 | AB36: 1 | AC36: 4.4 | AD36: 0.02807554857
A37: 22 | B37: 2019-07-15 | C37: 142.889999 | D37: 143.509995 | E37: 142.119995 | F37: 143.320007 | G37: 2368300 | H37: 141.650986 | I37: 0.9883545847 | J37: 1 | K37: 141.23 | L37: 141.84 | M37: 140.46 | N37: 141.65 | O37: 2368300 | U37: 2014-11-06 | V37: 1.1 | W37: 161.460007 | X37: 201411 | Y37: 201311 | Z37: 2013-11-06 | AA37: 5 | AB37: 1 | AC37: 4.25 | AD37: 0.02632230779
A38: 23 | B38: 2019-07-12 | C38: 141.919998 | D38: 142.919998 | E38: 141.660004 | F38: 142.740005 | G38: 2786200 | H38: 141.077728 | I38: 0.9883545121 | J38: 1 | K38: 140.27 | L38: 141.26 | M38: 140.01 | N38: 141.08 | O38: 2786200 | U38: 2014-08-06 | V38: 1.1 | W38: 185.970001 | X38: 201408 | Y38: 201308 | Z38: 2013-08-07 | AA38: 5 | AB38: 1 | AC38: 4.1 | AD38: 0.02204656653
A39: 24 | B39: 2019-07-11 | C39: 140.789993 | D39: 141.580002 | E39: 140.300003 | F39: 141.240005 | G39: 2132900 | H39: 139.5952 | I39: 0.9883545388 | J39: 1 | K39: 139.15 | L39: 139.93 | M39: 138.67 | N39: 139.6 | O39: 2132900 | U39: 2014-05-07 | V39: 1.1 | W39: 189.300003 | X39: 201405 | Y39: 201305 | Z39: 2013-05-08 | AA39: 5 | AB39: 1 | AC39: 3.95 | AD39: 0.02086634938
A40: 25 | B40: 2019-07-10 | C40: 140 | D40: 141.910004 | E40: 139.789993 | F40: 140.470001 | G40: 2513900 | H40: 138.834167 | I40: 0.9883545669 | J40: 1 | K40: 138.37 | L40: 140.26 | M40: 138.16 | N40: 138.83 | O40: 2513900 | U40: 2014-02-06 | V40: 0.95 | W40: 174.669998 | X40: 201402 | Y40: 201302 | Z40: 2013-02-06 | AA40: 5 | AB40: 1 | AC40: 3.8 | AD40: 0.02175531026
A41: 26 | B41: 2019-07-09 | C41: 140.610001 | D41: 140.990005 | E41: 139.130005 | F41: 139.330002 | G41: 3365200 | H41: 137.707443 | I41: 0.9883545613 | J41: 1 | K41: 138.97 | L41: 139.35 | M41: 137.51 | N41: 137.71 | O41: 3365200 | U41: 2013-11-06 | V41: 0.95 | W41: 179.190002 | X41: 201311 | Y41: 201211 | Z41: 2012-11-07 | AA41: 5 | AB41: 1 | AC41: 3.7 | AD41: 0.02064847346
A42: 27 | B42: 2019-07-08 | C42: 141.050003 | D42: 141.289993 | E42: 140.270004 | F42: 140.570007 | G42: 2395300 | H42: 138.933014 | I42: 0.9883546068 | J42: 1 | K42: 139.41 | L42: 139.64 | M42: 138.64 | N42: 138.93 | O42: 2395300 | U42: 2013-08-07 | V42: 0.95 | W42: 188.559998 | X42: 201308 | Y42: 201208 | Z42: 2012-08-08 | AA42: 5 | AB42: 1 | AC42: 3.6 | AD42: 0.01909206639
A43: 28 | B43: 2019-07-05 | C43: 140.869995 | D43: 141.490005 | E43: 139.910004 | F43: 141.380005 | G43: 2134700 | H43: 139.733566 | I43: 0.9883545131 | J43: 1 | K43: 139.23 | L43: 139.84 | M43: 138.28 | N43: 139.73 | O43: 2134700 | U43: 2013-05-08 | V43: 0.95 | W43: 204.820007 | X43: 201305 | Y43: 201205 | Z43: 2012-05-08 | AA43: 5 | AB43: 1 | AC43: 3.5 | AD43: 0.0170881744
A44: 29 | B44: 2019-07-03 | C44: 140.720001 | D44: 141.820007 | E44: 140.429993 | F44: 141.539993 | G44: 1930400 | H44: 139.891693 | I44: 0.9883545282 | J44: 1 | K44: 139.08 | L44: 140.17 | M44: 138.79 | N44: 139.89 | O44: 1930400 | U44: 2013-02-06 | V44: 0.85 | W44: 201.020004 | X44: 201302 | Y44: 201202 | Z44: 2012-02-08 | AA44: 5 | AB44: 1 | AC44: 3.4 | AD44: 0.01691373959
A45: 30 | B45: 2019-07-02 | C45: 139.75 | D45: 140.429993 | E45: 139.470001 | F45: 140.220001 | G45: 2409700 | H45: 138.587082 | I45: 0.9883545929 | J45: 1 | K45: 138.12 | L45: 138.79 | M45: 137.85 | N45: 138.59 | O45: 2409700 | U45: 2012-11-07 | V45: 0.85 | W45: 191.160004 | X45: 201211 | Y45: 201111 | Z45: 2011-11-08 | AA45: 5 | AB45: 1 | AC45: 3.3 | AD45: 0.01726302538
A46: 31 | B46: 2019-07-01 | C46: 139.600006 | D46: 141.490005 | E46: 139.279999 | F46: 139.880005 | G46: 3377700 | H46: 138.251038 | I46: 0.98835454 | J46: 1 | K46: 137.97 | L46: 139.84 | M46: 137.66 | N46: 138.25 | O46: 3377700 | U46: 2012-08-08 | V46: 0.85 | W46: 199.029999 | X46: 201208 | Y46: 201108 | Z46: 2011-08-08 | AA46: 5 | AB46: 1 | AC46: 3.2 | AD46: 0.01607797828
A47: 32 | B47: 2019-06-28 | C47: 138.570007 | D47: 139.139999 | E47: 137.839996 | F47: 137.899994 | G47: 6153900 | H47: 136.294083 | I47: 0.9883545245 | J47: 1 | K47: 136.96 | L47: 137.52 | M47: 136.23 | N47: 136.29 | O47: 6153900 | U47: 2012-05-08 | V47: 0.85 | W47: 201.479996 | X47: 201205 | Y47: 201105 | Z47: 2011-05-06 | AA47: 5 | AB47: 1 | AC47: 3.1 | AD47: 0.01538614285
A48: 33 | B48: 2019-06-27 | C48: 138.720001 | D48: 139.300003 | E48: 137.949997 | F48: 138.520004 | G48: 2149800 | H48: 136.906876 | I48: 0.9883545484 | J48: 1 | K48: 137.1 | L48: 137.68 | M48: 136.34 | N48: 136.91 | O48: 2149800 | U48: 2012-02-08 | V48: 0.75 | W48: 192.949997 | X48: 201202 | Y48: 201102 | Z48: 2011-02-08 | AA48: 5 | AB48: 1 | AC48: 3 | AD48: 0.01554806969
A49: 34 | B49: 2019-06-26 | C49: 138.869995 | D49: 139.679993 | E49: 138.410004 | F49: 138.520004 | G49: 2284600 | H49: 136.906876 | I49: 0.9883545484 | J49: 1 | K49: 137.25 | L49: 138.05 | M49: 136.8 | N49: 136.91 | O49: 2284600 | U49: 2011-11-08 | V49: 0.75 | W49: 187.25 | X49: 201111 | Y49: 201011 | Z49: 2010-11-08 | AA49: 5 | AB49: 1 | AC49: 2.9 | AD49: 0.01548731642
A50: 35 | B50: 2019-06-25 | C50: 139.460007 | D50: 139.550003 | E50: 138.130005 | F50: 138.360001 | G50: 2801200 | H50: 136.748734 | I50: 0.9883545317 | J50: 1 | K50: 137.84 | L50: 137.92 | M50: 136.52 | N50: 136.75 | O50: 2801200 | U50: 2011-08-08 | V50: 0.75 | W50: 166.220001 | X50: 201108 | Y50: 201008 | Z50: 2010-08-06 | AA50: 5 | AB50: 1 | AC50: 2.8 | AD50: 0.01684514489
A51: 36 | B51: 2019-06-24 | C51: 139.199997 | D51: 140.149994 | E51: 139.050003 | F51: 139.350006 | G51: 2186000 | H51: 137.727219 | I51: 0.9883545968 | J51: 1 | K51: 137.58 | L51: 138.52 | M51: 137.43 | N51: 137.73 | O51: 2186000 | U51: 2011-05-06 | V51: 0.75 | W51: 168.889999 | X51: 201105 | Y51: 201005 | Z51: 2010-05-06 | AA51: 5 | AB51: 1 | AC51: 2.7 | AD51: 0.01598673702
A52: 37 | B52: 2019-06-21 | C52: 138.440002 | D52: 139.539993 | E52: 138.389999 | F52: 139.199997 | G52: 5288700 | H52: 137.578949 | I52: 0.98835454 | J52: 1 | K52: 136.83 | L52: 137.91 | M52: 136.78 | N52: 137.58 | O52: 5288700 | U52: 2011-02-08 | V52: 0.65 | W52: 166.050003 | X52: 201102 | Y52: 201002 | Z52: 2010-02-08 | AA52: 5 | AB52: 1 | AC52: 2.6 | AD52: 0.01565793407
A53: 38 | B53: 2019-06-20 | C53: 138.929993 | D53: 139.539993 | E53: 138.199997 | F53: 138.850006 | G53: 3071000 | H53: 137.233032 | I53: 0.988354527 | J53: 1 | K53: 137.31 | L53: 137.91 | M53: 136.59 | N53: 137.23 | O53: 3071000 | U53: 2010-11-08 | V53: 0.65 | W53: 146.460007 | X53: 201011 | Y53: 200911 | Z53: 2009-11-06 | AA53: 5 | AB53: 1 | AC53: 2.5 | AD53: 0.01706950622
A54: 39 | B54: 2019-06-19 | C54: 136.429993 | D54: 138.360001 | E54: 136.240005 | F54: 137.080002 | G54: 2382400 | H54: 135.483643 | I54: 0.988354545 | J54: 1 | K54: 134.84 | L54: 136.75 | M54: 134.65 | N54: 135.48 | O54: 2382400 | U54: 2010-08-06 | V54: 0.65 | W54: 130.139999 | X54: 201008 | Y54: 200908 | Z54: 2009-08-06 | AA54: 5 | AB54: 1 | AC54: 2.4 | AD54: 0.01844167833
A55: 40 | B55: 2019-06-18 | C55: 135.199997 | D55: 137.190002 | E55: 135.199997 | F55: 136.380005 | G55: 2914700 | H55: 134.791794 | I55: 0.9883545172 | J55: 1 | K55: 133.63 | L55: 135.59 | M55: 133.63 | N55: 134.79 | O55: 2914700 | U55: 2010-05-06 | V55: 0.65 | W55: 123.919998 | X55: 201005 | Y55: 200905 | Z55: 2009-05-06 | AA55: 5 | AB55: 1 | AC55: 2.3 | AD55: 0.01856036182
A56: 41 | B56: 2019-06-17 | C56: 135.389999 | D56: 136.029999 | E56: 134.699997 | F56: 134.949997 | G56: 2194100 | H56: 133.378448 | I56: 0.9883545829 | J56: 1 | K56: 133.81 | L56: 134.45 | M56: 133.13 | N56: 133.38 | O56: 2194100 | U56: 2010-02-08 | V56: 0.55 | W56: 121.879997 | X56: 201002 | Y56: 200902 | Z56: 2009-02-06 | AA56: 5 | AB56: 1 | AC56: 2.2 | AD56: 0.01805054196
A57: 42 | B57: 2019-06-14 | C57: 135.440002 | D57: 135.880005 | E57: 134.429993 | F57: 135.149994 | G57: 2193300 | H57: 133.576111 | I57: 0.9883545463 | J57: 1 | K57: 133.86 | L57: 134.3 | M57: 132.86 | N57: 133.58 | O57: 2193300 | U57: 2009-11-06 | V57: 0.55 | W57: 123.489998 | X57: 200911 | Y57: 200811 | Z57: 2008-11-06 | AA57: 5 | AB57: 1 | AC57: 2.15 | AD57: 0.01741031691
A58: 43 | B58: 2019-06-13 | C58: 135.130005 | D58: 136.270004 | E58: 135.089996 | F58: 135.759995 | G58: 2955300 | H58: 134.179016 | I58: 0.9883546033 | J58: 1 | K58: 133.56 | L58: 134.68 | M58: 133.52 | N58: 134.18 | O58: 2955300 | U58: 2009-08-06 | V58: 0.55 | W58: 117.379997 | X58: 200908 | Y58: 200808 | Z58: 2008-08-06 | AA58: 5 | AB58: 1 | AC58: 2.1 | AD58: 0.01789061215
A59: 44 | B59: 2019-06-12 | C59: 135.559998 | D59: 135.940002 | E59: 134.410004 | F59: 134.869995 | G59: 2254700 | H59: 133.299377 | I59: 0.9883545781 | J59: 1 | K59: 133.98 | L59: 134.36 | M59: 132.84 | N59: 133.3 | O59: 2254700 | U59: 2009-05-06 | V59: 0.55 | W59: 104.620003 | X59: 200905 | Y59: 200805 | Z59: 2008-05-07 | AA59: 5 | AB59: 1 | AC59: 2.05 | AD59: 0.0195947232
A60: 45 | B60: 2019-06-11 | C60: 135.320007 | D60: 136.460007 | E60: 135.050003 | F60: 135.949997 | G60: 3407300 | H60: 134.366806 | I60: 0.9883546081 | J60: 1 | K60: 133.74 | L60: 134.87 | M60: 133.48 | N60: 134.37 | O60: 3407300 | U60: 2009-02-06 | V60: 0.5 | W60: 96.139999 | X60: 200902 | Y60: 200802 | Z60: 2008-02-06 | AA60: 5 | AB60: 1 | AC60: 2 | AD60: 0.02080299585
A61: 46 | B61: 2019-06-10 | C61: 134.380005 | D61: 135.350006 | E61: 133.910004 | F61: 134.740005 | G61: 2911300 | H61: 133.170898 | I61: 0.9883545574 | J61: 1 | K61: 132.82 | L61: 133.77 | M61: 132.35 | N61: 133.17 | O61: 2911300 | U61: 2008-11-06 | V61: 0.5 | W61: 85.150002 | X61: 200811 | Y61: 200711 | Z61: 2007-11-07 | AA61: 5 | AB61: 1 | AC61: 1.9 | AD61: 0.02231356377
A62: 47 | B62: 2019-06-07 | C62: 132.470001 | D62: 134.720001 | E62: 132.210007 | F62: 133.309998 | G62: 2553400 | H62: 131.757538 | I62: 0.9883545119 | J62: 1 | K62: 130.93 | L62: 133.15 | M62: 130.67 | N62: 131.76 | O62: 2553400 | U62: 2008-08-06 | V62: 0.5 | W62: 129.160004 | X62: 200808 | Y62: 200708 | Z62: 2007-08-08 | AA62: 5 | AB62: 1 | AC62: 1.8 | AD62: 0.01393620273
A63: 48 | B63: 2019-06-06 | C63: 132.190002 | D63: 132.649994 | E63: 130.899994 | F63: 132.220001 | G63: 2298200 | H63: 130.680237 | I63: 0.9883545304 | J63: 1 | K63: 130.65 | L63: 131.11 | M63: 129.38 | N63: 130.68 | O63: 2298200 | U63: 2008-05-07 | V63: 0.5 | W63: 124.139999 | X63: 200805 | Y63: 200705 | Z63: 2007-05-08 | AA63: 5 | AB63: 1 | AC63: 1.7 | AD63: 0.01369421632
A64: 49 | B64: 2019-06-05 | C64: 133.380005 | D64: 133.610001 | E64: 130.470001 | F64: 131.490005 | G64: 3161300 | H64: 129.95874 | I64: 0.9883545141 | J64: 1 | K64: 131.83 | L64: 132.05 | M64: 128.95 | N64: 129.96 | O64: 3161300 | U64: 2008-02-06 | V64: 0.4 | W64: 103.589996 | X64: 200802 | Y64: 200702 | Z64: 2007-02-07 | AA64: 5 | AB64: 1 | AC64: 1.6 | AD64: 0.01544550692
A65: 50 | B65: 2019-06-04 | C65: 129.559998 | D65: 132.740005 | E65: 129.089996 | F65: 132.690002 | G65: 3913500 | H65: 131.144775 | I65: 0.9883546087 | J65: 1 | K65: 128.05 | L65: 131.19 | M65: 127.59 | N65: 131.14 | O65: 3913500 | U65: 2007-11-07 | V65: 0.4 | W65: 111.080002 | X65: 200711 | Y65: 200611 | Z65: 2006-11-08 | AA65: 5 | AB65: 1 | AC65: 1.5 | AD65: 0.01350378082
A66: 51 | B66: 2019-06-03 | C66: 127.099998 | D66: 128.559998 | E66: 127.059998 | F66: 128.270004 | G66: 4266900 | H66: 126.776245 | I66: 0.9883545727 | J66: 1 | K66: 125.62 | L66: 127.06 | M66: 125.58 | N66: 126.78 | O66: 4266900 | U66: 2007-08-08 | V66: 0.4 | W66: 112.980003 | X66: 200708 | Y66: 200608 | Z66: 2006-08-08 | AA66: 5 | AB66: 1 | AC66: 1.4 | AD66: 0.0123915734
A67: 52 | B67: 2019-05-31 | C67: 128.440002 | D67: 128.440002 | E67: 126.849998 | F67: 126.989998 | G67: 3539300 | H67: 125.511147 | I67: 0.9883545868 | J67: 1 | K67: 126.94 | L67: 126.94 | M67: 125.37 | N67: 125.51 | O67: 3539300 | U67: 2007-05-08 | V67: 0.4 | W67: 103.290001 | X67: 200705 | Y67: 200605 | Z67: 2006-05-08 | AA67: 5 | AB67: 1 | AC67: 1.3 | AD67: 0.01258592301
A68: 53 | B68: 2019-05-30 | C68: 129.740005 | D68: 129.970001 | E68: 128.929993 | F68: 129.570007 | G68: 2741900 | H68: 128.061111 | I68: 0.9883545889 | J68: 1 | K68: 128.23 | L68: 128.46 | M68: 127.43 | N68: 128.06 | O68: 2741900 | U68: 2007-02-07 | V68: 0.3 | W68: 99.540001 | X68: 200702 | Y68: 200602 | Z68: 2006-02-08 | AA68: 5 | AB68: 1 | AC68: 1.2 | AD68: 0.01205545497
A69: 54 | B69: 2019-05-29 | C69: 130 | D69: 130.279999 | E69: 128.320007 | F69: 129.690002 | G69: 3679000 | H69: 128.179703 | I69: 0.9883545456 | J69: 1 | K69: 128.49 | L69: 128.76 | M69: 126.83 | N69: 128.18 | O69: 3679000 | U69: 2006-11-08 | V69: 0.3 | W69: 92.589996 | X69: 200611 | Y69: 200511 | Z69: 2005-11-08 | AA69: 5 | AB69: 1 | AC69: 1.1 | AD69: 0.01188033316
A70: 55 | B70: 2019-05-28 | C70: 132.130005 | D70: 132.639999 | E70: 130.270004 | F70: 130.460007 | G70: 4908800 | H70: 128.94075 | I70: 0.9883546151 | J70: 1 | K70: 130.59 | L70: 131.1 | M70: 128.75 | N70: 128.94 | O70: 4908800 | U70: 2006-08-08 | V70: 0.3 | W70: 75.330002 | X70: 200608 | Y70: 200508 | Z70: 2005-08-08 | AA70: 5 | AB70: 1 | AC70: 1 | AD70: 0.01327492332
A71: 56 | B71: 2019-05-24 | C71: 133.529999 | D71: 134.25 | E71: 131.589996 | F71: 132.279999 | G71: 2596100 | H71: 130.739548 | I71: 0.9883546189 | J71: 1 | K71: 131.97 | L71: 132.69 | M71: 130.06 | N71: 130.74 | O71: 2596100 | U71: 2006-05-08 | V71: 0.3 | W71: 82.889999 | X71: 200605 | Y71: 200505 | Z71: 2005-05-06 | AA71: 5 | AB71: 1 | AC71: 0.9 | AD71: 0.01085776343
A72: 57 | B72: 2019-05-23 | C72: 135.130005 | D72: 135.130005 | E72: 130.440002 | F72: 132.389999 | G72: 5343400 | H72: 130.848267 | I72: 0.9883546188 | J72: 1 | K72: 133.56 | L72: 133.56 | M72: 128.92 | N72: 130.85 | O72: 5343400 | U72: 2006-02-08 | V72: 0.2 | W72: 80.800003 | X72: 200602 | Y72: 200502 | Z72: 2005-02-08 | AA72: 5 | AB72: 1 | AC72: 0.8 | AD72: 0.009900989731
A73: 58 | B73: 2019-05-22 | C73: 136 | D73: 136.75 | E73: 135.710007 | F73: 136.350006 | G73: 1849800 | H73: 134.762146 | I73: 0.9883545293 | J73: 1 | K73: 134.42 | L73: 135.16 | M73: 134.13 | N73: 134.76 | O73: 1849800 | U73: 2005-11-08 | V73: 0.2 | W73: 83.150002 | X73: 200511 | Y73: 200411 | Z73: 2004-11-08 | AA73: 5 | AB73: 1 | AC73: 0.78 | AD73: 0.009380637177
A74: 59 | B74: 2019-05-21 | C74: 136.119995 | D74: 137.059998 | E74: 135.789993 | F74: 136.449997 | G74: 2503500 | H74: 134.860977 | I74: 0.9883545619 | J74: 1 | K74: 134.53 | L74: 135.46 | M74: 134.21 | N74: 134.86 | O74: 2503500 | U74: 2005-08-08 | V74: 0.2 | W74: 83.360001 | X74: 200508 | Y74: 200408 | Z74: 2004-08-06 | AA74: 5 | AB74: 1 | AC74: 0.76 | AD74: 0.009117082424
A75: 60 | B75: 2019-05-20 | C75: 133.529999 | D75: 135.429993 | E75: 132.929993 | F75: 135.119995 | G75: 3264500 | H75: 133.546463 | I75: 0.9883545585 | J75: 1 | K75: 131.97 | L75: 133.85 | M75: 131.38 | N75: 133.55 | O75: 3264500 | U75: 2005-05-06 | V75: 0.2 | W75: 75.260002 | X75: 200505 | Y75: 200405 | Z75: 2004-05-06 | AA75: 5 | AB75: 1 | AC75: 0.74 | AD75: 0.009832580127
A76: 61 | B76: 2019-05-17 | C76: 134.679993 | D76: 135.410004 | E76: 133.940002 | F76: 134.320007 | G76: 2619100 | H76: 132.755798 | I76: 0.988354609 | J76: 1 | K76: 133.11 | L76: 133.83 | M76: 132.38 | N76: 132.76 | O76: 2619100 | U76: 2005-02-08 | V76: 0.18 | W76: 94.129997 | X76: 200502 | Y76: 200402 | Z76: 2004-02-06 | AA76: 5 | AB76: 1 | AC76: 0.72 | AD76: 0.007648996313
A77: 62 | B77: 2019-05-16 | C77: 134.740005 | D77: 136.110001 | E77: 134.639999 | F77: 135.880005 | G77: 3017300 | H77: 134.297623 | I77: 0.9883545633 | J77: 1 | K77: 133.17 | L77: 134.52 | M77: 133.07 | N77: 134.3 | O77: 3017300 | U77: 2004-11-08 | V77: 0.18 | W77: 93.370003 | X77: 200411 | Y77: 200311 | Z77: 2003-11-06 | AA77: 5 | AB77: 1 | AC77: 0.7 | AD77: 0.007497054488
A78: 63 | B78: 2019-05-15 | C78: 132.589996 | D78: 134.589996 | E78: 132.369995 | F78: 134.399994 | G78: 2551000 | H78: 132.834854 | I78: 0.9883546126 | J78: 1 | K78: 131.05 | L78: 133.02 | M78: 130.83 | N78: 132.83 | O78: 2551000 | U78: 2004-08-06 | V78: 0.18 | W78: 83.480003 | X78: 200408 | Y78: 200308 | Z78: 2003-08-06 | AA78: 5 | AB78: 1 | AC78: 0.68 | AD78: 0.008145663339
A79: 64 | B79: 2019-05-14 | C79: 131.820007 | D79: 134.320007 | E79: 131.679993 | F79: 133.309998 | G79: 3280400 | H79: 131.757538 | I79: 0.9883545119 | J79: 1 | K79: 130.28 | L79: 132.76 | M79: 130.15 | N79: 131.76 | O79: 3280400 | U79: 2004-05-06 | V79: 0.18 | W79: 88.360001 | X79: 200405 | Y79: 200305 | Z79: 2003-05-07 | AA79: 5 | AB79: 1 | AC79: 0.66 | AD79: 0.007469443102
A80: 65 | B80: 2019-05-13 | C80: 133.279999 | D80: 133.570007 | E80: 130.960007 | F80: 131.419998 | G80: 4958000 | H80: 129.889557 | I80: 0.9883545806 | J80: 1 | K80: 131.73 | L80: 132.01 | M80: 129.43 | N80: 129.89 | O80: 4958000 | U80: 2004-02-06 | V80: 0.16 | W80: 98.940002 | X80: 200402 | Y80: 200302 | Z80: 2003-02-06 | AA80: 5 | AB80: 1 | AC80: 0.64 | AD80: 0.006468566677
A81: 66 | B81: 2019-05-10 | C81: 134.880005 | D81: 135.75 | E81: 132.419998 | F81: 135.320007 | G81: 3977600 | H81: 133.744141 | I81: =IF(F81=0,1,H81/F81) -> 0.9883545232 | J81: =INDEX(OFFSET($T$15,0,0,$S$13+1,1),MATCH(B81,OFFSET($Q$15,0,0,$S$13+1,1),-1)) -> 1 | K81: =ROUND($I81*C81,2) -> 133.31 | L81: =ROUND($I81*D81,2) -> 134.17 | M81: =ROUND($I81*E81,2) -> 130.88 | N81: =ROUND($I81*F81,2) -> 133.74 | O81: =G81*J81 -> 3977600 | U81: 2003-11-06 | V81: 0.16 | W81: =(INDEX(OFFSET($F$15,1,0,$B$10,1),MATCH(U81,OFFSET($B$15,1,0,$B$10,1),-1))) -> 89.339996 | X81: =YEAR(U81)&RIGHT("0"&MONTH(U81),2) -> 200311 | Y81: =YEAR(U81)-1&RIGHT("0"&MONTH(U81),2) -> 200211 | Z81: =OFFSET(U80,AA81,0,1,1) -> 2002-11-06 | AA81: =MATCH(Y81,OFFSET($X$15,A81,0,$V$14+1-A81,1),-1) -> 5 | AB81: =IF(OR(AND(YEAR(U81)=YEAR(Z81),MONTH(U81)=MONTH(Z81)),MONTH(U81)=MONTH(Z81)),1,0) -> 1 | AC81: =(V81+IF(AA81-AB81=0,0,IFERROR(SUM(OFFSET(V81,1,0,AA81-AB81-1,1)),0))) -> 0.63 | AD81: =AC81/(INDEX(OFFSET($F$15,1,0,$B$10,1),MATCH(U81,OFFSET($B$15,1,0,$B$10,1),-1))) -> 0.007051712874
A82: 67 | B82: 2019-05-09 | C82: 134.889999 | D82: 135.580002 | E82: 133.029999 | F82: 135.339996 | G82: 4192700 | H82: 133.763901 | I82: 0.9883545512 | J82: 1 | K82: 133.32 | L82: 134 | M82: 131.48 | N82: 133.76 | O82: 4192700 | U82: 2003-08-06 | V82: 0.16 | W82: 79.75 | X82: 200308 | Y82: 200208 | Z82: 2002-08-07 | AA82: 5 | AB82: 1 | AC82: 0.62 | AD82: 0.007774294671
A83: 68 | B83: 2019-05-08 | C83: 137.770004 | D83: 138.699997 | E83: 137.130005 | F83: 138 | G83: 3818900 | H83: 134.791794 | I83: 0.9767521304 | J83: 1 | K83: 134.57 | L83: 135.48 | M83: 133.94 | N83: 134.79 | O83: 3818900 | U83: 2003-05-07 | V83: 0.16 | W83: 86.68 | X83: 200305 | Y83: 200205 | Z83: 2002-05-08 | AA83: 5 | AB83: 1 | AC83: 0.61 | AD83: 0.007037378865
A84: 69 | B84: 2019-05-07 | C84: 139.149994 | D84: 139.509995 | E84: 136.190002 | F84: 137.639999 | G84: 4726800 | H84: 134.44017 | I84: 0.9767521867 | J84: 1 | K84: 135.92 | L84: 136.27 | M84: 133.02 | N84: 134.44 | O84: 4726800 | U84: 2003-02-06 | V84: 0.15 | W84: 77.510002 | X84: 200302 | Y84: 200202 | Z84: 2002-02-06 | AA84: 5 | AB84: 1 | AC84: 0.6 | AD84: 0.007740936454
A85: 70 | B85: 2019-05-06 | C85: 138.300003 | D85: 140.690002 | E85: 137.899994 | F85: 140.380005 | G85: 2793300 | H85: 137.11647 | I85: 0.9767521379 | J85: 1 | K85: 135.08 | L85: 137.42 | M85: 134.69 | N85: 137.12 | O85: 2793300 | U85: 2002-11-06 | V85: 0.15 | W85: 81.540001 | X85: 200211 | Y85: 200111 | Z85: 2001-11-07 | AA85: 5 | AB85: 1 | AC85: 0.59 | AD85: 0.007235712445
A86: 71 | B86: 2019-05-03 | C86: 139.699997 | D86: 141 | E86: 139.630005 | F86: 140.25 | G86: 2579900 | H86: 136.989487 | I86: 0.9767521355 | J86: 1 | K86: 136.45 | L86: 137.72 | M86: 136.38 | N86: 136.99 | O86: 2579900 | U86: 2002-08-07 | V86: 0.15 | W86: 69.169998 | X86: 200208 | Y86: 200108 | Z86: 2001-08-08 | AA86: 5 | AB86: 1 | AC86: 0.58 | AD86: 0.008385138308
A87: 72 | B87: 2019-05-02 | C87: 140.5 | D87: 141.279999 | E87: 139.410004 | F87: 139.589996 | G87: 3541400 | H87: 136.344818 | I87: 0.9767520733 | J87: 1 | K87: 137.23 | L87: 138 | M87: 136.17 | N87: 136.34 | O87: 3541400 | U87: 2002-05-08 | V87: 0.15 | W87: 82.449997 | X87: 200205 | Y87: 200105 | Z87: 2001-05-08 | AA87: 5 | AB87: 1 | AC87: 0.57 | AD87: 0.006913281028
A88: 73 | B88: 2019-05-01 | C88: 140.550003 | D88: 141.809998 | E88: 140.169998 | F88: 140.559998 | G88: 3053700 | H88: 137.292282 | I88: 0.9767521624 | J88: 1 | K88: 137.28 | L88: 138.51 | M88: 136.91 | N88: 137.29 | O88: 3053700 | U88: 2002-02-06 | V88: 0.14 | W88: 106.629997 | X88: 200202 | Y88: 200102 | Z88: 2001-02-07 | AA88: 5 | AB88: 1 | AC88: 0.56 | AD88: 0.005251805456
A89: 74 | B89: 2019-04-30 | C89: 139.110001 | D89: 140.440002 | E89: 138.679993 | F89: 140.270004 | G89: 4638800 | H89: 137.009018 | I89: 0.9767520788 | J89: 1 | K89: 135.88 | L89: 137.18 | M89: 135.46 | N89: 137.01 | O89: 4638800 | U89: 2001-11-07 | V89: 0.14 | W89: 113.849998 | X89: 200111 | Y89: 200011 | Z89: 2000-11-08 | AA89: 5 | AB89: 1 | AC89: 0.55 | AD89: 0.004830917959
A90: 75 | B90: 2019-04-29 | C90: 139.149994 | D90: 139.630005 | E90: 138.809998 | F90: 139.050003 | G90: 2958300 | H90: 135.817383 | I90: 0.9767521041 | J90: 1 | K90: 135.92 | L90: 136.38 | M90: 135.58 | N90: 135.82 | O90: 2958300 | U90: 2001-08-08 | V90: 0.14 | W90: 104.190002 | X90: 200108 | Y90: 200008 | Z90: 2000-08-08 | AA90: 5 | AB90: 1 | AC90: 0.54 | AD90: 0.005182838945
A91: 76 | B91: 2019-04-26 | C91: 139.339996 | D91: 139.889999 | E91: 138.809998 | F91: 139.440002 | G91: 2319800 | H91: 136.198318 | I91: 0.9767521231 | J91: 1 | K91: 136.1 | L91: 136.64 | M91: 135.58 | N91: 136.2 | O91: 2319800 | U91: 2001-05-08 | V91: 0.14 | W91: 117.699997 | X91: 200105 | Y91: 200005 | Z91: 2000-05-08 | AA91: 5 | AB91: 1 | AC91: 0.53 | AD91: 0.004502973777
A92: 77 | B92: 2019-04-25 | C92: 139.699997 | D92: 139.75 | E92: 137.710007 | F92: 138.630005 | G92: 2910100 | H92: 135.40715 | I92: 0.9767521108 | J92: 1 | K92: 136.45 | L92: 136.5 | M92: 134.51 | N92: 135.41 | O92: 2910100 | U92: 2001-02-07 | V92: 0.13 | W92: 116.910004 | X92: 200102 | Y92: 200002 | Z92: 2000-02-08 | AA92: 5 | AB92: 1 | AC92: 0.52 | AD92: 0.004447865728
A93: 78 | B93: 2019-04-24 | C93: 140.600006 | D93: 141.309998 | E93: 139.779999 | F93: 139.949997 | G93: 2774900 | H93: 136.696457 | I93: 0.9767521253 | J93: 1 | K93: 137.33 | L93: 138.02 | M93: 136.53 | N93: 136.7 | O93: 2774900 | U93: 2000-11-08 | V93: 0.13 | W93: 100 | X93: 200011 | Y93: 199911 | Z93: 1999-11-08 | AA93: 5 | AB93: 1 | AC93: 0.51 | AD93: 0.0051
A94: 79 | B94: 2019-04-23 | C94: 139.149994 | D94: 140.919998 | E94: 138.940002 | F94: 140.440002 | G94: 4462200 | H94: 137.175064 | I94: 0.9767520795 | J94: 1 | K94: 135.92 | L94: 137.64 | M94: 135.71 | N94: 137.18 | O94: 4462200 | U94: 2000-08-08 | V94: 0.13 | W94: 118.875 | X94: 200008 | Y94: 199908 | Z94: 1999-08-06 | AA94: 5 | AB94: 1 | AC94: 0.5 | AD94: 0.004206098843
A95: 80 | B95: 2019-04-22 | C95: 139.419998 | D95: 140.559998 | E95: 138.479996 | F95: 138.889999 | G95: 4494000 | H95: 135.661102 | I95: 0.9767521274 | J95: 1 | K95: 136.18 | L95: 137.29 | M95: 135.26 | N95: 135.66 | O95: 4494000 | U95: 2000-05-08 | V95: 0.13 | W95: 109.75 | X95: 200005 | Y95: 199905 | Z95: 1999-05-06 | AA95: 5 | AB95: 1 | AC95: 0.49 | AD95: 0.004464692483
A96: 81 | B96: 2019-04-18 | C96: 139 | D96: 140.490005 | E96: 138.699997 | F96: 140.330002 | G96: 4960000 | H96: 137.067627 | I96: 0.9767521203 | J96: 1 | K96: 135.77 | L96: 137.22 | M96: 135.48 | N96: 137.07 | O96: 4960000 | U96: 2000-02-08 | V96: 0.12 | W96: 118.8125 | X96: 200002 | Y96: 199902 | Z96: 1999-02-08 | AA96: 5 | AB96: 1 | AC96: 0.6 | AD96: 0.005049973698
A97: 82 | B97: 2019-04-17 | C97: 137.369995 | D97: 141.979996 | E97: 136.259995 | F97: 139.110001 | G97: 12525700 | H97: 135.875992 | I97: 0.976752146 | J97: 1 | K97: 134.18 | L97: 138.68 | M97: 133.09 | N97: 135.88 | O97: 12525700 | U97: 1999-11-08 | V97: 0.12 | W97: 93.9375 | X97: 199911 | Y97: 199811 | Z97: 1998-11-06 | AA97: 5 | AB97: 1 | AC97: 0.7 | AD97: 0.00745176314
A98: 83 | B98: 2019-04-16 | C98: 144.399994 | D98: 145.389999 | E98: 144.020004 | F98: 145.139999 | G98: 6301700 | H98: 141.765808 | I98: 0.9767521633 | J98: 1 | K98: 141.04 | L98: 142.01 | M98: 140.67 | N98: 141.77 | O98: 6301700 | U98: 1999-08-06 | V98: 0.12 | W98: 123.5 | X98: 199908 | Y98: 199808 | Z98: 1998-08-06 | AA98: 5 | AB98: 1 | AC98: 0.8 | AD98: 0.006477732794
A99: 84 | B99: 2019-04-15 | C99: 144.399994 | D99: 144.460007 | E99: 143.270004 | F99: 143.899994 | G99: 3603200 | H99: 140.554626 | I99: 0.9767521325 | J99: 1 | K99: 141.04 | L99: 141.1 | M99: 139.94 | N99: 140.55 | O99: 3603200 | U99: 1999-05-06 | V99: 0.24 | W99: 104.625 | X99: 199905 | Y99: 199805 | Z99: 1998-05-06 | AA99: 5 | AB99: 1 | AC99: 0.9 | AD99: 0.008602150538
A100: 85 | B100: 2019-04-12 | C100: 144.259995 | D100: 144.440002 | E100: 143.699997 | F100: 144.350006 | G100: 2898900 | H100: 140.994171 | I100: 0.9767520966 | J100: 1 | K100: 140.91 | L100: 141.08 | M100: 140.36 | N100: 140.99 | O100: 2898900 | U100: 1999-02-08 | V100: 0.22 | W100: 83.5 | X100: 199902 | Y100: 199802 | Z100: 1998-02-06 | AA100: 5 | AB100: 1 | AC100: 0.88 | AD100: 0.01053892216
A101: 86 | B101: 2019-04-11 | C101: 143.800003 | D101: 144.110001 | E101: 143.029999 | F101: 143.779999 | G101: 2942000 | H101: 140.437424 | I101: 0.9767521559 | J101: 1 | K101: 140.46 | L101: 140.76 | M101: 139.7 | N101: 140.44 | O101: 2942000 | U101: 1998-11-06 | V101: 0.22 | W101: 74.96875 | X101: 199811 | Y101: 199711 | Z101: 1997-11-06 | AA101: 5 | AB101: 1 | AC101: 0.86 | AD101: 0.01147144644
A102: 87 | B102: 2019-04-10 | C102: 142.199997 | D102: 143.5 | E102: 141.979996 | F102: 143.020004 | G102: 2678000 | H102: 139.695099 | I102: 0.9767521682 | J102: 1 | K102: 138.89 | L102: 140.16 | M102: 138.68 | N102: 139.7 | O102: 2678000 | U102: 1998-08-06 | V102: 0.22 | W102: 64.875 | X102: 199808 | Y102: 199708 | Z102: 1997-08-07 | AA102: 5 | AB102: 1 | AC102: 0.84 | AD102: 0.01294797688
A103: 88 | B103: 2019-04-09 | C103: 142.660004 | D103: 142.949997 | E103: 141.839996 | F103: 142.110001 | G103: 3038500 | H103: 138.806259 | I103: 0.9767522203 | J103: 1 | K103: 139.34 | L103: 139.63 | M103: 138.54 | N103: 138.81 | O103: 3038500 | U103: 1998-05-06 | V103: 0.22 | W103: 58.625 | X103: 199805 | Y103: 199705 | Z103: 1997-05-07 | AA103: 5 | AB103: 1 | AC103: 0.82 | AD103: 0.01398720682
A104: 89 | B104: 2019-04-08 | C104: 143.020004 | D104: 143.419998 | E104: 142.869995 | F104: 143.389999 | G104: 2118200 | H104: 140.056488 | I104: 0.9767521374 | J104: 1 | K104: 139.7 | L104: 140.09 | M104: 139.55 | N104: 140.06 | O104: 2118200 | U104: 1998-02-06 | V104: 0.2 | W104: 49 | X104: 199802 | Y104: 199702 | Z104: 1997-02-06 | AA104: 5 | AB104: 1 | AC104: 1 | AD104: 0.02040816327
A105: 90 | B105: 2019-04-05 | C105: 143.289993 | D105: 143.5 | E105: 142.460007 | F105: 143.279999 | G105: 2731800 | H105: 139.949051 | I105: 0.9767521774 | J105: 1 | K105: 139.96 | L105: 140.16 | M105: 139.15 | N105: 139.95 | O105: 2731800 | U105: 1997-11-06 | V105: 0.2 | W105: 50.53125 | X105: 199711 | Y105: 199611 | Z105: 1996-11-06 | AA105: 5 | AB105: 1 | AC105: 1.15 | AD105: 0.02275819419
A106: 91 | B106: 2019-04-04 | C106: 143.619995 | D106: 144.139999 | E106: 142.539993 | F106: 142.779999 | G106: 2771100 | H106: 139.460663 | I106: 0.976752094 | J106: 1 | K106: 140.28 | L106: 140.79 | M106: 139.23 | N106: 139.46 | O106: 2771100 | U106: 1997-08-07 | V106: 0.2 | W106: 53.6875 | X106: 199708 | Y106: 199608 | Z106: 1996-08-07 | AA106: 5 | AB106: 1 | AC106: 1.3 | AD106: 0.02421420256
A107: 92 | B107: 2019-04-03 | C107: 143.649994 | D107: 144.220001 | E107: 143.009995 | F107: 143.630005 | G107: 2681200 | H107: 140.290909 | I107: 0.9767521 | J107: 1 | K107: 140.31 | L107: 140.87 | M107: 139.69 | N107: 140.29 | O107: 2681200 | U107: 1997-05-07 | V107: 0.4 | W107: 40.53125 | X107: 199705 | Y107: 199605 | Z107: 1996-05-08 | AA107: 5 | AB107: 1 | AC107: 1.45 | AD107: 0.03577486507
A108: 93 | B108: 2019-04-02 | C108: 143.350006 | D108: 143.949997 | E108: 142.600006 | F108: 143 | G108: 2404800 | H108: 139.675552 | I108: 0.9767521119 | J108: 1 | K108: 140.02 | L108: 140.6 | M108: 139.28 | N108: 139.68 | O108: 2404800 | U108: 1997-02-06 | V108: 0.35 | W108: 36.5 | X108: 199702 | Y108: 199602 | Z108: 1996-02-07 | AA108: 5 | AB108: 1 | AC108: 1.4 | AD108: 0.03835616438
A109: 94 | B109: 2019-04-01 | C109: 141.509995 | D109: 143.410004 | E109: 141.509995 | F109: 143.300003 | G109: 3984300 | H109: 139.968582 | I109: 0.9767521219 | J109: 1 | K109: 138.22 | L109: 140.08 | M109: 138.22 | N109: 139.97 | O109: 3984300 | U109: 1996-11-06 | V109: 0.35 | W109: 33.34375 | X109: 199611 | Y109: 199511 | Z109: 1995-11-08 | AA109: 5 | AB109: 1 | AC109: 1.3 | AD109: 0.03898781631
A110: 95 | B110: 2019-03-29 | C110: 140.5 | D110: 141.220001 | E110: 140.149994 | F110: 141.100006 | G110: 3101400 | H110: 137.819733 | I110: 0.9767521413 | J110: 1 | K110: 137.23 | L110: 137.94 | M110: 136.89 | N110: 137.82 | O110: 3101400 | U110: 1996-08-07 | V110: 0.35 | W110: 28.15625 | X110: 199608 | Y110: 199508 | Z110: 1995-08-08 | AA110: 5 | AB110: 1 | AC110: 1.2 | AD110: 0.04261931188
A111: 96 | B111: 2019-03-28 | C111: 139.910004 | D111: 140.440002 | E111: 139.100006 | F111: 139.919998 | G111: 2663900 | H111: 136.66716 | I111: 0.976752158 | J111: 1 | K111: 136.66 | L111: 137.18 | M111: 135.87 | N111: 136.67 | O111: 2663900 | U111: 1996-05-08 | V111: 0.35 | W111: 26.46875 | X111: 199605 | Y111: 199505 | Z111: 1995-05-04 | AA111: 5 | AB111: 1 | AC111: 1.1 | AD111: 0.04155844156
A112: 97 | B112: 2019-03-27 | C112: 140.410004 | D112: 140.490005 | E112: 138.399994 | F112: 139.240005 | G112: 3098200 | H112: 136.002975 | I112: 0.9767521554 | J112: 1 | K112: 137.15 | L112: 137.22 | M112: 135.18 | N112: 136 | O112: 3098200 | U112: 1996-02-07 | V112: 0.25 | W112: 28.15625 | X112: 199602 | Y112: 199502 | Z112: 1995-02-06 | AA112: 5 | AB112: 1 | AC112: 1 | AD112: 0.03551609323
A113: 98 | B113: 2019-03-26 | C113: 139.929993 | D113: 141.020004 | E113: 139.419998 | F113: 140.220001 | G113: 2553700 | H113: 136.96019 | I113: 0.9767521682 | J113: 1 | K113: 136.68 | L113: 137.74 | M113: 136.18 | N113: 136.96 | O113: 2553700 | U113: 1995-11-08 | V113: 0.25 | W113: 24.4375 | X113: 199511 | Y113: 199411 | Z113: 1994-11-04 | AA113: 5 | AB113: 1 | AC113: 1 | AD113: 0.04092071611
A114: 99 | B114: 2019-03-25 | C114: 139.059998 | D114: 139.910004 | E114: 138.350006 | F114: 139.179993 | G114: 2839800 | H114: 135.944351 | I114: 0.976752104 | J114: 1 | K114: 135.83 | L114: 136.66 | M114: 135.13 | N114: 135.94 | O114: 2839800 | U114: 1995-08-08 | V114: 0.25 | W114: 27.40625 | X114: 199508 | Y114: 199408 | Z114: 1994-08-04 | AA114: 5 | AB114: 1 | AC114: 1 | AD114: 0.03648802737
A115: 100 | B115: 2019-03-22 | C115: 140.970001 | D115: 141.440002 | E115: 138.899994 | F115: 139.449997 | G115: 3877200 | H115: 136.208084 | I115: 0.9767521472 | J115: 1 | K115: 137.69 | L115: 138.15 | M115: 135.67 | N115: 136.21 | O115: 3877200 | U115: 1995-05-04 | V115: 0.25 | W115: 23.4375 | X115: 199505 | Y115: 199405 | Z115: 1994-05-05 | AA115: 5 | AB115: 1 | AC115: 1 | AD115: 0.04266666667
A116: 101 | B116: 2019-03-21 | C116: 139.100006 | D116: 142.119995 | E116: 138.880005 | F116: 141.440002 | G116: 3605400 | H116: 138.151825 | I116: 0.9767521426 | J116: 1 | K116: 135.87 | L116: 138.82 | M116: 135.65 | N116: 138.15 | O116: 3605400 | U116: 1995-02-06 | V116: 0.25 | W116: 18.59375 | X116: 199502 | Y116: 199402 | Z116: 1994-02-04 | AA116: 5 | AB116: 1 | AC116: 1 | AD116: 0.05378151261
A117: 102 | B117: 2019-03-20 | C117: 140.529999 | D117: 140.699997 | E117: 138.979996 | F117: 139.600006 | G117: 3649500 | H117: 136.354614 | I117: 0.9767522073 | J117: 1 | K117: 137.26 | L117: 137.43 | M117: 135.75 | N117: 136.35 | O117: 3649500 | U117: 1994-11-04 | V117: 0.25 | W117: 17.78125 | X117: 199411 | Y117: 199311 | Z117: 1993-11-04 | AA117: 5 | AB117: 1 | AC117: 1 | AD117: 0.05623901582
A118: 103 | B118: 2019-03-19 | C118: 140.960007 | D118: 141.699997 | E118: 140 | F118: 140.490005 | G118: 3482300 | H118: 137.223907 | I118: 0.9767520971 | J118: 1 | K118: 137.68 | L118: 138.41 | M118: 136.75 | N118: 137.22 | O118: 3482300 | U118: 1994-08-04 | V118: 0.25 | W118: 15.78125 | X118: 199408 | Y118: 199308 | Z118: 1993-08-05 | AA118: 5 | AB118: 1 | AC118: 1 | AD118: 0.06336633663
A119: 104 | B119: 2019-03-18 | C119: 139.830002 | D119: 140.369995 | E119: 138.720001 | F119: 140.210007 | G119: 3268500 | H119: 136.950424 | I119: 0.9767521372 | J119: 1 | K119: 136.58 | L119: 137.11 | M119: 135.5 | N119: 136.95 | O119: 3268500 | U119: 1994-05-05 | V119: 0.25 | W119: 14.28125 | X119: 199405 | Y119: 199305 | Z119: 1993-05-06 | AA119: 5 | AB119: 1 | AC119: 1 | AD119: 0.07002188184
A120: 105 | B120: 2019-03-15 | C120: 139.369995 | D120: 140.330002 | E120: 139.229996 | F120: 139.429993 | G120: 7153700 | H120: 136.188538 | I120: 0.9767520967 | J120: 1 | K120: 136.13 | L120: 137.07 | M120: 135.99 | N120: 136.19 | O120: 7153700 | U120: 1994-02-04 | V120: 0.25 | W120: 13 | X120: 199402 | Y120: 199302 | Z120: 1993-02-04 | AA120: 5 | AB120: 1 | AC120: 1.29 | AD120: 0.09923076923
A121: 106 | B121: 2019-03-14 | C121: 138.509995 | D121: 138.940002 | E121: 138.059998 | F121: 138.789993 | G121: 2738600 | H121: 135.563431 | I121: 0.9767522 | J121: 1 | K121: 135.29 | L121: 135.71 | M121: 134.85 | N121: 135.56 | O121: 2738600 | U121: 1993-11-04 | V121: 0.25 | W121: 12.4375 | X121: 199311 | Y121: 199211 | Z121: 1992-11-05 | AA121: 5 | AB121: 1 | AC121: 1.58 | AD121: 0.1270351759
A122: 107 | B122: 2019-03-13 | C122: 138.050003 | D122: 139.320007 | E122: 137.850006 | F122: 138.559998 | G122: 3173200 | H122: 135.338776 | I122: 0.9767521504 | J122: 1 | K122: 134.84 | L122: 136.08 | M122: 134.65 | N122: 135.34 | O122: 3173200 | U122: 1993-08-05 | V122: 0.25 | W122: 10.9375 | X122: 199308 | Y122: 199208 | Z122: 1992-08-06 | AA122: 5 | AB122: 1 | AC122: 2.54 | AD122: 0.2322285714
A123: 108 | B123: 2019-03-12 | C123: 138.520004 | D123: 139.699997 | E123: 137.860001 | F123: 138.279999 | G123: 3954700 | H123: 135.065277 | I123: 0.9767520826 | J123: 1 | K123: 135.3 | L123: 136.45 | M123: 134.66 | N123: 135.07 | O123: 3954700 | U123: 1993-05-06 | V123: 0.54 | W123: 12.0625 | X123: 199305 | Y123: 199205 | Z123: 1992-05-07 | AA123: 5 | AB123: 1 | AC123: 3.5 | AD123: 0.2901554404
A124: 109 | B124: 2019-03-11 | C124: 136.029999 | D124: 137.729996 | E124: 135.839996 | F124: 137.710007 | G124: 3939300 | H124: 134.508545 | I124: 0.976752147 | J124: 1 | K124: 132.87 | L124: 134.53 | M124: 132.68 | N124: 134.51 | O124: 3939300 | U124: 1993-02-04 | V124: 0.54 | W124: 12.84375 | X124: 199302 | Y124: 199202 | Z124: 1992-02-06 | AA124: 5 | AB124: 1 | AC124: 4.17 | AD124: 0.3246715328
A125: 110 | B125: 2019-03-08 | C125: 134.210007 | D125: 135.240005 | E125: 133.580002 | F125: 135.089996 | G125: 3773600 | H125: 131.949432 | I125: 0.9767520609 | J125: 1 | K125: 131.09 | L125: 132.1 | M125: 130.47 | N125: 131.95 | O125: 3773600 | U125: 1992-11-05 | V125: 1.21 | W125: 16.46875 | X125: 199211 | Y125: 199111 | Z125: 1991-11-04 | AA125: 5 | AB125: 1 | AC125: 4.84 | AD125: 0.2938899431
A126: 111 | B126: 2019-03-07 | C126: 136.610001 | D126: 136.889999 | E126: 134.630005 | F126: 135.360001 | G126: 4358800 | H126: 132.213181 | I126: 0.9767522165 | J126: 1 | K126: 133.43 | L126: 133.71 | M126: 131.5 | N126: 132.21 | O126: 4358800 | U126: 1992-08-06 | V126: 1.21 | W126: 22.0625 | X126: 199208 | Y126: 199108 | Z126: 1991-08-06 | AA126: 5 | AB126: 1 | AC126: 4.84 | AD126: 0.2193767705
A127: 112 | B127: 2019-03-06 | C127: 138.119995 | D127: 138.389999 | E127: 136.720001 | F127: 136.979996 | G127: 2768300 | H127: 133.795502 | I127: 0.9767521237 | J127: 1 | K127: 134.91 | L127: 135.17 | M127: 133.54 | N127: 133.8 | O127: 2768300 | U127: 1992-05-07 | V127: 1.21 | W127: 23.4375 | X127: 199205 | Y127: 199105 | Z127: 1991-05-06 | AA127: 5 | AB127: 1 | AC127: 4.84 | AD127: 0.2065066667
A128: 113 | B128: 2019-03-05 | C128: 138.369995 | D128: 138.740005 | E128: 137.559998 | F128: 137.880005 | G128: 4250300 | H128: 134.674591 | I128: 0.9767521476 | J128: 1 | K128: 135.15 | L128: 135.51 | M128: 134.36 | N128: 134.67 | O128: 4250300 | U128: 1992-02-06 | V128: 1.21 | W128: 22.46875 | X128: 199202 | Y128: 199102 | Z128: 1991-02-04 | AA128: 5 | AB128: 1 | AC128: 4.84 | AD128: 0.2154102921
A129: 114 | B129: 2019-03-04 | C129: 139.990005 | D129: 140.080002 | E129: 137.169998 | F129: 138.429993 | G129: 3406900 | H129: 135.211792 | I129: 0.9767521407 | J129: 1 | K129: 136.74 | L129: 136.82 | M129: 133.98 | N129: 135.21 | O129: 3406900 | U129: 1991-11-04 | V129: 1.21 | W129: 24.25 | X129: 199111 | Y129: 199011 | Z129: 1990-11-05 | AA129: 5 | AB129: 1 | AC129: 4.84 | AD129: 0.1995876289
A130: 115 | B130: 2019-03-01 | C130: 139.309998 | D130: 140.039993 | E130: 138.639999 | F130: 139.199997 | G130: 3030000 | H130: 135.963882 | I130: 0.9767520469 | J130: 1 | K130: 136.07 | L130: 136.78 | M130: 135.42 | N130: 135.96 | O130: 3030000 | U130: 1991-08-06 | V130: 1.21 | W130: 25.09375 | X130: 199108 | Y130: 199008 | Z130: 1990-08-06 | AA130: 5 | AB130: 1 | AC130: 4.84 | AD130: 0.1928767123
A131: 116 | B131: 2019-02-28 | C131: 138.770004 | D131: 139.059998 | E131: 137.720001 | F131: 138.130005 | G131: 3457800 | H131: 134.918777 | I131: 0.9767521329 | J131: 1 | K131: 135.54 | L131: 135.83 | M131: 134.52 | N131: 134.92 | O131: 3457800 | U131: 1991-05-06 | V131: 1.21 | W131: 25.84375 | X131: 199105 | Y131: 199005 | Z131: 1990-05-04 | AA131: 5 | AB131: 1 | AC131: 4.84 | AD131: 0.1872793229
A132: 117 | B132: 2019-02-27 | C132: 139.25 | D132: 139.570007 | E132: 138.399994 | F132: 139.169998 | G132: 2530900 | H132: 135.934601 | I132: 0.9767521948 | J132: 1 | K132: 136.01 | L132: 136.33 | M132: 135.18 | N132: 135.93 | O132: 2530900 | U132: 1991-02-04 | V132: 1.21 | W132: 31.84375 | X132: 199102 | Y132: 199002 | Z132: 1990-02-05 | AA132: 5 | AB132: 1 | AC132: 4.84 | AD132: 0.1519921492
A133: 118 | B133: 2019-02-26 | C133: 139.669998 | D133: 140.490005 | E133: 139.470001 | F133: 139.720001 | G133: 3060400 | H133: 136.471802 | I133: 0.9767520829 | J133: 1 | K133: 136.42 | L133: 137.22 | M133: 136.23 | N133: 136.47 | O133: 3060400 | U133: 1990-11-05 | V133: 1.21 | W133: 26.96875 | X133: 199011 | Y133: 198911 | Z133: 1989-11-02 | AA133: 5 | AB133: 1 | AC133: 4.84 | AD133: 0.1794669757
A134: 119 | B134: 2019-02-25 | C134: 140 | D134: 140.470001 | E134: 139.320007 | F134: 139.460007 | G134: 3194200 | H134: 136.21785 | I134: 0.9767520663 | J134: 1 | K134: 136.75 | L134: 137.2 | M134: 136.08 | N134: 136.22 | O134: 3194200 | U134: 1990-08-06 | V134: 1.21 | W134: 25.96875 | X134: 199008 | Y134: 198908 | Z134: 1989-08-03 | AA134: 5 | AB134: 1 | AC134: 4.84 | AD134: 0.186377858
A135: 120 | B135: 2019-02-22 | C135: 138.729996 | D135: 139.380005 | E135: 138.429993 | F135: 139.25 | G135: 3113700 | H135: 136.012741 | I135: 0.9767521795 | J135: 1 | K135: 135.5 | L135: 136.14 | M135: 135.21 | N135: 136.01 | O135: 3113700 | U135: 1990-05-04 | V135: 1.21 | W135: 27.625 | X135: 199005 | Y135: 198905 | Z135: 1989-05-04 | AA135: 5 | AB135: 1 | AC135: 4.84 | AD135: 0.1752036199
A136: 121 | B136: 2019-02-21 | C136: 137.820007 | D136: 138.350006 | E136: 137.350006 | F136: 137.839996 | G136: 2937300 | H136: 134.635513 | I136: 0.976752154 | J136: 1 | K136: 134.62 | L136: 135.13 | M136: 134.16 | N136: 134.64 | O136: 2937300 | U136: 1990-02-05 | V136: 1.21 | W136: 24.90625 | X136: 199002 | Y136: 198902 | Z136: 1989-02-02 | AA136: 5 | AB136: 1 | AC136: 4.84 | AD136: 0.1943287327
A137: 122 | B137: 2019-02-20 | C137: 138.759995 | D137: 139.240005 | E137: 137.220001 | F137: 138 | G137: 3802000 | H137: 134.791794 | I137: 0.9767521304 | J137: 1 | K137: 135.53 | L137: 136 | M137: 134.03 | N137: 134.79 | O137: 3802000 | U137: 1989-11-02 | V137: 1.21 | W137: 24.46875 | X137: 198911 | Y137: 198811 | Z137: 1988-11-04 | AA137: 5 | AB137: 1 | AC137: 4.73 | AD137: 0.1933077905
A138: 123 | B138: 2019-02-19 | C138: 137.809998 | D138: 138.699997 | E138: 137.360001 | F138: 138.699997 | G138: 3385700 | H138: 135.47551 | I138: 0.9767520759 | J138: 1 | K138: 134.61 | L138: 135.48 | M138: 134.17 | N138: 135.48 | O138: 3385700 | U138: 1989-08-03 | V138: 1.21 | W138: 28.4375 | X138: 198908 | Y138: 198808 | Z138: 1988-08-04 | AA138: 5 | AB138: 1 | AC138: 4.62 | AD138: 0.1624615385
A139: 124 | B139: 2019-02-15 | C139: 137.580002 | D139: 138.190002 | E139: 137.389999 | F139: 138.029999 | G139: 3844100 | H139: 134.821106 | I139: 0.9767522059 | J139: 1 | K139: 134.38 | L139: 134.98 | M139: 134.2 | N139: 134.82 | O139: 3844100 | U139: 1989-05-04 | V139: 1.21 | W139: 27.65625 | X139: 198905 | Y139: 198805 | Z139: 1988-05-05 | AA139: 5 | AB139: 1 | AC139: 4.51 | AD139: 0.1630734463
A140: 125 | B140: 2019-02-14 | C140: 137.169998 | D140: 137.600006 | E140: 136.210007 | F140: 136.479996 | G140: 2789400 | H140: 133.307129 | I140: 0.9767521462 | J140: 1 | K140: 133.98 | L140: 134.4 | M140: 133.04 | N140: 133.31 | O140: 2789400 | U140: 1989-02-02 | V140: 1.1 | W140: 32.09375 | X140: 198902 | Y140: 198802 | Z140: 1988-02-04 | AA140: 5 | AB140: 1 | AC140: 4.4 | AD140: 0.1370983447
A141: 126 | B141: 2019-02-13 | C141: 136.919998 | D141: 137.919998 | E141: 136.410004 | F141: 137.520004 | G141: 4253000 | H141: 134.322952 | I141: 0.9767520949 | J141: 1 | K141: 133.74 | L141: 134.71 | M141: 133.24 | N141: 134.32 | O141: 4253000 | U141: 1988-11-04 | V141: 1.1 | W141: 30.0625 | X141: 198811 | Y141: 198711 | Z141: 1987-11-05 | AA141: 5 | AB141: 1 | AC141: 4.4 | AD141: 0.1463617464
A142: 127 | B142: 2019-02-12 | C142: 135.149994 | D142: 136.199997 | E142: 134.860001 | F142: 136.050003 | G142: 3317200 | H142: 132.887131 | I142: 0.9767521358 | J142: 1 | K142: 132.01 | L142: 133.03 | M142: 131.72 | N142: 132.89 | O142: 3317200 | U142: 1988-08-04 | V142: 1.1 | W142: 31.0625 | X142: 198808 | Y142: 198708 | Z142: 1987-08-06 | AA142: 5 | AB142: 1 | AC142: 4.4 | AD142: 0.1416498994
A143: 128 | B143: 2019-02-11 | C143: 134.289993 | D143: 135.149994 | E143: 133.910004 | F143: 133.990005 | G143: 3095100 | H143: 130.875031 | I143: 0.9767521913 | J143: 1 | K143: 131.17 | L143: 132.01 | M143: 130.8 | N143: 130.88 | O143: 3095100 | U143: 1988-05-05 | V143: 1.1 | W143: 27.8125 | X143: 198805 | Y143: 198705 | Z143: 1987-05-07 | AA143: 5 | AB143: 1 | AC143: 4.4 | AD143: 0.1582022472
A144: 129 | B144: 2019-02-08 | C144: 132.339996 | D144: 133.710007 | E144: 132.190002 | F144: 133.710007 | G144: 3249800 | H144: 130.601532 | I144: 0.976752114 | J144: 1 | K144: 129.26 | L144: 130.6 | M144: 129.12 | N144: 130.6 | O144: 3249800 | U144: 1988-02-04 | V144: 1.1 | W144: 27.15625 | X144: 198802 | Y144: 198702 | Z144: 1987-02-05 | AA144: 5 | AB144: 1 | AC144: 4.4 | AD144: 0.1620253165
A145: 130 | B145: 2019-02-07 | C145: 133.550003 | D145: 134.470001 | E145: 132.119995 | F145: 133.190002 | G145: 4379400 | H145: 130.093613 | I145: =IF(F145=0,1,H145/F145) -> 0.9767520913 | J145: =INDEX(OFFSET($T$15,0,0,$S$13+1,1),MATCH(B145,OFFSET($Q$15,0,0,$S$13+1,1),-1)) -> 1 | K145: =ROUND($I145*C145,2) -> 130.45 | L145: =ROUND($I145*D145,2) -> 131.34 | M145: =ROUND($I145*E145,2) -> 129.05 | N145: =ROUND($I145*F145,2) -> 130.09 | O145: =G145*J145 -> 4379400 | U145: 1987-11-05 | V145: 1.1 | W145: =(INDEX(OFFSET($F$15,1,0,$B$10,1),MATCH(U145,OFFSET($B$15,1,0,$B$10,1),-1))) -> 30.9375 | X145: =YEAR(U145)&RIGHT("0"&MONTH(U145),2) -> 198711 | Y145: =YEAR(U145)-1&RIGHT("0"&MONTH(U145),2) -> 198611 | Z145: =OFFSET(U144,AA145,0,1,1) -> 1986-11-05 | AA145: =MATCH(Y145,OFFSET($X$15,A145,0,$V$14+1-A145,1),-1) -> 5 | AB145: =IF(OR(AND(YEAR(U145)=YEAR(Z145),MONTH(U145)=MONTH(Z145)),MONTH(U145)=MONTH(Z145)),1,0) -> 1 | AC145: =(V145+IF(AA145-AB145=0,0,IFERROR(SUM(OFFSET(V145,1,0,AA145-AB145-1,1)),0))) -> 4.4 | AD145: =AC145/(INDEX(OFFSET($F$15,1,0,$B$10,1),MATCH(U145,OFFSET($B$15,1,0,$B$10,1),-1))) -> 0.1422222222
A146: 131 | B146: 2019-02-06 | C146: 135.220001 | D146: 136.649994 | E146: 135.169998 | F146: 136.320007 | G146: 4879700 | H146: 131.617355 | I146: 0.965502848 | J146: 1 | K146: 130.56 | L146: 131.94 | M146: 130.51 | N146: 131.62 | O146: 4879700 | U146: 1987-08-06 | V146: 1.1 | W146: 40.75 | X146: 198708 | Y146: 198608 | Z146: 1986-08-07 | AA146: 5 | AB146: 1 | AC146: 4.4 | AD146: 0.1079754601
A147: 132 | B147: 2019-02-05 | C147: 135.279999 | D147: 135.820007 | E147: 134.919998 | F147: 135.550003 | G147: 5398900 | H147: 130.873917 | I147: 0.9655028706 | J147: 1 | K147: 130.61 | L147: 131.13 | M147: 130.27 | N147: 130.87 | O147: 5398900 | U147: 1987-05-07 | V147: 1.1 | W147: 41.21875 | X147: 198705 | Y147: 198605 | Z147: 1986-05-08 | AA147: 5 | AB147: 1 | AC147: 4.4 | AD147: 0.106747536
A148: 133 | B148: 2019-02-04 | C148: 134.020004 | D148: 135.199997 | E148: 132.990005 | F148: 135.190002 | G148: 3966600 | H148: 130.526321 | I148: 0.965502767 | J148: 1 | K148: 129.4 | L148: 130.54 | M148: 128.4 | N148: 130.53 | O148: 3966600 | U148: 1987-02-05 | V148: 1.1 | W148: 34.21875 | X148: 198702 | Y148: 198602 | Z148: 1986-02-07 | AA148: 5 | AB148: 1 | AC148: 4.4 | AD148: 0.1285844749
A149: 134 | B149: 2019-02-01 | C149: 134.970001 | D149: 135.199997 | E149: 133.350006 | F149: 134.100006 | G149: 3806000 | H149: 129.473938 | I149: 0.9655028502 | J149: 1 | K149: 130.31 | L149: 130.54 | M149: 128.75 | N149: 129.47 | O149: 3806000 | U149: 1986-11-05 | V149: 1.1 | W149: 30.78125 | X149: 198611 | Y149: 198511 | Z149: 1985-11-06 | AA149: 5 | AB149: 1 | AC149: 4.4 | AD149: 0.1429441624
A150: 135 | B150: 2019-01-31 | C150: 134.449997 | D150: 134.720001 | E150: 133.740005 | F150: 134.419998 | G150: 4884000 | H150: 129.782883 | I150: 0.9655027893 | J150: 1 | K150: 129.81 | L150: 130.07 | M150: 129.13 | N150: 129.78 | O150: 4884000 | U150: 1986-08-07 | V150: 1.1 | W150: 32.75 | X150: 198608 | Y150: 198508 | Z150: 1985-08-08 | AA150: 5 | AB150: 1 | AC150: 3.575 | AD150: 0.1091603053
A151: 136 | B151: 2019-01-30 | C151: 134 | D151: 135.029999 | E151: 133.25 | F151: 134.380005 | G151: 4500900 | H151: 129.744263 | I151: 0.9655027398 | J151: 1 | K151: 129.38 | L151: 130.37 | M151: 128.65 | N151: 129.74 | O151: 4500900 | U151: 1986-05-08 | V151: 1.1 | W151: 37.25 | X151: 198605 | Y151: 198505 | Z151: 1985-05-03 | AA151: 5 | AB151: 1 | AC151: 2.75 | AD151: 0.07382550336
A152: 137 | B152: 2019-01-29 | C152: 134.289993 | D152: 135.410004 | E152: 133.600006 | F152: 134.330002 | G152: 5037100 | H152: 129.695984 | I152: 0.9655027326 | J152: 1 | K152: 129.66 | L152: 130.74 | M152: 128.99 | N152: 129.7 | O152: 5037100 | U152: 1986-02-07 | V152: 1.1 | W152: 38.9375 | X152: 198602 | Y152: 198502 | Z152: 1985-02-06 | AA152: 5 | AB152: 1 | AC152: 1.925 | AD152: 0.04943820225
A153: 138 | B153: 2019-01-28 | C153: 133.100006 | D153: 134.809998 | E153: 132.580002 | F153: 134.270004 | G153: 5357700 | H153: 129.638077 | I153: 0.9655028907 | J153: 1 | K153: 128.51 | L153: 130.16 | M153: 128.01 | N153: 129.64 | O153: 5357700 | U153: 1985-11-06 | V153: 0.275 | W153: 33.21875 | X153: 198511 | Y153: 198411 | Z153: 1985-02-06 | AA153: 4 | AB153: 0 | AC153: 1.1 | AD153: 0.03311382879
A154: 139 | B154: 2019-01-25 | C154: 132.869995 | D154: 134.440002 | E154: 132.429993 | F154: 133.970001 | G154: 5707400 | H154: 129.348419 | I154: 0.9655028591 | J154: 1 | K154: 128.29 | L154: 129.8 | M154: 127.86 | N154: 129.35 | O154: 5707400 | U154: 1985-08-08 | V154: 0.275 | W154: 32.09375 | X154: 198508 | Y154: 198408 | Z154: 1984-08-08 | AA154: 5 | AB154: 1 | AC154: 1.1 | AD154: 0.03427458617
A155: 140 | B155: 2019-01-24 | C155: 132.630005 | D155: 133.210007 | E155: 131.429993 | F155: 132.529999 | G155: 6322900 | H155: 127.958092 | I155: 0.9655028519 | J155: 1 | K155: 128.05 | L155: 128.61 | M155: 126.9 | N155: 127.96 | O155: 6322900 | U155: 1985-05-03 | V155: 0.275 | W155: 31.25 | X155: 198505 | Y155: 198405 | Z155: 1984-05-04 | AA155: 5 | AB155: 1 | AC155: 1.1 | AD155: 0.0352
A156: 141 | B156: 2019-01-23 | C156: 131.369995 | D156: 135 | E156: 130.309998 | F156: 132.889999 | G156: 22063700 | H156: 128.305664 | I156: 0.965502784 | J156: 1 | K156: 126.84 | L156: 130.34 | M156: 125.81 | N156: 128.31 | O156: 22063700 | U156: 1985-02-06 | V156: 0.275 | W156: 33.84375 | X156: 198502 | Y156: 198402 | Z156: 1984-02-03 | AA156: 5 | AB156: 1 | AC156: 1.0625 | AD156: 0.03139427516
A157: 142 | B157: 2019-01-22 | C157: 123.300003 | D157: 123.800003 | E157: 121.540001 | F157: 122.519997 | G157: 10052400 | H157: 118.293404 | I157: 0.9655028313 | J157: 1 | K157: 119.05 | L157: 119.53 | M157: 117.35 | N157: 118.29 | O157: 10052400 | U157: 1984-10-31 | V157: 0.275 | W157: 31.15625 | X157: 198410 | Y157: 198310 | Z157: 1983-11-02 | AA157: 5 | AB157: 0 | AC157: 1.2625 | AD157: 0.04052156469
A158: 143 | B158: 2019-01-18 | C158: 123.269997 | D158: 124.720001 | E158: 122.709999 | F158: 123.82 | G158: 6008500 | H158: 119.548561 | I158: 0.9655028348 | J158: 1 | K158: 119.02 | L158: 120.42 | M158: 118.48 | N158: 119.55 | O158: 6008500 | U158: 1984-08-08 | V158: 0.275 | W158: 29.625 | X158: 198408 | Y158: 198308 | Z158: 1983-08-04 | AA158: 5 | AB158: 1 | AC158: 0.9875 | AD158: 0.03333333333
A159: 144 | B159: 2019-01-17 | C159: 120.559998 | D159: 122.410004 | E159: 120.550003 | F159: 122.190002 | G159: 5029900 | H159: 117.9748 | I159: 0.9655028895 | J159: 1 | K159: 116.4 | L159: 118.19 | M159: 116.39 | N159: 117.97 | O159: 5029900 | U159: 1984-05-04 | V159: 0.2375 | W159: 28.1875 | X159: 198405 | Y159: 198305 | Z159: 1983-05-05 | AA159: 5 | AB159: 1 | AC159: 0.95 | AD159: 0.03370288248
A160: 145 | B160: 2019-01-16 | C160: 121.580002 | D160: 122 | E160: 120.830002 | F160: 121.620003 | G160: 3841100 | H160: 117.424461 | I160: 0.9655028622 | J160: 1 | K160: 117.39 | L160: 117.79 | M160: 116.66 | N160: 117.42 | O160: 3841100 | U160: 1984-02-03 | V160: 0.2375 | W160: 27.6875 | X160: 198402 | Y160: 198302 | Z160: 1983-02-03 | AA160: 5 | AB160: 1 | AC160: 0.95 | AD160: 0.03431151242
A161: 146 | B161: 2019-01-15 | C161: 120.959999 | D161: 121.93 | E161: 120.82 | F161: 121.730003 | G161: 3507500 | H161: 117.53067 | I161: 0.9655028925 | J161: 1 | K161: 116.79 | L161: 117.72 | M161: 116.65 | N161: 117.53 | O161: 3507500 | U161: 1983-11-02 | V161: 0.2375 | W161: 31.625 | X161: 198311 | Y161: 198211 | Z161: 1982-11-04 | AA161: 5 | AB161: 1 | AC161: 0.9275 | AD161: 0.02932806324
A162: 147 | B162: 2019-01-14 | C162: 120.510002 | D162: 120.650002 | E162: 119.760002 | F162: 120.389999 | G162: 5228700 | H162: 116.236893 | I162: 0.9655028986 | J162: 1 | K162: 116.35 | L162: 116.49 | M162: 115.63 | N162: 116.24 | O162: 5228700 | U162: 1983-08-04 | V162: 0.2375 | W162: 29.875 | X162: 198308 | Y162: 198208 | Z162: 1982-08-05 | AA162: 5 | AB162: 1 | AC162: 0.905 | AD162: 0.03029288703
A163: 148 | B163: 2019-01-11 | C163: 121.580002 | D163: 121.620003 | E163: 120.199997 | F163: 121.459999 | G163: 3722400 | H163: 117.269974 | I163: 0.9655028402 | J163: 1 | K163: 117.39 | L163: 117.42 | M163: 116.05 | N163: 117.27 | O163: 3722400 | U163: 1983-05-05 | V163: 0.2375 | W163: 28.9375 | X163: 198305 | Y163: 198205 | Z163: 1982-05-06 | AA163: 5 | AB163: 1 | AC163: 0.8825 | AD163: 0.03049676026
A164: 149 | B164: 2019-01-10 | C164: 120.080002 | D164: 121.860001 | E164: 119.949997 | F164: 121.790001 | G164: 3910000 | H164: 117.588585 | I164: 0.9655027838 | J164: 1 | K164: 115.94 | L164: 117.66 | M164: 115.81 | N164: 117.59 | O164: 3910000 | U164: 1983-02-03 | V164: 0.215 | W164: 23.875 | X164: 198302 | Y164: 198202 | Z164: 1982-02-04 | AA164: 5 | AB164: 1 | AC164: 0.86 | AD164: 0.03602094241
A165: 150 | B165: 2019-01-09 | C165: 120.910004 | D165: 121.400002 | E165: 119.870003 | F165: 120.690002 | G165: 3633700 | H165: 116.526535 | I165: 0.9655028011 | J165: 1 | K165: 116.74 | L165: 117.21 | M165: 115.73 | N165: 116.53 | O165: 3633700 | U165: 1982-11-04 | V165: 0.215 | W165: 21 | X165: 198211 | Y165: 198111 | Z165: 1981-11-04 | AA165: 5 | AB165: 1 | AC165: 0.86 | AD165: 0.04095238095
A166: 151 | B166: 2019-01-08 | C166: 119.660004 | D166: 120.57 | E166: 118.980003 | F166: 119.830002 | G166: 4763600 | H166: 115.696205 | I166: 0.9655028212 | J166: 1 | K166: 115.53 | L166: 116.41 | M166: 114.88 | N166: 115.7 | O166: 4763600 | U166: 1982-08-05 | V166: 0.215 | W166: 15.96875 | X166: 198208 | Y166: 198108 | Z166: 1981-08-06 | AA166: 5 | AB166: 1 | AC166: 0.86 | AD166: 0.05385518591
A167: 152 | B167: 2019-01-07 | C167: 117.5 | D167: 118.830002 | E167: 116.669998 | F167: 118.150002 | G167: 3751200 | H167: 114.074165 | I167: 0.9655028614 | J167: 1 | K167: 113.45 | L167: 114.73 | M167: 112.65 | N167: 114.07 | O167: 3751200 | U167: 1982-05-06 | V167: 0.215 | W167: 16.21875 | X167: 198205 | Y167: 198105 | Z167: 1981-05-07 | AA167: 5 | AB167: 1 | AC167: 0.86 | AD167: 0.05302504817
A168: 153 | B168: 2019-01-04 | C168: 114.910004 | D168: 117.489998 | E168: 114.440002 | F168: 117.32 | G168: 4477800 | H168: 113.272789 | I168: 0.9655028043 | J168: 1 | K168: 110.95 | L168: 113.44 | M168: 110.49 | N168: 113.27 | O168: 4477800 | U168: 1982-02-04 | V168: 0.215 | W168: 15.8125 | X168: 198202 | Y168: 198102 | Z168: 1981-02-05 | AA168: 5 | AB168: 1 | AC168: 0.86 | AD168: 0.05438735178
A169: 154 | B169: 2019-01-03 | C169: 114.529999 | D169: 114.879997 | E169: 112.690002 | F169: 112.910004 | G169: 4346700 | H169: 109.014923 | I169: 0.9655027822 | J169: 1 | K169: 110.58 | L169: 110.92 | M169: 108.8 | N169: 109.01 | O169: 4346700 | U169: 1981-11-04 | V169: 0.215 | W169: 13.09375 | X169: 198111 | Y169: 198011 | Z169: 1980-11-05 | AA169: 5 | AB169: 1 | AC169: 0.86 | AD169: 0.06568019093
A170: 155 | B170: 2019-01-02 | C170: 112.010002 | D170: 115.980003 | E170: 111.690002 | F170: 115.209999 | G170: 4239900 | H170: 111.235573 | I170: 0.9655027686 | J170: 1 | K170: 108.15 | L170: 111.98 | M170: 107.84 | N170: 111.24 | O170: 4239900 | U170: 1981-08-06 | V170: 0.215 | W170: 14.21875 | X170: 198108 | Y170: 198008 | Z170: 1980-08-07 | AA170: 5 | AB170: 1 | AC170: 0.86 | AD170: 0.06048351648
A171: 156 | B171: 2018-12-31 | C171: 113.330002 | D171: 114.349998 | E171: 112.419998 | F171: 113.669998 | G171: 4982800 | H171: 109.748711 | I171: 0.9655028849 | J171: 1 | K171: 109.42 | L171: 110.41 | M171: 108.54 | N171: 109.75 | O171: 4982800 | U171: 1981-05-07 | V171: 0.215 | W171: 14.34375 | X171: 198105 | Y171: 198005 | Z171: 1980-05-08 | AA171: 5 | AB171: 1 | AC171: 0.86 | AD171: 0.05995642702
A172: 157 | B172: 2018-12-28 | C172: 114.220001 | D172: 114.800003 | E172: 112.5 | F172: 113.029999 | G172: 5117500 | H172: 109.130783 | I172: 0.965502822 | J172: 1 | K172: 110.28 | L172: 110.84 | M172: 108.62 | N172: 109.13 | O172: 5117500 | U172: 1981-02-05 | V172: 0.215 | W172: 16 | X172: 198102 | Y172: 198002 | Z172: 1980-02-06 | AA172: 5 | AB172: 1 | AC172: 0.86 | AD172: 0.05375
A173: 158 | B173: 2018-12-27 | C173: 109.989998 | D173: 113.779999 | E173: 109.470001 | F173: 113.779999 | G173: 6045600 | H173: 109.854912 | I173: 0.9655028385 | J173: 1 | K173: 106.2 | L173: 109.85 | M173: 105.69 | N173: 109.85 | O173: 6045600 | U173: 1980-11-05 | V173: 0.215 | W173: 17.125 | X173: 198011 | Y173: 197911 | Z173: 1979-11-07 | AA173: 5 | AB173: 1 | AC173: 0.86 | AD173: 0.0502189781
A174: 159 | B174: 2018-12-26 | C174: 108 | D174: 111.389999 | E174: 105.940002 | F174: 111.389999 | G174: 6645800 | H174: 107.547356 | I174: 0.9655028007 | J174: 1 | K174: 104.27 | L174: 107.55 | M174: 102.29 | N174: 107.55 | O174: 6645800 | U174: 1980-08-07 | V174: 0.215 | W174: 16.4375 | X174: 198008 | Y174: 197908 | Z174: 1979-08-08 | AA174: 5 | AB174: 1 | AC174: 0.86 | AD174: 0.05231939163
A175: 160 | B175: 2018-12-24 | C175: 109.900002 | D175: 111 | E175: 107.5 | F175: 107.57 | G175: 3821400 | H175: 103.859131 | I175: 0.9655027517 | J175: 1 | K175: 106.11 | L175: 107.17 | M175: 103.79 | N175: 103.86 | O175: 3821400 | U175: 1980-05-08 | V175: 0.215 | W175: 13.46875 | X175: 198005 | Y175: 197905 | Z175: 1979-05-04 | AA175: 5 | AB175: 1 | AC175: 0.86 | AD175: 0.06385150812
A176: 161 | B176: 2018-12-21 | C176: 112.5 | D176: 115.279999 | E176: 110.440002 | F176: 110.940002 | G176: 10386500 | H176: 107.112885 | I176: 0.965502822 | J176: 1 | K176: 108.62 | L176: 111.3 | M176: 106.63 | N176: 107.11 | O176: 10386500 | U176: 1980-02-06 | V176: 0.215 | W176: 17.09375 | X176: 198002 | Y176: 197902 | Z176: 1979-02-07 | AA176: 5 | AB176: 1 | AC176: 0.86 | AD176: 0.05031078611
A177: 162 | B177: 2018-12-20 | C177: 115.699997 | D177: 116.449997 | E177: 111.699997 | F177: 113.019997 | G177: 8454400 | H177: 109.121124 | I177: 0.9655028039 | J177: 1 | K177: 111.71 | L177: 112.43 | M177: 107.85 | N177: 109.12 | O177: 8454400 | U177: 1979-11-07 | V177: 0.215 | W177: 15.375 | X177: 197911 | Y177: 197811 | Z177: 1978-11-01 | AA177: 5 | AB177: 1 | AC177: 0.86 | AD177: 0.05593495935
A178: 163 | B178: 2018-12-19 | C178: 117.150002 | D178: 120.269997 | E178: 115.970001 | F178: 116.43 | G178: 6979800 | H178: 112.413498 | I178: 0.9655028601 | J178: 1 | K178: 113.11 | L178: 116.12 | M178: 111.97 | N178: 112.41 | O178: 6979800 | U178: 1979-08-08 | V178: 0.215 | W178: 17.34375 | X178: 197908 | Y178: 197808 | Z178: 1978-08-03 | AA178: 5 | AB178: 1 | AC178: 0.825 | AD178: 0.04756756757
A179: 164 | B179: 2018-12-18 | C179: 116.900002 | D179: 118.230003 | E179: 116.019997 | F179: 116.650002 | G179: 6290200 | H179: 112.625908 | I179: 0.9655028381 | J179: 1 | K179: 112.87 | L179: 114.15 | M179: 112.02 | N179: 112.63 | O179: 6290200 | U179: 1979-05-04 | V179: 0.215 | W179: 19.453125 | X179: 197905 | Y179: 197805 | Z179: 1978-05-04 | AA179: 5 | AB179: 1 | AC179: 0.79 | AD179: 0.04061044177
A180: 165 | B180: 2018-12-17 | C180: 119.07 | D180: 119.779999 | E180: 115.07 | F180: 116.099998 | G180: 7374500 | H180: 112.094879 | I180: 0.9655028504 | J180: 1 | K180: 114.96 | L180: 115.65 | M180: 111.1 | N180: 112.09 | O180: 7374500 | U180: 1979-02-07 | V180: 0.215 | W180: 18.65625 | X180: 197902 | Y180: 197802 | Z180: 1978-02-03 | AA180: 5 | AB180: 1 | AC180: 0.755 | AD180: 0.04046901173
A181: 166 | B181: 2018-12-14 | C181: 119.5 | D181: 121.110001 | E181: 119.440002 | F181: 119.900002 | G181: 4554200 | H181: 115.763786 | I181: 0.9655027862 | J181: 1 | K181: 115.38 | L181: 116.93 | M181: 115.32 | N181: 115.76 | O181: 4554200 | U181: 1978-11-01 | V181: 0.18 | W181: 17.257813 | X181: 197811 | Y181: 197711 | Z181: 1977-11-02 | AA181: 5 | AB181: 1 | AC181: 0.72 | AD181: 0.04172023419
A182: 167 | B182: 2018-12-13 | C182: 121.260002 | D182: 121.790001 | E182: 120.169998 | F182: 120.730003 | G182: 3993600 | H182: 116.56517 | I182: 0.9655029165 | J182: 1 | K182: 117.08 | L182: 117.59 | M182: 116.02 | N182: 116.57 | O182: 3993600 | U182: 1978-08-03 | V182: 0.18 | W182: 17.8125 | X182: 197808 | Y182: 197708 | Z182: 1977-08-04 | AA182: 5 | AB182: 1 | AC182: 0.69625 | AD182: 0.0390877193
A183: 168 | B183: 2018-12-12 | C183: 122.510002 | D183: 122.879997 | E183: 121 | F183: 121.160004 | G183: 3560500 | H183: 116.980324 | I183: 0.9655028073 | J183: 1 | K183: 118.28 | L183: 118.64 | M183: 116.83 | N183: 116.98 | O183: 3560500 | U183: 1978-05-04 | V183: 0.18 | W183: 16.289063 | X183: 197805 | Y183: 197705 | Z183: 1977-05-05 | AA183: 5 | AB183: 1 | AC183: 0.6725 | AD183: 0.04128537044
A184: 169 | B184: 2018-12-11 | C184: 123.25 | D184: 123.809998 | E184: 120 | F184: 120.889999 | G184: 5043100 | H184: 116.719635 | I184: 0.9655028205 | J184: 1 | K184: 119 | L184: 119.54 | M184: 115.86 | N184: 116.72 | O184: 5043100 | U184: 1978-02-03 | V184: 0.18 | W184: 16.164063 | X184: 197802 | Y184: 197702 | Z184: 1977-02-03 | AA184: 5 | AB184: 1 | AC184: 0.64875 | AD184: 0.04013532984
A185: 170 | B185: 2018-12-10 | C185: 119.739998 | D185: 121.68 | E185: 118.519997 | F185: 121.129997 | G185: 6549500 | H185: 116.951355 | I185: 0.9655028308 | J185: 1 | K185: 115.61 | L185: 117.48 | M185: 114.43 | N185: 116.95 | O185: 6549500 | U185: 1977-11-02 | V185: 0.15625 | W185: 15.601563 | X185: 197711 | Y185: 197611 | Z185: 1976-11-04 | AA185: 5 | AB185: 1 | AC185: 0.625 | AD185: 0.04006008885
A186: 171 | B186: 2018-12-07 | C186: 123.900002 | D186: 124.050003 | E186: 118.870003 | F186: 119.339996 | G186: 7019600 | H186: 115.223106 | I186: 0.9655028478 | J186: 1 | K186: 119.63 | L186: 119.77 | M186: 114.77 | N186: 115.22 | O186: 7019600 | U186: 1977-08-04 | V186: 0.15625 | W186: 16.8125 | X186: 197708 | Y186: 197608 | Z186: 1976-08-05 | AA186: 5 | AB186: 1 | AC186: 0.60938 | AD186: 0.03624565056
A187: 172 | B187: 2018-12-06 | C187: 119.720001 | D187: 123.910004 | E187: 119.300003 | F187: 123.910004 | G187: 6938000 | H187: 119.63546 | I187: 0.9655028338 | J187: 1 | K187: 115.59 | L187: 119.64 | M187: 115.18 | N187: 119.64 | O187: 6938000 | U187: 1977-05-05 | V187: 0.15625 | W187: 16.28125 | X187: 197705 | Y187: 197605 | Z187: 1976-05-06 | AA187: 5 | AB187: 1 | AC187: 0.59376 | AD187: 0.03646894434
A188: 173 | B188: 2018-12-04 | C188: 124.489998 | D188: 124.919998 | E188: 121.330002 | F188: 121.599998 | G188: 6000700 | H188: 117.405136 | I188: 0.965502779 | J188: 1 | K188: 120.2 | L188: 120.61 | M188: 117.14 | N188: 117.41 | O188: 6000700 | U188: 1977-02-03 | V188: 0.15625 | W188: 16.945313 | X188: 197702 | Y188: 197602 | Z188: 1976-02-05 | AA188: 5 | AB188: 1 | AC188: 0.54689 | AD188: 0.03227382109
A189: 174 | B189: 2018-12-03 | C189: 125.669998 | D189: 126.589996 | E189: 124.360001 | F189: 125.309998 | G189: 5846400 | H189: 120.98716 | I189: 0.9655028484 | J189: 1 | K189: 121.33 | L189: 122.22 | M189: 120.07 | N189: 120.99 | O189: 5846400 | U189: 1976-11-04 | V189: 0.14063 | W189: 16.710938 | X189: 197611 | Y189: 197511 | Z189: 1975-11-05 | AA189: 5 | AB189: 1 | AC189: 0.50002 | AD189: 0.02992171953
A190: 175 | B190: 2018-11-30 | C190: 121.660004 | D190: 124.690002 | E190: 121.480003 | F190: 124.269997 | G190: 7251600 | H190: 119.983032 | I190: 0.9655028156 | J190: 1 | K190: 117.46 | L190: 120.39 | M190: 117.29 | N190: 119.98 | O190: 7251600 | U190: 1976-08-05 | V190: 0.14063 | W190: 17.164063 | X190: 197608 | Y190: 197508 | Z190: 1975-08-07 | AA190: 5 | AB190: 1 | AC190: 0.46877 | AD190: 0.02731113257
A191: 176 | B191: 2018-11-29 | C191: 122.440002 | D191: 123.120003 | E191: 121.400002 | F191: 121.480003 | G191: 5200100 | H191: 117.289284 | I191: 0.9655028079 | J191: 1 | K191: 118.22 | L191: 118.87 | M191: 117.21 | N191: 117.29 | O191: 5200100 | U191: 1976-05-06 | V191: 0.10938 | W191: 15.601563 | X191: 197605 | Y191: 197505 | Z191: 1975-05-08 | AA191: 5 | AB191: 1 | AC191: 0.43752 | AD191: 0.02804334412
A192: 177 | B192: 2018-11-28 | C192: 121.010002 | D192: 123.089996 | E192: 120.220001 | F192: 123 | G192: 5104500 | H192: 118.756851 | I192: 0.9655028537 | J192: 1 | K192: 116.84 | L192: 118.84 | M192: 116.07 | N192: 118.76 | O192: 5104500 | U192: 1976-02-05 | V192: 0.10938 | W192: 16.125 | X192: 197602 | Y192: 197502 | Z192: 1975-02-06 | AA192: 5 | AB192: 1 | AC192: 0.42189 | AD192: 0.02616372093
A193: 178 | B193: 2018-11-27 | C193: 118.379997 | D193: 120.040001 | E193: 118.370003 | F193: 120.029999 | G193: 4903800 | H193: 115.889297 | I193: 0.965502774 | J193: 1 | K193: 114.3 | L193: 115.9 | M193: 114.29 | N193: 115.89 | O193: 4903800 | U193: 1975-11-05 | V193: 0.10938 | W193: 13.484375 | X193: 197511 | Y193: 197411 | Z193: 1974-11-06 | AA193: 5 | AB193: 1 | AC193: 0.40626 | AD193: 0.03012820394
A194: 179 | B194: 2018-11-26 | C194: 118.370003 | D194: 120.25 | E194: 118.059998 | F194: 119.559998 | G194: 5011100 | H194: 115.435516 | I194: 0.9655028265 | J194: 1 | K194: 114.29 | L194: 116.1 | M194: 113.99 | N194: 115.44 | O194: 5011100 | U194: 1975-08-07 | V194: 0.10938 | W194: 11.4375 | X194: 197508 | Y194: 197408 | Z194: 1974-08-08 | AA194: 5 | AB194: 1 | AC194: 0.39063 | AD194: 0.03415344262
A195: 180 | B195: 2018-11-23 | C195: 118.089996 | D195: 118.339996 | E195: 116.910004 | F195: 117.190002 | G195: 2334700 | H195: 113.147278 | I195: 0.9655028251 | J195: 1 | K195: 114.02 | L195: 114.26 | M195: 112.88 | N195: 113.15 | O195: 2334700 | U195: 1975-05-08 | V195: 0.09375 | W195: 13.109375 | X195: 197505 | Y195: 197405 | Z195: 1974-05-08 | AA195: 5 | AB195: 1 | AC195: 0.375 | AD195: 0.02860548272
A196: 181 | B196: 2018-11-21 | C196: 117.610001 | D196: 119.510002 | E196: 117.389999 | F196: 118.57 | G196: 5335800 | H196: 114.479668 | I196: 0.9655028085 | J196: 1 | K196: 113.55 | L196: 115.39 | M196: 113.34 | N196: 114.48 | O196: 5335800 | U196: 1975-02-06 | V196: 0.09375 | W196: 12.25 | X196: 197502 | Y196: 197402 | Z196: 1974-02-06 | AA196: 5 | AB196: 1 | AC196: 0.36125 | AD196: 0.02948979592
A197: 182 | B197: 2018-11-20 | C197: 118.489998 | D197: 119.489998 | E197: 116.699997 | F197: 117.199997 | G197: 6233800 | H197: 113.156929 | I197: 0.9655028319 | J197: 1 | K197: 114.4 | L197: 115.37 | M197: 112.67 | N197: 113.16 | O197: 6233800 | U197: 1974-11-06 | V197: 0.09375 | W197: 11.5 | X197: 197411 | Y197: 197311 | Z197: 1973-11-08 | AA197: 5 | AB197: 1 | AC197: 0.3475 | AD197: 0.0302173913
A198: 183 | B198: 2018-11-19 | C198: 121.629997 | D198: 122.18 | E198: 119.769997 | F198: 120.309998 | G198: 4131200 | H198: 116.159645 | I198: 0.9655028421 | J198: 1 | K198: 117.43 | L198: 117.97 | M198: 115.64 | N198: 116.16 | O198: 4131200 | U198: 1974-08-08 | V198: 0.09375 | W198: 13.03125 | X198: 197408 | Y198: 197308 | Z198: 1973-08-08 | AA198: 5 | AB198: 1 | AC198: 0.32375 | AD198: 0.0248441247
A199: 184 | B199: 2018-11-16 | C199: 120.889999 | D199: 121.849998 | E199: 120.540001 | F199: 121.57 | G199: 4076300 | H199: 117.376175 | I199: 0.9655027967 | J199: 1 | K199: 116.72 | L199: 117.65 | M199: 116.38 | N199: 117.38 | O199: 4076300 | U199: 1974-05-08 | V199: 0.08 | W199: 14.125 | X199: 197405 | Y199: 197305 | Z199: 1973-05-04 | AA199: 5 | AB199: 1 | AC199: 0.3 | AD199: 0.02123893805
A200: 185 | B200: 2018-11-15 | C200: 119.660004 | D200: 121.440002 | E200: 119.510002 | F200: 121.440002 | G200: 5207900 | H200: 117.250671 | I200: 0.9655028744 | J200: 1 | K200: 115.53 | L200: 117.25 | M200: 115.39 | N200: 117.25 | O200: 5207900 | U200: 1974-02-06 | V200: 0.08 | W200: 14.828125 | X200: 197402 | Y200: 197302 | Z200: 1973-02-07 | AA200: 5 | AB200: 1 | AC200: 0.29 | AD200: 0.01955742887
... 4300 more rows

Sheet CalculationsAndCharts
A1: BollingerWithCandlesticks.xlsm
A2: =InputPriceData!A1 -> International Business Machines Corporation (IBM) -NYSE (Daily)
A4: User Charting Controls | E4: Click to Shift Chart One Bar:
A5: Data Control | C5: FALSE
A6: =InputPriceData!$B$10 -> 14503 | B6: Available Input Data Rows | E6: Earliest: | F6: =OFFSET(InputPriceData!B15,CalculationsAndCharts!A6,0,1,1) -> 1962-01-02
A7: =MAX(A33:A60000) -> 1132 | B7: Available Calculation Rows | E7: Latest: | F7: =OFFSET(InputPriceData!B15,1,0,1,1) -> 2019-08-14
A8: =MIN(AvailableInputRows-DataPanRows,A7) -> 1132 | B8: Logically Available for Calc / Plot | E8: $ Change: | F8: =G33-G34 -> -1.659897
R9: TRUE
A10: Historical Price Windowing Specifications | R10: TRUE
A11: 0 | B11: Input Data Offset (Pan)
A12: 1012 | B12: Data Points to Plot (Zoom)
B13: First: | C13: =OFFSET(B32,A12,0,1,1) -> 2015-08-06
B14: ="Last: " & IF(OFFSET(InputPriceData!P15,1+A11,0,1,1)="","",TEXT(OFFSET(InputPriceData!P15,1+A11,0,1,1),"H:MM AM/PM")) -> Last: | C14: =B33 -> 2019-08-14
A15: User Controls
A16: Bollinger Bands:
A17: 20 | B17: SMA Length(N)
A18: 1.6 | B18: Std. Dev. Multiple(M)
A19: ATR Stop Loss: | C19: Wilders Alpha | D19: (1-Alpha)
A20: 14 | B20: ATR Length | C20: =1/A20 -> 0.07142857143 | D20: =1-C20 -> 0.9285714286
A21: 2 | B21: Stop Loss Factor(K) | X21: Back Test Work Area
A22: 10000 | B22: Max $ Per Trans | X22: =$A$8 -> 1132 | Y22: =" Bars Available ("&TEXT(C13,"ddd mm/dd/yyyy") & " Thru " & TEXT(C14,"ddd mm/dd/yyyy" & ")") -> Bars Available (Thu 08/06/2015 Thru Wed 08/14/2019)
X23: =IF($R$10,"","NOT") ->  | Y23: Using Stop Loss
AB24: Net of Trades | AC24: Trades Stopped Out
A25: Help! I would like to plot data | AA25: Trades
A26: From | B26: 2018-01-03 | C26: =OFFSET(InputPriceData!$A$15,MATCH(B26,OFFSET(InputPriceData!B15,1,0,InputPriceData!$B$10,1),0),0,1,1)-C27 -> 296 | E26: 640 | Z26: Winners: | AA26: =COUNTIF(OFFSET(AC33,-1,0,$A$8,1),">0") -> 1 | AB26: =SUMIF(OFFSET(AC$33,-1,0,$A$8,1),">0") -> 320.16 | AC26: =COUNTIFS(OFFSET(AC$33,0,0,$A$8,1),">0",OFFSET(V$33,1,0,$A$8,1),TRUE) -> 0
A27: To | B27: 2019-03-08 | C27: =OFFSET(InputPriceData!$A$15,MATCH(B27,OFFSET(InputPriceData!$B$15,1,0,InputPriceData!$B$10,1),0),0,1,1)-1 -> 109 | E27: =$A$12-$E$26+1 -> 373 | Z27: Loosers: | AA27: =COUNTIF(OFFSET(AC33,-1,0,$A$8,1),"<0") -> 2 | AB27: =SUMIF(OFFSET(AC$33,-1,0,$A$8,1),"<0") -> -410.990292 | AC27: =COUNTIFS(OFFSET(AC$33,0,0,$A$8,1),"<0",OFFSET(V$33,1,0,$A$8,1),TRUE) -> 2
H28: @ Cursor => | I28: =OFFSET(A32,$E$27,0,1,1)&"(RR)" -> 373(RR) | J28: =OFFSET($B$32,E27,0,1,1) -> 2018-02-20 | K28: =TEXT(OFFSET(D32,$E$27,0,1,1),"#,##0.00")&"(o)" -> 155.79(o) | L28: =TEXT(OFFSET(E32,$E$27,0,1,1),"#,##0.00")&"(h)" -> 155.96(h) | M28: =TEXT(OFFSET(F32,$E$27,0,1,1),"#,##0.00")&"(l)" -> 153.87(l) | N28: =TEXT(OFFSET(G32,$E$27,0,1,1),"#,##0.00")&"(c)" -> 155.16(c)
E29: Cursor ==> | S29: ="ATR Stop Loss: " -> ATR Stop Loss: | U29: =IF($R$10,"Stops Hit:", "Turned Off:") -> Stops Hit: | V29: =COUNTIF(OFFSET(V33,0,0,$A$8,1),TRUE) -> 2 | W29: Active | Z29: Totals: | AA29: =COUNTIF(OFFSET(O33,-1,0,$A$8,1),TRUE) -> 3 | AB29: =SUM(OFFSET(AC33,-1,0,$A$8,1)) -> -90.830292 | AC29: =V29 -> 2 | AU29: Work Area For Chart Cursors
M30: =COUNTIF(OFFSET(M33,0,0,$A$8,1),TRUE) -> 294 | N30: =COUNTIF(OFFSET(N33,0,0,$A$8,1),TRUE) -> 14 | O30: =COUNTIF(OFFSET(O33,0,0,$A$8,1),TRUE) -> 3 | Q30: =COUNTIF(OFFSET(Q33,0,0,$A$8,1),TRUE) -> 234 | R30: =COUNTIF(OFFSET(R33,0,0,$A$8,1),TRUE) -> 3 | S30: Calculations | W30: Long Position
A31: Rel Row | H31: ="Bollenger("&A17&", "&A18&")" -> Bollenger(20, 1.6) | M31: Lower BB Touch | N31: Confirmed Engulfing | O31: Buy Signal | P31: Active Long | Q31: High BB Touch | R31: Exit Long | S31: True Range | U31: ="Stop Loss @ K=" & $A$21 -> Stop Loss @ K=2 | V31: Stop Flag | X31: Buy Price | Y31: Long Shares | Z31: Long Cost | AA31: Sell Price | AB31: Sell Proceeds | AC31: Transaction Net | AP31: Used To Color Vol Bars
B32: Date | C32: Volume | D32: Open | E32: High | F32: Low | G32: Close | H32: ="SMA (" &A17 & ")" -> SMA (20) | I32: ="Std Dev (" & A17 & ")" -> Std Dev (20) | J32: =A18 & " * StDev" -> 1.6 * StDev | K32: ="BBH ("&$A$18&")" -> BBH (1.6) | L32: ="BBL ("&$A$18&")" -> BBL (1.6) | T32: ="ATR " & $A$20 -> ATR 14 | W32: Shading | AD32: Notes | AP32: Up Vol | AQ32: Dn Vol | AU32: Volume Cursor | AV32: =MAX(OFFSET(C33,0,0,A12,1)) -> 30490200 | AW32: Z Cursor | AY32: Price Chart Cursor
A33: 1 | B33: =IF(A33>$A$8,"",OFFSET(InputPriceData!B$15,$A33+$A$11,0,1,1)) -> 2019-08-14 | C33: =IF(A33>$A$8,"",OFFSET(InputPriceData!G$15,CalculationsAndCharts!$A33+$A$11,IF($C$5,8,0),1,1)) -> 1281528 | D33: =IF(A33>$A$8,"",OFFSET(InputPriceData!C$15,CalculationsAndCharts!$A33+$A$11,IF($C$5,8,0),1,1)) -> 133.910004 | E33: =IF(A33>$A$8,"",OFFSET(InputPriceData!D$15,CalculationsAndCharts!$A33+$A$11,IF($C$5,8,0),1,1)) -> 134.160004 | F33: =IF(A33>$A$8,"",OFFSET(InputPriceData!E$15,CalculationsAndCharts!$A33+$A$11,IF($C$5,8,0),1,1)) -> 132.130005 | G33: =IF(A33>$A$8,"",OFFSET(InputPriceData!F$15,CalculationsAndCharts!$A33+$A$11,IF($C$5,8,0),1,1)) -> 132.460098 | H33: =IF(A33>$A$8,"",IF($A33>$A$8,NA(),IF(A33=$A$8,G33,AVERAGE(OFFSET(G33,0,0,$A$17,1))))) -> 145.2075066 | I33: =IF(A33>$A$8,"",_xlfn.STDEV.P(OFFSET(G33,0,0,$A$17,1))) -> 6.094344672 | J33: =IF(A33>$A$8,"",$A$18*I33) -> 9.750951475 | K33: =IF(A33>$A$8,"",$H33+$J33) -> 154.958458 | L33: =IF(A33>$A$8,"",$H33-$J33) -> 135.4565551 | M33: =IF(A33>$A$8-2,"",IF(A33=$A$8-2,FALSE,OR(AND(G34>L34,F34<L34),(F35<L35)))) -> TRUE | N33: =IF(A33>$A$8-2,"",IF(A33=$A$8-2,FALSE,AND(G35<D35,G34>D34,D34<G35,G34>D35,G33>E34))) -> FALSE | O33: =IF(A33>$A$8-2,"",IF(A33=$A$8-2,FALSE,AND(M33,N33,NOT(P33)))) -> FALSE | P33: =IF(A33>$A$8-2,"",IF(A33=$A$8-2,FALSE,IF(P34,IF(R34,FALSE,P34),IF(O34,TRUE,P34)))) -> FALSE | Q33: =IF(A33>$A$8-2,"",E33>K33) -> FALSE | R33: =IF(A33>$A$8-2,"",IF(A33=$A$8-2,FALSE,AND(P33,OR(Q33,V33)))) -> FALSE | S33: =IF($A33<$A$8,MAX(E33-F33,ABS(E33-G34),ABS(F33-G34)),"") -> 2.029999 | T33: =IF(($A$8-$A33)<A$20,"",IF(($A$8-$A33)=A$20,AVERAGE(OFFSET($S33,0,0,A$20,1)),T34*$D$20+$S33*$C$20)) -> 3.141629143 | U33: =IF(($A$8-$A33)<A$20,"",G34-T33*$A$21) -> 127.8367367 | V33: =IF(($A$8-$A33)<A$20,"",AND($R$10,F33<U33,P33)) -> FALSE | W33: =IF(A33>$A$8-2,NA(),IF(AND($R$9,P33),$AZ$34,NA())) ->  | X33: =IF(A33>$A$8-2,"",IF(AND(P33,IFERROR(NOT(P34),FALSE)),D33,0)) -> 0 | Y33: =IF(A33>$A$8-2,"",IF(AND(P33,IFERROR(NOT(P34),FALSE)),INT($A$22/X33),IF(P33,Y34,0))) -> 0 | Z33: =IF(A33>$A$8-2,"",IF(AND(P33,IFERROR(NOT(P34),FALSE)),-X33*Y33,IF(P33,Z34,0))) -> 0 | AA33: =IF(A33>$A$8-2,"",IF(AND(IFERROR(AND(P34),FALSE),NOT(P33)),D33,IF(AND(A33=1,P33),G33,0))) -> 0 | AB33: =IF(A33>$A$8-2,"",IF(AND(IFERROR(AND(P34),FALSE),NOT(P33)),AA33*Y34,IF(AND(A33=1,P33),AA33*Y33,0))) -> 0 | AC33: =IF(A33>$A$8-2,"",IF(AND(IFERROR(AND(P34),FALSE),NOT(P33)),AB33+Z34,IF(AND(A33=1,P33),AB33+Z33,0))) -> 0 | AD33: =IF(A33>$A$8-2,"",IF(AND(IFERROR(AND(P34),FALSE),NOT(P33)),"",IF(AND(A33=1,P33),"<== Open Long, Marked to Bar Close",""))) ->  | AP33: =IF(G33>=D33,C33,NA()) ->  | AQ33: =IF(G33<D33,C33,NA()) -> 1281528 | AU33: =$E$27 -> 373 | AV33: 0 | AW33: =$E$27 -> 373 | AX33: -3 | AY33: =E27 -> 373 | AZ33: 103.291502
A34: 2 | B34: =IF(A34>$A$8,"",OFFSET(InputPriceData!B$15,$A34+$A$11,0,1,1)) -> 2019-08-12 | C34: =IF(A34>$A$8,"",OFFSET(InputPriceData!G$15,CalculationsAndCharts!$A34+$A$11,IF($C$5,8,0),1,1)) -> 3895600 | D34: =IF(A34>$A$8,"",OFFSET(InputPriceData!C$15,CalculationsAndCharts!$A34+$A$11,IF($C$5,8,0),1,1)) -> 135.660004 | E34: =IF(A34>$A$8,"",OFFSET(InputPriceData!D$15,CalculationsAndCharts!$A34+$A$11,IF($C$5,8,0),1,1)) -> 135.869995 | F34: =IF(A34>$A$8,"",OFFSET(InputPriceData!E$15,CalculationsAndCharts!$A34+$A$11,IF($C$5,8,0),1,1)) -> 133.179993 | G34: =IF(A34>$A$8,"",OFFSET(InputPriceData!F$15,CalculationsAndCharts!$A34+$A$11,IF($C$5,8,0),1,1)) -> 134.119995 | H34: 145.7610016 | I34: 5.371271781 | J34: 8.59403485 | K34: 154.3550365 | L34: 137.1669667 | M34: TRUE | N34: FALSE | O34: FALSE | P34: FALSE | Q34: FALSE | R34: FALSE | S34: 2.950012 | T34: 3.227139154 | U34: 129.6757267 | V34: FALSE | X34: =IF(A34>$A$8-2,"",IF(AND(P34,IFERROR(NOT(P35),FALSE)),D34,0)) -> 0 | Y34: =IF(A34>$A$8-2,"",IF(AND(P34,IFERROR(NOT(P35),FALSE)),INT($A$22/X34),IF(P34,Y35,0))) -> 0 | Z34: =IF(A34>$A$8-2,"",IF(AND(P34,IFERROR(NOT(P35),FALSE)),-X34*Y34,IF(P34,Z35,0))) -> 0 | AA34: =IF(A34>$A$8-2,"",IF(AND(IFERROR(AND(P35),FALSE),NOT(P34)),D34,IF(AND(A34=1,P34),G34,0))) -> 0 | AB34: =IF(A34>$A$8-2,"",IF(AND(IFERROR(AND(P35),FALSE),NOT(P34)),AA34*Y35,IF(AND(A34=1,P34),AA34*Y34,0))) -> 0 | AC34: =IF(A34>$A$8-2,"",IF(AND(IFERROR(AND(P35),FALSE),NOT(P34)),AB34+Z35,IF(AND(A34=1,P34),AB34+Z34,0))) -> 0 | AP34: =IF(G34>=D34,C34,NA()) ->  | AQ34: =IF(G34<D34,C34,NA()) -> 3895600 | AU34: =$E$27 -> 373 | AV34: =CEILING(AV32,10^INT(LOG10(AV32))) -> 40000000 | AW34: =$E$27 -> 373 | AX34: 3 | AY34: =E27 -> 373 | AZ34: 187.4691328
A35: 3 | B35: =IF(A35>$A$8,"",OFFSET(InputPriceData!B$15,$A35+$A$11,0,1,1)) -> 2019-08-09 | C35: =IF(A35>$A$8,"",OFFSET(InputPriceData!G$15,CalculationsAndCharts!$A35+$A$11,IF($C$5,8,0),1,1)) -> 5244600 | D35: =IF(A35>$A$8,"",OFFSET(InputPriceData!C$15,CalculationsAndCharts!$A35+$A$11,IF($C$5,8,0),1,1)) -> 139.270004 | E35: =IF(A35>$A$8,"",OFFSET(InputPriceData!D$15,CalculationsAndCharts!$A35+$A$11,IF($C$5,8,0),1,1)) -> 139.309998 | F35: =IF(A35>$A$8,"",OFFSET(InputPriceData!E$15,CalculationsAndCharts!$A35+$A$11,IF($C$5,8,0),1,1)) -> 135.350006 | G35: =IF(A35>$A$8,"",OFFSET(InputPriceData!F$15,CalculationsAndCharts!$A35+$A$11,IF($C$5,8,0),1,1)) -> 136.130005 | H35: 146.2210022 | I35: 4.707571667 | J35: 7.532114667 | K35: 153.7531169 | L35: 138.6888875 | M35: TRUE | N35: FALSE | O35: FALSE | P35: FALSE | Q35: FALSE | R35: FALSE | S35: 4.75 | T35: 3.248456628 | U35: 133.6030927 | V35: FALSE | X35: 0 | Y35: 0 | Z35: 0 | AA35: 0 | AB35: 0 | AC35: 0 | AP35: =IF(G35>=D35,C35,NA()) ->  | AQ35: =IF(G35<D35,C35,NA()) -> 5244600
A36: 4 | B36: =IF(A36>$A$8,"",OFFSET(InputPriceData!B$15,$A36+$A$11,0,1,1)) -> 2019-08-08 | C36: =IF(A36>$A$8,"",OFFSET(InputPriceData!G$15,CalculationsAndCharts!$A36+$A$11,IF($C$5,8,0),1,1)) -> 5261100 | D36: =IF(A36>$A$8,"",OFFSET(InputPriceData!C$15,CalculationsAndCharts!$A36+$A$11,IF($C$5,8,0),1,1)) -> 138.449997 | E36: =IF(A36>$A$8,"",OFFSET(InputPriceData!D$15,CalculationsAndCharts!$A36+$A$11,IF($C$5,8,0),1,1)) -> 140.419998 | F36: =IF(A36>$A$8,"",OFFSET(InputPriceData!E$15,CalculationsAndCharts!$A36+$A$11,IF($C$5,8,0),1,1)) -> 137.759995 | G36: =IF(A36>$A$8,"",OFFSET(InputPriceData!F$15,CalculationsAndCharts!$A36+$A$11,IF($C$5,8,0),1,1)) -> 140.100006 | H36: 146.5515022 | I36: 4.191235689 | J36: 6.705977102 | K36: 153.2574793 | L36: 139.8455251 | M36: TRUE | N36: FALSE | O36: FALSE | P36: FALSE | Q36: FALSE | R36: FALSE | S36: 2.660003 | T36: 3.132953292 | U36: 132.8440944 | V36: FALSE | X36: 0 | Y36: 0 | Z36: 0 | AA36: 0 | AB36: 0 | AC36: 0 | AP36: =IF(G36>=D36,C36,NA()) -> 5261100 | AQ36: =IF(G36<D36,C36,NA()) -> 
A37: 5 | B37: =IF(A37>$A$8,"",OFFSET(InputPriceData!B$15,$A37+$A$11,0,1,1)) -> 2019-08-07 | C37: =IF(A37>$A$8,"",OFFSET(InputPriceData!G$15,CalculationsAndCharts!$A37+$A$11,IF($C$5,8,0),1,1)) -> 5931900 | D37: =IF(A37>$A$8,"",OFFSET(InputPriceData!C$15,CalculationsAndCharts!$A37+$A$11,IF($C$5,8,0),1,1)) -> 138.740005 | E37: =IF(A37>$A$8,"",OFFSET(InputPriceData!D$15,CalculationsAndCharts!$A37+$A$11,IF($C$5,8,0),1,1)) -> 139.580002 | F37: =IF(A37>$A$8,"",OFFSET(InputPriceData!E$15,CalculationsAndCharts!$A37+$A$11,IF($C$5,8,0),1,1)) -> 136.410004 | G37: =IF(A37>$A$8,"",OFFSET(InputPriceData!F$15,CalculationsAndCharts!$A37+$A$11,IF($C$5,8,0),1,1)) -> 139.110001 | H37: 146.6085021 | I37: 4.110075129 | J37: 6.576120207 | K37: 153.1846224 | L37: 140.0323819 | M37: TRUE | N37: FALSE | O37: FALSE | P37: FALSE | Q37: FALSE | R37: FALSE | S37: 4.319992 | T37: 3.169334083 | U37: 134.3913278 | V37: FALSE | X37: 0 | Y37: 0 | Z37: 0 | AA37: 0 | AB37: 0 | AC37: 0 | AP37: 5931900
A38: 6 | B38: =IF(A38>$A$8,"",OFFSET(InputPriceData!B$15,$A38+$A$11,0,1,1)) -> 2019-08-06 | C38: =IF(A38>$A$8,"",OFFSET(InputPriceData!G$15,CalculationsAndCharts!$A38+$A$11,IF($C$5,8,0),1,1)) -> 5070700 | D38: =IF(A38>$A$8,"",OFFSET(InputPriceData!C$15,CalculationsAndCharts!$A38+$A$11,IF($C$5,8,0),1,1)) -> 142.029999 | E38: =IF(A38>$A$8,"",OFFSET(InputPriceData!D$15,CalculationsAndCharts!$A38+$A$11,IF($C$5,8,0),1,1)) -> 142.470001 | F38: =IF(A38>$A$8,"",OFFSET(InputPriceData!E$15,CalculationsAndCharts!$A38+$A$11,IF($C$5,8,0),1,1)) -> 139.309998 | G38: =IF(A38>$A$8,"",OFFSET(InputPriceData!F$15,CalculationsAndCharts!$A38+$A$11,IF($C$5,8,0),1,1)) -> 140.729996 | H38: 146.6765022 | I38: 3.995094168 | J38: 6.392150669 | K38: 153.0686528 | L38: 140.2843515 | M38: TRUE | N38: FALSE | O38: FALSE | P38: FALSE | Q38: FALSE | R38: FALSE | S38: 3.160003 | T38: 3.080821936 | U38: 134.5983511 | V38: FALSE | X38: 0 | Y38: 0 | Z38: 0 | AA38: 0 | AB38: 0 | AC38: 0 | AQ38: 5070700
A39: 7 | B39: =IF(A39>$A$8,"",OFFSET(InputPriceData!B$15,$A39+$A$11,0,1,1)) -> 2019-08-05 | C39: =IF(A39>$A$8,"",OFFSET(InputPriceData!G$15,CalculationsAndCharts!$A39+$A$11,IF($C$5,8,0),1,1)) -> 7114900 | D39: =IF(A39>$A$8,"",OFFSET(InputPriceData!C$15,CalculationsAndCharts!$A39+$A$11,IF($C$5,8,0),1,1)) -> 144.979996 | E39: =IF(A39>$A$8,"",OFFSET(InputPriceData!D$15,CalculationsAndCharts!$A39+$A$11,IF($C$5,8,0),1,1)) -> 145.100006 | F39: =IF(A39>$A$8,"",OFFSET(InputPriceData!E$15,CalculationsAndCharts!$A39+$A$11,IF($C$5,8,0),1,1)) -> 139.149994 | G39: =IF(A39>$A$8,"",OFFSET(InputPriceData!F$15,CalculationsAndCharts!$A39+$A$11,IF($C$5,8,0),1,1)) -> 140.759995 | H39: 146.6065025 | I39: 4.109304553 | J39: 6.574887284 | K39: 153.1813897 | L39: 140.0316152 | M39: FALSE | N39: FALSE | O39: FALSE | P39: FALSE | Q39: FALSE | R39: FALSE | S39: 8.100006 | T39: 3.074731085 | U39: 141.1005378 | V39: FALSE | X39: 0 | Y39: 0 | Z39: 0 | AA39: 0 | AB39: 0 | AC39: 0 | AQ39: 7114900
A40: 8 | B40: =IF(A40>$A$8,"",OFFSET(InputPriceData!B$15,$A40+$A$11,0,1,1)) -> 2019-08-02 | C40: =IF(A40>$A$8,"",OFFSET(InputPriceData!G$15,CalculationsAndCharts!$A40+$A$11,IF($C$5,8,0),1,1)) -> 8101700 | D40: =IF(A40>$A$8,"",OFFSET(InputPriceData!C$15,CalculationsAndCharts!$A40+$A$11,IF($C$5,8,0),1,1)) -> 149.029999 | E40: =IF(A40>$A$8,"",OFFSET(InputPriceData!D$15,CalculationsAndCharts!$A40+$A$11,IF($C$5,8,0),1,1)) -> 152.949997 | F40: =IF(A40>$A$8,"",OFFSET(InputPriceData!E$15,CalculationsAndCharts!$A40+$A$11,IF($C$5,8,0),1,1)) -> 145.589996 | G40: =IF(A40>$A$8,"",OFFSET(InputPriceData!F$15,CalculationsAndCharts!$A40+$A$11,IF($C$5,8,0),1,1)) -> 147.25 | H40: 146.597003 | I40: 4.123005586 | J40: 6.596808938 | K40: 153.193812 | L40: 140.0001941 | M40: FALSE | N40: FALSE | O40: FALSE | P40: FALSE | Q40: FALSE | R40: FALSE | S40: 7.360001 | T40: 2.688171476 | U40: 144.943664 | V40: FALSE | X40: 0 | Y40: 0 | Z40: 0 | AA40: 0 | AB40: 0 | AC40: 0 | AQ40: 8101700
A41: 9 | B41: =IF(A41>$A$8,"",OFFSET(InputPriceData!B$15,$A41+$A$11,0,1,1)) -> 2019-08-01 | C41: =IF(A41>$A$8,"",OFFSET(InputPriceData!G$15,CalculationsAndCharts!$A41+$A$11,IF($C$5,8,0),1,1)) -> 6344000 | D41: =IF(A41>$A$8,"",OFFSET(InputPriceData!C$15,CalculationsAndCharts!$A41+$A$11,IF($C$5,8,0),1,1)) -> 148.899994 | E41: =IF(A41>$A$8,"",OFFSET(InputPriceData!D$15,CalculationsAndCharts!$A41+$A$11,IF($C$5,8,0),1,1)) -> 152.820007 | F41: =IF(A41>$A$8,"",OFFSET(InputPriceData!E$15,CalculationsAndCharts!$A41+$A$11,IF($C$5,8,0),1,1)) -> 148.5 | G41: =IF(A41>$A$8,"",OFFSET(InputPriceData!F$15,CalculationsAndCharts!$A41+$A$11,IF($C$5,8,0),1,1)) -> 150.320007 | H41: 146.3035033 | I41: 4.272302207 | J41: 6.83568353 | K41: 153.1391868 | L41: 139.4678198 | M41: FALSE | N41: FALSE | O41: FALSE | P41: FALSE | Q41: FALSE | R41: FALSE | S41: 4.580002 | T41: 2.328799974 | U41: 143.5824051 | V41: FALSE | X41: 0 | Y41: 0 | Z41: 0 | AA41: 0 | AB41: 0 | AC41: 0 | AP41: 6344000
A42: 10 | B42: =IF(A42>$A$8,"",OFFSET(InputPriceData!B$15,$A42+$A$11,0,1,1)) -> 2019-07-31 | C42: =IF(A42>$A$8,"",OFFSET(InputPriceData!G$15,CalculationsAndCharts!$A42+$A$11,IF($C$5,8,0),1,1)) -> 3722900 | D42: =IF(A42>$A$8,"",OFFSET(InputPriceData!C$15,CalculationsAndCharts!$A42+$A$11,IF($C$5,8,0),1,1)) -> 149.699997 | E42: =IF(A42>$A$8,"",OFFSET(InputPriceData!D$15,CalculationsAndCharts!$A42+$A$11,IF($C$5,8,0),1,1)) -> 150.179993 | F42: =IF(A42>$A$8,"",OFFSET(InputPriceData!E$15,CalculationsAndCharts!$A42+$A$11,IF($C$5,8,0),1,1)) -> 146.389999 | G42: =IF(A42>$A$8,"",OFFSET(InputPriceData!F$15,CalculationsAndCharts!$A42+$A$11,IF($C$5,8,0),1,1)) -> 148.240005 | H42: 145.8645026 | I42: 4.288097591 | J42: 6.860956146 | K42: 152.7254587 | L42: 139.0035465 | M42: FALSE | N42: FALSE | O42: FALSE | P42: FALSE | Q42: FALSE | R42: FALSE | S42: 3.789994 | T42: 2.155630587 | U42: 145.4587428 | V42: FALSE | X42: 0 | Y42: 0 | Z42: 0 | AA42: 0 | AB42: 0 | AC42: 0 | AQ42: 3722900
A43: 11 | B43: =IF(A43>$A$8,"",OFFSET(InputPriceData!B$15,$A43+$A$11,0,1,1)) -> 2019-07-30 | C43: =IF(A43>$A$8,"",OFFSET(InputPriceData!G$15,CalculationsAndCharts!$A43+$A$11,IF($C$5,8,0),1,1)) -> 2632700 | D43: =IF(A43>$A$8,"",OFFSET(InputPriceData!C$15,CalculationsAndCharts!$A43+$A$11,IF($C$5,8,0),1,1)) -> 150 | E43: =IF(A43>$A$8,"",OFFSET(InputPriceData!D$15,CalculationsAndCharts!$A43+$A$11,IF($C$5,8,0),1,1)) -> 150.399994 | F43: =IF(A43>$A$8,"",OFFSET(InputPriceData!E$15,CalculationsAndCharts!$A43+$A$11,IF($C$5,8,0),1,1)) -> 149.220001 | G43: =IF(A43>$A$8,"",OFFSET(InputPriceData!F$15,CalculationsAndCharts!$A43+$A$11,IF($C$5,8,0),1,1)) -> 149.770004 | H43: 145.4635024 | I43: 4.420163925 | J43: 7.07226228 | K43: 152.5357647 | L43: 138.3912401 | M43: FALSE | N43: FALSE | O43: FALSE | P43: FALSE | Q43: FALSE | R43: FALSE | S43: 1.660004 | T43: 2.029910325 | U43: 146.8201844 | V43: FALSE | X43: 0 | Y43: 0 | Z43: 0 | AA43: 0 | AB43: 0 | AC43: 0 | AQ43: 2632700
A44: 12 | B44: =IF(A44>$A$8,"",OFFSET(InputPriceData!B$15,$A44+$A$11,0,1,1)) -> 2019-07-29 | C44: =IF(A44>$A$8,"",OFFSET(InputPriceData!G$15,CalculationsAndCharts!$A44+$A$11,IF($C$5,8,0),1,1)) -> 2075500 | D44: =IF(A44>$A$8,"",OFFSET(InputPriceData!C$15,CalculationsAndCharts!$A44+$A$11,IF($C$5,8,0),1,1)) -> 151.110001 | E44: =IF(A44>$A$8,"",OFFSET(InputPriceData!D$15,CalculationsAndCharts!$A44+$A$11,IF($C$5,8,0),1,1)) -> 151.479996 | F44: =IF(A44>$A$8,"",OFFSET(InputPriceData!E$15,CalculationsAndCharts!$A44+$A$11,IF($C$5,8,0),1,1)) -> 150.320007 | G44: =IF(A44>$A$8,"",OFFSET(InputPriceData!F$15,CalculationsAndCharts!$A44+$A$11,IF($C$5,8,0),1,1)) -> 150.880005 | H44: 144.9690025 | I44: 4.463719669 | J44: 7.14195147 | K44: 152.1109539 | L44: 137.827051 | M44: FALSE | N44: FALSE | O44: FALSE | P44: FALSE | Q44: FALSE | R44: FALSE | S44: 1.159989 | T44: 2.058364657 | U44: 147.2432717 | V44: FALSE | X44: 0 | Y44: 0 | Z44: 0 | AA44: 0 | AB44: 0 | AC44: 0 | AQ44: 2075500
A45: 13 | B45: =IF(A45>$A$8,"",OFFSET(InputPriceData!B$15,$A45+$A$11,0,1,1)) -> 2019-07-26 | C45: =IF(A45>$A$8,"",OFFSET(InputPriceData!G$15,CalculationsAndCharts!$A45+$A$11,IF($C$5,8,0),1,1)) -> 2904300 | D45: =IF(A45>$A$8,"",OFFSET(InputPriceData!C$15,CalculationsAndCharts!$A45+$A$11,IF($C$5,8,0),1,1)) -> 151 | E45: =IF(A45>$A$8,"",OFFSET(InputPriceData!D$15,CalculationsAndCharts!$A45+$A$11,IF($C$5,8,0),1,1)) -> 151.410004 | F45: =IF(A45>$A$8,"",OFFSET(InputPriceData!E$15,CalculationsAndCharts!$A45+$A$11,IF($C$5,8,0),1,1)) -> 150.100006 | G45: =IF(A45>$A$8,"",OFFSET(InputPriceData!F$15,CalculationsAndCharts!$A45+$A$11,IF($C$5,8,0),1,1)) -> 151.360001 | H45: 144.3200019 | I45: 4.500570856 | J45: 7.20091337 | K45: 151.5209153 | L45: 137.1190885 | M45: FALSE | N45: TRUE | O45: FALSE | P45: FALSE | Q45: FALSE | R45: FALSE | S45: 1.309998 | T45: 2.127470477 | U45: 146.135058 | V45: FALSE | X45: 0 | Y45: 0 | Z45: 0 | AA45: 0 | AB45: 0 | AC45: 0 | AP45: 2904300
A46: 14 | B46: =IF(A46>$A$8,"",OFFSET(InputPriceData!B$15,$A46+$A$11,0,1,1)) -> 2019-07-25 | C46: =IF(A46>$A$8,"",OFFSET(InputPriceData!G$15,CalculationsAndCharts!$A46+$A$11,IF($C$5,8,0),1,1)) -> 3102100 | D46: =IF(A46>$A$8,"",OFFSET(InputPriceData!C$15,CalculationsAndCharts!$A46+$A$11,IF($C$5,8,0),1,1)) -> 149.820007 | E46: =IF(A46>$A$8,"",OFFSET(InputPriceData!D$15,CalculationsAndCharts!$A46+$A$11,IF($C$5,8,0),1,1)) -> 150.619995 | F46: =IF(A46>$A$8,"",OFFSET(InputPriceData!E$15,CalculationsAndCharts!$A46+$A$11,IF($C$5,8,0),1,1)) -> 148.610001 | G46: =IF(A46>$A$8,"",OFFSET(InputPriceData!F$15,CalculationsAndCharts!$A46+$A$11,IF($C$5,8,0),1,1)) -> 150.389999 | H46: 143.6780021 | I46: 4.364274698 | J46: 6.982839517 | K46: 150.6608416 | L46: 136.6951625 | M46: FALSE | N46: FALSE | O46: FALSE | P46: FALSE | Q46: FALSE | R46: FALSE | S46: 2.009994 | T46: 2.190352975 | U46: 145.649293 | V46: FALSE | X46: 0 | Y46: 0 | Z46: 0 | AA46: 0 | AB46: 0 | AC46: 0 | AP46: 3102100
A47: 15 | B47: =IF(A47>$A$8,"",OFFSET(InputPriceData!B$15,$A47+$A$11,0,1,1)) -> 2019-07-24 | C47: =IF(A47>$A$8,"",OFFSET(InputPriceData!G$15,CalculationsAndCharts!$A47+$A$11,IF($C$5,8,0),1,1)) -> 2952400 | D47: =IF(A47>$A$8,"",OFFSET(InputPriceData!C$15,CalculationsAndCharts!$A47+$A$11,IF($C$5,8,0),1,1)) -> 150.119995 | E47: =IF(A47>$A$8,"",OFFSET(InputPriceData!D$15,CalculationsAndCharts!$A47+$A$11,IF($C$5,8,0),1,1)) -> 151.449997 | F47: =IF(A47>$A$8,"",OFFSET(InputPriceData!E$15,CalculationsAndCharts!$A47+$A$11,IF($C$5,8,0),1,1)) -> 149.199997 | G47: =IF(A47>$A$8,"",OFFSET(InputPriceData!F$15,CalculationsAndCharts!$A47+$A$11,IF($C$5,8,0),1,1)) -> 150.029999 | H47: 143.0845023 | I47: 4.215726951 | J47: 6.745163122 | K47: 149.8296654 | L47: 136.3393392 | M47: FALSE | N47: FALSE | O47: FALSE | P47: FALSE | Q47: TRUE | R47: FALSE | S47: 2.25 | T47: 2.204226743 | U47: 145.9715515 | V47: FALSE | X47: 0 | Y47: 0 | Z47: 0 | AA47: 0 | AB47: 0 | AC47: 0 | AQ47: 2952400
A48: 16 | B48: =IF(A48>$A$8,"",OFFSET(InputPriceData!B$15,$A48+$A$11,0,1,1)) -> 2019-07-23 | C48: =IF(A48>$A$8,"",OFFSET(InputPriceData!G$15,CalculationsAndCharts!$A48+$A$11,IF($C$5,8,0),1,1)) -> 3742200 | D48: =IF(A48>$A$8,"",OFFSET(InputPriceData!C$15,CalculationsAndCharts!$A48+$A$11,IF($C$5,8,0),1,1)) -> 150.570007 | E48: =IF(A48>$A$8,"",OFFSET(InputPriceData!D$15,CalculationsAndCharts!$A48+$A$11,IF($C$5,8,0),1,1)) -> 150.720001 | F48: =IF(A48>$A$8,"",OFFSET(InputPriceData!E$15,CalculationsAndCharts!$A48+$A$11,IF($C$5,8,0),1,1)) -> 148.380005 | G48: =IF(A48>$A$8,"",OFFSET(InputPriceData!F$15,CalculationsAndCharts!$A48+$A$11,IF($C$5,8,0),1,1)) -> 150.380005 | H48: 142.5010024 | I48: 4.016955439 | J48: 6.427128703 | K48: 148.9281311 | L48: 136.0738737 | M48: FALSE | N48: FALSE | O48: FALSE | P48: FALSE | Q48: TRUE | R48: FALSE | S48: 2.339996 | T48: 2.200705723 | U48: 145.3385936 | V48: FALSE | X48: 0 | Y48: 0 | Z48: 0 | AA48: 0 | AB48: 0 | AC48: 0 | AQ48: 3742200
A49: 17 | B49: =IF(A49>$A$8,"",OFFSET(InputPriceData!B$15,$A49+$A$11,0,1,1)) -> 2019-07-22 | C49: =IF(A49>$A$8,"",OFFSET(InputPriceData!G$15,CalculationsAndCharts!$A49+$A$11,IF($C$5,8,0),1,1)) -> 4092600 | D49: =IF(A49>$A$8,"",OFFSET(InputPriceData!C$15,CalculationsAndCharts!$A49+$A$11,IF($C$5,8,0),1,1)) -> 150.160004 | E49: =IF(A49>$A$8,"",OFFSET(InputPriceData!D$15,CalculationsAndCharts!$A49+$A$11,IF($C$5,8,0),1,1)) -> 151.940002 | F49: =IF(A49>$A$8,"",OFFSET(InputPriceData!E$15,CalculationsAndCharts!$A49+$A$11,IF($C$5,8,0),1,1)) -> 149.699997 | G49: =IF(A49>$A$8,"",OFFSET(InputPriceData!F$15,CalculationsAndCharts!$A49+$A$11,IF($C$5,8,0),1,1)) -> 149.740005 | H49: 141.9495025 | I49: 3.636520813 | J49: 5.818433301 | K49: 147.7679358 | L49: 136.1310691 | M49: FALSE | N49: FALSE | O49: FALSE | P49: FALSE | Q49: TRUE | R49: FALSE | S49: 2.260009 | T49: 2.189991086 | U49: 145.3000108 | V49: FALSE | X49: 0 | Y49: 0 | Z49: 0 | AA49: 0 | AB49: 0 | AC49: 0 | AQ49: 4092600
A50: 18 | B50: =IF(A50>$A$8,"",OFFSET(InputPriceData!B$15,$A50+$A$11,0,1,1)) -> 2019-07-19 | C50: =IF(A50>$A$8,"",OFFSET(InputPriceData!G$15,CalculationsAndCharts!$A50+$A$11,IF($C$5,8,0),1,1)) -> 7290700 | D50: =IF(A50>$A$8,"",OFFSET(InputPriceData!C$15,CalculationsAndCharts!$A50+$A$11,IF($C$5,8,0),1,1)) -> 149.960007 | E50: =IF(A50>$A$8,"",OFFSET(InputPriceData!D$15,CalculationsAndCharts!$A50+$A$11,IF($C$5,8,0),1,1)) -> 151.580002 | F50: =IF(A50>$A$8,"",OFFSET(InputPriceData!E$15,CalculationsAndCharts!$A50+$A$11,IF($C$5,8,0),1,1)) -> 149.550003 | G50: =IF(A50>$A$8,"",OFFSET(InputPriceData!F$15,CalculationsAndCharts!$A50+$A$11,IF($C$5,8,0),1,1)) -> 149.679993 | H50: 141.422502 | I50: 3.207794681 | J50: 5.132471489 | K50: 146.5549735 | L50: 136.2900306 | M50: FALSE | N50: FALSE | O50: FALSE | P50: FALSE | Q50: TRUE | R50: FALSE | S50: 2.029999 | T50: 2.184605093 | U50: 145.2607948 | V50: FALSE | X50: 0 | Y50: 0 | Z50: 0 | AA50: 0 | AB50: 0 | AC50: 0 | AQ50: 7290700
A51: 19 | B51: =IF(A51>$A$8,"",OFFSET(InputPriceData!B$15,$A51+$A$11,0,1,1)) -> 2019-07-18 | C51: =IF(A51>$A$8,"",OFFSET(InputPriceData!G$15,CalculationsAndCharts!$A51+$A$11,IF($C$5,8,0),1,1)) -> 12695400 | D51: =IF(A51>$A$8,"",OFFSET(InputPriceData!C$15,CalculationsAndCharts!$A51+$A$11,IF($C$5,8,0),1,1)) -> 142.5 | E51: =IF(A51>$A$8,"",OFFSET(InputPriceData!D$15,CalculationsAndCharts!$A51+$A$11,IF($C$5,8,0),1,1)) -> 150.309998 | F51: =IF(A51>$A$8,"",OFFSET(InputPriceData!E$15,CalculationsAndCharts!$A51+$A$11,IF($C$5,8,0),1,1)) -> 142.199997 | G51: =IF(A51>$A$8,"",OFFSET(InputPriceData!F$15,CalculationsAndCharts!$A51+$A$11,IF($C$5,8,0),1,1)) -> 149.630005 | H51: 140.8810027 | I51: 2.63026693 | J51: 4.208427089 | K51: 145.0894298 | L51: 136.6725756 | M51: FALSE | N51: FALSE | O51: FALSE | P51: FALSE | Q51: TRUE | R51: FALSE | S51: 8.110001 | T51: 2.196497869 | U51: 138.6770113 | V51: FALSE | X51: 0 | Y51: 0 | Z51: 0 | AA51: 0 | AB51: 0 | AC51: 0 | AP51: 12695400
A52: 20 | B52: =IF(A52>$A$8,"",OFFSET(InputPriceData!B$15,$A52+$A$11,0,1,1)) -> 2019-07-17 | C52: =IF(A52>$A$8,"",OFFSET(InputPriceData!G$15,CalculationsAndCharts!$A52+$A$11,IF($C$5,8,0),1,1)) -> 6064300 | D52: =IF(A52>$A$8,"",OFFSET(InputPriceData!C$15,CalculationsAndCharts!$A52+$A$11,IF($C$5,8,0),1,1)) -> 143.610001 | E52: =IF(A52>$A$8,"",OFFSET(InputPriceData!D$15,CalculationsAndCharts!$A52+$A$11,IF($C$5,8,0),1,1)) -> 143.800003 | F52: =IF(A52>$A$8,"",OFFSET(InputPriceData!E$15,CalculationsAndCharts!$A52+$A$11,IF($C$5,8,0),1,1)) -> 141.949997 | G52: =IF(A52>$A$8,"",OFFSET(InputPriceData!F$15,CalculationsAndCharts!$A52+$A$11,IF($C$5,8,0),1,1)) -> 143.070007 | H52: 140.2535026 | I52: 1.849236583 | J52: 2.958778533 | K52: 143.2122811 | L52: 137.294724 | M52: FALSE | N52: FALSE | O52: FALSE | P52: FALSE | Q52: TRUE | R52: FALSE | S52: 1.850006 | T52: 1.741613013 | U52: 140.046773 | V52: FALSE | X52: 0 | Y52: 0 | Z52: 0 | AA52: 0 | AB52: 0 | AC52: 0 | AQ52: 6064300
A53: 21 | B53: =IF(A53>$A$8,"",OFFSET(InputPriceData!B$15,$A53+$A$11,0,1,1)) -> 2019-07-16 | C53: =IF(A53>$A$8,"",OFFSET(InputPriceData!G$15,CalculationsAndCharts!$A53+$A$11,IF($C$5,8,0),1,1)) -> 3474700 | D53: =IF(A53>$A$8,"",OFFSET(InputPriceData!C$15,CalculationsAndCharts!$A53+$A$11,IF($C$5,8,0),1,1)) -> 143.169998 | E53: =IF(A53>$A$8,"",OFFSET(InputPriceData!D$15,CalculationsAndCharts!$A53+$A$11,IF($C$5,8,0),1,1)) -> 144.039993 | F53: =IF(A53>$A$8,"",OFFSET(InputPriceData!E$15,CalculationsAndCharts!$A53+$A$11,IF($C$5,8,0),1,1)) -> 143.020004 | G53: =IF(A53>$A$8,"",OFFSET(InputPriceData!F$15,CalculationsAndCharts!$A53+$A$11,IF($C$5,8,0),1,1)) -> 143.529999 | H53: 139.9190025 | I53: 1.913465422 | J53: 3.061544676 | K53: 142.9805471 | L53: 136.8574578 | M53: FALSE | N53: FALSE | O53: FALSE | P53: FALSE | Q53: TRUE | R53: FALSE | S53: 1.019989 | T53: 1.733275091 | U53: 139.8534568 | V53: FALSE | X53: 0 | Y53: 0 | Z53: 0 | AA53: 0 | AB53: 0 | AC53: 0 | AP53: 3474700
A54: 22 | B54: =IF(A54>$A$8,"",OFFSET(InputPriceData!B$15,$A54+$A$11,0,1,1)) -> 2019-07-15 | C54: =IF(A54>$A$8,"",OFFSET(InputPriceData!G$15,CalculationsAndCharts!$A54+$A$11,IF($C$5,8,0),1,1)) -> 2368300 | D54: =IF(A54>$A$8,"",OFFSET(InputPriceData!C$15,CalculationsAndCharts!$A54+$A$11,IF($C$5,8,0),1,1)) -> 142.889999 | E54: =IF(A54>$A$8,"",OFFSET(InputPriceData!D$15,CalculationsAndCharts!$A54+$A$11,IF($C$5,8,0),1,1)) -> 143.509995 | F54: =IF(A54>$A$8,"",OFFSET(InputPriceData!E$15,CalculationsAndCharts!$A54+$A$11,IF($C$5,8,0),1,1)) -> 142.119995 | G54: =IF(A54>$A$8,"",OFFSET(InputPriceData!F$15,CalculationsAndCharts!$A54+$A$11,IF($C$5,8,0),1,1)) -> 143.320007 | H54: 139.4900024 | I54: 2.01491806 | J54: 3.223868897 | K54: 142.7138712 | L54: 136.2661335 | M54: FALSE | N54: FALSE | O54: FALSE | P54: FALSE | Q54: TRUE | R54: FALSE | S54: 1.39 | T54: 1.788143252 | U54: 139.1637185 | V54: FALSE | X54: 0 | Y54: 0 | Z54: 0 | AA54: 0 | AB54: 0 | AC54: 0 | AP54: 2368300
A55: 23 | B55: =IF(A55>$A$8,"",OFFSET(InputPriceData!B$15,$A55+$A$11,0,1,1)) -> 2019-07-12 | C55: =IF(A55>$A$8,"",OFFSET(InputPriceData!G$15,CalculationsAndCharts!$A55+$A$11,IF($C$5,8,0),1,1)) -> 2786200 | D55: =IF(A55>$A$8,"",OFFSET(InputPriceData!C$15,CalculationsAndCharts!$A55+$A$11,IF($C$5,8,0),1,1)) -> 141.919998 | E55: =IF(A55>$A$8,"",OFFSET(InputPriceData!D$15,CalculationsAndCharts!$A55+$A$11,IF($C$5,8,0),1,1)) -> 142.919998 | F55: =IF(A55>$A$8,"",OFFSET(InputPriceData!E$15,CalculationsAndCharts!$A55+$A$11,IF($C$5,8,0),1,1)) -> 141.660004 | G55: =IF(A55>$A$8,"",OFFSET(InputPriceData!F$15,CalculationsAndCharts!$A55+$A$11,IF($C$5,8,0),1,1)) -> 142.740005 | H55: 139.0815017 | I55: 2.02518119 | J55: 3.240289904 | K55: 142.3217916 | L55: 135.8412118 | M55: FALSE | N55: FALSE | O55: FALSE | P55: FALSE | Q55: TRUE | R55: FALSE | S55: 1.679993 | T55: 1.818769656 | U55: 137.6024657 | V55: FALSE | X55: 0 | Y55: 0 | Z55: 0 | AA55: 0 | AB55: 0 | AC55: 0 | AP55: 2786200
A56: 24 | B56: =IF(A56>$A$8,"",OFFSET(InputPriceData!B$15,$A56+$A$11,0,1,1)) -> 2019-07-11 | C56: =IF(A56>$A$8,"",OFFSET(InputPriceData!G$15,CalculationsAndCharts!$A56+$A$11,IF($C$5,8,0),1,1)) -> 2132900 | D56: =IF(A56>$A$8,"",OFFSET(InputPriceData!C$15,CalculationsAndCharts!$A56+$A$11,IF($C$5,8,0),1,1)) -> 140.789993 | E56: =IF(A56>$A$8,"",OFFSET(InputPriceData!D$15,CalculationsAndCharts!$A56+$A$11,IF($C$5,8,0),1,1)) -> 141.580002 | F56: =IF(A56>$A$8,"",OFFSET(InputPriceData!E$15,CalculationsAndCharts!$A56+$A$11,IF($C$5,8,0),1,1)) -> 140.300003 | G56: =IF(A56>$A$8,"",OFFSET(InputPriceData!F$15,CalculationsAndCharts!$A56+$A$11,IF($C$5,8,0),1,1)) -> 141.240005 | H56: 138.7325012 | I56: 1.96518333 | J56: 3.144293328 | K56: 141.8767945 | L56: 135.5882079 | M56: FALSE | N56: FALSE | O56: FALSE | P56: FALSE | Q56: FALSE | R56: FALSE | S56: 1.279999 | T56: 1.829444783 | U56: 136.8111114 | V56: FALSE | X56: 0 | Y56: 0 | Z56: 0 | AA56: 0 | AB56: 0 | AC56: 0 | AP56: 2132900
A57: 25 | B57: =IF(A57>$A$8,"",OFFSET(InputPriceData!B$15,$A57+$A$11,0,1,1)) -> 2019-07-10 | C57: =IF(A57>$A$8,"",OFFSET(InputPriceData!G$15,CalculationsAndCharts!$A57+$A$11,IF($C$5,8,0),1,1)) -> 2513900 | D57: =IF(A57>$A$8,"",OFFSET(InputPriceData!C$15,CalculationsAndCharts!$A57+$A$11,IF($C$5,8,0),1,1)) -> 140 | E57: =IF(A57>$A$8,"",OFFSET(InputPriceData!D$15,CalculationsAndCharts!$A57+$A$11,IF($C$5,8,0),1,1)) -> 141.910004 | F57: =IF(A57>$A$8,"",OFFSET(InputPriceData!E$15,CalculationsAndCharts!$A57+$A$11,IF($C$5,8,0),1,1)) -> 139.789993 | G57: =IF(A57>$A$8,"",OFFSET(InputPriceData!F$15,CalculationsAndCharts!$A57+$A$11,IF($C$5,8,0),1,1)) -> 140.470001 | H57: 138.4140007 | I57: 2.04745498 | J57: 3.275927968 | K57: 141.6899287 | L57: 135.1380727 | M57: FALSE | N57: FALSE | O57: FALSE | P57: FALSE | Q57: TRUE | R57: FALSE | S57: 2.580002 | T57: 1.871709844 | U57: 135.5865823 | V57: FALSE | X57: 0 | Y57: 0 | Z57: 0 | AA57: 0 | AB57: 0 | AC57: 0 | AP57: 2513900
A58: 26 | B58: =IF(A58>$A$8,"",OFFSET(InputPriceData!B$15,$A58+$A$11,0,1,1)) -> 2019-07-09 | C58: =IF(A58>$A$8,"",OFFSET(InputPriceData!G$15,CalculationsAndCharts!$A58+$A$11,IF($C$5,8,0),1,1)) -> 3365200 | D58: =IF(A58>$A$8,"",OFFSET(InputPriceData!C$15,CalculationsAndCharts!$A58+$A$11,IF($C$5,8,0),1,1)) -> 140.610001 | E58: =IF(A58>$A$8,"",OFFSET(InputPriceData!D$15,CalculationsAndCharts!$A58+$A$11,IF($C$5,8,0),1,1)) -> 140.990005 | F58: =IF(A58>$A$8,"",OFFSET(InputPriceData!E$15,CalculationsAndCharts!$A58+$A$11,IF($C$5,8,0),1,1)) -> 139.130005 | G58: =IF(A58>$A$8,"",OFFSET(InputPriceData!F$15,CalculationsAndCharts!$A58+$A$11,IF($C$5,8,0),1,1)) -> 139.330002 | H58: 138.1880005 | I58: 2.057475311 | J58: 3.291960497 | K58: 141.479961 | L58: 134.89604 | M58: FALSE | N58: FALSE | O58: FALSE | P58: FALSE | Q58: FALSE | R58: FALSE | S58: 1.86 | T58: 1.817225832 | U58: 136.9355553 | V58: FALSE | X58: 0 | Y58: 0 | Z58: 0 | AA58: 0 | AB58: 0 | AC58: 0 | AQ58: 3365200
A59: 27 | B59: =IF(A59>$A$8,"",OFFSET(InputPriceData!B$15,$A59+$A$11,0,1,1)) -> 2019-07-08 | C59: =IF(A59>$A$8,"",OFFSET(InputPriceData!G$15,CalculationsAndCharts!$A59+$A$11,IF($C$5,8,0),1,1)) -> 2395300 | D59: =IF(A59>$A$8,"",OFFSET(InputPriceData!C$15,CalculationsAndCharts!$A59+$A$11,IF($C$5,8,0),1,1)) -> 141.050003 | E59: =IF(A59>$A$8,"",OFFSET(InputPriceData!D$15,CalculationsAndCharts!$A59+$A$11,IF($C$5,8,0),1,1)) -> 141.289993 | F59: =IF(A59>$A$8,"",OFFSET(InputPriceData!E$15,CalculationsAndCharts!$A59+$A$11,IF($C$5,8,0),1,1)) -> 140.270004 | G59: =IF(A59>$A$8,"",OFFSET(InputPriceData!F$15,CalculationsAndCharts!$A59+$A$11,IF($C$5,8,0),1,1)) -> 140.570007 | H59: 137.9585006 | I59: 2.17019809 | J59: 3.472316944 | K59: 141.4308176 | L59: 134.4861837 | M59: FALSE | N59: FALSE | O59: FALSE | P59: FALSE | Q59: FALSE | R59: FALSE | S59: 1.110001 | T59: 1.813935511 | U59: 137.752134 | V59: FALSE | X59: 0 | Y59: 0 | Z59: 0 | AA59: 0 | AB59: 0 | AC59: 0 | AQ59: 2395300
A60: 28 | B60: =IF(A60>$A$8,"",OFFSET(InputPriceData!B$15,$A60+$A$11,0,1,1)) -> 2019-07-05 | C60: =IF(A60>$A$8,"",OFFSET(InputPriceData!G$15,CalculationsAndCharts!$A60+$A$11,IF($C$5,8,0),1,1)) -> 2134700 | D60: =IF(A60>$A$8,"",OFFSET(InputPriceData!C$15,CalculationsAndCharts!$A60+$A$11,IF($C$5,8,0),1,1)) -> 140.869995 | E60: =IF(A60>$A$8,"",OFFSET(InputPriceData!D$15,CalculationsAndCharts!$A60+$A$11,IF($C$5,8,0),1,1)) -> 141.490005 | F60: =IF(A60>$A$8,"",OFFSET(InputPriceData!E$15,CalculationsAndCharts!$A60+$A$11,IF($C$5,8,0),1,1)) -> 139.910004 | G60: =IF(A60>$A$8,"",OFFSET(InputPriceData!F$15,CalculationsAndCharts!$A60+$A$11,IF($C$5,8,0),1,1)) -> 141.380005 | H60: 137.5955002 | I60: 2.305953381 | J60: 3.68952541 | K60: 141.2850256 | L60: 133.9059748 | M60: FALSE | N60: FALSE | O60: FALSE | P60: FALSE | Q60: TRUE | R60: FALSE | S60: 1.629989 | T60: 1.868084319 | U60: 137.8038244 | V60: FALSE | X60: 0 | Y60: 0 | Z60: 0 | AA60: 0 | AB60: 0 | AC60: 0 | AP60: 2134700
A61: 29 | B61: =IF(A61>$A$8,"",OFFSET(InputPriceData!B$15,$A61+$A$11,0,1,1)) -> 2019-07-03 | C61: =IF(A61>$A$8,"",OFFSET(InputPriceData!G$15,CalculationsAndCharts!$A61+$A$11,IF($C$5,8,0),1,1)) -> 1930400 | D61: =IF(A61>$A$8,"",OFFSET(InputPriceData!C$15,CalculationsAndCharts!$A61+$A$11,IF($C$5,8,0),1,1)) -> 140.720001 | E61: =IF(A61>$A$8,"",OFFSET(InputPriceData!D$15,CalculationsAndCharts!$A61+$A$11,IF($C$5,8,0),1,1)) -> 141.820007 | F61: =IF(A61>$A$8,"",OFFSET(InputPriceData!E$15,CalculationsAndCharts!$A61+$A$11,IF($C$5,8,0),1,1)) -> 140.429993 | G61: =IF(A61>$A$8,"",OFFSET(InputPriceData!F$15,CalculationsAndCharts!$A61+$A$11,IF($C$5,8,0),1,1)) -> 141.539993 | H61: 137.1375 | I61: 2.415850278 | J61: 3.865360445 | K61: 141.0028604 | L61: 133.2721396 | M61: FALSE | N61: FALSE | O61: =IF(A61>$A$8-2,"",IF(A61=$A$8-2,FALSE,AND(M61,N61,NOT(P61)))) -> FALSE | P61: FALSE | Q61: TRUE | R61: FALSE | S61: 1.600006 | T61: 1.886399344 | U61: 136.4472023 | V61: FALSE | X61: 0 | Y61: 0 | Z61: 0 | AA61: 0 | AB61: 0 | AC61: 0 | AP61: 1930400
A62: 30 | B62: =IF(A62>$A$8,"",OFFSET(InputPriceData!B$15,$A62+$A$11,0,1,1)) -> 2019-07-02 | C62: =IF(A62>$A$8,"",OFFSET(InputPriceData!G$15,CalculationsAndCharts!$A62+$A$11,IF($C$5,8,0),1,1)) -> 2409700 | D62: =IF(A62>$A$8,"",OFFSET(InputPriceData!C$15,CalculationsAndCharts!$A62+$A$11,IF($C$5,8,0),1,1)) -> 139.75 | E62: =IF(A62>$A$8,"",OFFSET(InputPriceData!D$15,CalculationsAndCharts!$A62+$A$11,IF($C$5,8,0),1,1)) -> 140.429993 | F62: =IF(A62>$A$8,"",OFFSET(InputPriceData!E$15,CalculationsAndCharts!$A62+$A$11,IF($C$5,8,0),1,1)) -> 139.470001 | G62: =IF(A62>$A$8,"",OFFSET(InputPriceData!F$15,CalculationsAndCharts!$A62+$A$11,IF($C$5,8,0),1,1)) -> 140.220001 | H62: 136.6350006 | I62: 2.491874732 | J62: 3.986999571 | K62: 140.6220002 | L62: 132.648001 | M62: FALSE | N62: FALSE | O62: =IF(A62>$A$8-2,"",IF(A62=$A$8-2,FALSE,AND(M62,N62,NOT(P62)))) -> FALSE | P62: FALSE | Q62: FALSE | R62: FALSE | S62: 0.959992 | T62: 1.908429601 | U62: 136.0631458 | V62: FALSE | X62: 0 | Y62: 0 | Z62: 0 | AA62: 0 | AB62: 0 | AC62: 0 | AP62: 2409700
A63: 31 | B63: =IF(A63>$A$8,"",OFFSET(InputPriceData!B$15,$A63+$A$11,0,1,1)) -> 2019-07-01 | C63: =IF(A63>$A$8,"",OFFSET(InputPriceData!G$15,CalculationsAndCharts!$A63+$A$11,IF($C$5,8,0),1,1)) -> 3377700 | D63: =IF(A63>$A$8,"",OFFSET(InputPriceData!C$15,CalculationsAndCharts!$A63+$A$11,IF($C$5,8,0),1,1)) -> 139.600006 | E63: =IF(A63>$A$8,"",OFFSET(InputPriceData!D$15,CalculationsAndCharts!$A63+$A$11,IF($C$5,8,0),1,1)) -> 141.490005 | F63: =IF(A63>$A$8,"",OFFSET(InputPriceData!E$15,CalculationsAndCharts!$A63+$A$11,IF($C$5,8,0),1,1)) -> 139.279999 | G63: =IF(A63>$A$8,"",OFFSET(InputPriceData!F$15,CalculationsAndCharts!$A63+$A$11,IF($C$5,8,0),1,1)) -> 139.880005 | H63: 136.2585007 | I63: 2.490627786 | J63: 3.985004458 | K63: 140.2435051 | L63: 132.2734962 | M63: FALSE | N63: FALSE | O63: FALSE | P63: FALSE | Q63: TRUE | R63: FALSE | S63: 3.590011 | T63: 1.98138634 | U63: 133.9372213 | V63: FALSE | X63: 0 | Y63: 0 | Z63: 0 | AA63: 0 | AB63: 0 | AC63: 0 | AP63: 3377700
A64: 32 | B64: =IF(A64>$A$8,"",OFFSET(InputPriceData!B$15,$A64+$A$11,0,1,1)) -> 2019-06-28 | C64: =IF(A64>$A$8,"",OFFSET(InputPriceData!G$15,CalculationsAndCharts!$A64+$A$11,IF($C$5,8,0),1,1)) -> 6153900 | D64: =IF(A64>$A$8,"",OFFSET(InputPriceData!C$15,CalculationsAndCharts!$A64+$A$11,IF($C$5,8,0),1,1)) -> 138.570007 | E64: =IF(A64>$A$8,"",OFFSET(InputPriceData!D$15,CalculationsAndCharts!$A64+$A$11,IF($C$5,8,0),1,1)) -> 139.139999 | F64: =IF(A64>$A$8,"",OFFSET(InputPriceData!E$15,CalculationsAndCharts!$A64+$A$11,IF($C$5,8,0),1,1)) -> 137.839996 | G64: =IF(A64>$A$8,"",OFFSET(InputPriceData!F$15,CalculationsAndCharts!$A64+$A$11,IF($C$5,8,0),1,1)) -> 137.899994 | H64: 135.6780006 | I64: 2.898497147 | J64: 4.637595435 | K64: 140.315596 | L64: 131.0404052 | M64: FALSE | N64: FALSE | O64: FALSE | P64: FALSE | Q64: FALSE | R64: FALSE | S64: 1.300003 | T64: 1.857645981 | U64: 134.804712 | V64: FALSE | X64: 0 | Y64: 0 | Z64: 0 | AA64: 0 | AB64: 0 | AC64: 0 | AQ64: 6153900
A65: 33 | B65: =IF(A65>$A$8,"",OFFSET(InputPriceData!B$15,$A65+$A$11,0,1,1)) -> 2019-06-27 | C65: =IF(A65>$A$8,"",OFFSET(InputPriceData!G$15,CalculationsAndCharts!$A65+$A$11,IF($C$5,8,0),1,1)) -> 2149800 | D65: =IF(A65>$A$8,"",OFFSET(InputPriceData!C$15,CalculationsAndCharts!$A65+$A$11,IF($C$5,8,0),1,1)) -> 138.720001 | E65: =IF(A65>$A$8,"",OFFSET(InputPriceData!D$15,CalculationsAndCharts!$A65+$A$11,IF($C$5,8,0),1,1)) -> 139.300003 | F65: =IF(A65>$A$8,"",OFFSET(InputPriceData!E$15,CalculationsAndCharts!$A65+$A$11,IF($C$5,8,0),1,1)) -> 137.949997 | G65: =IF(A65>$A$8,"",OFFSET(InputPriceData!F$15,CalculationsAndCharts!$A65+$A$11,IF($C$5,8,0),1,1)) -> 138.520004 | H65: 135.1325008 | I65: 3.410413817 | J65: 5.456662107 | K65: 140.5891629 | L65: 129.6758387 | M65: FALSE | N65: FALSE | O65: FALSE | P65: FALSE | Q65: FALSE | R65: FALSE | S65: 1.350006 | T65: 1.900541595 | U65: 134.7189208 | V65: FALSE | X65: 0 | Y65: 0 | Z65: 0 | AA65: 0 | AB65: 0 | AC65: 0 | AQ65: 2149800
A66: 34 | B66: =IF(A66>$A$8,"",OFFSET(InputPriceData!B$15,$A66+$A$11,0,1,1)) -> 2019-06-26 | C66: =IF(A66>$A$8,"",OFFSET(InputPriceData!G$15,CalculationsAndCharts!$A66+$A$11,IF($C$5,8,0),1,1)) -> 2284600 | D66: =IF(A66>$A$8,"",OFFSET(InputPriceData!C$15,CalculationsAndCharts!$A66+$A$11,IF($C$5,8,0),1,1)) -> 138.869995 | E66: =IF(A66>$A$8,"",OFFSET(InputPriceData!D$15,CalculationsAndCharts!$A66+$A$11,IF($C$5,8,0),1,1)) -> 139.679993 | F66: =IF(A66>$A$8,"",OFFSET(InputPriceData!E$15,CalculationsAndCharts!$A66+$A$11,IF($C$5,8,0),1,1)) -> 138.410004 | G66: =IF(A66>$A$8,"",OFFSET(InputPriceData!F$15,CalculationsAndCharts!$A66+$A$11,IF($C$5,8,0),1,1)) -> 138.520004 | H66: 134.6850009 | I66: 3.521927633 | J66: 5.635084214 | K66: 140.3200852 | L66: 129.0499167 | M66: FALSE | N66: FALSE | O66: FALSE | P66: FALSE | Q66: FALSE | R66: FALSE | S66: 1.319992 | T66: 1.942890487 | U66: 134.47422 | V66: FALSE | X66: 0 | Y66: 0 | Z66: 0 | AA66: 0 | AB66: 0 | AC66: 0 | AQ66: 2284600
A67: 35 | B67: =IF(A67>$A$8,"",OFFSET(InputPriceData!B$15,$A67+$A$11,0,1,1)) -> 2019-06-25 | C67: =IF(A67>$A$8,"",OFFSET(InputPriceData!G$15,CalculationsAndCharts!$A67+$A$11,IF($C$5,8,0),1,1)) -> 2801200 | D67: =IF(A67>$A$8,"",OFFSET(InputPriceData!C$15,CalculationsAndCharts!$A67+$A$11,IF($C$5,8,0),1,1)) -> 139.460007 | E67: =IF(A67>$A$8,"",OFFSET(InputPriceData!D$15,CalculationsAndCharts!$A67+$A$11,IF($C$5,8,0),1,1)) -> 139.550003 | F67: =IF(A67>$A$8,"",OFFSET(InputPriceData!E$15,CalculationsAndCharts!$A67+$A$11,IF($C$5,8,0),1,1)) -> 138.130005 | G67: =IF(A67>$A$8,"",OFFSET(InputPriceData!F$15,CalculationsAndCharts!$A67+$A$11,IF($C$5,8,0),1,1)) -> 138.360001 | H67: 134.2435008 | I67: 3.566677757 | J67: 5.706684411 | K67: 139.9501853 | L67: 128.5368164 | M67: FALSE | N67: FALSE | O67: FALSE | P67: FALSE | Q67: FALSE | R67: FALSE | S67: 1.419998 | T67: 1.990805755 | U67: 135.3683945 | V67: FALSE | X67: 0 | Y67: 0 | Z67: 0 | AA67: 0 | AB67: 0 | AC67: 0 | AQ67: 2801200
A68: 36 | B68: =IF(A68>$A$8,"",OFFSET(InputPriceData!B$15,$A68+$A$11,0,1,1)) -> 2019-06-24 | C68: =IF(A68>$A$8,"",OFFSET(InputPriceData!G$15,CalculationsAndCharts!$A68+$A$11,IF($C$5,8,0),1,1)) -> 2186000 | D68: =IF(A68>$A$8,"",OFFSET(InputPriceData!C$15,CalculationsAndCharts!$A68+$A$11,IF($C$5,8,0),1,1)) -> 139.199997 | E68: =IF(A68>$A$8,"",OFFSET(InputPriceData!D$15,CalculationsAndCharts!$A68+$A$11,IF($C$5,8,0),1,1)) -> 140.149994 | F68: =IF(A68>$A$8,"",OFFSET(InputPriceData!E$15,CalculationsAndCharts!$A68+$A$11,IF($C$5,8,0),1,1)) -> 139.050003 | G68: =IF(A68>$A$8,"",OFFSET(InputPriceData!F$15,CalculationsAndCharts!$A68+$A$11,IF($C$5,8,0),1,1)) -> 139.350006 | H68: 133.8485012 | I68: 3.526135005 | J68: 5.641816008 | K68: 139.4903172 | L68: 128.2066851 | M68: FALSE | N68: FALSE | O68: FALSE | P68: FALSE | Q68: TRUE | R68: FALSE | S68: 1.099991 | T68: 2.034714044 | U68: 135.1305689 | V68: FALSE | X68: 0 | Y68: 0 | Z68: 0 | AA68: 0 | AB68: 0 | AC68: 0 | AP68: 2186000
A69: 37 | B69: =IF(A69>$A$8,"",OFFSET(InputPriceData!B$15,$A69+$A$11,0,1,1)) -> 2019-06-21 | C69: =IF(A69>$A$8,"",OFFSET(InputPriceData!G$15,CalculationsAndCharts!$A69+$A$11,IF($C$5,8,0),1,1)) -> 5288700 | D69: =IF(A69>$A$8,"",OFFSET(InputPriceData!C$15,CalculationsAndCharts!$A69+$A$11,IF($C$5,8,0),1,1)) -> 138.440002 | E69: =IF(A69>$A$8,"",OFFSET(InputPriceData!D$15,CalculationsAndCharts!$A69+$A$11,IF($C$5,8,0),1,1)) -> 139.539993 | F69: =IF(A69>$A$8,"",OFFSET(InputPriceData!E$15,CalculationsAndCharts!$A69+$A$11,IF($C$5,8,0),1,1)) -> 138.389999 | G69: =IF(A69>$A$8,"",OFFSET(InputPriceData!F$15,CalculationsAndCharts!$A69+$A$11,IF($C$5,8,0),1,1)) -> 139.199997 | H69: 133.4950008 | I69: 3.304292321 | J69: 5.286867714 | K69: 138.7818685 | L69: 128.2081331 | M69: FALSE | N69: FALSE | O69: FALSE | P69: FALSE | Q69: TRUE | R69: FALSE | S69: 1.149994 | T69: 2.106615817 | U69: 134.6367744 | V69: FALSE | X69: 0 | Y69: 0 | Z69: 0 | AA69: 0 | AB69: 0 | AC69: 0 | AP69: 5288700
A70: 38 | B70: =IF(A70>$A$8,"",OFFSET(InputPriceData!B$15,$A70+$A$11,0,1,1)) -> 2019-06-20 | C70: =IF(A70>$A$8,"",OFFSET(InputPriceData!G$15,CalculationsAndCharts!$A70+$A$11,IF($C$5,8,0),1,1)) -> 3071000 | D70: =IF(A70>$A$8,"",OFFSET(InputPriceData!C$15,CalculationsAndCharts!$A70+$A$11,IF($C$5,8,0),1,1)) -> 138.929993 | E70: =IF(A70>$A$8,"",OFFSET(InputPriceData!D$15,CalculationsAndCharts!$A70+$A$11,IF($C$5,8,0),1,1)) -> 139.539993 | F70: =IF(A70>$A$8,"",OFFSET(InputPriceData!E$15,CalculationsAndCharts!$A70+$A$11,IF($C$5,8,0),1,1)) -> 138.199997 | G70: =IF(A70>$A$8,"",OFFSET(InputPriceData!F$15,CalculationsAndCharts!$A70+$A$11,IF($C$5,8,0),1,1)) -> 138.850006 | H70: 133.1545009 | I70: 3.039096893 | J70: 4.86255503 | K70: 138.0170559 | L70: 128.2919459 | M70: FALSE | N70: FALSE | O70: FALSE | P70: FALSE | Q70: TRUE | R70: FALSE | S70: 2.459991 | T70: 2.18020211 | U70: 132.7195978 | V70: FALSE | X70: 0 | Y70: 0 | Z70: 0 | AA70: 0 | AB70: 0 | AC70: 0 | AQ70: 3071000
A71: 39 | B71: =IF(A71>$A$8,"",OFFSET(InputPriceData!B$15,$A71+$A$11,0,1,1)) -> 2019-06-19 | C71: =IF(A71>$A$8,"",OFFSET(InputPriceData!G$15,CalculationsAndCharts!$A71+$A$11,IF($C$5,8,0),1,1)) -> 2382400 | D71: =IF(A71>$A$8,"",OFFSET(InputPriceData!C$15,CalculationsAndCharts!$A71+$A$11,IF($C$5,8,0),1,1)) -> 136.429993 | E71: =IF(A71>$A$8,"",OFFSET(InputPriceData!D$15,CalculationsAndCharts!$A71+$A$11,IF($C$5,8,0),1,1)) -> 138.360001 | F71: =IF(A71>$A$8,"",OFFSET(InputPriceData!E$15,CalculationsAndCharts!$A71+$A$11,IF($C$5,8,0),1,1)) -> 136.240005 | G71: =IF(A71>$A$8,"",OFFSET(InputPriceData!F$15,CalculationsAndCharts!$A71+$A$11,IF($C$5,8,0),1,1)) -> 137.080002 | H71: 133.0295009 | I71: 2.847649672 | J71: 4.556239475 | K71: 137.5857404 | L71: 128.4732614 | M71: FALSE | N71: FALSE | O71: FALSE | P71: FALSE | Q71: TRUE | R71: FALSE | S71: 2.119996 | T71: 2.158679888 | U71: 132.0626452 | V71: FALSE | X71: 0 | Y71: 0 | Z71: 0 | AA71: 0 | AB71: 0 | AC71: 0 | AP71: 2382400
A72: 40 | B72: =IF(A72>$A$8,"",OFFSET(InputPriceData!B$15,$A72+$A$11,0,1,1)) -> 2019-06-18 | C72: =IF(A72>$A$8,"",OFFSET(InputPriceData!G$15,CalculationsAndCharts!$A72+$A$11,IF($C$5,8,0),1,1)) -> 2914700 | D72: =IF(A72>$A$8,"",OFFSET(InputPriceData!C$15,CalculationsAndCharts!$A72+$A$11,IF($C$5,8,0),1,1)) -> 135.199997 | E72: =IF(A72>$A$8,"",OFFSET(InputPriceData!D$15,CalculationsAndCharts!$A72+$A$11,IF($C$5,8,0),1,1)) -> 137.190002 | F72: =IF(A72>$A$8,"",OFFSET(InputPriceData!E$15,CalculationsAndCharts!$A72+$A$11,IF($C$5,8,0),1,1)) -> 135.199997 | G72: =IF(A72>$A$8,"",OFFSET(InputPriceData!F$15,CalculationsAndCharts!$A72+$A$11,IF($C$5,8,0),1,1)) -> 136.380005 | H72: 132.9980007 | I72: 2.805847128 | J72: 4.489355405 | K72: 137.4873561 | L72: 128.5086452 | M72: FALSE | N72: FALSE | O72: FALSE | P72: FALSE | Q72: FALSE | R72: FALSE | S72: 2.240005 | T72: 2.161655572 | U72: 130.6266859 | V72: FALSE | X72: 0 | Y72: 0 | Z72: 0 | AA72: 0 | AB72: 0 | AC72: 0 | AP72: 2914700
A73: 41 | B73: =IF(A73>$A$8,"",OFFSET(InputPriceData!B$15,$A73+$A$11,0,1,1)) -> 2019-06-17 | C73: =IF(A73>$A$8,"",OFFSET(InputPriceData!G$15,CalculationsAndCharts!$A73+$A$11,IF($C$5,8,0),1,1)) -> 2194100 | D73: =IF(A73>$A$8,"",OFFSET(InputPriceData!C$15,CalculationsAndCharts!$A73+$A$11,IF($C$5,8,0),1,1)) -> 135.389999 | E73: =IF(A73>$A$8,"",OFFSET(InputPriceData!D$15,CalculationsAndCharts!$A73+$A$11,IF($C$5,8,0),1,1)) -> 136.029999 | F73: =IF(A73>$A$8,"",OFFSET(InputPriceData!E$15,CalculationsAndCharts!$A73+$A$11,IF($C$5,8,0),1,1)) -> 134.699997 | G73: =IF(A73>$A$8,"",OFFSET(InputPriceData!F$15,CalculationsAndCharts!$A73+$A$11,IF($C$5,8,0),1,1)) -> 134.949997 | H73: 132.9350002 | I73: 2.742636391 | J73: 4.388218226 | K73: 137.3232184 | L73: 128.5467819 | M73: FALSE | N73: FALSE | O73: FALSE | P73: FALSE | Q73: FALSE | R73: FALSE | S73: 1.330002 | T73: 2.155628693 | U73: 130.8387366 | V73: FALSE | X73: 0 | Y73: 0 | Z73: 0 | AA73: 0 | AB73: 0 | AC73: 0 | AQ73: 2194100
A74: 42 | B74: =IF(A74>$A$8,"",OFFSET(InputPriceData!B$15,$A74+$A$11,0,1,1)) -> 2019-06-14 | C74: =IF(A74>$A$8,"",OFFSET(InputPriceData!G$15,CalculationsAndCharts!$A74+$A$11,IF($C$5,8,0),1,1)) -> 2193300 | D74: =IF(A74>$A$8,"",OFFSET(InputPriceData!C$15,CalculationsAndCharts!$A74+$A$11,IF($C$5,8,0),1,1)) -> 135.440002 | E74: =IF(A74>$A$8,"",OFFSET(InputPriceData!D$15,CalculationsAndCharts!$A74+$A$11,IF($C$5,8,0),1,1)) -> 135.880005 | F74: =IF(A74>$A$8,"",OFFSET(InputPriceData!E$15,CalculationsAndCharts!$A74+$A$11,IF($C$5,8,0),1,1)) -> 134.429993 | G74: =IF(A74>$A$8,"",OFFSET(InputPriceData!F$15,CalculationsAndCharts!$A74+$A$11,IF($C$5,8,0),1,1)) -> 135.149994 | H74: 132.9035007 | I74: 2.722859478 | J74: 4.356575166 | K74: 137.2600758 | L74: 128.5469255 | M74: FALSE | N74: FALSE | O74: FALSE | P74: FALSE | Q74: FALSE | R74: FALSE | S74: 1.450012 | T74: 2.219138438 | U74: 131.3217181 | V74: FALSE | X74: 0 | Y74: 0 | Z74: 0 | AA74: 0 | AB74: 0 | AC74: 0 | AQ74: 2193300
A75: 43 | B75: =IF(A75>$A$8,"",OFFSET(InputPriceData!B$15,$A75+$A$11,0,1,1)) -> 2019-06-13 | C75: =IF(A75>$A$8,"",OFFSET(InputPriceData!G$15,CalculationsAndCharts!$A75+$A$11,IF($C$5,8,0),1,1)) -> 2955300 | D75: =IF(A75>$A$8,"",OFFSET(InputPriceData!C$15,CalculationsAndCharts!$A75+$A$11,IF($C$5,8,0),1,1)) -> 135.130005 | E75: =IF(A75>$A$8,"",OFFSET(InputPriceData!D$15,CalculationsAndCharts!$A75+$A$11,IF($C$5,8,0),1,1)) -> 136.270004 | F75: =IF(A75>$A$8,"",OFFSET(InputPriceData!E$15,CalculationsAndCharts!$A75+$A$11,IF($C$5,8,0),1,1)) -> 135.089996 | G75: =IF(A75>$A$8,"",OFFSET(InputPriceData!F$15,CalculationsAndCharts!$A75+$A$11,IF($C$5,8,0),1,1)) -> 135.759995 | H75: 132.9400012 | I75: 2.757403441 | J75: 4.411845506 | K75: 137.3518467 | L75: 128.5281557 | M75: FALSE | N75: FALSE | O75: FALSE | P75: FALSE | Q75: FALSE | R75: FALSE | S75: 1.400009 | T75: 2.278302011 | U75: 130.313391 | V75: FALSE | X75: 0 | Y75: 0 | Z75: 0 | AA75: 0 | AB75: 0 | AC75: 0 | AP75: 2955300
A76: 44 | B76: =IF(A76>$A$8,"",OFFSET(InputPriceData!B$15,$A76+$A$11,0,1,1)) -> 2019-06-12 | C76: =IF(A76>$A$8,"",OFFSET(InputPriceData!G$15,CalculationsAndCharts!$A76+$A$11,IF($C$5,8,0),1,1)) -> 2254700 | D76: =IF(A76>$A$8,"",OFFSET(InputPriceData!C$15,CalculationsAndCharts!$A76+$A$11,IF($C$5,8,0),1,1)) -> 135.559998 | E76: =IF(A76>$A$8,"",OFFSET(InputPriceData!D$15,CalculationsAndCharts!$A76+$A$11,IF($C$5,8,0),1,1)) -> 135.940002 | F76: =IF(A76>$A$8,"",OFFSET(InputPriceData!E$15,CalculationsAndCharts!$A76+$A$11,IF($C$5,8,0),1,1)) -> 134.410004 | G76: =IF(A76>$A$8,"",OFFSET(InputPriceData!F$15,CalculationsAndCharts!$A76+$A$11,IF($C$5,8,0),1,1)) -> 134.869995 | H76: 132.8720012 | I76: 2.703259223 | J76: 4.325214757 | K76: 137.1972159 | L76: 128.5467864 | M76: FALSE | N76: FALSE | O76: FALSE | P76: FALSE | Q76: FALSE | R76: FALSE | S76: 1.539993 | T76: 2.345863011 | U76: 131.258271 | V76: FALSE | X76: 0 | Y76: 0 | Z76: 0 | AA76: 0 | AB76: 0 | AC76: 0 | AQ76: 2254700
A77: 45 | B77: =IF(A77>$A$8,"",OFFSET(InputPriceData!B$15,$A77+$A$11,0,1,1)) -> 2019-06-11 | C77: =IF(A77>$A$8,"",OFFSET(InputPriceData!G$15,CalculationsAndCharts!$A77+$A$11,IF($C$5,8,0),1,1)) -> 3407300 | D77: =IF(A77>$A$8,"",OFFSET(InputPriceData!C$15,CalculationsAndCharts!$A77+$A$11,IF($C$5,8,0),1,1)) -> 135.320007 | E77: =IF(A77>$A$8,"",OFFSET(InputPriceData!D$15,CalculationsAndCharts!$A77+$A$11,IF($C$5,8,0),1,1)) -> 136.460007 | F77: =IF(A77>$A$8,"",OFFSET(InputPriceData!E$15,CalculationsAndCharts!$A77+$A$11,IF($C$5,8,0),1,1)) -> 135.050003 | G77: =IF(A77>$A$8,"",OFFSET(InputPriceData!F$15,CalculationsAndCharts!$A77+$A$11,IF($C$5,8,0),1,1)) -> 135.949997 | H77: 132.7940013 | I77: 2.666743246 | J77: 4.266789194 | K77: 137.0607905 | L77: 128.5272121 | M77: FALSE | N77: FALSE | O77: FALSE | P77: FALSE | Q77: FALSE | R77: FALSE | S77: 1.720002 | T77: 2.407853012 | U77: 129.924299 | V77: FALSE | X77: 0 | Y77: 0 | Z77: 0 | AA77: 0 | AB77: 0 | AC77: 0 | AP77: 3407300
A78: 46 | B78: =IF(A78>$A$8,"",OFFSET(InputPriceData!B$15,$A78+$A$11,0,1,1)) -> 2019-06-10 | C78: =IF(A78>$A$8,"",OFFSET(InputPriceData!G$15,CalculationsAndCharts!$A78+$A$11,IF($C$5,8,0),1,1)) -> 2911300 | D78: =IF(A78>$A$8,"",OFFSET(InputPriceData!C$15,CalculationsAndCharts!$A78+$A$11,IF($C$5,8,0),1,1)) -> 134.380005 | E78: =IF(A78>$A$8,"",OFFSET(InputPriceData!D$15,CalculationsAndCharts!$A78+$A$11,IF($C$5,8,0),1,1)) -> 135.350006 | F78: =IF(A78>$A$8,"",OFFSET(InputPriceData!E$15,CalculationsAndCharts!$A78+$A$11,IF($C$5,8,0),1,1)) -> 133.910004 | G78: =IF(A78>$A$8,"",OFFSET(InputPriceData!F$15,CalculationsAndCharts!$A78+$A$11,IF($C$5,8,0),1,1)) -> 134.740005 | H78: 132.5675013 | I78: 2.580038009 | J78: 4.128060814 | K78: 136.6955622 | L78: 128.4394405 | M78: FALSE | N78: FALSE | O78: FALSE | P78: FALSE | Q78: FALSE | R78: FALSE | S78: 2.040008 | T78: 2.460764629 | U78: 128.3884687 | V78: FALSE | X78: 0 | Y78: 0 | Z78: 0 | AA78: 0 | AB78: 0 | AC78: 0 | AP78: 2911300
A79: 47 | B79: =IF(A79>$A$8,"",OFFSET(InputPriceData!B$15,$A79+$A$11,0,1,1)) -> 2019-06-07 | C79: =IF(A79>$A$8,"",OFFSET(InputPriceData!G$15,CalculationsAndCharts!$A79+$A$11,IF($C$5,8,0),1,1)) -> 2553400 | D79: =IF(A79>$A$8,"",OFFSET(InputPriceData!C$15,CalculationsAndCharts!$A79+$A$11,IF($C$5,8,0),1,1)) -> 132.470001 | E79: =IF(A79>$A$8,"",OFFSET(InputPriceData!D$15,CalculationsAndCharts!$A79+$A$11,IF($C$5,8,0),1,1)) -> 134.720001 | F79: =IF(A79>$A$8,"",OFFSET(InputPriceData!E$15,CalculationsAndCharts!$A79+$A$11,IF($C$5,8,0),1,1)) -> 132.210007 | G79: =IF(A79>$A$8,"",OFFSET(InputPriceData!F$15,CalculationsAndCharts!$A79+$A$11,IF($C$5,8,0),1,1)) -> 133.309998 | H79: 132.5965014 | I79: 2.607408844 | J79: 4.171854151 | K79: 136.7683556 | L79: 128.4246473 | M79: FALSE | N79: FALSE | O79: FALSE | P79: FALSE | Q79: FALSE | R79: FALSE | S79: 2.509994 | T79: 2.493130523 | U79: 127.23374 | V79: FALSE | X79: 0 | Y79: 0 | Z79: 0 | AA79: 0 | AB79: 0 | AC79: 0 | AP79: 2553400
A80: 48 | B80: =IF(A80>$A$8,"",OFFSET(InputPriceData!B$15,$A80+$A$11,0,1,1)) -> 2019-06-06 | C80: =IF(A80>$A$8,"",OFFSET(InputPriceData!G$15,CalculationsAndCharts!$A80+$A$11,IF($C$5,8,0),1,1)) -> 2298200 | D80: =IF(A80>$A$8,"",OFFSET(InputPriceData!C$15,CalculationsAndCharts!$A80+$A$11,IF($C$5,8,0),1,1)) -> 132.190002 | E80: =IF(A80>$A$8,"",OFFSET(InputPriceData!D$15,CalculationsAndCharts!$A80+$A$11,IF($C$5,8,0),1,1)) -> 132.649994 | F80: =IF(A80>$A$8,"",OFFSET(InputPriceData!E$15,CalculationsAndCharts!$A80+$A$11,IF($C$5,8,0),1,1)) -> 130.899994 | G80: =IF(A80>$A$8,"",OFFSET(InputPriceData!F$15,CalculationsAndCharts!$A80+$A$11,IF($C$5,8,0),1,1)) -> 132.220001 | H80: 132.6980013 | I80: 2.671921201 | J80: 4.275073921 | K80: 136.9730753 | L80: 128.4229274 | M80: FALSE | N80: FALSE | O80: FALSE | P80: FALSE | Q80: FALSE | R80: FALSE | S80: 1.75 | T80: 2.491833333 | U80: 126.5063383 | V80: FALSE | X80: 0 | Y80: 0 | Z80: 0 | AA80: 0 | AB80: 0 | AC80: 0 | AP80: 2298200
A81: 49 | B81: =IF(A81>$A$8,"",OFFSET(InputPriceData!B$15,$A81+$A$11,0,1,1)) -> 2019-06-05 | C81: =IF(A81>$A$8,"",OFFSET(InputPriceData!G$15,CalculationsAndCharts!$A81+$A$11,IF($C$5,8,0),1,1)) -> 3161300 | D81: =IF(A81>$A$8,"",OFFSET(InputPriceData!C$15,CalculationsAndCharts!$A81+$A$11,IF($C$5,8,0),1,1)) -> 133.380005 | E81: =IF(A81>$A$8,"",OFFSET(InputPriceData!D$15,CalculationsAndCharts!$A81+$A$11,IF($C$5,8,0),1,1)) -> 133.610001 | F81: =IF(A81>$A$8,"",OFFSET(InputPriceData!E$15,CalculationsAndCharts!$A81+$A$11,IF($C$5,8,0),1,1)) -> 130.470001 | G81: =IF(A81>$A$8,"",OFFSET(InputPriceData!F$15,CalculationsAndCharts!$A81+$A$11,IF($C$5,8,0),1,1)) -> 131.490005 | H81: 132.9870013 | I81: 2.906850048 | J81: 4.650960076 | K81: 137.6379614 | L81: 128.3360412 | M81: TRUE | N81: FALSE | O81: FALSE | P81: FALSE | Q81: FALSE | R81: FALSE | S81: 3.14 | T81: 2.548897435 | U81: 127.5922071 | V81: FALSE | X81: 0 | Y81: 0 | Z81: 0 | AA81: 0 | AB81: 0 | AC81: 0 | AQ81: 3161300
A82: 50 | B82: =IF(A82>$A$8,"",OFFSET(InputPriceData!B$15,$A82+$A$11,0,1,1)) -> 2019-06-04 | C82: =IF(A82>$A$8,"",OFFSET(InputPriceData!G$15,CalculationsAndCharts!$A82+$A$11,IF($C$5,8,0),1,1)) -> 3913500 | D82: =IF(A82>$A$8,"",OFFSET(InputPriceData!C$15,CalculationsAndCharts!$A82+$A$11,IF($C$5,8,0),1,1)) -> 129.559998 | E82: =IF(A82>$A$8,"",OFFSET(InputPriceData!D$15,CalculationsAndCharts!$A82+$A$11,IF($C$5,8,0),1,1)) -> 132.740005 | F82: =IF(A82>$A$8,"",OFFSET(InputPriceData!E$15,CalculationsAndCharts!$A82+$A$11,IF($C$5,8,0),1,1)) -> 129.089996 | G82: =IF(A82>$A$8,"",OFFSET(InputPriceData!F$15,CalculationsAndCharts!$A82+$A$11,IF($C$5,8,0),1,1)) -> 132.690002 | H82: 133.294501 | I82: 3.053799374 | J82: 4.886078999 | K82: 138.18058 | L82: 128.408422 | M82: TRUE | N82: FALSE | O82: FALSE | P82: FALSE | Q82: FALSE | R82: FALSE | S82: 4.470001 | T82: 2.503428007 | U82: 123.263148 | V82: FALSE | X82: 0 | Y82: 0 | Z82: 0 | AA82: 0 | AB82: 0 | AC82: 0 | AP82: =IF(G82>=D82,C82,NA()) -> 3913500 | AQ82: =IF(G82<D82,C82,NA()) -> 
A83: 51 | B83: =IF(A83>$A$8,"",OFFSET(InputPriceData!B$15,$A83+$A$11,0,1,1)) -> 2019-06-03 | C83: =IF(A83>$A$8,"",OFFSET(InputPriceData!G$15,CalculationsAndCharts!$A83+$A$11,IF($C$5,8,0),1,1)) -> 4266900 | D83: =IF(A83>$A$8,"",OFFSET(InputPriceData!C$15,CalculationsAndCharts!$A83+$A$11,IF($C$5,8,0),1,1)) -> 127.099998 | E83: =IF(A83>$A$8,"",OFFSET(InputPriceData!D$15,CalculationsAndCharts!$A83+$A$11,IF($C$5,8,0),1,1)) -> 128.559998 | F83: =IF(A83>$A$8,"",OFFSET(InputPriceData!E$15,CalculationsAndCharts!$A83+$A$11,IF($C$5,8,0),1,1)) -> 127.059998 | G83: =IF(A83>$A$8,"",OFFSET(InputPriceData!F$15,CalculationsAndCharts!$A83+$A$11,IF($C$5,8,0),1,1)) -> 128.270004 | H83: 133.6790012 | I83: 3.416108553 | J83: 5.465773685 | K83: 139.1447748 | L83: 128.2132275 | M83: TRUE | N83: FALSE | O83: FALSE | P83: FALSE | Q83: FALSE | R83: FALSE | S83: 1.57 | T83: 2.352153161 | U83: 122.2856917 | V83: FALSE | X83: 0 | Y83: 0 | Z83: 0 | AA83: 0 | AB83: 0 | AC83: 0 | AP83: 4266900
A84: 52 | B84: =IF(A84>$A$8,"",OFFSET(InputPriceData!B$15,$A84+$A$11,0,1,1)) -> 2019-05-31 | C84: =IF(A84>$A$8,"",OFFSET(InputPriceData!G$15,CalculationsAndCharts!$A84+$A$11,IF($C$5,8,0),1,1)) -> 3539300 | D84: =IF(A84>$A$8,"",OFFSET(InputPriceData!C$15,CalculationsAndCharts!$A84+$A$11,IF($C$5,8,0),1,1)) -> 128.440002 | E84: =IF(A84>$A$8,"",OFFSET(InputPriceData!D$15,CalculationsAndCharts!$A84+$A$11,IF($C$5,8,0),1,1)) -> 128.440002 | F84: =IF(A84>$A$8,"",OFFSET(InputPriceData!E$15,CalculationsAndCharts!$A84+$A$11,IF($C$5,8,0),1,1)) -> 126.849998 | G84: =IF(A84>$A$8,"",OFFSET(InputPriceData!F$15,CalculationsAndCharts!$A84+$A$11,IF($C$5,8,0),1,1)) -> 126.989998 | H84: 134.278001 | I84: 3.465116978 | J84: 5.544187165 | K84: 139.8221881 | L84: 128.7338138 | M84: TRUE | N84: FALSE | O84: FALSE | P84: FALSE | Q84: FALSE | R84: FALSE | S84: 2.720009 | T84: 2.412318789 | U84: 124.7453694 | V84: FALSE | X84: 0 | Y84: 0 | Z84: 0 | AA84: 0 | AB84: 0 | AC84: 0 | AQ84: 3539300
A85: 53 | B85: =IF(A85>$A$8,"",OFFSET(InputPriceData!B$15,$A85+$A$11,0,1,1)) -> 2019-05-30 | C85: =IF(A85>$A$8,"",OFFSET(InputPriceData!G$15,CalculationsAndCharts!$A85+$A$11,IF($C$5,8,0),1,1)) -> 2741900 | D85: =IF(A85>$A$8,"",OFFSET(InputPriceData!C$15,CalculationsAndCharts!$A85+$A$11,IF($C$5,8,0),1,1)) -> 129.740005 | E85: =IF(A85>$A$8,"",OFFSET(InputPriceData!D$15,CalculationsAndCharts!$A85+$A$11,IF($C$5,8,0),1,1)) -> 129.970001 | F85: =IF(A85>$A$8,"",OFFSET(InputPriceData!E$15,CalculationsAndCharts!$A85+$A$11,IF($C$5,8,0),1,1)) -> 128.929993 | G85: =IF(A85>$A$8,"",OFFSET(InputPriceData!F$15,CalculationsAndCharts!$A85+$A$11,IF($C$5,8,0),1,1)) -> 129.570007 | H85: 134.9080009 | I85: 3.219510991 | J85: 5.151217585 | K85: 140.0592184 | L85: 129.7567833 | M85: TRUE | N85: FALSE | O85: FALSE | P85: FALSE | Q85: FALSE | R85: FALSE | S85: 1.040008 | T85: 2.388650312 | U85: 124.9127014 | V85: FALSE | X85: 0 | Y85: 0 | Z85: 0 | AA85: 0 | AB85: 0 | AC85: 0 | AQ85: 2741900
A86: 54 | B86: =IF(A86>$A$8,"",OFFSET(InputPriceData!B$15,$A86+$A$11,0,1,1)) -> 2019-05-29 | C86: =IF(A86>$A$8,"",OFFSET(InputPriceData!G$15,CalculationsAndCharts!$A86+$A$11,IF($C$5,8,0),1,1)) -> 3679000 | D86: =IF(A86>$A$8,"",OFFSET(InputPriceData!C$15,CalculationsAndCharts!$A86+$A$11,IF($C$5,8,0),1,1)) -> 130 | E86: =IF(A86>$A$8,"",OFFSET(InputPriceData!D$15,CalculationsAndCharts!$A86+$A$11,IF($C$5,8,0),1,1)) -> 130.279999 | F86: =IF(A86>$A$8,"",OFFSET(InputPriceData!E$15,CalculationsAndCharts!$A86+$A$11,IF($C$5,8,0),1,1)) -> 128.320007 | G86: =IF(A86>$A$8,"",OFFSET(InputPriceData!F$15,CalculationsAndCharts!$A86+$A$11,IF($C$5,8,0),1,1)) -> 129.690002 | H86: 135.4575004 | I86: 3.199350862 | J86: 5.118961379 | K86: 140.5764618 | L86: 130.338539 | M86: TRUE | N86: FALSE | O86: FALSE | P86: FALSE | Q86: FALSE | R86: FALSE | S86: 2.14 | T86: 2.492392028 | U86: 125.4752229 | V86: FALSE | X86: 0 | Y86: 0 | Z86: 0 | AA86: 0 | AB86: 0 | AC86: 0 | AQ86: 3679000
A87: 55 | B87: =IF(A87>$A$8,"",OFFSET(InputPriceData!B$15,$A87+$A$11,0,1,1)) -> 2019-05-28 | C87: =IF(A87>$A$8,"",OFFSET(InputPriceData!G$15,CalculationsAndCharts!$A87+$A$11,IF($C$5,8,0),1,1)) -> 4908800 | D87: =IF(A87>$A$8,"",OFFSET(InputPriceData!C$15,CalculationsAndCharts!$A87+$A$11,IF($C$5,8,0),1,1)) -> 132.130005 | E87: =IF(A87>$A$8,"",OFFSET(InputPriceData!D$15,CalculationsAndCharts!$A87+$A$11,IF($C$5,8,0),1,1)) -> 132.639999 | F87: =IF(A87>$A$8,"",OFFSET(InputPriceData!E$15,CalculationsAndCharts!$A87+$A$11,IF($C$5,8,0),1,1)) -> 130.270004 | G87: =IF(A87>$A$8,"",OFFSET(InputPriceData!F$15,CalculationsAndCharts!$A87+$A$11,IF($C$5,8,0),1,1)) -> 130.460007 | H87: 135.9865005 | I87: 3.074217378 | J87: 4.918747804 | K87: 140.9052483 | L87: 131.0677527 | M87: TRUE | N87: FALSE | O87: FALSE | P87: FALSE | Q87: FALSE | R87: FALSE | S87: 2.369995 | T87: 2.519499107 | U87: 127.2410008 | V87: FALSE | X87: 0 | Y87: 0 | Z87: 0 | AA87: 0 | AB87: 0 | AC87: 0 | AQ87: 4908800
A88: 56 | B88: =IF(A88>$A$8,"",OFFSET(InputPriceData!B$15,$A88+$A$11,0,1,1)) -> 2019-05-24 | C88: =IF(A88>$A$8,"",OFFSET(InputPriceData!G$15,CalculationsAndCharts!$A88+$A$11,IF($C$5,8,0),1,1)) -> 2596100 | D88: =IF(A88>$A$8,"",OFFSET(InputPriceData!C$15,CalculationsAndCharts!$A88+$A$11,IF($C$5,8,0),1,1)) -> 133.529999 | E88: =IF(A88>$A$8,"",OFFSET(InputPriceData!D$15,CalculationsAndCharts!$A88+$A$11,IF($C$5,8,0),1,1)) -> 134.25 | F88: =IF(A88>$A$8,"",OFFSET(InputPriceData!E$15,CalculationsAndCharts!$A88+$A$11,IF($C$5,8,0),1,1)) -> 131.589996 | G88: =IF(A88>$A$8,"",OFFSET(InputPriceData!F$15,CalculationsAndCharts!$A88+$A$11,IF($C$5,8,0),1,1)) -> 132.279999 | H88: 136.4160003 | I88: 2.865045945 | J88: 4.584073512 | K88: 141.0000738 | L88: 131.8319268 | M88: TRUE | N88: FALSE | O88: FALSE | P88: FALSE | Q88: FALSE | R88: FALSE | S88: 2.660004 | T88: 2.530999423 | U88: 127.3280002 | V88: FALSE | X88: 0 | Y88: 0 | Z88: 0 | AA88: 133.529999 | AB88: 9747.689927 | AC88: -180.310073 | AQ88: 2596100
A89: 57 | B89: =IF(A89>$A$8,"",OFFSET(InputPriceData!B$15,$A89+$A$11,0,1,1)) -> 2019-05-23 | C89: =IF(A89>$A$8,"",OFFSET(InputPriceData!G$15,CalculationsAndCharts!$A89+$A$11,IF($C$5,8,0),1,1)) -> 5343400 | D89: =IF(A89>$A$8,"",OFFSET(InputPriceData!C$15,CalculationsAndCharts!$A89+$A$11,IF($C$5,8,0),1,1)) -> 135.130005 | E89: =IF(A89>$A$8,"",OFFSET(InputPriceData!D$15,CalculationsAndCharts!$A89+$A$11,IF($C$5,8,0),1,1)) -> 135.130005 | F89: =IF(A89>$A$8,"",OFFSET(InputPriceData!E$15,CalculationsAndCharts!$A89+$A$11,IF($C$5,8,0),1,1)) -> 130.440002 | G89: =IF(A89>$A$8,"",OFFSET(InputPriceData!F$15,CalculationsAndCharts!$A89+$A$11,IF($C$5,8,0),1,1)) -> 132.389999 | H89: 136.7740004 | I89: 2.771683267 | J89: 4.434693228 | K89: 141.2086937 | L89: 132.3393072 | M89: FALSE | N89: FALSE | O89: FALSE | P89: TRUE | Q89: FALSE | R89: TRUE | S89: 5.910004 | T89: 2.521075994 | U89: 131.307854 | V89: =IF(($A$8-$A89)<A$20,"",AND($R$10,F89<U89,P89)) -> TRUE | W89: 187.4691328 | X89: 0 | Y89: 73 | Z89: -9928 | AA89: 0 | AB89: 0 | AC89: 0 | AQ89: 5343400
A90: 58 | B90: =IF(A90>$A$8,"",OFFSET(InputPriceData!B$15,$A90+$A$11,0,1,1)) -> 2019-05-22 | C90: =IF(A90>$A$8,"",OFFSET(InputPriceData!G$15,CalculationsAndCharts!$A90+$A$11,IF($C$5,8,0),1,1)) -> 1849800 | D90: =IF(A90>$A$8,"",OFFSET(InputPriceData!C$15,CalculationsAndCharts!$A90+$A$11,IF($C$5,8,0),1,1)) -> 136 | E90: =IF(A90>$A$8,"",OFFSET(InputPriceData!D$15,CalculationsAndCharts!$A90+$A$11,IF($C$5,8,0),1,1)) -> 136.75 | F90: =IF(A90>$A$8,"",OFFSET(InputPriceData!E$15,CalculationsAndCharts!$A90+$A$11,IF($C$5,8,0),1,1)) -> 135.710007 | G90: =IF(A90>$A$8,"",OFFSET(InputPriceData!F$15,CalculationsAndCharts!$A90+$A$11,IF($C$5,8,0),1,1)) -> 136.350006 | H90: 137.0860007 | I90: 2.6069423 | J90: 4.17110768 | K90: 141.2571084 | L90: 132.9148931 | M90: TRUE | N90: FALSE | O90: FALSE | P90: TRUE | Q90: FALSE | R90: FALSE | S90: 1.039993 | T90: 2.260389224 | U90: 131.9292186 | V90: =IF(($A$8-$A90)<A$20,"",AND($R$10,F90<U90,P90)) -> FALSE | W90: 187.4691328 | X90: 136 | Y90: 73 | Z90: -9928 | AA90: 0 | AB90: 0 | AC90: 0 | AP90: 1849800
A91: 59 | B91: =IF(A91>$A$8,"",OFFSET(InputPriceData!B$15,$A91+$A$11,0,1,1)) -> 2019-05-21 | C91: =IF(A91>$A$8,"",OFFSET(InputPriceData!G$15,CalculationsAndCharts!$A91+$A$11,IF($C$5,8,0),1,1)) -> 2503500 | D91: =IF(A91>$A$8,"",OFFSET(InputPriceData!C$15,CalculationsAndCharts!$A91+$A$11,IF($C$5,8,0),1,1)) -> 136.119995 | E91: =IF(A91>$A$8,"",OFFSET(InputPriceData!D$15,CalculationsAndCharts!$A91+$A$11,IF($C$5,8,0),1,1)) -> 137.059998 | F91: =IF(A91>$A$8,"",OFFSET(InputPriceData!E$15,CalculationsAndCharts!$A91+$A$11,IF($C$5,8,0),1,1)) -> 135.789993 | G91: =IF(A91>$A$8,"",OFFSET(InputPriceData!F$15,CalculationsAndCharts!$A91+$A$11,IF($C$5,8,0),1,1)) -> 136.449997 | H91: 137.2660003 | I91: 2.673347645 | J91: 4.277356232 | K91: 141.5433565 | L91: 132.9886441 | M91: TRUE | N91: TRUE | O91: TRUE | P91: FALSE | Q91: FALSE | R91: FALSE | S91: 1.940003 | T91: 2.354265857 | U91: 130.4114633 | V91: FALSE | X91: 0 | Y91: 0 | Z91: 0 | AA91: 0 | AB91: 0 | AC91: 0 | AP91: 2503500
A92: 60 | B92: =IF(A92>$A$8,"",OFFSET(InputPriceData!B$15,$A92+$A$11,0,1,1)) -> 2019-05-20 | C92: =IF(A92>$A$8,"",OFFSET(InputPriceData!G$15,CalculationsAndCharts!$A92+$A$11,IF($C$5,8,0),1,1)) -> 3264500 | D92: =IF(A92>$A$8,"",OFFSET(InputPriceData!C$15,CalculationsAndCharts!$A92+$A$11,IF($C$5,8,0),1,1)) -> 133.529999 | E92: =IF(A92>$A$8,"",OFFSET(InputPriceData!D$15,CalculationsAndCharts!$A92+$A$11,IF($C$5,8,0),1,1)) -> 135.429993 | F92: =IF(A92>$A$8,"",OFFSET(InputPriceData!E$15,CalculationsAndCharts!$A92+$A$11,IF($C$5,8,0),1,1)) -> 132.929993 | G92: =IF(A92>$A$8,"",OFFSET(InputPriceData!F$15,CalculationsAndCharts!$A92+$A$11,IF($C$5,8,0),1,1)) -> 135.119995 | H92: 137.4655005 | I92: 2.752709311 | J92: 4.404334898 | K92: 141.8698354 | L92: 133.0611657 | M92: FALSE | N92: FALSE | O92: FALSE | P92: FALSE | Q92: FALSE | R92: FALSE | S92: 2.5 | T92: 2.38613223 | U92: 129.5477425 | V92: FALSE | X92: 0 | Y92: 0 | Z92: 0 | AA92: 0 | AB92: 0 | AC92: 0 | AP92: 3264500
A93: 61 | B93: =IF(A93>$A$8,"",OFFSET(InputPriceData!B$15,$A93+$A$11,0,1,1)) -> 2019-05-17 | C93: =IF(A93>$A$8,"",OFFSET(InputPriceData!G$15,CalculationsAndCharts!$A93+$A$11,IF($C$5,8,0),1,1)) -> 2619100 | D93: =IF(A93>$A$8,"",OFFSET(InputPriceData!C$15,CalculationsAndCharts!$A93+$A$11,IF($C$5,8,0),1,1)) -> 134.679993 | E93: =IF(A93>$A$8,"",OFFSET(InputPriceData!D$15,CalculationsAndCharts!$A93+$A$11,IF($C$5,8,0),1,1)) -> 135.410004 | F93: =IF(A93>$A$8,"",OFFSET(InputPriceData!E$15,CalculationsAndCharts!$A93+$A$11,IF($C$5,8,0),1,1)) -> 133.940002 | G93: =IF(A93>$A$8,"",OFFSET(InputPriceData!F$15,CalculationsAndCharts!$A93+$A$11,IF($C$5,8,0),1,1)) -> 134.320007 | H93: 137.6540007 | I93: 2.714455047 | J93: 4.343128075 | K93: 141.9971288 | L93: 133.3108727 | M93: TRUE | N93: FALSE | O93: FALSE | P93: FALSE | Q93: FALSE | R93: FALSE | S93: 1.940003 | T93: 2.377373171 | U93: 131.1252587 | V93: FALSE | X93: 0 | Y93: 0 | Z93: 0 | AA93: 0 | AB93: 0 | AC93: 0 | AQ93: 2619100
A94: 62 | B94: =IF(A94>$A$8,"",OFFSET(InputPriceData!B$15,$A94+$A$11,0,1,1)) -> 2019-05-16 | C94: =IF(A94>$A$8,"",OFFSET(InputPriceData!G$15,CalculationsAndCharts!$A94+$A$11,IF($C$5,8,0),1,1)) -> 3017300 | D94: =IF(A94>$A$8,"",OFFSET(InputPriceData!C$15,CalculationsAndCharts!$A94+$A$11,IF($C$5,8,0),1,1)) -> 134.740005 | E94: =IF(A94>$A$8,"",OFFSET(InputPriceData!D$15,CalculationsAndCharts!$A94+$A$11,IF($C$5,8,0),1,1)) -> 136.110001 | F94: =IF(A94>$A$8,"",OFFSET(InputPriceData!E$15,CalculationsAndCharts!$A94+$A$11,IF($C$5,8,0),1,1)) -> 134.639999 | G94: =IF(A94>$A$8,"",OFFSET(InputPriceData!F$15,CalculationsAndCharts!$A94+$A$11,IF($C$5,8,0),1,1)) -> 135.880005 | H94: 137.9545005 | I94: 2.660871948 | J94: 4.257395116 | K94: 142.2118956 | L94: 133.6971054 | M94: TRUE | N94: FALSE | O94: FALSE | P94: FALSE | Q94: FALSE | R94: FALSE | S94: 1.710007 | T94: 2.41101703 | U94: 129.5779599 | V94: FALSE | X94: 0 | Y94: 0 | Z94: 0 | AA94: 0 | AB94: 0 | AC94: 0 | AP94: 3017300
A95: 63 | B95: =IF(A95>$A$8,"",OFFSET(InputPriceData!B$15,$A95+$A$11,0,1,1)) -> 2019-05-15 | C95: =IF(A95>$A$8,"",OFFSET(InputPriceData!G$15,CalculationsAndCharts!$A95+$A$11,IF($C$5,8,0),1,1)) -> 2551000 | D95: =IF(A95>$A$8,"",OFFSET(InputPriceData!C$15,CalculationsAndCharts!$A95+$A$11,IF($C$5,8,0),1,1)) -> 132.589996 | E95: =IF(A95>$A$8,"",OFFSET(InputPriceData!D$15,CalculationsAndCharts!$A95+$A$11,IF($C$5,8,0),1,1)) -> 134.589996 | F95: =IF(A95>$A$8,"",OFFSET(InputPriceData!E$15,CalculationsAndCharts!$A95+$A$11,IF($C$5,8,0),1,1)) -> 132.369995 | G95: =IF(A95>$A$8,"",OFFSET(InputPriceData!F$15,CalculationsAndCharts!$A95+$A$11,IF($C$5,8,0),1,1)) -> 134.399994 | H95: 138.1160003 | I95: 2.627877438 | J95: 4.2046039 | K95: 142.3206042 | L95: 133.9113964 | M95: TRUE | N95: FALSE | O95: FALSE | P95: FALSE | Q95: FALSE | R95: FALSE | S95: 2.220001 | T95: 2.464940879 | U95: 128.3801162 | V95: FALSE | X95: 0 | Y95: 0 | Z95: 0 | AA95: 0 | AB95: 0 | AC95: 0 | AP95: 2551000
A96: 64 | B96: =IF(A96>$A$8,"",OFFSET(InputPriceData!B$15,$A96+$A$11,0,1,1)) -> 2019-05-14 | C96: =IF(A96>$A$8,"",OFFSET(InputPriceData!G$15,CalculationsAndCharts!$A96+$A$11,IF($C$5,8,0),1,1)) -> 3280400 | D96: =IF(A96>$A$8,"",OFFSET(InputPriceData!C$15,CalculationsAndCharts!$A96+$A$11,IF($C$5,8,0),1,1)) -> 131.820007 | E96: =IF(A96>$A$8,"",OFFSET(InputPriceData!D$15,CalculationsAndCharts!$A96+$A$11,IF($C$5,8,0),1,1)) -> 134.320007 | F96: =IF(A96>$A$8,"",OFFSET(InputPriceData!E$15,CalculationsAndCharts!$A96+$A$11,IF($C$5,8,0),1,1)) -> 131.679993 | G96: =IF(A96>$A$8,"",OFFSET(InputPriceData!F$15,CalculationsAndCharts!$A96+$A$11,IF($C$5,8,0),1,1)) -> 133.309998 | H96: 138.6530006 | I96: 2.897199217 | J96: 4.635518748 | K96: 143.2885193 | L96: 134.0174818 | M96: TRUE | N96: FALSE | O96: FALSE | P96: FALSE | Q96: FALSE | R96: FALSE | S96: 2.900009 | T96: 2.483782408 | U96: 126.4524332 | V96: FALSE | X96: 0 | Y96: 0 | Z96: 0 | AA96: 0 | AB96: 0 | AC96: 0 | AP96: 3280400
A97: 65 | B97: =IF(A97>$A$8,"",OFFSET(InputPriceData!B$15,$A97+$A$11,0,1,1)) -> 2019-05-13 | C97: =IF(A97>$A$8,"",OFFSET(InputPriceData!G$15,CalculationsAndCharts!$A97+$A$11,IF($C$5,8,0),1,1)) -> 4958000 | D97: =IF(A97>$A$8,"",OFFSET(InputPriceData!C$15,CalculationsAndCharts!$A97+$A$11,IF($C$5,8,0),1,1)) -> 133.279999 | E97: =IF(A97>$A$8,"",OFFSET(InputPriceData!D$15,CalculationsAndCharts!$A97+$A$11,IF($C$5,8,0),1,1)) -> 133.570007 | F97: =IF(A97>$A$8,"",OFFSET(InputPriceData!E$15,CalculationsAndCharts!$A97+$A$11,IF($C$5,8,0),1,1)) -> 130.960007 | G97: =IF(A97>$A$8,"",OFFSET(InputPriceData!F$15,CalculationsAndCharts!$A97+$A$11,IF($C$5,8,0),1,1)) -> 131.419998 | H97: =IF(A97>$A$8,"",IF($A97>$A$8,NA(),IF(A97=$A$8,G97,AVERAGE(OFFSET(G97,0,0,$A$17,1))))) -> 139.1825003 | I97: =IF(A97>$A$8,"",_xlfn.STDEV.P(OFFSET(G97,0,0,$A$17,1))) -> 2.839464116 | J97: =IF(A97>$A$8,"",$A$18*I97) -> 4.543142586 | K97: =IF(A97>$A$8,"",$H97+$J97) -> 143.7256429 | L97: =IF(A97>$A$8,"",$H97-$J97) -> 134.6393578 | M97: =IF(A97>$A$8-2,"",IF(A97=$A$8-2,FALSE,OR(AND(G98>L98,F98<L98),(F99<L99)))) -> TRUE | N97: =IF(A97>$A$8-2,"",IF(A97=$A$8-2,FALSE,AND(G99<D99,G98>D98,D98<G99,G98>D99,G97>E98))) -> FALSE | O97: FALSE | P97: =IF(A97>$A$8-2,"",IF(A97=$A$8-2,FALSE,IF(P98,IF(R98,FALSE,P98),IF(O98,TRUE,P98)))) -> FALSE | Q97: =IF(A97>$A$8-2,"",E97>K97) -> FALSE | R97: =IF(A97>$A$8-2,"",IF(A97=$A$8-2,FALSE,AND(P97,OR(Q97,V97)))) -> FALSE | S97: =IF($A97<$A$8,MAX(E97-F97,ABS(E97-G98),ABS(F97-G98)),"") -> 4.36 | T97: =IF(($A$8-$A97)<A$20,"",IF(($A$8-$A97)=A$20,AVERAGE(OFFSET($S97,0,0,A$20,1)),T98*$D$20+$S97*$C$20)) -> 2.451764978 | U97: =IF(($A$8-$A97)<A$20,"",G98-T97*$A$21) -> 130.416477 | V97: FALSE | W97: =IF(A97>$A$8-2,NA(),IF(AND($R$9,P97),$AZ$34,NA())) ->  | X97: 0 | Y97: 0 | Z97: 0 | AA97: 0 | AB97: 0 | AC97: 0 | AQ97: 4958000
A98: 66 | B98: =IF(A98>$A$8,"",OFFSET(InputPriceData!B$15,$A98+$A$11,0,1,1)) -> 2019-05-10 | C98: =IF(A98>$A$8,"",OFFSET(InputPriceData!G$15,CalculationsAndCharts!$A98+$A$11,IF($C$5,8,0),1,1)) -> 3977600 | D98: =IF(A98>$A$8,"",OFFSET(InputPriceData!C$15,CalculationsAndCharts!$A98+$A$11,IF($C$5,8,0),1,1)) -> 134.880005 | E98: =IF(A98>$A$8,"",OFFSET(InputPriceData!D$15,CalculationsAndCharts!$A98+$A$11,IF($C$5,8,0),1,1)) -> 135.75 | F98: =IF(A98>$A$8,"",OFFSET(InputPriceData!E$15,CalculationsAndCharts!$A98+$A$11,IF($C$5,8,0),1,1)) -> 132.419998 | G98: =IF(A98>$A$8,"",OFFSET(InputPriceData!F$15,CalculationsAndCharts!$A98+$A$11,IF($C$5,8,0),1,1)) -> 135.320007 | H98: 139.8290008 | I98: 2.442729477 | J98: 3.908367162 | K98: 143.7373679 | L98: 135.9206336 | M98: TRUE | N98: FALSE | O98: FALSE | P98: FALSE | Q98: FALSE | R98: FALSE | S98: 3.330002 | T98: 2.304977668 | U98: 130.7300407 | V98: FALSE | X98: =IF(A98>$A$8-2,"",IF(AND(P98,IFERROR(NOT(P99),FALSE)),D98,0)) -> 0 | Y98: =IF(A98>$A$8-2,"",IF(AND(P98,IFERROR(NOT(P99),FALSE)),INT($A$22/X98),IF(P98,Y99,0))) -> 0 | Z98: =IF(A98>$A$8-2,"",IF(AND(P98,IFERROR(NOT(P99),FALSE)),-X98*Y98,IF(P98,Z99,0))) -> 0 | AA98: =IF(A98>$A$8-2,"",IF(AND(IFERROR(AND(P99),FALSE),NOT(P98)),D98,IF(AND(A98=1,P98),G98,0))) -> 0 | AB98: =IF(A98>$A$8-2,"",IF(AND(IFERROR(AND(P99),FALSE),NOT(P98)),AA98*Y99,IF(AND(A98=1,P98),AA98*Y98,0))) -> 0 | AC98: =IF(A98>$A$8-2,"",IF(AND(IFERROR(AND(P99),FALSE),NOT(P98)),AB98+Z99,IF(AND(A98=1,P98),AB98+Z98,0))) -> 0 | AP98: 3977600
A99: 67 | B99: =IF(A99>$A$8,"",OFFSET(InputPriceData!B$15,$A99+$A$11,0,1,1)) -> 2019-05-09 | C99: =IF(A99>$A$8,"",OFFSET(InputPriceData!G$15,CalculationsAndCharts!$A99+$A$11,IF($C$5,8,0),1,1)) -> 4192700 | D99: =IF(A99>$A$8,"",OFFSET(InputPriceData!C$15,CalculationsAndCharts!$A99+$A$11,IF($C$5,8,0),1,1)) -> 134.889999 | E99: =IF(A99>$A$8,"",OFFSET(InputPriceData!D$15,CalculationsAndCharts!$A99+$A$11,IF($C$5,8,0),1,1)) -> 135.580002 | F99: =IF(A99>$A$8,"",OFFSET(InputPriceData!E$15,CalculationsAndCharts!$A99+$A$11,IF($C$5,8,0),1,1)) -> 133.029999 | G99: =IF(A99>$A$8,"",OFFSET(InputPriceData!F$15,CalculationsAndCharts!$A99+$A$11,IF($C$5,8,0),1,1)) -> 135.339996 | H99: 140.2520004 | I99: 2.356261183 | J99: 3.770017892 | K99: 144.0220182 | L99: 136.4819825 | M99: TRUE | N99: FALSE | O99: FALSE | P99: FALSE | Q99: FALSE | R99: FALSE | S99: 4.970001 | T99: 2.226129643 | U99: 133.5477407 | V99: FALSE | X99: 0 | Y99: 0 | Z99: 0 | AA99: 0 | AB99: 0 | AC99: 0 | AP99: 4192700
A100: 68 | B100: =IF(A100>$A$8,"",OFFSET(InputPriceData!B$15,$A100+$A$11,0,1,1)) -> 2019-05-08 | C100: =IF(A100>$A$8,"",OFFSET(InputPriceData!G$15,CalculationsAndCharts!$A100+$A$11,IF($C$5,8,0),1,1)) -> 3818900 | D100: =IF(A100>$A$8,"",OFFSET(InputPriceData!C$15,CalculationsAndCharts!$A100+$A$11,IF($C$5,8,0),1,1)) -> 137.770004 | E100: =IF(A100>$A$8,"",OFFSET(InputPriceData!D$15,CalculationsAndCharts!$A100+$A$11,IF($C$5,8,0),1,1)) -> 138.699997 | F100: =IF(A100>$A$8,"",OFFSET(InputPriceData!E$15,CalculationsAndCharts!$A100+$A$11,IF($C$5,8,0),1,1)) -> 137.130005 | G100: =IF(A100>$A$8,"",OFFSET(InputPriceData!F$15,CalculationsAndCharts!$A100+$A$11,IF($C$5,8,0),1,1)) -> 138 | H100: 140.6360007 | I100: 2.140376912 | J100: 3.42460306 | K100: 144.0606038 | L100: 137.2113977 | M100: TRUE | N100: FALSE | O100: FALSE | P100: FALSE | Q100: FALSE | R100: FALSE | S100: 1.569992 | T100: 2.015062616 | U100: 133.6098738 | V100: FALSE | X100: 0 | Y100: 0 | Z100: 0 | AA100: 0 | AB100: 0 | AC100: 0 | AP100: 3818900
A101: 69 | B101: =IF(A101>$A$8,"",OFFSET(InputPriceData!B$15,$A101+$A$11,0,1,1)) -> 2019-05-07 | C101: =IF(A101>$A$8,"",OFFSET(InputPriceData!G$15,CalculationsAndCharts!$A101+$A$11,IF($C$5,8,0),1,1)) -> 4726800 | D101: =IF(A101>$A$8,"",OFFSET(InputPriceData!C$15,CalculationsAndCharts!$A101+$A$11,IF($C$5,8,0),1,1)) -> 139.149994 | E101: =IF(A101>$A$8,"",OFFSET(InputPriceData!D$15,CalculationsAndCharts!$A101+$A$11,IF($C$5,8,0),1,1)) -> 139.509995 | F101: =IF(A101>$A$8,"",OFFSET(InputPriceData!E$15,CalculationsAndCharts!$A101+$A$11,IF($C$5,8,0),1,1)) -> 136.190002 | G101: =IF(A101>$A$8,"",OFFSET(InputPriceData!F$15,CalculationsAndCharts!$A101+$A$11,IF($C$5,8,0),1,1)) -> 137.639999 | H101: 140.8415008 | I101: 2.073690405 | J101: 3.317904648 | K101: 144.1594054 | L101: 137.5235962 | M101: TRUE | N101: FALSE | O101: FALSE | P101: FALSE | Q101: FALSE | R101: FALSE | S101: 4.190003 | T101: 2.049298817 | U101: 136.2814074 | V101: FALSE | X101: 0 | Y101: 0 | Z101: 0 | AA101: 0 | AB101: 0 | AC101: 0 | AQ101: 4726800
A102: 70 | B102: =IF(A102>$A$8,"",OFFSET(InputPriceData!B$15,$A102+$A$11,0,1,1)) -> 2019-05-06 | C102: =IF(A102>$A$8,"",OFFSET(InputPriceData!G$15,CalculationsAndCharts!$A102+$A$11,IF($C$5,8,0),1,1)) -> 2793300 | D102: =IF(A102>$A$8,"",OFFSET(InputPriceData!C$15,CalculationsAndCharts!$A102+$A$11,IF($C$5,8,0),1,1)) -> 138.300003 | E102: =IF(A102>$A$8,"",OFFSET(InputPriceData!D$15,CalculationsAndCharts!$A102+$A$11,IF($C$5,8,0),1,1)) -> 140.690002 | F102: =IF(A102>$A$8,"",OFFSET(InputPriceData!E$15,CalculationsAndCharts!$A102+$A$11,IF($C$5,8,0),1,1)) -> 137.899994 | G102: =IF(A102>$A$8,"",OFFSET(InputPriceData!F$15,CalculationsAndCharts!$A102+$A$11,IF($C$5,8,0),1,1)) -> 140.380005 | H102: 141.1290008 | I102: 2.007435456 | J102: 3.21189673 | K102: 144.3408975 | L102: 137.9171041 | M102: FALSE | N102: FALSE | O102: FALSE | P102: FALSE | Q102: FALSE | R102: FALSE | S102: 2.790008 | T102: 1.884629264 | U102: 136.4807415 | V102: FALSE | X102: 0 | Y102: 0 | Z102: 0 | AA102: 0 | AB102: 0 | AC102: 0 | AP102: 2793300
A103: 71 | B103: =IF(A103>$A$8,"",OFFSET(InputPriceData!B$15,$A103+$A$11,0,1,1)) -> 2019-05-03 | C103: =IF(A103>$A$8,"",OFFSET(InputPriceData!G$15,CalculationsAndCharts!$A103+$A$11,IF($C$5,8,0),1,1)) -> 2579900 | D103: =IF(A103>$A$8,"",OFFSET(InputPriceData!C$15,CalculationsAndCharts!$A103+$A$11,IF($C$5,8,0),1,1)) -> 139.699997 | E103: =IF(A103>$A$8,"",OFFSET(InputPriceData!D$15,CalculationsAndCharts!$A103+$A$11,IF($C$5,8,0),1,1)) -> 141 | F103: =IF(A103>$A$8,"",OFFSET(InputPriceData!E$15,CalculationsAndCharts!$A103+$A$11,IF($C$5,8,0),1,1)) -> 139.630005 | G103: =IF(A103>$A$8,"",OFFSET(InputPriceData!F$15,CalculationsAndCharts!$A103+$A$11,IF($C$5,8,0),1,1)) -> 140.25 | H103: 141.2740005 | I103: 2.0523309 | J103: 3.283729441 | K103: 144.5577299 | L103: 137.9902711 | M103: FALSE | N103: FALSE | O103: FALSE | P103: FALSE | Q103: FALSE | R103: FALSE | S103: 1.410004 | T103: 1.814984746 | U103: 135.9600265 | V103: FALSE | X103: 0 | Y103: 0 | Z103: 0 | AA103: 0 | AB103: 0 | AC103: 0 | AP103: 2579900
A104: 72 | B104: =IF(A104>$A$8,"",OFFSET(InputPriceData!B$15,$A104+$A$11,0,1,1)) -> 2019-05-02 | C104: =IF(A104>$A$8,"",OFFSET(InputPriceData!G$15,CalculationsAndCharts!$A104+$A$11,IF($C$5,8,0),1,1)) -> 3541400 | D104: =IF(A104>$A$8,"",OFFSET(InputPriceData!C$15,CalculationsAndCharts!$A104+$A$11,IF($C$5,8,0),1,1)) -> 140.5 | E104: =IF(A104>$A$8,"",OFFSET(InputPriceData!D$15,CalculationsAndCharts!$A104+$A$11,IF($C$5,8,0),1,1)) -> 141.279999 | F104: =IF(A104>$A$8,"",OFFSET(InputPriceData!E$15,CalculationsAndCharts!$A104+$A$11,IF($C$5,8,0),1,1)) -> 139.410004 | G104: =IF(A104>$A$8,"",OFFSET(InputPriceData!F$15,CalculationsAndCharts!$A104+$A$11,IF($C$5,8,0),1,1)) -> 139.589996 | H104: 141.4005004 | I104: 2.063257766 | J104: 3.301212426 | K104: 144.7017129 | L104: 138.099288 | M104: FALSE | N104: FALSE | O104: FALSE | P104: FALSE | Q104: FALSE | R104: FALSE | S104: 1.869995 | T104: 1.846137111 | U104: 136.8677238 | V104: FALSE | X104: 0 | Y104: 0 | Z104: 0 | AA104: 0 | AB104: 0 | AC104: 0 | AQ104: 3541400
A105: 73 | B105: =IF(A105>$A$8,"",OFFSET(InputPriceData!B$15,$A105+$A$11,0,1,1)) -> 2019-05-01 | C105: =IF(A105>$A$8,"",OFFSET(InputPriceData!G$15,CalculationsAndCharts!$A105+$A$11,IF($C$5,8,0),1,1)) -> 3053700 | D105: =IF(A105>$A$8,"",OFFSET(InputPriceData!C$15,CalculationsAndCharts!$A105+$A$11,IF($C$5,8,0),1,1)) -> 140.550003 | E105: =IF(A105>$A$8,"",OFFSET(InputPriceData!D$15,CalculationsAndCharts!$A105+$A$11,IF($C$5,8,0),1,1)) -> 141.809998 | F105: =IF(A105>$A$8,"",OFFSET(InputPriceData!E$15,CalculationsAndCharts!$A105+$A$11,IF($C$5,8,0),1,1)) -> 140.169998 | G105: =IF(A105>$A$8,"",OFFSET(InputPriceData!F$15,CalculationsAndCharts!$A105+$A$11,IF($C$5,8,0),1,1)) -> 140.559998 | H105: 141.6025009 | I105: 2.07385309 | J105: 3.318164943 | K105: 144.9206658 | L105: 138.284336 | M105: FALSE | N105: FALSE | O105: FALSE | P105: FALSE | Q105: FALSE | R105: FALSE | S105: 1.64 | T105: 1.844301889 | U105: 136.5814002 | V105: FALSE | X105: 0 | Y105: 0 | Z105: 0 | AA105: 0 | AB105: 0 | AC105: 0 | AP105: 3053700
A106: 74 | B106: =IF(A106>$A$8,"",OFFSET(InputPriceData!B$15,$A106+$A$11,0,1,1)) -> 2019-04-30 | C106: =IF(A106>$A$8,"",OFFSET(InputPriceData!G$15,CalculationsAndCharts!$A106+$A$11,IF($C$5,8,0),1,1)) -> 4638800 | D106: =IF(A106>$A$8,"",OFFSET(InputPriceData!C$15,CalculationsAndCharts!$A106+$A$11,IF($C$5,8,0),1,1)) -> 139.110001 | E106: =IF(A106>$A$8,"",OFFSET(InputPriceData!D$15,CalculationsAndCharts!$A106+$A$11,IF($C$5,8,0),1,1)) -> 140.440002 | F106: =IF(A106>$A$8,"",OFFSET(InputPriceData!E$15,CalculationsAndCharts!$A106+$A$11,IF($C$5,8,0),1,1)) -> 138.679993 | G106: =IF(A106>$A$8,"",OFFSET(InputPriceData!F$15,CalculationsAndCharts!$A106+$A$11,IF($C$5,8,0),1,1)) -> 140.270004 | H106: 141.724501 | I106: 2.080695121 | J106: 3.329112193 | K106: 145.0536132 | L106: 138.3953888 | M106: FALSE | N106: FALSE | O106: FALSE | P106: FALSE | Q106: FALSE | R106: FALSE | S106: 1.760009 | T106: 1.860017419 | U106: 135.3299682 | V106: FALSE | X106: 0 | Y106: 0 | Z106: 0 | AA106: 0 | AB106: 0 | AC106: 0 | AP106: 4638800
A107: 75 | B107: =IF(A107>$A$8,"",OFFSET(InputPriceData!B$15,$A107+$A$11,0,1,1)) -> 2019-04-29 | C107: =IF(A107>$A$8,"",OFFSET(InputPriceData!G$15,CalculationsAndCharts!$A107+$A$11,IF($C$5,8,0),1,1)) -> 2958300 | D107: =IF(A107>$A$8,"",OFFSET(InputPriceData!C$15,CalculationsAndCharts!$A107+$A$11,IF($C$5,8,0),1,1)) -> 139.149994 | E107: =IF(A107>$A$8,"",OFFSET(InputPriceData!D$15,CalculationsAndCharts!$A107+$A$11,IF($C$5,8,0),1,1)) -> 139.630005 | F107: =IF(A107>$A$8,"",OFFSET(InputPriceData!E$15,CalculationsAndCharts!$A107+$A$11,IF($C$5,8,0),1,1)) -> 138.809998 | G107: =IF(A107>$A$8,"",OFFSET(InputPriceData!F$15,CalculationsAndCharts!$A107+$A$11,IF($C$5,8,0),1,1)) -> 139.050003 | H107: 141.8760009 | I107: 2.079584622 | J107: 3.327335396 | K107: 145.2033363 | L107: 138.5486656 | M107: TRUE | N107: FALSE | O107: FALSE | P107: FALSE | Q107: FALSE | R107: FALSE | S107: 0.820007 | T107: 1.867710374 | U107: 135.7045813 | V107: FALSE | X107: 0 | Y107: 0 | Z107: 0 | AA107: 0 | AB107: 0 | AC107: 0 | AQ107: 2958300
A108: 76 | B108: =IF(A108>$A$8,"",OFFSET(InputPriceData!B$15,$A108+$A$11,0,1,1)) -> 2019-04-26 | C108: =IF(A108>$A$8,"",OFFSET(InputPriceData!G$15,CalculationsAndCharts!$A108+$A$11,IF($C$5,8,0),1,1)) -> 2319800 | D108: =IF(A108>$A$8,"",OFFSET(InputPriceData!C$15,CalculationsAndCharts!$A108+$A$11,IF($C$5,8,0),1,1)) -> 139.339996 | E108: =IF(A108>$A$8,"",OFFSET(InputPriceData!D$15,CalculationsAndCharts!$A108+$A$11,IF($C$5,8,0),1,1)) -> 139.889999 | F108: =IF(A108>$A$8,"",OFFSET(InputPriceData!E$15,CalculationsAndCharts!$A108+$A$11,IF($C$5,8,0),1,1)) -> 138.809998 | G108: =IF(A108>$A$8,"",OFFSET(InputPriceData!F$15,CalculationsAndCharts!$A108+$A$11,IF($C$5,8,0),1,1)) -> 139.440002 | H108: 141.9785011 | I108: 1.986192616 | J108: 3.177908186 | K108: 145.1564093 | L108: 138.8005929 | M108: FALSE | N108: FALSE | O108: FALSE | P108: FALSE | Q108: FALSE | R108: FALSE | S108: 1.259994 | T108: 1.948302941 | U108: 134.7333991 | V108: FALSE | X108: 0 | Y108: 0 | Z108: 0 | AA108: 0 | AB108: 0 | AC108: 0 | AP108: 2319800
A109: 77 | B109: =IF(A109>$A$8,"",OFFSET(InputPriceData!B$15,$A109+$A$11,0,1,1)) -> 2019-04-25 | C109: =IF(A109>$A$8,"",OFFSET(InputPriceData!G$15,CalculationsAndCharts!$A109+$A$11,IF($C$5,8,0),1,1)) -> 2910100 | D109: =IF(A109>$A$8,"",OFFSET(InputPriceData!C$15,CalculationsAndCharts!$A109+$A$11,IF($C$5,8,0),1,1)) -> 139.699997 | E109: =IF(A109>$A$8,"",OFFSET(InputPriceData!D$15,CalculationsAndCharts!$A109+$A$11,IF($C$5,8,0),1,1)) -> 139.75 | F109: =IF(A109>$A$8,"",OFFSET(InputPriceData!E$15,CalculationsAndCharts!$A109+$A$11,IF($C$5,8,0),1,1)) -> 137.710007 | G109: =IF(A109>$A$8,"",OFFSET(InputPriceData!F$15,CalculationsAndCharts!$A109+$A$11,IF($C$5,8,0),1,1)) -> 138.630005 | H109: 142.0025009 | I109: 1.958075071 | J109: 3.132920114 | K109: 145.135421 | L109: 138.8695808 | M109: TRUE | N109: FALSE | O109: FALSE | P109: FALSE | Q109: FALSE | R109: FALSE | S109: 2.23999 | T109: 2.001249783 | U109: 135.9474974 | V109: FALSE | X109: 0 | Y109: 0 | Z109: 0 | AA109: 0 | AB109: 0 | AC109: 0 | AQ109: 2910100
A110: 78 | B110: =IF(A110>$A$8,"",OFFSET(InputPriceData!B$15,$A110+$A$11,0,1,1)) -> 2019-04-24 | C110: =IF(A110>$A$8,"",OFFSET(InputPriceData!G$15,CalculationsAndCharts!$A110+$A$11,IF($C$5,8,0),1,1)) -> 2774900 | D110: =IF(A110>$A$8,"",OFFSET(InputPriceData!C$15,CalculationsAndCharts!$A110+$A$11,IF($C$5,8,0),1,1)) -> 140.600006 | E110: =IF(A110>$A$8,"",OFFSET(InputPriceData!D$15,CalculationsAndCharts!$A110+$A$11,IF($C$5,8,0),1,1)) -> 141.309998 | F110: =IF(A110>$A$8,"",OFFSET(InputPriceData!E$15,CalculationsAndCharts!$A110+$A$11,IF($C$5,8,0),1,1)) -> 139.779999 | G110: =IF(A110>$A$8,"",OFFSET(InputPriceData!F$15,CalculationsAndCharts!$A110+$A$11,IF($C$5,8,0),1,1)) -> 139.949997 | H110: 142.0330009 | I110: 1.909452928 | J110: 3.055124685 | K110: 145.0881256 | L110: 138.9778762 | M110: TRUE | N110: FALSE | O110: FALSE | P110: FALSE | Q110: FALSE | R110: FALSE | S110: 1.529999 | T110: 1.982885151 | U110: 136.4742317 | V110: FALSE | X110: 0 | Y110: 0 | Z110: 0 | AA110: 0 | AB110: 0 | AC110: 0 | AQ110: 2774900
A111: 79 | B111: =IF(A111>$A$8,"",OFFSET(InputPriceData!B$15,$A111+$A$11,0,1,1)) -> 2019-04-23 | C111: =IF(A111>$A$8,"",OFFSET(InputPriceData!G$15,CalculationsAndCharts!$A111+$A$11,IF($C$5,8,0),1,1)) -> 4462200 | D111: =IF(A111>$A$8,"",OFFSET(InputPriceData!C$15,CalculationsAndCharts!$A111+$A$11,IF($C$5,8,0),1,1)) -> 139.149994 | E111: =IF(A111>$A$8,"",OFFSET(InputPriceData!D$15,CalculationsAndCharts!$A111+$A$11,IF($C$5,8,0),1,1)) -> 140.919998 | F111: =IF(A111>$A$8,"",OFFSET(InputPriceData!E$15,CalculationsAndCharts!$A111+$A$11,IF($C$5,8,0),1,1)) -> 138.940002 | G111: =IF(A111>$A$8,"",OFFSET(InputPriceData!F$15,CalculationsAndCharts!$A111+$A$11,IF($C$5,8,0),1,1)) -> 140.440002 | H111: 142.0465011 | I111: 1.895582074 | J111: 3.032931318 | K111: 145.0794324 | L111: 139.0135698 | M111: TRUE | N111: FALSE | O111: FALSE | P111: FALSE | Q111: FALSE | R111: FALSE | S111: 2.029999 | T111: 2.017722547 | U111: 134.8545539 | V111: FALSE | X111: 0 | Y111: 0 | Z111: 0 | AA111: 0 | AB111: 0 | AC111: 0 | AP111: 4462200
A112: 80 | B112: =IF(A112>$A$8,"",OFFSET(InputPriceData!B$15,$A112+$A$11,0,1,1)) -> 2019-04-22 | C112: =IF(A112>$A$8,"",OFFSET(InputPriceData!G$15,CalculationsAndCharts!$A112+$A$11,IF($C$5,8,0),1,1)) -> 4494000 | D112: =IF(A112>$A$8,"",OFFSET(InputPriceData!C$15,CalculationsAndCharts!$A112+$A$11,IF($C$5,8,0),1,1)) -> 139.419998 | E112: =IF(A112>$A$8,"",OFFSET(InputPriceData!D$15,CalculationsAndCharts!$A112+$A$11,IF($C$5,8,0),1,1)) -> 140.559998 | F112: =IF(A112>$A$8,"",OFFSET(InputPriceData!E$15,CalculationsAndCharts!$A112+$A$11,IF($C$5,8,0),1,1)) -> 138.479996 | G112: =IF(A112>$A$8,"",OFFSET(InputPriceData!F$15,CalculationsAndCharts!$A112+$A$11,IF($C$5,8,0),1,1)) -> 138.889999 | H112: 141.9835007 | I112: 1.967501921 | J112: 3.148003073 | K112: 145.1315037 | L112: 138.8354976 | M112: TRUE | N112: FALSE | O112: FALSE | P112: FALSE | Q112: FALSE | R112: FALSE | S112: 2.080002 | T112: 2.016778205 | U112: 136.2964456 | V112: FALSE | X112: 0 | Y112: 0 | Z112: 0 | AA112: 0 | AB112: 0 | AC112: 0 | AQ112: 4494000
A113: 81 | B113: =IF(A113>$A$8,"",OFFSET(InputPriceData!B$15,$A113+$A$11,0,1,1)) -> 2019-04-18 | C113: =IF(A113>$A$8,"",OFFSET(InputPriceData!G$15,CalculationsAndCharts!$A113+$A$11,IF($C$5,8,0),1,1)) -> 4960000 | D113: =IF(A113>$A$8,"",OFFSET(InputPriceData!C$15,CalculationsAndCharts!$A113+$A$11,IF($C$5,8,0),1,1)) -> 139 | E113: =IF(A113>$A$8,"",OFFSET(InputPriceData!D$15,CalculationsAndCharts!$A113+$A$11,IF($C$5,8,0),1,1)) -> 140.490005 | F113: =IF(A113>$A$8,"",OFFSET(InputPriceData!E$15,CalculationsAndCharts!$A113+$A$11,IF($C$5,8,0),1,1)) -> 138.699997 | G113: =IF(A113>$A$8,"",OFFSET(InputPriceData!F$15,CalculationsAndCharts!$A113+$A$11,IF($C$5,8,0),1,1)) -> 140.330002 | H113: 142.0115006 | I113: 1.926843073 | J113: 3.082948917 | K113: 145.0944495 | L113: 138.9285516 | M113: TRUE | N113: FALSE | O113: FALSE | P113: FALSE | Q113: FALSE | R113: FALSE | S113: 1.790008 | T113: 2.011914836 | U113: 135.0861713 | V113: FALSE | X113: 0 | Y113: 0 | Z113: 0 | AA113: 0 | AB113: 0 | AC113: 0 | AP113: 4960000
A114: 82 | B114: =IF(A114>$A$8,"",OFFSET(InputPriceData!B$15,$A114+$A$11,0,1,1)) -> 2019-04-17 | C114: =IF(A114>$A$8,"",OFFSET(InputPriceData!G$15,CalculationsAndCharts!$A114+$A$11,IF($C$5,8,0),1,1)) -> 12525700 | D114: =IF(A114>$A$8,"",OFFSET(InputPriceData!C$15,CalculationsAndCharts!$A114+$A$11,IF($C$5,8,0),1,1)) -> 137.369995 | E114: =IF(A114>$A$8,"",OFFSET(InputPriceData!D$15,CalculationsAndCharts!$A114+$A$11,IF($C$5,8,0),1,1)) -> 141.979996 | F114: =IF(A114>$A$8,"",OFFSET(InputPriceData!E$15,CalculationsAndCharts!$A114+$A$11,IF($C$5,8,0),1,1)) -> 136.259995 | G114: =IF(A114>$A$8,"",OFFSET(InputPriceData!F$15,CalculationsAndCharts!$A114+$A$11,IF($C$5,8,0),1,1)) -> 139.110001 | H114: 142.0670006 | I114: 1.893304687 | J114: 3.0292875 | K114: 145.096288 | L114: 139.0377131 | M114: FALSE | N114: FALSE | O114: FALSE | P114: FALSE | Q114: FALSE | R114: FALSE | S114: 8.880004 | T114: 2.028984592 | U114: 141.0820298 | V114: FALSE | X114: 0 | Y114: 0 | Z114: 0 | AA114: 0 | AB114: 0 | AC114: 0 | AP114: 12525700
A115: 83 | B115: =IF(A115>$A$8,"",OFFSET(InputPriceData!B$15,$A115+$A$11,0,1,1)) -> 2019-04-16 | C115: =IF(A115>$A$8,"",OFFSET(InputPriceData!G$15,CalculationsAndCharts!$A115+$A$11,IF($C$5,8,0),1,1)) -> 6301700 | D115: =IF(A115>$A$8,"",OFFSET(InputPriceData!C$15,CalculationsAndCharts!$A115+$A$11,IF($C$5,8,0),1,1)) -> 144.399994 | E115: =IF(A115>$A$8,"",OFFSET(InputPriceData!D$15,CalculationsAndCharts!$A115+$A$11,IF($C$5,8,0),1,1)) -> 145.389999 | F115: =IF(A115>$A$8,"",OFFSET(InputPriceData!E$15,CalculationsAndCharts!$A115+$A$11,IF($C$5,8,0),1,1)) -> 144.020004 | G115: =IF(A115>$A$8,"",OFFSET(InputPriceData!F$15,CalculationsAndCharts!$A115+$A$11,IF($C$5,8,0),1,1)) -> 145.139999 | H115: 142.0915008 | I115: 1.857717192 | J115: 2.972347507 | K115: 145.0638483 | L115: 139.1191533 | M115: FALSE | N115: FALSE | O115: FALSE | P115: FALSE | Q115: TRUE | R115: FALSE | S115: 1.490005 | T115: 1.501983099 | U115: 140.8960278 | V115: FALSE | X115: 0 | Y115: 0 | Z115: 0 | AA115: 0 | AB115: 0 | AC115: 0 | AP115: 6301700
A116: 84 | B116: =IF(A116>$A$8,"",OFFSET(InputPriceData!B$15,$A116+$A$11,0,1,1)) -> 2019-04-15 | C116: =IF(A116>$A$8,"",OFFSET(InputPriceData!G$15,CalculationsAndCharts!$A116+$A$11,IF($C$5,8,0),1,1)) -> 3603200 | D116: =IF(A116>$A$8,"",OFFSET(InputPriceData!C$15,CalculationsAndCharts!$A116+$A$11,IF($C$5,8,0),1,1)) -> 144.399994 | E116: =IF(A116>$A$8,"",OFFSET(InputPriceData!D$15,CalculationsAndCharts!$A116+$A$11,IF($C$5,8,0),1,1)) -> 144.460007 | F116: =IF(A116>$A$8,"",OFFSET(InputPriceData!E$15,CalculationsAndCharts!$A116+$A$11,IF($C$5,8,0),1,1)) -> 143.270004 | G116: =IF(A116>$A$8,"",OFFSET(InputPriceData!F$15,CalculationsAndCharts!$A116+$A$11,IF($C$5,8,0),1,1)) -> 143.899994 | H116: 141.8590011 | I116: 1.74946547 | J116: 2.799144752 | K116: 144.6581459 | L116: 139.0598563 | M116: FALSE | N116: FALSE | O116: FALSE | P116: FALSE | Q116: FALSE | R116: FALSE | S116: 1.190003 | T116: 1.502904492 | U116: 141.344197 | V116: FALSE | X116: 0 | Y116: 0 | Z116: 0 | AA116: 0 | AB116: 0 | AC116: 0 | AQ116: 3603200
A117: 85 | B117: =IF(A117>$A$8,"",OFFSET(InputPriceData!B$15,$A117+$A$11,0,1,1)) -> 2019-04-12 | C117: =IF(A117>$A$8,"",OFFSET(InputPriceData!G$15,CalculationsAndCharts!$A117+$A$11,IF($C$5,8,0),1,1)) -> 2898900 | D117: =IF(A117>$A$8,"",OFFSET(InputPriceData!C$15,CalculationsAndCharts!$A117+$A$11,IF($C$5,8,0),1,1)) -> 144.259995 | E117: =IF(A117>$A$8,"",OFFSET(InputPriceData!D$15,CalculationsAndCharts!$A117+$A$11,IF($C$5,8,0),1,1)) -> 144.440002 | F117: =IF(A117>$A$8,"",OFFSET(InputPriceData!E$15,CalculationsAndCharts!$A117+$A$11,IF($C$5,8,0),1,1)) -> 143.699997 | G117: =IF(A117>$A$8,"",OFFSET(InputPriceData!F$15,CalculationsAndCharts!$A117+$A$11,IF($C$5,8,0),1,1)) -> 144.350006 | H117: 141.6745018 | I117: 1.718797806 | J117: 2.750076489 | K117: 144.4245782 | L117: 138.9244253 | M117: FALSE | N117: FALSE | O117: FALSE | P117: FALSE | Q117: TRUE | R117: FALSE | S117: 0.740005 | T117: 1.526973837 | U117: 140.7260513 | V117: FALSE | X117: 0 | Y117: 0 | Z117: 0 | AA117: 0 | AB117: 0 | AC117: 0 | AP117: 2898900
A118: 86 | B118: =IF(A118>$A$8,"",OFFSET(InputPriceData!B$15,$A118+$A$11,0,1,1)) -> 2019-04-11 | C118: =IF(A118>$A$8,"",OFFSET(InputPriceData!G$15,CalculationsAndCharts!$A118+$A$11,IF($C$5,8,0),1,1)) -> 2942000 | D118: =IF(A118>$A$8,"",OFFSET(InputPriceData!C$15,CalculationsAndCharts!$A118+$A$11,IF($C$5,8,0),1,1)) -> 143.800003 | E118: =IF(A118>$A$8,"",OFFSET(InputPriceData!D$15,CalculationsAndCharts!$A118+$A$11,IF($C$5,8,0),1,1)) -> 144.110001 | F118: =IF(A118>$A$8,"",OFFSET(InputPriceData!E$15,CalculationsAndCharts!$A118+$A$11,IF($C$5,8,0),1,1)) -> 143.029999 | G118: =IF(A118>$A$8,"",OFFSET(InputPriceData!F$15,CalculationsAndCharts!$A118+$A$11,IF($C$5,8,0),1,1)) -> 143.779999 | H118: 141.4285011 | I118: 1.669647988 | J118: 2.671436781 | K118: 144.0999379 | L118: 138.7570643 | M118: FALSE | N118: FALSE | O118: FALSE | P118: FALSE | Q118: TRUE | R118: FALSE | S118: 1.089997 | T118: 1.587509901 | U118: 139.8449842 | V118: FALSE | X118: 0 | Y118: 0 | Z118: 0 | AA118: 0 | AB118: 0 | AC118: 0 | AQ118: 2942000
A119: 87 | B119: =IF(A119>$A$8,"",OFFSET(InputPriceData!B$15,$A119+$A$11,0,1,1)) -> 2019-04-10 | C119: =IF(A119>$A$8,"",OFFSET(InputPriceData!G$15,CalculationsAndCharts!$A119+$A$11,IF($C$5,8,0),1,1)) -> 2678000 | D119: =IF(A119>$A$8,"",OFFSET(InputPriceData!C$15,CalculationsAndCharts!$A119+$A$11,IF($C$5,8,0),1,1)) -> 142.199997 | E119: =IF(A119>$A$8,"",OFFSET(InputPriceData!D$15,CalculationsAndCharts!$A119+$A$11,IF($C$5,8,0),1,1)) -> 143.5 | F119: =IF(A119>$A$8,"",OFFSET(InputPriceData!E$15,CalculationsAndCharts!$A119+$A$11,IF($C$5,8,0),1,1)) -> 141.979996 | G119: =IF(A119>$A$8,"",OFFSET(InputPriceData!F$15,CalculationsAndCharts!$A119+$A$11,IF($C$5,8,0),1,1)) -> 143.020004 | H119: 141.1790008 | I119: 1.672448246 | J119: 2.675917194 | K119: 143.854918 | L119: 138.5030836 | M119: FALSE | N119: FALSE | O119: FALSE | P119: FALSE | Q119: FALSE | R119: FALSE | S119: 1.520004 | T119: 1.625780125 | U119: 138.8584408 | V119: FALSE | X119: 0 | Y119: 0 | Z119: 0 | AA119: 0 | AB119: 0 | AC119: 0 | AP119: 2678000
A120: 88 | B120: =IF(A120>$A$8,"",OFFSET(InputPriceData!B$15,$A120+$A$11,0,1,1)) -> 2019-04-09 | C120: =IF(A120>$A$8,"",OFFSET(InputPriceData!G$15,CalculationsAndCharts!$A120+$A$11,IF($C$5,8,0),1,1)) -> 3038500 | D120: =IF(A120>$A$8,"",OFFSET(InputPriceData!C$15,CalculationsAndCharts!$A120+$A$11,IF($C$5,8,0),1,1)) -> 142.660004 | E120: =IF(A120>$A$8,"",OFFSET(InputPriceData!D$15,CalculationsAndCharts!$A120+$A$11,IF($C$5,8,0),1,1)) -> 142.949997 | F120: =IF(A120>$A$8,"",OFFSET(InputPriceData!E$15,CalculationsAndCharts!$A120+$A$11,IF($C$5,8,0),1,1)) -> 141.839996 | G120: =IF(A120>$A$8,"",OFFSET(InputPriceData!F$15,CalculationsAndCharts!$A120+$A$11,IF($C$5,8,0),1,1)) -> 142.110001 | H120: 140.9560005 | I120: 1.709048901 | J120: 2.734478242 | K120: 143.6904787 | L120: 138.2215223 | M120: FALSE | N120: FALSE | O120: FALSE | P120: FALSE | Q120: FALSE | R120: FALSE | S120: 1.550003 | T120: 1.63391675 | U120: 140.1221655 | V120: FALSE | X120: 0 | Y120: 0 | Z120: 0 | AA120: 0 | AB120: 0 | AC120: 0 | AQ120: 3038500
A121: 89 | B121: =IF(A121>$A$8,"",OFFSET(InputPriceData!B$15,$A121+$A$11,0,1,1)) -> 2019-04-08 | C121: =IF(A121>$A$8,"",OFFSET(InputPriceData!G$15,CalculationsAndCharts!$A121+$A$11,IF($C$5,8,0),1,1)) -> 2118200 | D121: =IF(A121>$A$8,"",OFFSET(InputPriceData!C$15,CalculationsAndCharts!$A121+$A$11,IF($C$5,8,0),1,1)) -> 143.020004 | E121: =IF(A121>$A$8,"",OFFSET(InputPriceData!D$15,CalculationsAndCharts!$A121+$A$11,IF($C$5,8,0),1,1)) -> 143.419998 | F121: =IF(A121>$A$8,"",OFFSET(InputPriceData!E$15,CalculationsAndCharts!$A121+$A$11,IF($C$5,8,0),1,1)) -> 142.869995 | G121: =IF(A121>$A$8,"",OFFSET(InputPriceData!F$15,CalculationsAndCharts!$A121+$A$11,IF($C$5,8,0),1,1)) -> 143.389999 | H121: 140.7645004 | I121: 1.782032323 | J121: 2.851251717 | K121: 143.6157521 | L121: 137.9132487 | M121: FALSE | N121: FALSE | O121: FALSE | P121: FALSE | Q121: FALSE | R121: FALSE | S121: 0.550003 | T121: 1.640371653 | U121: 139.9992557 | V121: FALSE | X121: 0 | Y121: 0 | Z121: 0 | AA121: 0 | AB121: 0 | AC121: 0 | AP121: 2118200
A122: 90 | B122: =IF(A122>$A$8,"",OFFSET(InputPriceData!B$15,$A122+$A$11,0,1,1)) -> 2019-04-05 | C122: =IF(A122>$A$8,"",OFFSET(InputPriceData!G$15,CalculationsAndCharts!$A122+$A$11,IF($C$5,8,0),1,1)) -> 2731800 | D122: =IF(A122>$A$8,"",OFFSET(InputPriceData!C$15,CalculationsAndCharts!$A122+$A$11,IF($C$5,8,0),1,1)) -> 143.289993 | E122: =IF(A122>$A$8,"",OFFSET(InputPriceData!D$15,CalculationsAndCharts!$A122+$A$11,IF($C$5,8,0),1,1)) -> 143.5 | F122: =IF(A122>$A$8,"",OFFSET(InputPriceData!E$15,CalculationsAndCharts!$A122+$A$11,IF($C$5,8,0),1,1)) -> 142.460007 | G122: =IF(A122>$A$8,"",OFFSET(InputPriceData!F$15,CalculationsAndCharts!$A122+$A$11,IF($C$5,8,0),1,1)) -> 143.279999 | H122: 140.4805008 | I122: 1.793548934 | J122: 2.869678295 | K122: 143.3501791 | L122: 137.6108225 | M122: FALSE | N122: FALSE | O122: FALSE | P122: FALSE | Q122: TRUE | R122: FALSE | S122: 1.039993 | T122: 1.724246165 | U122: 139.3315067 | V122: FALSE | X122: 0 | Y122: 0 | Z122: 0 | AA122: 0 | AB122: 0 | AC122: 0 | AQ122: 2731800
A123: 91 | B123: =IF(A123>$A$8,"",OFFSET(InputPriceData!B$15,$A123+$A$11,0,1,1)) -> 2019-04-04 | C123: =IF(A123>$A$8,"",OFFSET(InputPriceData!G$15,CalculationsAndCharts!$A123+$A$11,IF($C$5,8,0),1,1)) -> 2771100 | D123: =IF(A123>$A$8,"",OFFSET(InputPriceData!C$15,CalculationsAndCharts!$A123+$A$11,IF($C$5,8,0),1,1)) -> 143.619995 | E123: =IF(A123>$A$8,"",OFFSET(InputPriceData!D$15,CalculationsAndCharts!$A123+$A$11,IF($C$5,8,0),1,1)) -> 144.139999 | F123: =IF(A123>$A$8,"",OFFSET(InputPriceData!E$15,CalculationsAndCharts!$A123+$A$11,IF($C$5,8,0),1,1)) -> 142.539993 | G123: =IF(A123>$A$8,"",OFFSET(InputPriceData!F$15,CalculationsAndCharts!$A123+$A$11,IF($C$5,8,0),1,1)) -> 142.779999 | H123: 140.0710007 | I123: 2.027349254 | J123: 3.243758807 | K123: 143.3147595 | L123: 136.8272418 | M123: FALSE | N123: FALSE | O123: FALSE | P123: FALSE | Q123: TRUE | R123: FALSE | S123: 1.600006 | T123: 1.776881024 | U123: 140.076243 | V123: FALSE | X123: 0 | Y123: 0 | Z123: 0 | AA123: 0 | AB123: 0 | AC123: 0 | AQ123: 2771100
A124: 92 | B124: =IF(A124>$A$8,"",OFFSET(InputPriceData!B$15,$A124+$A$11,0,1,1)) -> 2019-04-03 | C124: =IF(A124>$A$8,"",OFFSET(InputPriceData!G$15,CalculationsAndCharts!$A124+$A$11,IF($C$5,8,0),1,1)) -> 2681200 | D124: =IF(A124>$A$8,"",OFFSET(InputPriceData!C$15,CalculationsAndCharts!$A124+$A$11,IF($C$5,8,0),1,1)) -> 143.649994 | E124: =IF(A124>$A$8,"",OFFSET(InputPriceData!D$15,CalculationsAndCharts!$A124+$A$11,IF($C$5,8,0),1,1)) -> 144.220001 | F124: =IF(A124>$A$8,"",OFFSET(InputPriceData!E$15,CalculationsAndCharts!$A124+$A$11,IF($C$5,8,0),1,1)) -> 143.009995 | G124: =IF(A124>$A$8,"",OFFSET(InputPriceData!F$15,CalculationsAndCharts!$A124+$A$11,IF($C$5,8,0),1,1)) -> 143.630005 | H124: 139.7000008 | I124: 2.171461801 | J124: 3.474338882 | K124: 143.1743396 | L124: 136.2256619 | M124: FALSE | N124: FALSE | O124: FALSE | P124: FALSE | Q124: TRUE | R124: FALSE | S124: 1.220001 | T124: 1.790486795 | U124: 139.4190264 | V124: FALSE | X124: 0 | Y124: 0 | Z124: 0 | AA124: 0 | AB124: 0 | AC124: 0 | AQ124: 2681200
A125: 93 | B125: =IF(A125>$A$8,"",OFFSET(InputPriceData!B$15,$A125+$A$11,0,1,1)) -> 2019-04-02 | C125: =IF(A125>$A$8,"",OFFSET(InputPriceData!G$15,CalculationsAndCharts!$A125+$A$11,IF($C$5,8,0),1,1)) -> 2404800 | D125: =IF(A125>$A$8,"",OFFSET(InputPriceData!C$15,CalculationsAndCharts!$A125+$A$11,IF($C$5,8,0),1,1)) -> 143.350006 | E125: =IF(A125>$A$8,"",OFFSET(InputPriceData!D$15,CalculationsAndCharts!$A125+$A$11,IF($C$5,8,0),1,1)) -> 143.949997 | F125: =IF(A125>$A$8,"",OFFSET(InputPriceData!E$15,CalculationsAndCharts!$A125+$A$11,IF($C$5,8,0),1,1)) -> 142.600006 | G125: =IF(A125>$A$8,"",OFFSET(InputPriceData!F$15,CalculationsAndCharts!$A125+$A$11,IF($C$5,8,0),1,1)) -> 143 | H125: 139.3675003 | I125: 2.049966933 | J125: 3.279947093 | K125: 142.6474474 | L125: 136.0875532 | M125: FALSE | N125: FALSE | O125: FALSE | P125: FALSE | Q125: TRUE | R125: FALSE | S125: 1.349991 | T125: 1.834370318 | U125: 139.6312624 | V125: FALSE | X125: 0 | Y125: 0 | Z125: 0 | AA125: 0 | AB125: 0 | AC125: 0 | AQ125: 2404800
A126: 94 | B126: =IF(A126>$A$8,"",OFFSET(InputPriceData!B$15,$A126+$A$11,0,1,1)) -> 2019-04-01 | C126: =IF(A126>$A$8,"",OFFSET(InputPriceData!G$15,CalculationsAndCharts!$A126+$A$11,IF($C$5,8,0),1,1)) -> 3984300 | D126: =IF(A126>$A$8,"",OFFSET(InputPriceData!C$15,CalculationsAndCharts!$A126+$A$11,IF($C$5,8,0),1,1)) -> 141.509995 | E126: =IF(A126>$A$8,"",OFFSET(InputPriceData!D$15,CalculationsAndCharts!$A126+$A$11,IF($C$5,8,0),1,1)) -> 143.410004 | F126: =IF(A126>$A$8,"",OFFSET(InputPriceData!E$15,CalculationsAndCharts!$A126+$A$11,IF($C$5,8,0),1,1)) -> 141.509995 | G126: =IF(A126>$A$8,"",OFFSET(InputPriceData!F$15,CalculationsAndCharts!$A126+$A$11,IF($C$5,8,0),1,1)) -> 143.300003 | H126: 139.1115006 | I126: 1.894124591 | J126: 3.030599345 | K126: 142.1420999 | L126: 136.0809012 | M126: FALSE | N126: FALSE | O126: =IF(A126>$A$8-2,"",IF(A126=$A$8-2,FALSE,AND(M126,N126,NOT(P126)))) -> FALSE | P126: FALSE | Q126: TRUE | R126: FALSE | S126: 2.309998 | T126: 1.871630265 | U126: 137.3567455 | V126: FALSE | X126: 0 | Y126: 0 | Z126: 0 | AA126: 0 | AB126: 0 | AC126: 0 | AP126: 3984300
A127: 95 | B127: =IF(A127>$A$8,"",OFFSET(InputPriceData!B$15,$A127+$A$11,0,1,1)) -> 2019-03-29 | C127: =IF(A127>$A$8,"",OFFSET(InputPriceData!G$15,CalculationsAndCharts!$A127+$A$11,IF($C$5,8,0),1,1)) -> 3101400 | D127: =IF(A127>$A$8,"",OFFSET(InputPriceData!C$15,CalculationsAndCharts!$A127+$A$11,IF($C$5,8,0),1,1)) -> 140.5 | E127: =IF(A127>$A$8,"",OFFSET(InputPriceData!D$15,CalculationsAndCharts!$A127+$A$11,IF($C$5,8,0),1,1)) -> 141.220001 | F127: =IF(A127>$A$8,"",OFFSET(InputPriceData!E$15,CalculationsAndCharts!$A127+$A$11,IF($C$5,8,0),1,1)) -> 140.149994 | G127: =IF(A127>$A$8,"",OFFSET(InputPriceData!F$15,CalculationsAndCharts!$A127+$A$11,IF($C$5,8,0),1,1)) -> 141.100006 | H127: 138.8680001 | I127: 1.635377773 | J127: 2.616604437 | K127: 141.4846045 | L127: 136.2513956 | M127: FALSE | N127: FALSE | O127: FALSE | P127: FALSE | Q127: FALSE | R127: FALSE | S127: 1.300003 | T127: 1.83790967 | U127: 136.2441787 | V127: FALSE | X127: 0 | Y127: 0 | Z127: 0 | AA127: 0 | AB127: 0 | AC127: 0 | AP127: 3101400
A128: 96 | B128: =IF(A128>$A$8,"",OFFSET(InputPriceData!B$15,$A128+$A$11,0,1,1)) -> 2019-03-28 | C128: =IF(A128>$A$8,"",OFFSET(InputPriceData!G$15,CalculationsAndCharts!$A128+$A$11,IF($C$5,8,0),1,1)) -> 2663900 | D128: =IF(A128>$A$8,"",OFFSET(InputPriceData!C$15,CalculationsAndCharts!$A128+$A$11,IF($C$5,8,0),1,1)) -> 139.910004 | E128: =IF(A128>$A$8,"",OFFSET(InputPriceData!D$15,CalculationsAndCharts!$A128+$A$11,IF($C$5,8,0),1,1)) -> 140.440002 | F128: =IF(A128>$A$8,"",OFFSET(InputPriceData!E$15,CalculationsAndCharts!$A128+$A$11,IF($C$5,8,0),1,1)) -> 139.100006 | G128: =IF(A128>$A$8,"",OFFSET(InputPriceData!F$15,CalculationsAndCharts!$A128+$A$11,IF($C$5,8,0),1,1)) -> 139.919998 | H128: 138.7729996 | I128: 1.556230685 | J128: 2.489969096 | K128: 141.2629687 | L128: 136.2830305 | M128: FALSE | N128: FALSE | O128: FALSE | P128: FALSE | Q128: FALSE | R128: FALSE | S128: 1.339996 | T128: 1.879287107 | U128: 135.4814308 | V128: FALSE | X128: 0 | Y128: 0 | Z128: 0 | AA128: 0 | AB128: 0 | AC128: 0 | AP128: 2663900
A129: 97 | B129: =IF(A129>$A$8,"",OFFSET(InputPriceData!B$15,$A129+$A$11,0,1,1)) -> 2019-03-27 | C129: =IF(A129>$A$8,"",OFFSET(InputPriceData!G$15,CalculationsAndCharts!$A129+$A$11,IF($C$5,8,0),1,1)) -> 3098200 | D129: =IF(A129>$A$8,"",OFFSET(InputPriceData!C$15,CalculationsAndCharts!$A129+$A$11,IF($C$5,8,0),1,1)) -> 140.410004 | E129: =IF(A129>$A$8,"",OFFSET(InputPriceData!D$15,CalculationsAndCharts!$A129+$A$11,IF($C$5,8,0),1,1)) -> 140.490005 | F129: =IF(A129>$A$8,"",OFFSET(InputPriceData!E$15,CalculationsAndCharts!$A129+$A$11,IF($C$5,8,0),1,1)) -> 138.399994 | G129: =IF(A129>$A$8,"",OFFSET(InputPriceData!F$15,CalculationsAndCharts!$A129+$A$11,IF($C$5,8,0),1,1)) -> 139.240005 | H129: 138.6834999 | I129: 1.539069717 | J129: 2.462511548 | K129: 141.1460115 | L129: 136.2209884 | M129: FALSE | N129: FALSE | O129: FALSE | P129: FALSE | Q129: FALSE | R129: FALSE | S129: 2.090011 | T129: 1.920771038 | U129: 136.3784589 | V129: FALSE | X129: 0 | Y129: 0 | Z129: 0 | AA129: 0 | AB129: 0 | AC129: 0 | AQ129: 3098200
A130: 98 | B130: =IF(A130>$A$8,"",OFFSET(InputPriceData!B$15,$A130+$A$11,0,1,1)) -> 2019-03-26 | C130: =IF(A130>$A$8,"",OFFSET(InputPriceData!G$15,CalculationsAndCharts!$A130+$A$11,IF($C$5,8,0),1,1)) -> 2553700 | D130: =IF(A130>$A$8,"",OFFSET(InputPriceData!C$15,CalculationsAndCharts!$A130+$A$11,IF($C$5,8,0),1,1)) -> 139.929993 | E130: =IF(A130>$A$8,"",OFFSET(InputPriceData!D$15,CalculationsAndCharts!$A130+$A$11,IF($C$5,8,0),1,1)) -> 141.020004 | F130: =IF(A130>$A$8,"",OFFSET(InputPriceData!E$15,CalculationsAndCharts!$A130+$A$11,IF($C$5,8,0),1,1)) -> 139.419998 | G130: =IF(A130>$A$8,"",OFFSET(InputPriceData!F$15,CalculationsAndCharts!$A130+$A$11,IF($C$5,8,0),1,1)) -> 140.220001 | H130: 138.6799996 | I130: 1.53787921 | J130: 2.460606737 | K130: 141.1406063 | L130: 136.2193929 | M130: FALSE | N130: FALSE | O130: FALSE | P130: FALSE | Q130: FALSE | R130: FALSE | S130: 1.840011 | T130: 1.907752579 | U130: 135.3644878 | V130: FALSE | X130: 0 | Y130: 0 | Z130: 0 | AA130: 0 | AB130: 0 | AC130: 0 | AP130: 2553700
A131: 99 | B131: =IF(A131>$A$8,"",OFFSET(InputPriceData!B$15,$A131+$A$11,0,1,1)) -> 2019-03-25 | C131: =IF(A131>$A$8,"",OFFSET(InputPriceData!G$15,CalculationsAndCharts!$A131+$A$11,IF($C$5,8,0),1,1)) -> 2839800 | D131: =IF(A131>$A$8,"",OFFSET(InputPriceData!C$15,CalculationsAndCharts!$A131+$A$11,IF($C$5,8,0),1,1)) -> 139.059998 | E131: =IF(A131>$A$8,"",OFFSET(InputPriceData!D$15,CalculationsAndCharts!$A131+$A$11,IF($C$5,8,0),1,1)) -> 139.910004 | F131: =IF(A131>$A$8,"",OFFSET(InputPriceData!E$15,CalculationsAndCharts!$A131+$A$11,IF($C$5,8,0),1,1)) -> 138.350006 | G131: =IF(A131>$A$8,"",OFFSET(InputPriceData!F$15,CalculationsAndCharts!$A131+$A$11,IF($C$5,8,0),1,1)) -> 139.179993 | H131: 138.6549996 | I131: 1.516557746 | J131: 2.426492393 | K131: 141.081492 | L131: 136.2285072 | M131: FALSE | N131: FALSE | O131: FALSE | P131: FALSE | Q131: FALSE | R131: FALSE | S131: 1.559998 | T131: 1.91296347 | U131: 135.6240701 | V131: FALSE | X131: 0 | Y131: 0 | Z131: 0 | AA131: 0 | AB131: 0 | AC131: 0 | AP131: 2839800
A132: 100 | B132: =IF(A132>$A$8,"",OFFSET(InputPriceData!B$15,$A132+$A$11,0,1,1)) -> 2019-03-22 | C132: =IF(A132>$A$8,"",OFFSET(InputPriceData!G$15,CalculationsAndCharts!$A132+$A$11,IF($C$5,8,0),1,1)) -> 3877200 | D132: =IF(A132>$A$8,"",OFFSET(InputPriceData!C$15,CalculationsAndCharts!$A132+$A$11,IF($C$5,8,0),1,1)) -> 140.970001 | E132: =IF(A132>$A$8,"",OFFSET(InputPriceData!D$15,CalculationsAndCharts!$A132+$A$11,IF($C$5,8,0),1,1)) -> 141.440002 | F132: =IF(A132>$A$8,"",OFFSET(InputPriceData!E$15,CalculationsAndCharts!$A132+$A$11,IF($C$5,8,0),1,1)) -> 138.899994 | G132: =IF(A132>$A$8,"",OFFSET(InputPriceData!F$15,CalculationsAndCharts!$A132+$A$11,IF($C$5,8,0),1,1)) -> 139.449997 | H132: 138.6690003 | I132: 1.522620215 | J132: 2.436192344 | K132: 141.1051926 | L132: 136.232808 | M132: FALSE | N132: FALSE | O132: FALSE | P132: FALSE | Q132: TRUE | R132: FALSE | S132: 2.540008 | T132: 1.94011466 | U132: 137.5597727 | V132: FALSE | X132: 0 | Y132: 0 | Z132: 0 | AA132: 0 | AB132: 0 | AC132: 0 | AQ132: 3877200
A133: 101 | B133: =IF(A133>$A$8,"",OFFSET(InputPriceData!B$15,$A133+$A$11,0,1,1)) -> 2019-03-21 | C133: =IF(A133>$A$8,"",OFFSET(InputPriceData!G$15,CalculationsAndCharts!$A133+$A$11,IF($C$5,8,0),1,1)) -> 3605400 | D133: =IF(A133>$A$8,"",OFFSET(InputPriceData!C$15,CalculationsAndCharts!$A133+$A$11,IF($C$5,8,0),1,1)) -> 139.100006 | E133: =IF(A133>$A$8,"",OFFSET(InputPriceData!D$15,CalculationsAndCharts!$A133+$A$11,IF($C$5,8,0),1,1)) -> 142.119995 | F133: =IF(A133>$A$8,"",OFFSET(InputPriceData!E$15,CalculationsAndCharts!$A133+$A$11,IF($C$5,8,0),1,1)) -> 138.880005 | G133: =IF(A133>$A$8,"",OFFSET(InputPriceData!F$15,CalculationsAndCharts!$A133+$A$11,IF($C$5,8,0),1,1)) -> 141.440002 | H133: 138.6590005 | I133: 1.518108218 | J133: 2.428973149 | K133: 141.0879736 | L133: 136.2300273 | M133: FALSE | N133: FALSE | O133: FALSE | P133: FALSE | Q133: TRUE | R133: FALSE | S133: 3.23999 | T133: 1.893969019 | U133: 135.812068 | V133: FALSE | X133: 0 | Y133: 0 | Z133: 0 | AA133: 0 | AB133: 0 | AC133: 0 | AP133: 3605400
A134: 102 | B134: =IF(A134>$A$8,"",OFFSET(InputPriceData!B$15,$A134+$A$11,0,1,1)) -> 2019-03-20 | C134: =IF(A134>$A$8,"",OFFSET(InputPriceData!G$15,CalculationsAndCharts!$A134+$A$11,IF($C$5,8,0),1,1)) -> 3649500 | D134: =IF(A134>$A$8,"",OFFSET(InputPriceData!C$15,CalculationsAndCharts!$A134+$A$11,IF($C$5,8,0),1,1)) -> 140.529999 | E134: =IF(A134>$A$8,"",OFFSET(InputPriceData!D$15,CalculationsAndCharts!$A134+$A$11,IF($C$5,8,0),1,1)) -> 140.699997 | F134: =IF(A134>$A$8,"",OFFSET(InputPriceData!E$15,CalculationsAndCharts!$A134+$A$11,IF($C$5,8,0),1,1)) -> 138.979996 | G134: =IF(A134>$A$8,"",OFFSET(InputPriceData!F$15,CalculationsAndCharts!$A134+$A$11,IF($C$5,8,0),1,1)) -> 139.600006 | H134: 138.4790001 | I134: 1.385313101 | J134: 2.216500961 | K134: 140.6955011 | L134: 136.2624992 | M134: FALSE | N134: FALSE | O134: FALSE | P134: FALSE | Q134: TRUE | R134: FALSE | S134: 1.720001 | T134: 1.790428943 | U134: 136.9091471 | V134: FALSE | X134: 0 | Y134: 0 | Z134: 0 | AA134: 0 | AB134: 0 | AC134: 0 | AQ134: 3649500
A135: 103 | B135: =IF(A135>$A$8,"",OFFSET(InputPriceData!B$15,$A135+$A$11,0,1,1)) -> 2019-03-19 | C135: =IF(A135>$A$8,"",OFFSET(InputPriceData!G$15,CalculationsAndCharts!$A135+$A$11,IF($C$5,8,0),1,1)) -> 3482300 | D135: =IF(A135>$A$8,"",OFFSET(InputPriceData!C$15,CalculationsAndCharts!$A135+$A$11,IF($C$5,8,0),1,1)) -> 140.960007 | E135: =IF(A135>$A$8,"",OFFSET(InputPriceData!D$15,CalculationsAndCharts!$A135+$A$11,IF($C$5,8,0),1,1)) -> 141.699997 | F135: =IF(A135>$A$8,"",OFFSET(InputPriceData!E$15,CalculationsAndCharts!$A135+$A$11,IF($C$5,8,0),1,1)) -> 140 | G135: =IF(A135>$A$8,"",OFFSET(InputPriceData!F$15,CalculationsAndCharts!$A135+$A$11,IF($C$5,8,0),1,1)) -> 140.490005 | H135: 138.3989999 | I135: 1.364306304 | J135: 2.182890086 | K135: 140.5818899 | L135: 136.2161098 | M135: FALSE | N135: FALSE | O135: FALSE | P135: FALSE | Q135: TRUE | R135: FALSE | S135: 1.699997 | T135: 1.795846477 | U135: 136.618314 | V135: FALSE | X135: 0 | Y135: 0 | Z135: 0 | AA135: 0 | AB135: 0 | AC135: 0 | AQ135: 3482300
A136: 104 | B136: =IF(A136>$A$8,"",OFFSET(InputPriceData!B$15,$A136+$A$11,0,1,1)) -> 2019-03-18 | C136: =IF(A136>$A$8,"",OFFSET(InputPriceData!G$15,CalculationsAndCharts!$A136+$A$11,IF($C$5,8,0),1,1)) -> 3268500 | D136: =IF(A136>$A$8,"",OFFSET(InputPriceData!C$15,CalculationsAndCharts!$A136+$A$11,IF($C$5,8,0),1,1)) -> 139.830002 | E136: =IF(A136>$A$8,"",OFFSET(InputPriceData!D$15,CalculationsAndCharts!$A136+$A$11,IF($C$5,8,0),1,1)) -> 140.369995 | F136: =IF(A136>$A$8,"",OFFSET(InputPriceData!E$15,CalculationsAndCharts!$A136+$A$11,IF($C$5,8,0),1,1)) -> 138.720001 | G136: =IF(A136>$A$8,"",OFFSET(InputPriceData!F$15,CalculationsAndCharts!$A136+$A$11,IF($C$5,8,0),1,1)) -> 140.210007 | H136: 138.3094995 | I136: 1.280326601 | J136: 2.048522562 | K136: 140.358022 | L136: 136.2609769 | M136: FALSE | N136: FALSE | O136: FALSE | P136: FALSE | Q136: TRUE | R136: FALSE | S136: 1.649994 | T136: 1.803219514 | U136: 135.823554 | V136: FALSE | X136: 0 | Y136: 0 | Z136: 0 | AA136: 0 | AB136: 0 | AC136: 0 | AP136: 3268500
A137: 105 | B137: =IF(A137>$A$8,"",OFFSET(InputPriceData!B$15,$A137+$A$11,0,1,1)) -> 2019-03-15 | C137: =IF(A137>$A$8,"",OFFSET(InputPriceData!G$15,CalculationsAndCharts!$A137+$A$11,IF($C$5,8,0),1,1)) -> 7153700 | D137: =IF(A137>$A$8,"",OFFSET(InputPriceData!C$15,CalculationsAndCharts!$A137+$A$11,IF($C$5,8,0),1,1)) -> 139.369995 | E137: =IF(A137>$A$8,"",OFFSET(InputPriceData!D$15,CalculationsAndCharts!$A137+$A$11,IF($C$5,8,0),1,1)) -> 140.330002 | F137: =IF(A137>$A$8,"",OFFSET(InputPriceData!E$15,CalculationsAndCharts!$A137+$A$11,IF($C$5,8,0),1,1)) -> 139.229996 | G137: =IF(A137>$A$8,"",OFFSET(InputPriceData!F$15,CalculationsAndCharts!$A137+$A$11,IF($C$5,8,0),1,1)) -> 139.429993 | H137: 138.2004991 | I137: 1.204435427 | J137: 1.927096683 | K137: 140.1275957 | L137: 136.2734024 | M137: FALSE | N137: FALSE | O137: FALSE | P137: FALSE | Q137: TRUE | R137: FALSE | S137: 1.540009 | T137: 1.815006092 | U137: 135.1599808 | V137: FALSE | X137: 0 | Y137: 0 | Z137: 0 | AA137: 0 | AB137: 0 | AC137: 0 | AP137: 7153700
A138: 106 | B138: =IF(A138>$A$8,"",OFFSET(InputPriceData!B$15,$A138+$A$11,0,1,1)) -> 2019-03-14 | C138: =IF(A138>$A$8,"",OFFSET(InputPriceData!G$15,CalculationsAndCharts!$A138+$A$11,IF($C$5,8,0),1,1)) -> 2738600 | D138: =IF(A138>$A$8,"",OFFSET(InputPriceData!C$15,CalculationsAndCharts!$A138+$A$11,IF($C$5,8,0),1,1)) -> 138.509995 | E138: =IF(A138>$A$8,"",OFFSET(InputPriceData!D$15,CalculationsAndCharts!$A138+$A$11,IF($C$5,8,0),1,1)) -> 138.940002 | F138: =IF(A138>$A$8,"",OFFSET(InputPriceData!E$15,CalculationsAndCharts!$A138+$A$11,IF($C$5,8,0),1,1)) -> 138.059998 | G138: =IF(A138>$A$8,"",OFFSET(InputPriceData!F$15,CalculationsAndCharts!$A138+$A$11,IF($C$5,8,0),1,1)) -> 138.789993 | H138: 138.0529992 | I138: 1.225288643 | J138: 1.96046183 | K138: 140.013461 | L138: 136.0925374 | M138: FALSE | N138: FALSE | O138: FALSE | P138: FALSE | Q138: FALSE | R138: FALSE | S138: 0.880004 | T138: 1.836159714 | U138: 134.8876786 | V138: FALSE | X138: 0 | Y138: 0 | Z138: 0 | AA138: 0 | AB138: 0 | AC138: 0 | AP138: 2738600
A139: 107 | B139: =IF(A139>$A$8,"",OFFSET(InputPriceData!B$15,$A139+$A$11,0,1,1)) -> 2019-03-13 | C139: =IF(A139>$A$8,"",OFFSET(InputPriceData!G$15,CalculationsAndCharts!$A139+$A$11,IF($C$5,8,0),1,1)) -> 3173200 | D139: =IF(A139>$A$8,"",OFFSET(InputPriceData!C$15,CalculationsAndCharts!$A139+$A$11,IF($C$5,8,0),1,1)) -> 138.050003 | E139: =IF(A139>$A$8,"",OFFSET(InputPriceData!D$15,CalculationsAndCharts!$A139+$A$11,IF($C$5,8,0),1,1)) -> 139.320007 | F139: =IF(A139>$A$8,"",OFFSET(InputPriceData!E$15,CalculationsAndCharts!$A139+$A$11,IF($C$5,8,0),1,1)) -> 137.850006 | G139: =IF(A139>$A$8,"",OFFSET(InputPriceData!F$15,CalculationsAndCharts!$A139+$A$11,IF($C$5,8,0),1,1)) -> 138.559998 | H139: 137.9894997 | I139: 1.218337507 | J139: 1.949340011 | K139: 139.9388398 | L139: 136.0401597 | M139: FALSE | N139: FALSE | O139: FALSE | P139: FALSE | Q139: FALSE | R139: FALSE | S139: 1.470001 | T139: 1.909710154 | U139: 134.4605787 | V139: FALSE | X139: 0 | Y139: 0 | Z139: 0 | AA139: 0 | AB139: 0 | AC139: 0 | AP139: 3173200
A140: 108 | B140: =IF(A140>$A$8,"",OFFSET(InputPriceData!B$15,$A140+$A$11,0,1,1)) -> 2019-03-12 | C140: =IF(A140>$A$8,"",OFFSET(InputPriceData!G$15,CalculationsAndCharts!$A140+$A$11,IF($C$5,8,0),1,1)) -> 3954700 | D140: =IF(A140>$A$8,"",OFFSET(InputPriceData!C$15,CalculationsAndCharts!$A140+$A$11,IF($C$5,8,0),1,1)) -> 138.520004 | E140: =IF(A140>$A$8,"",OFFSET(InputPriceData!D$15,CalculationsAndCharts!$A140+$A$11,IF($C$5,8,0),1,1)) -> 139.699997 | F140: =IF(A140>$A$8,"",OFFSET(InputPriceData!E$15,CalculationsAndCharts!$A140+$A$11,IF($C$5,8,0),1,1)) -> 137.860001 | G140: =IF(A140>$A$8,"",OFFSET(InputPriceData!F$15,CalculationsAndCharts!$A140+$A$11,IF($C$5,8,0),1,1)) -> 138.279999 | H140: 137.864 | I140: 1.280782988 | J140: 2.049252781 | K140: 139.9132528 | L140: 135.8147472 | M140: TRUE | N140: FALSE | O140: FALSE | P140: FALSE | Q140: FALSE | R140: FALSE | S140: 1.98999 | T140: 1.943533935 | U140: 133.8229391 | V140: FALSE | X140: 0 | Y140: 0 | Z140: 0 | AA140: 0 | AB140: 0 | AC140: 0 | AQ140: 3954700
A141: 109 | B141: =IF(A141>$A$8,"",OFFSET(InputPriceData!B$15,$A141+$A$11,0,1,1)) -> 2019-03-11 | C141: =IF(A141>$A$8,"",OFFSET(InputPriceData!G$15,CalculationsAndCharts!$A141+$A$11,IF($C$5,8,0),1,1)) -> 3939300 | D141: =IF(A141>$A$8,"",OFFSET(InputPriceData!C$15,CalculationsAndCharts!$A141+$A$11,IF($C$5,8,0),1,1)) -> 136.029999 | E141: =IF(A141>$A$8,"",OFFSET(InputPriceData!D$15,CalculationsAndCharts!$A141+$A$11,IF($C$5,8,0),1,1)) -> 137.729996 | F141: =IF(A141>$A$8,"",OFFSET(InputPriceData!E$15,CalculationsAndCharts!$A141+$A$11,IF($C$5,8,0),1,1)) -> 135.839996 | G141: =IF(A141>$A$8,"",OFFSET(InputPriceData!F$15,CalculationsAndCharts!$A141+$A$11,IF($C$5,8,0),1,1)) -> 137.710007 | H141: 137.6495003 | I141: 1.528441705 | J141: 2.445506728 | K141: 140.095007 | L141: 135.2039936 | M141: TRUE | N141: FALSE | O141: FALSE | P141: FALSE | Q141: FALSE | R141: FALSE | S141: 2.64 | T141: 1.939960391 | U141: 131.2100752 | V141: FALSE | X141: 0 | Y141: 0 | Z141: 0 | AA141: 0 | AB141: 0 | AC141: 0 | AP141: 3939300
A142: 110 | B142: =IF(A142>$A$8,"",OFFSET(InputPriceData!B$15,$A142+$A$11,0,1,1)) -> 2019-03-08 | C142: =IF(A142>$A$8,"",OFFSET(InputPriceData!G$15,CalculationsAndCharts!$A142+$A$11,IF($C$5,8,0),1,1)) -> 3773600 | D142: =IF(A142>$A$8,"",OFFSET(InputPriceData!C$15,CalculationsAndCharts!$A142+$A$11,IF($C$5,8,0),1,1)) -> 134.210007 | E142: =IF(A142>$A$8,"",OFFSET(InputPriceData!D$15,CalculationsAndCharts!$A142+$A$11,IF($C$5,8,0),1,1)) -> 135.240005 | F142: =IF(A142>$A$8,"",OFFSET(InputPriceData!E$15,CalculationsAndCharts!$A142+$A$11,IF($C$5,8,0),1,1)) -> 133.580002 | G142: =IF(A142>$A$8,"",OFFSET(InputPriceData!F$15,CalculationsAndCharts!$A142+$A$11,IF($C$5,8,0),1,1)) -> 135.089996 | H142: 137.4495003 | I142: 1.752692605 | J142: 2.804308167 | K142: 140.2538085 | L142: 134.6451921 | M142: FALSE | N142: FALSE | O142: FALSE | P142: FALSE | Q142: FALSE | R142: FALSE | S142: 1.779999 | T142: 1.886111191 | U142: 131.5877786 | V142: FALSE | X142: 0 | Y142: 0 | Z142: 0 | AA142: 0 | AB142: 0 | AC142: 0 | AP142: 3773600
A143: 111 | B143: =IF(A143>$A$8,"",OFFSET(InputPriceData!B$15,$A143+$A$11,0,1,1)) -> 2019-03-07 | C143: =IF(A143>$A$8,"",OFFSET(InputPriceData!G$15,CalculationsAndCharts!$A143+$A$11,IF($C$5,8,0),1,1)) -> 4358800 | D143: =IF(A143>$A$8,"",OFFSET(InputPriceData!C$15,CalculationsAndCharts!$A143+$A$11,IF($C$5,8,0),1,1)) -> 136.610001 | E143: =IF(A143>$A$8,"",OFFSET(InputPriceData!D$15,CalculationsAndCharts!$A143+$A$11,IF($C$5,8,0),1,1)) -> 136.889999 | F143: =IF(A143>$A$8,"",OFFSET(InputPriceData!E$15,CalculationsAndCharts!$A143+$A$11,IF($C$5,8,0),1,1)) -> 134.630005 | G143: =IF(A143>$A$8,"",OFFSET(InputPriceData!F$15,CalculationsAndCharts!$A143+$A$11,IF($C$5,8,0),1,1)) -> 135.360001 | H143: 137.3545006 | I143: 1.921382233 | J143: 3.074211573 | K143: 140.4287122 | L143: 134.280289 | M143: FALSE | N143: FALSE | O143: FALSE | P143: FALSE | Q143: FALSE | R143: FALSE | S143: 2.349991 | T143: 1.894273667 | U143: 133.1914487 | V143: FALSE | X143: 0 | Y143: 0 | Z143: 0 | AA143: 0 | AB143: 0 | AC143: 0 | AQ143: 4358800
A144: 112 | B144: =IF(A144>$A$8,"",OFFSET(InputPriceData!B$15,$A144+$A$11,0,1,1)) -> 2019-03-06 | C144: =IF(A144>$A$8,"",OFFSET(InputPriceData!G$15,CalculationsAndCharts!$A144+$A$11,IF($C$5,8,0),1,1)) -> 2768300 | D144: =IF(A144>$A$8,"",OFFSET(InputPriceData!C$15,CalculationsAndCharts!$A144+$A$11,IF($C$5,8,0),1,1)) -> 138.119995 | E144: =IF(A144>$A$8,"",OFFSET(InputPriceData!D$15,CalculationsAndCharts!$A144+$A$11,IF($C$5,8,0),1,1)) -> 138.389999 | F144: =IF(A144>$A$8,"",OFFSET(InputPriceData!E$15,CalculationsAndCharts!$A144+$A$11,IF($C$5,8,0),1,1)) -> 136.720001 | G144: =IF(A144>$A$8,"",OFFSET(InputPriceData!F$15,CalculationsAndCharts!$A144+$A$11,IF($C$5,8,0),1,1)) -> 136.979996 | H144: 137.4025009 | I144: 1.882554932 | J144: 3.012087892 | K144: 140.4145888 | L144: 134.390413 | M144: FALSE | N144: FALSE | O144: FALSE | P144: FALSE | Q144: FALSE | R144: FALSE | S144: 1.669998 | T144: 1.859218487 | U144: 134.161568 | V144: FALSE | X144: 0 | Y144: 0 | Z144: 0 | AA144: 0 | AB144: 0 | AC144: 0 | AQ144: 2768300
A145: 113 | B145: =IF(A145>$A$8,"",OFFSET(InputPriceData!B$15,$A145+$A$11,0,1,1)) -> 2019-03-05 | C145: =IF(A145>$A$8,"",OFFSET(InputPriceData!G$15,CalculationsAndCharts!$A145+$A$11,IF($C$5,8,0),1,1)) -> 4250300 | D145: =IF(A145>$A$8,"",OFFSET(InputPriceData!C$15,CalculationsAndCharts!$A145+$A$11,IF($C$5,8,0),1,1)) -> 138.369995 | E145: =IF(A145>$A$8,"",OFFSET(InputPriceData!D$15,CalculationsAndCharts!$A145+$A$11,IF($C$5,8,0),1,1)) -> 138.740005 | F145: =IF(A145>$A$8,"",OFFSET(InputPriceData!E$15,CalculationsAndCharts!$A145+$A$11,IF($C$5,8,0),1,1)) -> 137.559998 | G145: =IF(A145>$A$8,"",OFFSET(InputPriceData!F$15,CalculationsAndCharts!$A145+$A$11,IF($C$5,8,0),1,1)) -> 137.880005 | H145: 137.3310012 | I145: 1.923944588 | J145: 3.078311341 | K145: 140.4093126 | L145: 134.2526899 | M145: FALSE | N145: FALSE | O145: FALSE | P145: FALSE | Q145: FALSE | R145: FALSE | S145: 1.180007 | T145: 1.87377391 | U145: 134.6824452 | V145: FALSE | X145: 0 | Y145: 0 | Z145: 0 | AA145: 0 | AB145: 0 | AC145: 0 | AQ145: 4250300
A146: 114 | B146: =IF(A146>$A$8,"",OFFSET(InputPriceData!B$15,$A146+$A$11,0,1,1)) -> 2019-03-04 | C146: =IF(A146>$A$8,"",OFFSET(InputPriceData!G$15,CalculationsAndCharts!$A146+$A$11,IF($C$5,8,0),1,1)) -> 3406900 | D146: =IF(A146>$A$8,"",OFFSET(InputPriceData!C$15,CalculationsAndCharts!$A146+$A$11,IF($C$5,8,0),1,1)) -> 139.990005 | E146: =IF(A146>$A$8,"",OFFSET(InputPriceData!D$15,CalculationsAndCharts!$A146+$A$11,IF($C$5,8,0),1,1)) -> 140.080002 | F146: =IF(A146>$A$8,"",OFFSET(InputPriceData!E$15,CalculationsAndCharts!$A146+$A$11,IF($C$5,8,0),1,1)) -> 137.169998 | G146: =IF(A146>$A$8,"",OFFSET(InputPriceData!F$15,CalculationsAndCharts!$A146+$A$11,IF($C$5,8,0),1,1)) -> 138.429993 | H146: 137.1965011 | I146: 1.974233046 | J146: 3.158772874 | K146: 140.355274 | L146: 134.0377282 | M146: FALSE | N146: FALSE | O146: FALSE | P146: FALSE | Q146: FALSE | R146: FALSE | S146: 2.910004 | T146: 1.927140595 | U146: 135.3457158 | V146: FALSE | X146: 0 | Y146: 0 | Z146: 0 | AA146: 0 | AB146: 0 | AC146: 0 | AP146: =IF(G146>=D146,C146,NA()) ->  | AQ146: =IF(G146<D146,C146,NA()) -> 3406900
A147: 115 | B147: =IF(A147>$A$8,"",OFFSET(InputPriceData!B$15,$A147+$A$11,0,1,1)) -> 2019-03-01 | C147: =IF(A147>$A$8,"",OFFSET(InputPriceData!G$15,CalculationsAndCharts!$A147+$A$11,IF($C$5,8,0),1,1)) -> 3030000 | D147: =IF(A147>$A$8,"",OFFSET(InputPriceData!C$15,CalculationsAndCharts!$A147+$A$11,IF($C$5,8,0),1,1)) -> 139.309998 | E147: =IF(A147>$A$8,"",OFFSET(InputPriceData!D$15,CalculationsAndCharts!$A147+$A$11,IF($C$5,8,0),1,1)) -> 140.039993 | F147: =IF(A147>$A$8,"",OFFSET(InputPriceData!E$15,CalculationsAndCharts!$A147+$A$11,IF($C$5,8,0),1,1)) -> 138.639999 | G147: =IF(A147>$A$8,"",OFFSET(InputPriceData!F$15,CalculationsAndCharts!$A147+$A$11,IF($C$5,8,0),1,1)) -> 139.199997 | H147: 136.9800017 | I147: 2.062538032 | J147: 3.300060851 | K147: 140.2800626 | L147: 133.6799409 | M147: FALSE | N147: FALSE | O147: FALSE | P147: FALSE | Q147: FALSE | R147: FALSE | S147: 1.909988 | T147: 1.851535718 | U147: 134.4269336 | V147: FALSE | X147: 0 | Y147: 0 | Z147: 0 | AA147: 0 | AB147: 0 | AC147: 0 | AQ147: 3030000
A148: 116 | B148: =IF(A148>$A$8,"",OFFSET(InputPriceData!B$15,$A148+$A$11,0,1,1)) -> 2019-02-28 | C148: =IF(A148>$A$8,"",OFFSET(InputPriceData!G$15,CalculationsAndCharts!$A148+$A$11,IF($C$5,8,0),1,1)) -> 3457800 | D148: =IF(A148>$A$8,"",OFFSET(InputPriceData!C$15,CalculationsAndCharts!$A148+$A$11,IF($C$5,8,0),1,1)) -> 138.770004 | E148: =IF(A148>$A$8,"",OFFSET(InputPriceData!D$15,CalculationsAndCharts!$A148+$A$11,IF($C$5,8,0),1,1)) -> 139.059998 | F148: =IF(A148>$A$8,"",OFFSET(InputPriceData!E$15,CalculationsAndCharts!$A148+$A$11,IF($C$5,8,0),1,1)) -> 137.720001 | G148: =IF(A148>$A$8,"",OFFSET(InputPriceData!F$15,CalculationsAndCharts!$A148+$A$11,IF($C$5,8,0),1,1)) -> 138.130005 | H148: 136.7410018 | I148: 2.068382018 | J148: 3.309411229 | K148: 140.050413 | L148: 133.4315906 | M148: FALSE | N148: FALSE | O148: FALSE | P148: FALSE | Q148: FALSE | R148: FALSE | S148: 1.449997 | T148: 1.847039388 | U148: 135.4759192 | V148: FALSE | X148: 0 | Y148: 0 | Z148: 0 | AA148: 0 | AB148: 0 | AC148: 0 | AQ148: 3457800
A149: 117 | B149: =IF(A149>$A$8,"",OFFSET(InputPriceData!B$15,$A149+$A$11,0,1,1)) -> 2019-02-27 | C149: =IF(A149>$A$8,"",OFFSET(InputPriceData!G$15,CalculationsAndCharts!$A149+$A$11,IF($C$5,8,0),1,1)) -> 2530900 | D149: =IF(A149>$A$8,"",OFFSET(InputPriceData!C$15,CalculationsAndCharts!$A149+$A$11,IF($C$5,8,0),1,1)) -> 139.25 | E149: =IF(A149>$A$8,"",OFFSET(InputPriceData!D$15,CalculationsAndCharts!$A149+$A$11,IF($C$5,8,0),1,1)) -> 139.570007 | F149: =IF(A149>$A$8,"",OFFSET(InputPriceData!E$15,CalculationsAndCharts!$A149+$A$11,IF($C$5,8,0),1,1)) -> 138.399994 | G149: =IF(A149>$A$8,"",OFFSET(InputPriceData!F$15,CalculationsAndCharts!$A149+$A$11,IF($C$5,8,0),1,1)) -> 139.169998 | H149: 136.5535018 | I149: 2.103638924 | J149: 3.365822278 | K149: 139.9193241 | L149: 133.1876795 | M149: FALSE | N149: FALSE | O149: FALSE | P149: FALSE | Q149: FALSE | R149: FALSE | S149: 1.320007 | T149: 1.87758111 | U149: 135.9648388 | V149: FALSE | X149: 0 | Y149: 0 | Z149: 0 | AA149: 0 | AB149: 0 | AC149: 0 | AQ149: 2530900
A150: 118 | B150: =IF(A150>$A$8,"",OFFSET(InputPriceData!B$15,$A150+$A$11,0,1,1)) -> 2019-02-26 | C150: =IF(A150>$A$8,"",OFFSET(InputPriceData!G$15,CalculationsAndCharts!$A150+$A$11,IF($C$5,8,0),1,1)) -> 3060400 | D150: =IF(A150>$A$8,"",OFFSET(InputPriceData!C$15,CalculationsAndCharts!$A150+$A$11,IF($C$5,8,0),1,1)) -> 139.669998 | E150: =IF(A150>$A$8,"",OFFSET(InputPriceData!D$15,CalculationsAndCharts!$A150+$A$11,IF($C$5,8,0),1,1)) -> 140.490005 | F150: =IF(A150>$A$8,"",OFFSET(InputPriceData!E$15,CalculationsAndCharts!$A150+$A$11,IF($C$5,8,0),1,1)) -> 139.470001 | G150: =IF(A150>$A$8,"",OFFSET(InputPriceData!F$15,CalculationsAndCharts!$A150+$A$11,IF($C$5,8,0),1,1)) -> 139.720001 | H150: 136.311502 | I150: 2.066791661 | J150: 3.306866657 | K150: 139.6183687 | L150: 133.0046353 | M150: FALSE | N150: FALSE | O150: FALSE | P150: FALSE | Q150: TRUE | R150: FALSE | S150: 1.029998 | T150: 1.920471427 | U150: 135.6190641 | V150: FALSE | X150: 0 | Y150: 0 | Z150: 0 | AA150: 0 | AB150: 0 | AC150: 0 | AP150: 3060400
A151: 119 | B151: =IF(A151>$A$8,"",OFFSET(InputPriceData!B$15,$A151+$A$11,0,1,1)) -> 2019-02-25 | C151: =IF(A151>$A$8,"",OFFSET(InputPriceData!G$15,CalculationsAndCharts!$A151+$A$11,IF($C$5,8,0),1,1)) -> 3194200 | D151: =IF(A151>$A$8,"",OFFSET(InputPriceData!C$15,CalculationsAndCharts!$A151+$A$11,IF($C$5,8,0),1,1)) -> 140 | E151: =IF(A151>$A$8,"",OFFSET(InputPriceData!D$15,CalculationsAndCharts!$A151+$A$11,IF($C$5,8,0),1,1)) -> 140.470001 | F151: =IF(A151>$A$8,"",OFFSET(InputPriceData!E$15,CalculationsAndCharts!$A151+$A$11,IF($C$5,8,0),1,1)) -> 139.320007 | G151: =IF(A151>$A$8,"",OFFSET(InputPriceData!F$15,CalculationsAndCharts!$A151+$A$11,IF($C$5,8,0),1,1)) -> 139.460007 | H151: 136.0390022 | I151: 1.955725961 | J151: 3.129161537 | K151: 139.1681637 | L151: 132.9098406 | M151: FALSE | N151: FALSE | O151: FALSE | P151: FALSE | Q151: TRUE | R151: FALSE | S151: 1.220001 | T151: 1.988969382 | U151: 135.2720612 | V151: FALSE | X151: 0 | Y151: 0 | Z151: 0 | AA151: 0 | AB151: 0 | AC151: 0 | AQ151: 3194200
A152: 120 | B152: =IF(A152>$A$8,"",OFFSET(InputPriceData!B$15,$A152+$A$11,0,1,1)) -> 2019-02-22 | C152: =IF(A152>$A$8,"",OFFSET(InputPriceData!G$15,CalculationsAndCharts!$A152+$A$11,IF($C$5,8,0),1,1)) -> 3113700 | D152: =IF(A152>$A$8,"",OFFSET(InputPriceData!C$15,CalculationsAndCharts!$A152+$A$11,IF($C$5,8,0),1,1)) -> 138.729996 | E152: =IF(A152>$A$8,"",OFFSET(InputPriceData!D$15,CalculationsAndCharts!$A152+$A$11,IF($C$5,8,0),1,1)) -> 139.380005 | F152: =IF(A152>$A$8,"",OFFSET(InputPriceData!E$15,CalculationsAndCharts!$A152+$A$11,IF($C$5,8,0),1,1)) -> 138.429993 | G152: =IF(A152>$A$8,"",OFFSET(InputPriceData!F$15,CalculationsAndCharts!$A152+$A$11,IF($C$5,8,0),1,1)) -> 139.25 | H152: 135.7645019 | I152: 1.838039226 | J152: 2.940862762 | K152: 138.7053646 | L152: 132.8236391 | M152: FALSE | N152: FALSE | O152: FALSE | P152: FALSE | Q152: TRUE | R152: FALSE | S152: 1.540009 | T152: 2.048120796 | U152: 133.7437544 | V152: FALSE | X152: 0 | Y152: 0 | Z152: 0 | AA152: 0 | AB152: 0 | AC152: 0 | AP152: 3113700
A153: 121 | B153: =IF(A153>$A$8,"",OFFSET(InputPriceData!B$15,$A153+$A$11,0,1,1)) -> 2019-02-21 | C153: =IF(A153>$A$8,"",OFFSET(InputPriceData!G$15,CalculationsAndCharts!$A153+$A$11,IF($C$5,8,0),1,1)) -> 2937300 | D153: =IF(A153>$A$8,"",OFFSET(InputPriceData!C$15,CalculationsAndCharts!$A153+$A$11,IF($C$5,8,0),1,1)) -> 137.820007 | E153: =IF(A153>$A$8,"",OFFSET(InputPriceData!D$15,CalculationsAndCharts!$A153+$A$11,IF($C$5,8,0),1,1)) -> 138.350006 | F153: =IF(A153>$A$8,"",OFFSET(InputPriceData!E$15,CalculationsAndCharts!$A153+$A$11,IF($C$5,8,0),1,1)) -> 137.350006 | G153: =IF(A153>$A$8,"",OFFSET(InputPriceData!F$15,CalculationsAndCharts!$A153+$A$11,IF($C$5,8,0),1,1)) -> 137.839996 | H153: 135.4285018 | I153: 1.783580032 | J153: 2.853728051 | K153: 138.2822299 | L153: 132.5747737 | M153: FALSE | N153: FALSE | O153: FALSE | P153: FALSE | Q153: TRUE | R153: FALSE | S153: 1 | T153: 2.087206319 | U153: 133.8255874 | V153: FALSE | X153: 0 | Y153: 0 | Z153: 0 | AA153: 0 | AB153: 0 | AC153: 0 | AP153: 2937300
A154: 122 | B154: =IF(A154>$A$8,"",OFFSET(InputPriceData!B$15,$A154+$A$11,0,1,1)) -> 2019-02-20 | C154: =IF(A154>$A$8,"",OFFSET(InputPriceData!G$15,CalculationsAndCharts!$A154+$A$11,IF($C$5,8,0),1,1)) -> 3802000 | D154: =IF(A154>$A$8,"",OFFSET(InputPriceData!C$15,CalculationsAndCharts!$A154+$A$11,IF($C$5,8,0),1,1)) -> 138.759995 | E154: =IF(A154>$A$8,"",OFFSET(InputPriceData!D$15,CalculationsAndCharts!$A154+$A$11,IF($C$5,8,0),1,1)) -> 139.240005 | F154: =IF(A154>$A$8,"",OFFSET(InputPriceData!E$15,CalculationsAndCharts!$A154+$A$11,IF($C$5,8,0),1,1)) -> 137.220001 | G154: =IF(A154>$A$8,"",OFFSET(InputPriceData!F$15,CalculationsAndCharts!$A154+$A$11,IF($C$5,8,0),1,1)) -> 138 | H154: 135.181002 | I154: 1.775200317 | J154: 2.840320507 | K154: 138.0213225 | L154: 132.3406814 | M154: FALSE | N154: FALSE | O154: FALSE | P154: FALSE | Q154: TRUE | R154: FALSE | S154: 2.020004 | T154: 2.170837575 | U154: 134.3583219 | V154: =IF(($A$8-$A154)<A$20,"",AND($R$10,F154<U154,P154)) -> FALSE | X154: 0 | Y154: 0 | Z154: 0 | AA154: 0 | AB154: 0 | AC154: 0 | AQ154: 3802000
A155: 123 | B155: =IF(A155>$A$8,"",OFFSET(InputPriceData!B$15,$A155+$A$11,0,1,1)) -> 2019-02-19 | C155: =IF(A155>$A$8,"",OFFSET(InputPriceData!G$15,CalculationsAndCharts!$A155+$A$11,IF($C$5,8,0),1,1)) -> 3385700 | D155: =IF(A155>$A$8,"",OFFSET(InputPriceData!C$15,CalculationsAndCharts!$A155+$A$11,IF($C$5,8,0),1,1)) -> 137.809998 | E155: =IF(A155>$A$8,"",OFFSET(InputPriceData!D$15,CalculationsAndCharts!$A155+$A$11,IF($C$5,8,0),1,1)) -> 138.699997 | F155: =IF(A155>$A$8,"",OFFSET(InputPriceData!E$15,CalculationsAndCharts!$A155+$A$11,IF($C$5,8,0),1,1)) -> 137.360001 | G155: =IF(A155>$A$8,"",OFFSET(InputPriceData!F$15,CalculationsAndCharts!$A155+$A$11,IF($C$5,8,0),1,1)) -> 138.699997 | H155: 134.4070018 | I155: 3.189039785 | J155: 5.102463656 | K155: 139.5094655 | L155: 129.3045381 | M155: FALSE | N155: FALSE | O155: FALSE | P155: FALSE | Q155: FALSE | R155: FALSE | S155: 1.339996 | T155: 2.182440157 | U155: 133.6651187 | V155: FALSE | X155: 0 | Y155: 0 | Z155: 0 | AA155: 0 | AB155: 0 | AC155: 0 | AP155: 3385700
A156: 124 | B156: =IF(A156>$A$8,"",OFFSET(InputPriceData!B$15,$A156+$A$11,0,1,1)) -> 2019-02-15 | C156: =IF(A156>$A$8,"",OFFSET(InputPriceData!G$15,CalculationsAndCharts!$A156+$A$11,IF($C$5,8,0),1,1)) -> 3844100 | D156: =IF(A156>$A$8,"",OFFSET(InputPriceData!C$15,CalculationsAndCharts!$A156+$A$11,IF($C$5,8,0),1,1)) -> 137.580002 | E156: =IF(A156>$A$8,"",OFFSET(InputPriceData!D$15,CalculationsAndCharts!$A156+$A$11,IF($C$5,8,0),1,1)) -> 138.190002 | F156: =IF(A156>$A$8,"",OFFSET(InputPriceData!E$15,CalculationsAndCharts!$A156+$A$11,IF($C$5,8,0),1,1)) -> 137.389999 | G156: =IF(A156>$A$8,"",OFFSET(InputPriceData!F$15,CalculationsAndCharts!$A156+$A$11,IF($C$5,8,0),1,1)) -> 138.029999 | H156: 133.663002 | I156: 3.781425517 | J156: 6.050280827 | K156: 139.7132828 | L156: 127.6127211 | M156: FALSE | N156: FALSE | O156: FALSE | P156: FALSE | Q156: FALSE | R156: FALSE | S156: 1.710006 | T156: 2.247243554 | U156: 131.9855089 | V156: FALSE | X156: 0 | Y156: 0 | Z156: 0 | AA156: 0 | AB156: 0 | AC156: 0 | AP156: 3844100
A157: 125 | B157: =IF(A157>$A$8,"",OFFSET(InputPriceData!B$15,$A157+$A$11,0,1,1)) -> 2019-02-14 | C157: =IF(A157>$A$8,"",OFFSET(InputPriceData!G$15,CalculationsAndCharts!$A157+$A$11,IF($C$5,8,0),1,1)) -> 2789400 | D157: =IF(A157>$A$8,"",OFFSET(InputPriceData!C$15,CalculationsAndCharts!$A157+$A$11,IF($C$5,8,0),1,1)) -> 137.169998 | E157: =IF(A157>$A$8,"",OFFSET(InputPriceData!D$15,CalculationsAndCharts!$A157+$A$11,IF($C$5,8,0),1,1)) -> 137.600006 | F157: =IF(A157>$A$8,"",OFFSET(InputPriceData!E$15,CalculationsAndCharts!$A157+$A$11,IF($C$5,8,0),1,1)) -> 136.210007 | G157: =IF(A157>$A$8,"",OFFSET(InputPriceData!F$15,CalculationsAndCharts!$A157+$A$11,IF($C$5,8,0),1,1)) -> 136.479996 | H157: 132.8710021 | I157: 4.39316155 | J157: 7.02905848 | K157: 139.9000606 | L157: 125.8419436 | M157: FALSE | N157: FALSE | O157: FALSE | P157: FALSE | Q157: FALSE | R157: FALSE | S157: 1.389999 | T157: 2.28856952 | U157: 132.942865 | V157: FALSE | X157: 0 | Y157: 0 | Z157: 0 | AA157: 0 | AB157: 0 | AC157: 0 | AQ157: 2789400
A158: 126 | B158: =IF(A158>$A$8,"",OFFSET(InputPriceData!B$15,$A158+$A$11,0,1,1)) -> 2019-02-13 | C158: =IF(A158>$A$8,"",OFFSET(InputPriceData!G$15,CalculationsAndCharts!$A158+$A$11,IF($C$5,8,0),1,1)) -> 4253000 | D158: =IF(A158>$A$8,"",OFFSET(InputPriceData!C$15,CalculationsAndCharts!$A158+$A$11,IF($C$5,8,0),1,1)) -> 136.919998 | E158: =IF(A158>$A$8,"",OFFSET(InputPriceData!D$15,CalculationsAndCharts!$A158+$A$11,IF($C$5,8,0),1,1)) -> 137.919998 | F158: =IF(A158>$A$8,"",OFFSET(InputPriceData!E$15,CalculationsAndCharts!$A158+$A$11,IF($C$5,8,0),1,1)) -> 136.410004 | G158: =IF(A158>$A$8,"",OFFSET(InputPriceData!F$15,CalculationsAndCharts!$A158+$A$11,IF($C$5,8,0),1,1)) -> 137.520004 | H158: 132.1280024 | I158: 4.942249196 | J158: 7.907598714 | K158: 140.0356012 | L158: 124.2204037 | M158: FALSE | N158: FALSE | O158: FALSE | P158: FALSE | Q158: FALSE | R158: FALSE | S158: 1.869995 | T158: 2.357690329 | U158: 131.3346223 | V158: FALSE | X158: 0 | Y158: 0 | Z158: 0 | AA158: 0 | AB158: 0 | AC158: 0 | AP158: 4253000
A159: 127 | B159: =IF(A159>$A$8,"",OFFSET(InputPriceData!B$15,$A159+$A$11,0,1,1)) -> 2019-02-12 | C159: =IF(A159>$A$8,"",OFFSET(InputPriceData!G$15,CalculationsAndCharts!$A159+$A$11,IF($C$5,8,0),1,1)) -> 3317200 | D159: =IF(A159>$A$8,"",OFFSET(InputPriceData!C$15,CalculationsAndCharts!$A159+$A$11,IF($C$5,8,0),1,1)) -> 135.149994 | E159: =IF(A159>$A$8,"",OFFSET(InputPriceData!D$15,CalculationsAndCharts!$A159+$A$11,IF($C$5,8,0),1,1)) -> 136.199997 | F159: =IF(A159>$A$8,"",OFFSET(InputPriceData!E$15,CalculationsAndCharts!$A159+$A$11,IF($C$5,8,0),1,1)) -> 134.860001 | G159: =IF(A159>$A$8,"",OFFSET(InputPriceData!F$15,CalculationsAndCharts!$A159+$A$11,IF($C$5,8,0),1,1)) -> 136.050003 | H159: 131.3385024 | I159: 5.268277933 | J159: 8.429244693 | K159: 139.7677471 | L159: 122.9092577 | M159: FALSE | N159: FALSE | O159: FALSE | P159: FALSE | Q159: FALSE | R159: FALSE | S159: 2.209992 | T159: 2.395205354 | U159: 129.1995943 | V159: FALSE | X159: 0 | Y159: 0 | Z159: 0 | AA159: 0 | AB159: 0 | AC159: 0 | AP159: 3317200
A160: 128 | B160: =IF(A160>$A$8,"",OFFSET(InputPriceData!B$15,$A160+$A$11,0,1,1)) -> 2019-02-11 | C160: =IF(A160>$A$8,"",OFFSET(InputPriceData!G$15,CalculationsAndCharts!$A160+$A$11,IF($C$5,8,0),1,1)) -> 3095100 | D160: =IF(A160>$A$8,"",OFFSET(InputPriceData!C$15,CalculationsAndCharts!$A160+$A$11,IF($C$5,8,0),1,1)) -> 134.289993 | E160: =IF(A160>$A$8,"",OFFSET(InputPriceData!D$15,CalculationsAndCharts!$A160+$A$11,IF($C$5,8,0),1,1)) -> 135.149994 | F160: =IF(A160>$A$8,"",OFFSET(InputPriceData!E$15,CalculationsAndCharts!$A160+$A$11,IF($C$5,8,0),1,1)) -> 133.910004 | G160: =IF(A160>$A$8,"",OFFSET(InputPriceData!F$15,CalculationsAndCharts!$A160+$A$11,IF($C$5,8,0),1,1)) -> 133.990005 | H160: 130.5555022 | I160: 5.659084511 | J160: 9.054535218 | K160: 139.6100374 | L160: 121.500967 | M160: FALSE | N160: TRUE | O160: FALSE | P160: FALSE | Q160: FALSE | R160: FALSE | S160: 1.439987 | T160: 2.409452535 | U160: 128.8911019 | V160: FALSE | X160: 0 | Y160: 0 | Z160: 0 | AA160: 0 | AB160: 0 | AC160: 0 | AQ160: 3095100
A161: 129 | B161: =IF(A161>$A$8,"",OFFSET(InputPriceData!B$15,$A161+$A$11,0,1,1)) -> 2019-02-08 | C161: =IF(A161>$A$8,"",OFFSET(InputPriceData!G$15,CalculationsAndCharts!$A161+$A$11,IF($C$5,8,0),1,1)) -> 3249800 | D161: =IF(A161>$A$8,"",OFFSET(InputPriceData!C$15,CalculationsAndCharts!$A161+$A$11,IF($C$5,8,0),1,1)) -> 132.339996 | E161: =IF(A161>$A$8,"",OFFSET(InputPriceData!D$15,CalculationsAndCharts!$A161+$A$11,IF($C$5,8,0),1,1)) -> 133.710007 | F161: =IF(A161>$A$8,"",OFFSET(InputPriceData!E$15,CalculationsAndCharts!$A161+$A$11,IF($C$5,8,0),1,1)) -> 132.190002 | G161: =IF(A161>$A$8,"",OFFSET(InputPriceData!F$15,CalculationsAndCharts!$A161+$A$11,IF($C$5,8,0),1,1)) -> 133.710007 | H161: =IF(A161>$A$8,"",IF($A161>$A$8,NA(),IF(A161=$A$8,G161,AVERAGE(OFFSET(G161,0,0,$A$17,1))))) -> 129.9290019 | I161: =IF(A161>$A$8,"",_xlfn.STDEV.P(OFFSET(G161,0,0,$A$17,1))) -> 5.931218537 | J161: =IF(A161>$A$8,"",$A$18*I161) -> 9.489949659 | K161: =IF(A161>$A$8,"",$H161+$J161) -> 139.4189516 | L161: =IF(A161>$A$8,"",$H161-$J161) -> 120.4390522 | M161: =IF(A161>$A$8-2,"",IF(A161=$A$8-2,FALSE,OR(AND(G162>L162,F162<L162),(F163<L163)))) -> FALSE | N161: =IF(A161>$A$8-2,"",IF(A161=$A$8-2,FALSE,AND(G163<D163,G162>D162,D162<G163,G162>D163,G161>E162))) -> FALSE | O161: FALSE | P161: =IF(A161>$A$8-2,"",IF(A161=$A$8-2,FALSE,IF(P162,IF(R162,FALSE,P162),IF(O162,TRUE,P162)))) -> FALSE | Q161: =IF(A161>$A$8-2,"",E161>K161) -> FALSE | R161: =IF(A161>$A$8-2,"",IF(A161=$A$8-2,FALSE,AND(P161,OR(Q161,V161)))) -> FALSE | S161: =IF($A161<$A$8,MAX(E161-F161,ABS(E161-G162),ABS(F161-G162)),"") -> 1.520005 | T161: =IF(($A$8-$A161)<A$20,"",IF(($A$8-$A161)=A$20,AVERAGE(OFFSET($S161,0,0,A$20,1)),T162*$D$20+$S161*$C$20)) -> 2.484026807 | U161: =IF(($A$8-$A161)<A$20,"",G162-T161*$A$21) -> 128.2219484 | V161: FALSE | W161: =IF(A161>$A$8-2,NA(),IF(AND($R$9,P161),$AZ$34,NA())) ->  | X161: 0 | Y161: 0 | Z161: 0 | AA161: 0 | AB161: 0 | AC161: 0 | AP161: 3249800
A162: 130 | B162: =IF(A162>$A$8,"",OFFSET(InputPriceData!B$15,$A162+$A$11,0,1,1)) -> 2019-02-07 | C162: =IF(A162>$A$8,"",OFFSET(InputPriceData!G$15,CalculationsAndCharts!$A162+$A$11,IF($C$5,8,0),1,1)) -> 4379400 | D162: =IF(A162>$A$8,"",OFFSET(InputPriceData!C$15,CalculationsAndCharts!$A162+$A$11,IF($C$5,8,0),1,1)) -> 133.550003 | E162: =IF(A162>$A$8,"",OFFSET(InputPriceData!D$15,CalculationsAndCharts!$A162+$A$11,IF($C$5,8,0),1,1)) -> 134.470001 | F162: =IF(A162>$A$8,"",OFFSET(InputPriceData!E$15,CalculationsAndCharts!$A162+$A$11,IF($C$5,8,0),1,1)) -> 132.119995 | G162: =IF(A162>$A$8,"",OFFSET(InputPriceData!F$15,CalculationsAndCharts!$A162+$A$11,IF($C$5,8,0),1,1)) -> 133.190002 | H162: 129.3330016 | I162: 6.11731181 | J162: 9.787698895 | K162: 139.1207005 | L162: 119.5453027 | M162: FALSE | N162: FALSE | O162: FALSE | P162: FALSE | Q162: FALSE | R162: FALSE | S162: 4.200012 | T162: 2.558182331 | U162: 131.2036423 | V162: FALSE | X162: =IF(A162>$A$8-2,"",IF(AND(P162,IFERROR(NOT(P163),FALSE)),D162,0)) -> 0 | Y162: =IF(A162>$A$8-2,"",IF(AND(P162,IFERROR(NOT(P163),FALSE)),INT($A$22/X162),IF(P162,Y163,0))) -> 0 | Z162: =IF(A162>$A$8-2,"",IF(AND(P162,IFERROR(NOT(P163),FALSE)),-X162*Y162,IF(P162,Z163,0))) -> 0 | AA162: =IF(A162>$A$8-2,"",IF(AND(IFERROR(AND(P163),FALSE),NOT(P162)),D162,IF(AND(A162=1,P162),G162,0))) -> 0 | AB162: =IF(A162>$A$8-2,"",IF(AND(IFERROR(AND(P163),FALSE),NOT(P162)),AA162*Y163,IF(AND(A162=1,P162),AA162*Y162,0))) -> 0 | AC162: =IF(A162>$A$8-2,"",IF(AND(IFERROR(AND(P163),FALSE),NOT(P162)),AB162+Z163,IF(AND(A162=1,P162),AB162+Z162,0))) -> 0 | AQ162: 4379400
A163: 131 | B163: =IF(A163>$A$8,"",OFFSET(InputPriceData!B$15,$A163+$A$11,0,1,1)) -> 2019-02-06 | C163: =IF(A163>$A$8,"",OFFSET(InputPriceData!G$15,CalculationsAndCharts!$A163+$A$11,IF($C$5,8,0),1,1)) -> 4879700 | D163: =IF(A163>$A$8,"",OFFSET(InputPriceData!C$15,CalculationsAndCharts!$A163+$A$11,IF($C$5,8,0),1,1)) -> 135.220001 | E163: =IF(A163>$A$8,"",OFFSET(InputPriceData!D$15,CalculationsAndCharts!$A163+$A$11,IF($C$5,8,0),1,1)) -> 136.649994 | F163: =IF(A163>$A$8,"",OFFSET(InputPriceData!E$15,CalculationsAndCharts!$A163+$A$11,IF($C$5,8,0),1,1)) -> 135.169998 | G163: =IF(A163>$A$8,"",OFFSET(InputPriceData!F$15,CalculationsAndCharts!$A163+$A$11,IF($C$5,8,0),1,1)) -> 136.320007 | H163: 128.7080016 | I163: 6.326304472 | J163: 10.12208716 | K163: 138.8300888 | L163: 118.5859144 | M163: FALSE | N163: FALSE | O163: FALSE | P163: FALSE | Q163: FALSE | R163: FALSE | S163: 1.479996 | T163: 2.431887741 | U163: 130.6862275 | V163: FALSE | X163: 0 | Y163: 0 | Z163: 0 | AA163: 0 | AB163: 0 | AC163: 0 | AP163: 4879700
A164: 132 | B164: =IF(A164>$A$8,"",OFFSET(InputPriceData!B$15,$A164+$A$11,0,1,1)) -> 2019-02-05 | C164: =IF(A164>$A$8,"",OFFSET(InputPriceData!G$15,CalculationsAndCharts!$A164+$A$11,IF($C$5,8,0),1,1)) -> 5398900 | D164: =IF(A164>$A$8,"",OFFSET(InputPriceData!C$15,CalculationsAndCharts!$A164+$A$11,IF($C$5,8,0),1,1)) -> 135.279999 | E164: =IF(A164>$A$8,"",OFFSET(InputPriceData!D$15,CalculationsAndCharts!$A164+$A$11,IF($C$5,8,0),1,1)) -> 135.820007 | F164: =IF(A164>$A$8,"",OFFSET(InputPriceData!E$15,CalculationsAndCharts!$A164+$A$11,IF($C$5,8,0),1,1)) -> 134.919998 | G164: =IF(A164>$A$8,"",OFFSET(InputPriceData!F$15,CalculationsAndCharts!$A164+$A$11,IF($C$5,8,0),1,1)) -> 135.550003 | H164: 127.8835014 | I164: 6.35500906 | J164: 10.1680145 | K164: 138.0515158 | L164: 117.7154869 | M164: FALSE | N164: TRUE | O164: FALSE | P164: FALSE | Q164: FALSE | R164: FALSE | S164: 0.900009 | T164: 2.505110183 | U164: 130.1797816 | V164: FALSE | X164: 0 | Y164: 0 | Z164: 0 | AA164: 0 | AB164: 0 | AC164: 0 | AP164: 5398900
A165: 133 | B165: =IF(A165>$A$8,"",OFFSET(InputPriceData!B$15,$A165+$A$11,0,1,1)) -> 2019-02-04 | C165: =IF(A165>$A$8,"",OFFSET(InputPriceData!G$15,CalculationsAndCharts!$A165+$A$11,IF($C$5,8,0),1,1)) -> 3966600 | D165: =IF(A165>$A$8,"",OFFSET(InputPriceData!C$15,CalculationsAndCharts!$A165+$A$11,IF($C$5,8,0),1,1)) -> 134.020004 | E165: =IF(A165>$A$8,"",OFFSET(InputPriceData!D$15,CalculationsAndCharts!$A165+$A$11,IF($C$5,8,0),1,1)) -> 135.199997 | F165: =IF(A165>$A$8,"",OFFSET(InputPriceData!E$15,CalculationsAndCharts!$A165+$A$11,IF($C$5,8,0),1,1)) -> 132.990005 | G165: =IF(A165>$A$8,"",OFFSET(InputPriceData!F$15,CalculationsAndCharts!$A165+$A$11,IF($C$5,8,0),1,1)) -> 135.190002 | H165: 127.0135013 | I165: 6.436422 | J165: 10.2982752 | K165: 137.3117765 | L165: 116.7152261 | M165: FALSE | N165: FALSE | O165: FALSE | P165: FALSE | Q165: FALSE | R165: FALSE | S165: 2.209992 | T165: 2.628579504 | U165: 128.842847 | V165: FALSE | X165: 0 | Y165: 0 | Z165: 0 | AA165: 0 | AB165: 0 | AC165: 0 | AP165: 3966600
A166: 134 | B166: =IF(A166>$A$8,"",OFFSET(InputPriceData!B$15,$A166+$A$11,0,1,1)) -> 2019-02-01 | C166: =IF(A166>$A$8,"",OFFSET(InputPriceData!G$15,CalculationsAndCharts!$A166+$A$11,IF($C$5,8,0),1,1)) -> 3806000 | D166: =IF(A166>$A$8,"",OFFSET(InputPriceData!C$15,CalculationsAndCharts!$A166+$A$11,IF($C$5,8,0),1,1)) -> 134.970001 | E166: =IF(A166>$A$8,"",OFFSET(InputPriceData!D$15,CalculationsAndCharts!$A166+$A$11,IF($C$5,8,0),1,1)) -> 135.199997 | F166: =IF(A166>$A$8,"",OFFSET(InputPriceData!E$15,CalculationsAndCharts!$A166+$A$11,IF($C$5,8,0),1,1)) -> 133.350006 | G166: =IF(A166>$A$8,"",OFFSET(InputPriceData!F$15,CalculationsAndCharts!$A166+$A$11,IF($C$5,8,0),1,1)) -> 134.100006 | H166: 126.1200012 | I166: 6.479554454 | J166: 10.36728713 | K166: 136.4872883 | L166: 115.7527141 | M166: FALSE | N166: FALSE | O166: FALSE | P166: FALSE | Q166: FALSE | R166: FALSE | S166: 1.849991 | T166: 2.660778543 | U166: 129.0984409 | V166: FALSE | X166: 0 | Y166: 0 | Z166: 0 | AA166: 0 | AB166: 0 | AC166: 0 | AQ166: 3806000
A167: 135 | B167: =IF(A167>$A$8,"",OFFSET(InputPriceData!B$15,$A167+$A$11,0,1,1)) -> 2019-01-31 | C167: =IF(A167>$A$8,"",OFFSET(InputPriceData!G$15,CalculationsAndCharts!$A167+$A$11,IF($C$5,8,0),1,1)) -> 4884000 | D167: =IF(A167>$A$8,"",OFFSET(InputPriceData!C$15,CalculationsAndCharts!$A167+$A$11,IF($C$5,8,0),1,1)) -> 134.449997 | E167: =IF(A167>$A$8,"",OFFSET(InputPriceData!D$15,CalculationsAndCharts!$A167+$A$11,IF($C$5,8,0),1,1)) -> 134.720001 | F167: =IF(A167>$A$8,"",OFFSET(InputPriceData!E$15,CalculationsAndCharts!$A167+$A$11,IF($C$5,8,0),1,1)) -> 133.740005 | G167: =IF(A167>$A$8,"",OFFSET(InputPriceData!F$15,CalculationsAndCharts!$A167+$A$11,IF($C$5,8,0),1,1)) -> 134.419998 | H167: 125.0605011 | I167: 6.81199405 | J167: 10.89919048 | K167: 135.9596916 | L167: 114.1613106 | M167: FALSE | N167: FALSE | O167: FALSE | P167: FALSE | Q167: FALSE | R167: FALSE | S167: 0.979996 | T167: 2.723146816 | U167: 128.9337114 | V167: FALSE | X167: 0 | Y167: 0 | Z167: 0 | AA167: 0 | AB167: 0 | AC167: 0 | AQ167: 4884000
A168: 136 | B168: =IF(A168>$A$8,"",OFFSET(InputPriceData!B$15,$A168+$A$11,0,1,1)) -> 2019-01-30 | C168: =IF(A168>$A$8,"",OFFSET(InputPriceData!G$15,CalculationsAndCharts!$A168+$A$11,IF($C$5,8,0),1,1)) -> 4500900 | D168: =IF(A168>$A$8,"",OFFSET(InputPriceData!C$15,CalculationsAndCharts!$A168+$A$11,IF($C$5,8,0),1,1)) -> 134 | E168: =IF(A168>$A$8,"",OFFSET(InputPriceData!D$15,CalculationsAndCharts!$A168+$A$11,IF($C$5,8,0),1,1)) -> 135.029999 | F168: =IF(A168>$A$8,"",OFFSET(InputPriceData!E$15,CalculationsAndCharts!$A168+$A$11,IF($C$5,8,0),1,1)) -> 133.25 | G168: =IF(A168>$A$8,"",OFFSET(InputPriceData!F$15,CalculationsAndCharts!$A168+$A$11,IF($C$5,8,0),1,1)) -> 134.380005 | H168: 124.1000011 | I168: 6.778813557 | J168: 10.84610169 | K168: 134.9461028 | L168: 113.2538995 | M168: FALSE | N168: FALSE | O168: FALSE | P168: FALSE | Q168: TRUE | R168: FALSE | S168: 1.779999 | T168: 2.85723534 | U168: 128.6155313 | V168: FALSE | X168: 0 | Y168: 0 | Z168: 0 | AA168: 0 | AB168: 0 | AC168: 0 | AP168: 4500900
A169: 137 | B169: =IF(A169>$A$8,"",OFFSET(InputPriceData!B$15,$A169+$A$11,0,1,1)) -> 2019-01-29 | C169: =IF(A169>$A$8,"",OFFSET(InputPriceData!G$15,CalculationsAndCharts!$A169+$A$11,IF($C$5,8,0),1,1)) -> 5037100 | D169: =IF(A169>$A$8,"",OFFSET(InputPriceData!C$15,CalculationsAndCharts!$A169+$A$11,IF($C$5,8,0),1,1)) -> 134.289993 | E169: =IF(A169>$A$8,"",OFFSET(InputPriceData!D$15,CalculationsAndCharts!$A169+$A$11,IF($C$5,8,0),1,1)) -> 135.410004 | F169: =IF(A169>$A$8,"",OFFSET(InputPriceData!E$15,CalculationsAndCharts!$A169+$A$11,IF($C$5,8,0),1,1)) -> 133.600006 | G169: =IF(A169>$A$8,"",OFFSET(InputPriceData!F$15,CalculationsAndCharts!$A169+$A$11,IF($C$5,8,0),1,1)) -> 134.330002 | H169: 123.0645008 | I169: 6.710840231 | J169: 10.73734437 | K169: 133.8018452 | L169: 112.3271564 | M169: FALSE | N169: FALSE | O169: FALSE | P169: FALSE | Q169: TRUE | R169: FALSE | S169: 1.809998 | T169: 2.940099674 | U169: 128.3898047 | V169: FALSE | X169: 0 | Y169: 0 | Z169: 0 | AA169: 0 | AB169: 0 | AC169: 0 | AP169: 5037100
A170: 138 | B170: =IF(A170>$A$8,"",OFFSET(InputPriceData!B$15,$A170+$A$11,0,1,1)) -> 2019-01-28 | C170: =IF(A170>$A$8,"",OFFSET(InputPriceData!G$15,CalculationsAndCharts!$A170+$A$11,IF($C$5,8,0),1,1)) -> 5357700 | D170: =IF(A170>$A$8,"",OFFSET(InputPriceData!C$15,CalculationsAndCharts!$A170+$A$11,IF($C$5,8,0),1,1)) -> 133.100006 | E170: =IF(A170>$A$8,"",OFFSET(InputPriceData!D$15,CalculationsAndCharts!$A170+$A$11,IF($C$5,8,0),1,1)) -> 134.809998 | F170: =IF(A170>$A$8,"",OFFSET(InputPriceData!E$15,CalculationsAndCharts!$A170+$A$11,IF($C$5,8,0),1,1)) -> 132.580002 | G170: =IF(A170>$A$8,"",OFFSET(InputPriceData!F$15,CalculationsAndCharts!$A170+$A$11,IF($C$5,8,0),1,1)) -> 134.270004 | H170: 121.9995006 | I170: 6.526111916 | J170: 10.44177906 | K170: 132.4412797 | L170: 111.5577216 | M170: FALSE | N170: FALSE | O170: FALSE | P170: FALSE | Q170: TRUE | R170: FALSE | S170: 2.229996 | T170: 3.027030572 | U170: 127.9159399 | V170: FALSE | X170: 0 | Y170: 0 | Z170: 0 | AA170: 0 | AB170: 0 | AC170: 0 | AP170: 5357700
A171: 139 | B171: =IF(A171>$A$8,"",OFFSET(InputPriceData!B$15,$A171+$A$11,0,1,1)) -> 2019-01-25 | C171: =IF(A171>$A$8,"",OFFSET(InputPriceData!G$15,CalculationsAndCharts!$A171+$A$11,IF($C$5,8,0),1,1)) -> 5707400 | D171: =IF(A171>$A$8,"",OFFSET(InputPriceData!C$15,CalculationsAndCharts!$A171+$A$11,IF($C$5,8,0),1,1)) -> 132.869995 | E171: =IF(A171>$A$8,"",OFFSET(InputPriceData!D$15,CalculationsAndCharts!$A171+$A$11,IF($C$5,8,0),1,1)) -> 134.440002 | F171: =IF(A171>$A$8,"",OFFSET(InputPriceData!E$15,CalculationsAndCharts!$A171+$A$11,IF($C$5,8,0),1,1)) -> 132.429993 | G171: =IF(A171>$A$8,"",OFFSET(InputPriceData!F$15,CalculationsAndCharts!$A171+$A$11,IF($C$5,8,0),1,1)) -> 133.970001 | H171: 120.9750004 | I171: 6.114759498 | J171: 9.783615197 | K171: 130.7586156 | L171: 111.1913852 | M171: FALSE | N171: FALSE | O171: FALSE | P171: FALSE | Q171: TRUE | R171: FALSE | S171: 2.010009 | T171: 3.088340923 | U171: 126.3533172 | V171: FALSE | X171: 0 | Y171: 0 | Z171: 0 | AA171: 0 | AB171: 0 | AC171: 0 | AP171: 5707400
A172: 140 | B172: =IF(A172>$A$8,"",OFFSET(InputPriceData!B$15,$A172+$A$11,0,1,1)) -> 2019-01-24 | C172: =IF(A172>$A$8,"",OFFSET(InputPriceData!G$15,CalculationsAndCharts!$A172+$A$11,IF($C$5,8,0),1,1)) -> 6322900 | D172: =IF(A172>$A$8,"",OFFSET(InputPriceData!C$15,CalculationsAndCharts!$A172+$A$11,IF($C$5,8,0),1,1)) -> 132.630005 | E172: =IF(A172>$A$8,"",OFFSET(InputPriceData!D$15,CalculationsAndCharts!$A172+$A$11,IF($C$5,8,0),1,1)) -> 133.210007 | F172: =IF(A172>$A$8,"",OFFSET(InputPriceData!E$15,CalculationsAndCharts!$A172+$A$11,IF($C$5,8,0),1,1)) -> 131.429993 | G172: =IF(A172>$A$8,"",OFFSET(InputPriceData!F$15,CalculationsAndCharts!$A172+$A$11,IF($C$5,8,0),1,1)) -> 132.529999 | H172: 119.8460003 | I172: 5.680295156 | J172: 9.088472249 | K172: 128.9344725 | L172: 110.7575281 | M172: FALSE | N172: FALSE | O172: FALSE | P172: FALSE | Q172: TRUE | R172: FALSE | S172: 1.780014 | T172: 3.171289533 | U172: 126.5474199 | V172: FALSE | X172: 0 | Y172: 0 | Z172: 0 | AA172: 0 | AB172: 0 | AC172: 0 | AQ172: 6322900
A173: 141 | B173: =IF(A173>$A$8,"",OFFSET(InputPriceData!B$15,$A173+$A$11,0,1,1)) -> 2019-01-23 | C173: =IF(A173>$A$8,"",OFFSET(InputPriceData!G$15,CalculationsAndCharts!$A173+$A$11,IF($C$5,8,0),1,1)) -> 22063700 | D173: =IF(A173>$A$8,"",OFFSET(InputPriceData!C$15,CalculationsAndCharts!$A173+$A$11,IF($C$5,8,0),1,1)) -> 131.369995 | E173: =IF(A173>$A$8,"",OFFSET(InputPriceData!D$15,CalculationsAndCharts!$A173+$A$11,IF($C$5,8,0),1,1)) -> 135 | F173: =IF(A173>$A$8,"",OFFSET(InputPriceData!E$15,CalculationsAndCharts!$A173+$A$11,IF($C$5,8,0),1,1)) -> 130.309998 | G173: =IF(A173>$A$8,"",OFFSET(InputPriceData!F$15,CalculationsAndCharts!$A173+$A$11,IF($C$5,8,0),1,1)) -> 132.889999 | H173: 118.5980004 | I173: 5.495367794 | J173: 8.792588471 | K173: 127.3905888 | L173: 109.8054119 | M173: FALSE | N173: FALSE | O173: FALSE | P173: FALSE | Q173: TRUE | R173: FALSE | S173: 12.480003 | T173: 3.278310728 | U173: 115.9633755 | V173: FALSE | X173: 0 | Y173: 0 | Z173: 0 | AA173: 0 | AB173: 0 | AC173: 0 | AP173: 22063700
A174: 142 | B174: =IF(A174>$A$8,"",OFFSET(InputPriceData!B$15,$A174+$A$11,0,1,1)) -> 2019-01-22 | C174: =IF(A174>$A$8,"",OFFSET(InputPriceData!G$15,CalculationsAndCharts!$A174+$A$11,IF($C$5,8,0),1,1)) -> 10052400 | D174: =IF(A174>$A$8,"",OFFSET(InputPriceData!C$15,CalculationsAndCharts!$A174+$A$11,IF($C$5,8,0),1,1)) -> 123.300003 | E174: =IF(A174>$A$8,"",OFFSET(InputPriceData!D$15,CalculationsAndCharts!$A174+$A$11,IF($C$5,8,0),1,1)) -> 123.800003 | F174: =IF(A174>$A$8,"",OFFSET(InputPriceData!E$15,CalculationsAndCharts!$A174+$A$11,IF($C$5,8,0),1,1)) -> 121.540001 | G174: =IF(A174>$A$8,"",OFFSET(InputPriceData!F$15,CalculationsAndCharts!$A174+$A$11,IF($C$5,8,0),1,1)) -> 122.519997 | H174: 117.5005005 | I174: 4.65980117 | J174: 7.455681872 | K174: 124.9561824 | L174: 110.0448186 | M174: FALSE | N174: FALSE | O174: FALSE | P174: FALSE | Q174: FALSE | R174: FALSE | S174: 2.279999 | T174: 2.570488245 | U174: 118.6790235 | V174: FALSE | X174: 0 | Y174: 0 | Z174: 0 | AA174: 0 | AB174: 0 | AC174: 0 | AQ174: 10052400
A175: 143 | B175: =IF(A175>$A$8,"",OFFSET(InputPriceData!B$15,$A175+$A$11,0,1,1)) -> 2019-01-18 | C175: =IF(A175>$A$8,"",OFFSET(InputPriceData!G$15,CalculationsAndCharts!$A175+$A$11,IF($C$5,8,0),1,1)) -> 6008500 | D175: =IF(A175>$A$8,"",OFFSET(InputPriceData!C$15,CalculationsAndCharts!$A175+$A$11,IF($C$5,8,0),1,1)) -> 123.269997 | E175: =IF(A175>$A$8,"",OFFSET(InputPriceData!D$15,CalculationsAndCharts!$A175+$A$11,IF($C$5,8,0),1,1)) -> 124.720001 | F175: =IF(A175>$A$8,"",OFFSET(InputPriceData!E$15,CalculationsAndCharts!$A175+$A$11,IF($C$5,8,0),1,1)) -> 122.709999 | G175: =IF(A175>$A$8,"",OFFSET(InputPriceData!F$15,CalculationsAndCharts!$A175+$A$11,IF($C$5,8,0),1,1)) -> 123.82 | H175: 117.0255005 | I175: 4.607830321 | J175: 7.372528513 | K175: 124.398029 | L175: 109.652972 | M175: FALSE | N175: FALSE | O175: FALSE | P175: FALSE | Q175: TRUE | R175: FALSE | S175: 2.529999 | T175: 2.592833572 | U175: 117.0043349 | V175: FALSE | X175: 0 | Y175: 0 | Z175: 0 | AA175: 0 | AB175: 0 | AC175: 0 | AP175: 6008500
A176: 144 | B176: =IF(A176>$A$8,"",OFFSET(InputPriceData!B$15,$A176+$A$11,0,1,1)) -> 2019-01-17 | C176: =IF(A176>$A$8,"",OFFSET(InputPriceData!G$15,CalculationsAndCharts!$A176+$A$11,IF($C$5,8,0),1,1)) -> 5029900 | D176: =IF(A176>$A$8,"",OFFSET(InputPriceData!C$15,CalculationsAndCharts!$A176+$A$11,IF($C$5,8,0),1,1)) -> 120.559998 | E176: =IF(A176>$A$8,"",OFFSET(InputPriceData!D$15,CalculationsAndCharts!$A176+$A$11,IF($C$5,8,0),1,1)) -> 122.410004 | F176: =IF(A176>$A$8,"",OFFSET(InputPriceData!E$15,CalculationsAndCharts!$A176+$A$11,IF($C$5,8,0),1,1)) -> 120.550003 | G176: =IF(A176>$A$8,"",OFFSET(InputPriceData!F$15,CalculationsAndCharts!$A176+$A$11,IF($C$5,8,0),1,1)) -> 122.190002 | H176: 116.6560005 | I176: 4.33647782 | J176: 6.938364512 | K176: 123.594365 | L176: 109.717636 | M176: FALSE | N176: FALSE | O176: FALSE | P176: FALSE | Q176: FALSE | R176: FALSE | S176: 1.860001 | T176: 2.597667 | U176: 116.424669 | V176: FALSE | X176: 0 | Y176: 0 | Z176: 0 | AA176: 0 | AB176: 0 | AC176: 0 | AP176: 5029900
A177: 145 | B177: =IF(A177>$A$8,"",OFFSET(InputPriceData!B$15,$A177+$A$11,0,1,1)) -> 2019-01-16 | C177: =IF(A177>$A$8,"",OFFSET(InputPriceData!G$15,CalculationsAndCharts!$A177+$A$11,IF($C$5,8,0),1,1)) -> 3841100 | D177: =IF(A177>$A$8,"",OFFSET(InputPriceData!C$15,CalculationsAndCharts!$A177+$A$11,IF($C$5,8,0),1,1)) -> 121.580002 | E177: =IF(A177>$A$8,"",OFFSET(InputPriceData!D$15,CalculationsAndCharts!$A177+$A$11,IF($C$5,8,0),1,1)) -> 122 | F177: =IF(A177>$A$8,"",OFFSET(InputPriceData!E$15,CalculationsAndCharts!$A177+$A$11,IF($C$5,8,0),1,1)) -> 120.830002 | G177: =IF(A177>$A$8,"",OFFSET(InputPriceData!F$15,CalculationsAndCharts!$A177+$A$11,IF($C$5,8,0),1,1)) -> 121.620003 | H177: 116.3790005 | I177: 4.14693309 | J177: 6.635092944 | K177: 123.0140934 | L177: 109.7439076 | M177: FALSE | N177: FALSE | O177: FALSE | P177: FALSE | Q177: FALSE | R177: FALSE | S177: 1.169998 | T177: 2.654410539 | U177: 116.4211819 | V177: FALSE | X177: 0 | Y177: 0 | Z177: 0 | AA177: 0 | AB177: 0 | AC177: 0 | AP177: 3841100
A178: 146 | B178: =IF(A178>$A$8,"",OFFSET(InputPriceData!B$15,$A178+$A$11,0,1,1)) -> 2019-01-15 | C178: =IF(A178>$A$8,"",OFFSET(InputPriceData!G$15,CalculationsAndCharts!$A178+$A$11,IF($C$5,8,0),1,1)) -> 3507500 | D178: =IF(A178>$A$8,"",OFFSET(InputPriceData!C$15,CalculationsAndCharts!$A178+$A$11,IF($C$5,8,0),1,1)) -> 120.959999 | E178: =IF(A178>$A$8,"",OFFSET(InputPriceData!D$15,CalculationsAndCharts!$A178+$A$11,IF($C$5,8,0),1,1)) -> 121.93 | F178: =IF(A178>$A$8,"",OFFSET(InputPriceData!E$15,CalculationsAndCharts!$A178+$A$11,IF($C$5,8,0),1,1)) -> 120.82 | G178: =IF(A178>$A$8,"",OFFSET(InputPriceData!F$15,CalculationsAndCharts!$A178+$A$11,IF($C$5,8,0),1,1)) -> 121.730003 | H178: 116.1030003 | I178: 3.968798896 | J178: 6.350078234 | K178: 122.4530785 | L178: 109.752922 | M178: FALSE | N178: FALSE | O178: FALSE | P178: FALSE | Q178: FALSE | R178: FALSE | S178: 1.540001 | T178: 2.768596119 | U178: 114.8528068 | V178: FALSE | X178: 0 | Y178: 0 | Z178: 0 | AA178: 0 | AB178: 0 | AC178: 0 | AP178: 3507500
A179: 147 | B179: =IF(A179>$A$8,"",OFFSET(InputPriceData!B$15,$A179+$A$11,0,1,1)) -> 2019-01-14 | C179: =IF(A179>$A$8,"",OFFSET(InputPriceData!G$15,CalculationsAndCharts!$A179+$A$11,IF($C$5,8,0),1,1)) -> 5228700 | D179: =IF(A179>$A$8,"",OFFSET(InputPriceData!C$15,CalculationsAndCharts!$A179+$A$11,IF($C$5,8,0),1,1)) -> 120.510002 | E179: =IF(A179>$A$8,"",OFFSET(InputPriceData!D$15,CalculationsAndCharts!$A179+$A$11,IF($C$5,8,0),1,1)) -> 120.650002 | F179: =IF(A179>$A$8,"",OFFSET(InputPriceData!E$15,CalculationsAndCharts!$A179+$A$11,IF($C$5,8,0),1,1)) -> 119.760002 | G179: =IF(A179>$A$8,"",OFFSET(InputPriceData!F$15,CalculationsAndCharts!$A179+$A$11,IF($C$5,8,0),1,1)) -> 120.389999 | H179: 116.0115002 | I179: 3.857550458 | J179: 6.172080732 | K179: 122.1835809 | L179: 109.8394195 | M179: FALSE | N179: FALSE | O179: FALSE | P179: FALSE | Q179: FALSE | R179: FALSE | S179: 1.699997 | T179: 2.863103436 | U179: 115.7337921 | V179: FALSE | X179: 0 | Y179: 0 | Z179: 0 | AA179: 0 | AB179: 0 | AC179: 0 | AQ179: 5228700
A180: 148 | B180: =IF(A180>$A$8,"",OFFSET(InputPriceData!B$15,$A180+$A$11,0,1,1)) -> 2019-01-11 | C180: =IF(A180>$A$8,"",OFFSET(InputPriceData!G$15,CalculationsAndCharts!$A180+$A$11,IF($C$5,8,0),1,1)) -> 3722400 | D180: =IF(A180>$A$8,"",OFFSET(InputPriceData!C$15,CalculationsAndCharts!$A180+$A$11,IF($C$5,8,0),1,1)) -> 121.580002 | E180: =IF(A180>$A$8,"",OFFSET(InputPriceData!D$15,CalculationsAndCharts!$A180+$A$11,IF($C$5,8,0),1,1)) -> 121.620003 | F180: =IF(A180>$A$8,"",OFFSET(InputPriceData!E$15,CalculationsAndCharts!$A180+$A$11,IF($C$5,8,0),1,1)) -> 120.199997 | G180: =IF(A180>$A$8,"",OFFSET(InputPriceData!F$15,CalculationsAndCharts!$A180+$A$11,IF($C$5,8,0),1,1)) -> 121.459999 | H180: 116.0285004 | I180: 3.877506592 | J180: 6.204010548 | K180: 122.2325109 | L180: 109.8244899 | M180: FALSE | N180: FALSE | O180: FALSE | P180: FALSE | Q180: FALSE | R180: FALSE | S180: 1.590004 | T180: 2.952573162 | U180: 115.8848547 | V180: FALSE | X180: 0 | Y180: 0 | Z180: 0 | AA180: 0 | AB180: 0 | AC180: 0 | AQ180: 3722400
A181: 149 | B181: =IF(A181>$A$8,"",OFFSET(InputPriceData!B$15,$A181+$A$11,0,1,1)) -> 2019-01-10 | C181: =IF(A181>$A$8,"",OFFSET(InputPriceData!G$15,CalculationsAndCharts!$A181+$A$11,IF($C$5,8,0),1,1)) -> 3910000 | D181: =IF(A181>$A$8,"",OFFSET(InputPriceData!C$15,CalculationsAndCharts!$A181+$A$11,IF($C$5,8,0),1,1)) -> 120.080002 | E181: =IF(A181>$A$8,"",OFFSET(InputPriceData!D$15,CalculationsAndCharts!$A181+$A$11,IF($C$5,8,0),1,1)) -> 121.860001 | F181: =IF(A181>$A$8,"",OFFSET(InputPriceData!E$15,CalculationsAndCharts!$A181+$A$11,IF($C$5,8,0),1,1)) -> 119.949997 | G181: =IF(A181>$A$8,"",OFFSET(InputPriceData!F$15,CalculationsAndCharts!$A181+$A$11,IF($C$5,8,0),1,1)) -> 121.790001 | H181: 116.0135007 | I181: 3.85699235 | J181: 6.17118776 | K181: 122.1846884 | L181: 109.8423129 | M181: FALSE | N181: FALSE | O181: FALSE | P181: FALSE | Q181: FALSE | R181: FALSE | S181: 1.910004 | T181: 3.057386174 | U181: 114.5752297 | V181: FALSE | X181: 0 | Y181: 0 | Z181: 0 | AA181: 0 | AB181: 0 | AC181: 0 | AP181: 3910000
A182: 150 | B182: =IF(A182>$A$8,"",OFFSET(InputPriceData!B$15,$A182+$A$11,0,1,1)) -> 2019-01-09 | C182: =IF(A182>$A$8,"",OFFSET(InputPriceData!G$15,CalculationsAndCharts!$A182+$A$11,IF($C$5,8,0),1,1)) -> 3633700 | D182: =IF(A182>$A$8,"",OFFSET(InputPriceData!C$15,CalculationsAndCharts!$A182+$A$11,IF($C$5,8,0),1,1)) -> 120.910004 | E182: =IF(A182>$A$8,"",OFFSET(InputPriceData!D$15,CalculationsAndCharts!$A182+$A$11,IF($C$5,8,0),1,1)) -> 121.400002 | F182: =IF(A182>$A$8,"",OFFSET(InputPriceData!E$15,CalculationsAndCharts!$A182+$A$11,IF($C$5,8,0),1,1)) -> 119.870003 | G182: =IF(A182>$A$8,"",OFFSET(InputPriceData!F$15,CalculationsAndCharts!$A182+$A$11,IF($C$5,8,0),1,1)) -> 120.690002 | H182: 115.9685006 | I182: 3.794071556 | J182: 6.07051449 | K182: 122.039015 | L182: 109.8979861 | M182: FALSE | N182: FALSE | O182: FALSE | P182: FALSE | Q182: FALSE | R182: FALSE | S182: 1.57 | T182: 3.145646341 | U182: 113.5387093 | V182: FALSE | X182: 0 | Y182: 0 | Z182: 0 | AA182: 0 | AB182: 0 | AC182: 0 | AQ182: 3633700
A183: 151 | B183: =IF(A183>$A$8,"",OFFSET(InputPriceData!B$15,$A183+$A$11,0,1,1)) -> 2019-01-08 | C183: =IF(A183>$A$8,"",OFFSET(InputPriceData!G$15,CalculationsAndCharts!$A183+$A$11,IF($C$5,8,0),1,1)) -> 4763600 | D183: =IF(A183>$A$8,"",OFFSET(InputPriceData!C$15,CalculationsAndCharts!$A183+$A$11,IF($C$5,8,0),1,1)) -> 119.660004 | E183: =IF(A183>$A$8,"",OFFSET(InputPriceData!D$15,CalculationsAndCharts!$A183+$A$11,IF($C$5,8,0),1,1)) -> 120.57 | F183: =IF(A183>$A$8,"",OFFSET(InputPriceData!E$15,CalculationsAndCharts!$A183+$A$11,IF($C$5,8,0),1,1)) -> 118.980003 | G183: =IF(A183>$A$8,"",OFFSET(InputPriceData!F$15,CalculationsAndCharts!$A183+$A$11,IF($C$5,8,0),1,1)) -> 119.830002 | H183: 115.9905003 | I183: 3.82255392 | J183: 6.116086271 | K183: 122.1065866 | L183: 109.874414 | M183: FALSE | N183: FALSE | O183: FALSE | P183: FALSE | Q183: FALSE | R183: FALSE | S183: 2.419998 | T183: 3.266849906 | U183: 111.6163022 | V183: FALSE | X183: 0 | Y183: 0 | Z183: 0 | AA183: 0 | AB183: 0 | AC183: 0 | AP183: 4763600
A184: 152 | B184: =IF(A184>$A$8,"",OFFSET(InputPriceData!B$15,$A184+$A$11,0,1,1)) -> 2019-01-07 | C184: =IF(A184>$A$8,"",OFFSET(InputPriceData!G$15,CalculationsAndCharts!$A184+$A$11,IF($C$5,8,0),1,1)) -> 3751200 | D184: =IF(A184>$A$8,"",OFFSET(InputPriceData!C$15,CalculationsAndCharts!$A184+$A$11,IF($C$5,8,0),1,1)) -> 117.5 | E184: =IF(A184>$A$8,"",OFFSET(InputPriceData!D$15,CalculationsAndCharts!$A184+$A$11,IF($C$5,8,0),1,1)) -> 118.830002 | F184: =IF(A184>$A$8,"",OFFSET(InputPriceData!E$15,CalculationsAndCharts!$A184+$A$11,IF($C$5,8,0),1,1)) -> 116.669998 | G184: =IF(A184>$A$8,"",OFFSET(InputPriceData!F$15,CalculationsAndCharts!$A184+$A$11,IF($C$5,8,0),1,1)) -> 118.150002 | H184: 115.966 | I184: 3.799366475 | J184: 6.07898636 | K184: 122.0449864 | L184: 109.8870136 | M184: FALSE | N184: FALSE | O184: FALSE | P184: FALSE | Q184: FALSE | R184: FALSE | S184: 2.160004 | T184: 3.33199236 | U184: 110.6560153 | V184: FALSE | X184: 0 | Y184: 0 | Z184: 0 | AA184: 0 | AB184: 0 | AC184: 0 | AP184: 3751200
A185: 153 | B185: =IF(A185>$A$8,"",OFFSET(InputPriceData!B$15,$A185+$A$11,0,1,1)) -> 2019-01-04 | C185: =IF(A185>$A$8,"",OFFSET(InputPriceData!G$15,CalculationsAndCharts!$A185+$A$11,IF($C$5,8,0),1,1)) -> 4477800 | D185: =IF(A185>$A$8,"",OFFSET(InputPriceData!C$15,CalculationsAndCharts!$A185+$A$11,IF($C$5,8,0),1,1)) -> 114.910004 | E185: =IF(A185>$A$8,"",OFFSET(InputPriceData!D$15,CalculationsAndCharts!$A185+$A$11,IF($C$5,8,0),1,1)) -> 117.489998 | F185: =IF(A185>$A$8,"",OFFSET(InputPriceData!E$15,CalculationsAndCharts!$A185+$A$11,IF($C$5,8,0),1,1)) -> 114.440002 | G185: =IF(A185>$A$8,"",OFFSET(InputPriceData!F$15,CalculationsAndCharts!$A185+$A$11,IF($C$5,8,0),1,1)) -> 117.32 | H185: 116.2540001 | I185: 4.155611663 | J185: 6.648978661 | K185: 122.9029788 | L185: 109.6050214 | M185: FALSE | N185: FALSE | O185: FALSE | P185: FALSE | Q185: FALSE | R185: FALSE | S185: 4.579994 | T185: 3.422145311 | U185: 106.0657134 | V185: FALSE | X185: 0 | Y185: 0 | Z185: 0 | AA185: 0 | AB185: 0 | AC185: 0 | AP185: 4477800
A186: 154 | B186: =IF(A186>$A$8,"",OFFSET(InputPriceData!B$15,$A186+$A$11,0,1,1)) -> 2019-01-03 | C186: =IF(A186>$A$8,"",OFFSET(InputPriceData!G$15,CalculationsAndCharts!$A186+$A$11,IF($C$5,8,0),1,1)) -> 4346700 | D186: =IF(A186>$A$8,"",OFFSET(InputPriceData!C$15,CalculationsAndCharts!$A186+$A$11,IF($C$5,8,0),1,1)) -> 114.529999 | E186: =IF(A186>$A$8,"",OFFSET(InputPriceData!D$15,CalculationsAndCharts!$A186+$A$11,IF($C$5,8,0),1,1)) -> 114.879997 | F186: =IF(A186>$A$8,"",OFFSET(InputPriceData!E$15,CalculationsAndCharts!$A186+$A$11,IF($C$5,8,0),1,1)) -> 112.690002 | G186: =IF(A186>$A$8,"",OFFSET(InputPriceData!F$15,CalculationsAndCharts!$A186+$A$11,IF($C$5,8,0),1,1)) -> 112.910004 | H186: 116.468 | I186: 4.312247584 | J186: 6.899596134 | K186: 123.3675961 | L186: 109.5684039 | M186: FALSE | N186: FALSE | O186: FALSE | P186: FALSE | Q186: FALSE | R186: FALSE | S186: 2.519997 | T186: 3.333080027 | U186: 108.5438389 | V186: FALSE | X186: 0 | Y186: 0 | Z186: 0 | AA186: 0 | AB186: 0 | AC186: 0 | AQ186: 4346700
A187: 155 | B187: =IF(A187>$A$8,"",OFFSET(InputPriceData!B$15,$A187+$A$11,0,1,1)) -> 2019-01-02 | C187: =IF(A187>$A$8,"",OFFSET(InputPriceData!G$15,CalculationsAndCharts!$A187+$A$11,IF($C$5,8,0),1,1)) -> 4239900 | D187: =IF(A187>$A$8,"",OFFSET(InputPriceData!C$15,CalculationsAndCharts!$A187+$A$11,IF($C$5,8,0),1,1)) -> 112.010002 | E187: =IF(A187>$A$8,"",OFFSET(InputPriceData!D$15,CalculationsAndCharts!$A187+$A$11,IF($C$5,8,0),1,1)) -> 115.980003 | F187: =IF(A187>$A$8,"",OFFSET(InputPriceData!E$15,CalculationsAndCharts!$A187+$A$11,IF($C$5,8,0),1,1)) -> 111.690002 | G187: =IF(A187>$A$8,"",OFFSET(InputPriceData!F$15,CalculationsAndCharts!$A187+$A$11,IF($C$5,8,0),1,1)) -> 115.209999 | H187: 117.0879997 | I187: 4.635424387 | J187: 7.41667902 | K187: 124.5046787 | L187: 109.6713207 | M187: FALSE | N187: FALSE | O187: FALSE | P187: FALSE | Q187: FALSE | R187: FALSE | S187: 4.290001 | T187: 3.395624875 | U187: 106.8787482 | V187: FALSE | X187: 0 | Y187: 0 | Z187: 0 | AA187: 0 | AB187: 0 | AC187: 0 | AP187: 4239900
A188: 156 | B188: =IF(A188>$A$8,"",OFFSET(InputPriceData!B$15,$A188+$A$11,0,1,1)) -> 2018-12-31 | C188: =IF(A188>$A$8,"",OFFSET(InputPriceData!G$15,CalculationsAndCharts!$A188+$A$11,IF($C$5,8,0),1,1)) -> 4982800 | D188: =IF(A188>$A$8,"",OFFSET(InputPriceData!C$15,CalculationsAndCharts!$A188+$A$11,IF($C$5,8,0),1,1)) -> 113.330002 | E188: =IF(A188>$A$8,"",OFFSET(InputPriceData!D$15,CalculationsAndCharts!$A188+$A$11,IF($C$5,8,0),1,1)) -> 114.349998 | F188: =IF(A188>$A$8,"",OFFSET(InputPriceData!E$15,CalculationsAndCharts!$A188+$A$11,IF($C$5,8,0),1,1)) -> 112.419998 | G188: =IF(A188>$A$8,"",OFFSET(InputPriceData!F$15,CalculationsAndCharts!$A188+$A$11,IF($C$5,8,0),1,1)) -> 113.669998 | H188: 117.5409996 | I188: 4.866688841 | J188: 7.786702145 | K188: 125.3277017 | L188: 109.7542975 | M188: TRUE | N188: FALSE | O188: FALSE | P188: FALSE | Q188: FALSE | R188: FALSE | S188: 1.93 | T188: 3.326826712 | U188: 106.3763456 | V188: FALSE | X188: 0 | Y188: 0 | Z188: 0 | AA188: 0 | AB188: 0 | AC188: 0 | AP188: 4982800
A189: 157 | B189: =IF(A189>$A$8,"",OFFSET(InputPriceData!B$15,$A189+$A$11,0,1,1)) -> 2018-12-28 | C189: =IF(A189>$A$8,"",OFFSET(InputPriceData!G$15,CalculationsAndCharts!$A189+$A$11,IF($C$5,8,0),1,1)) -> 5117500 | D189: =IF(A189>$A$8,"",OFFSET(InputPriceData!C$15,CalculationsAndCharts!$A189+$A$11,IF($C$5,8,0),1,1)) -> 114.220001 | E189: =IF(A189>$A$8,"",OFFSET(InputPriceData!D$15,CalculationsAndCharts!$A189+$A$11,IF($C$5,8,0),1,1)) -> 114.800003 | F189: =IF(A189>$A$8,"",OFFSET(InputPriceData!E$15,CalculationsAndCharts!$A189+$A$11,IF($C$5,8,0),1,1)) -> 112.5 | G189: =IF(A189>$A$8,"",OFFSET(InputPriceData!F$15,CalculationsAndCharts!$A189+$A$11,IF($C$5,8,0),1,1)) -> 113.029999 | H189: 117.9314998 | I189: 4.853733053 | J189: 7.765972884 | K189: 125.6974727 | L189: 110.165527 | M189: TRUE | N189: FALSE | O189: FALSE | P189: FALSE | Q189: FALSE | R189: FALSE | S189: 2.300003 | T189: 3.434274921 | U189: 106.9114492 | V189: FALSE | X189: 0 | Y189: 0 | Z189: 0 | AA189: 0 | AB189: 0 | AC189: 0 | AQ189: 5117500
A190: 158 | B190: =IF(A190>$A$8,"",OFFSET(InputPriceData!B$15,$A190+$A$11,0,1,1)) -> 2018-12-27 | C190: =IF(A190>$A$8,"",OFFSET(InputPriceData!G$15,CalculationsAndCharts!$A190+$A$11,IF($C$5,8,0),1,1)) -> 6045600 | D190: =IF(A190>$A$8,"",OFFSET(InputPriceData!C$15,CalculationsAndCharts!$A190+$A$11,IF($C$5,8,0),1,1)) -> 109.989998 | E190: =IF(A190>$A$8,"",OFFSET(InputPriceData!D$15,CalculationsAndCharts!$A190+$A$11,IF($C$5,8,0),1,1)) -> 113.779999 | F190: =IF(A190>$A$8,"",OFFSET(InputPriceData!E$15,CalculationsAndCharts!$A190+$A$11,IF($C$5,8,0),1,1)) -> 109.470001 | G190: =IF(A190>$A$8,"",OFFSET(InputPriceData!F$15,CalculationsAndCharts!$A190+$A$11,IF($C$5,8,0),1,1)) -> 113.779999 | H190: 118.4299999 | I190: 4.836679791 | J190: 7.738687666 | K190: 126.1686876 | L190: 110.6913122 | M190: TRUE | N190: FALSE | O190: =IF(A190>$A$8-2,"",IF(A190=$A$8-2,FALSE,AND(M190,N190,NOT(P190)))) -> FALSE | P190: FALSE | Q190: FALSE | R190: FALSE | S190: 4.309998 | T190: 3.521526607 | U190: 104.3469458 | V190: FALSE | X190: 0 | Y190: 0 | Z190: 0 | AA190: 0 | AB190: 0 | AC190: 0 | AP190: 6045600
A191: 159 | B191: =IF(A191>$A$8,"",OFFSET(InputPriceData!B$15,$A191+$A$11,0,1,1)) -> 2018-12-26 | C191: =IF(A191>$A$8,"",OFFSET(InputPriceData!G$15,CalculationsAndCharts!$A191+$A$11,IF($C$5,8,0),1,1)) -> 6645800 | D191: =IF(A191>$A$8,"",OFFSET(InputPriceData!C$15,CalculationsAndCharts!$A191+$A$11,IF($C$5,8,0),1,1)) -> 108 | E191: =IF(A191>$A$8,"",OFFSET(InputPriceData!D$15,CalculationsAndCharts!$A191+$A$11,IF($C$5,8,0),1,1)) -> 111.389999 | F191: =IF(A191>$A$8,"",OFFSET(InputPriceData!E$15,CalculationsAndCharts!$A191+$A$11,IF($C$5,8,0),1,1)) -> 105.940002 | G191: =IF(A191>$A$8,"",OFFSET(InputPriceData!F$15,CalculationsAndCharts!$A191+$A$11,IF($C$5,8,0),1,1)) -> 111.389999 | H191: 118.7424999 | I191: 4.726805432 | J191: 7.562888691 | K191: 126.3053886 | L191: 111.1796112 | M191: TRUE | N191: FALSE | O191: FALSE | P191: FALSE | Q191: FALSE | R191: FALSE | S191: 5.449997 | T191: 3.460874961 | U191: 100.6482501 | V191: FALSE | X191: 0 | Y191: 0 | Z191: 0 | AA191: 0 | AB191: 0 | AC191: 0 | AP191: 6645800
A192: 160 | B192: =IF(A192>$A$8,"",OFFSET(InputPriceData!B$15,$A192+$A$11,0,1,1)) -> 2018-12-24 | C192: =IF(A192>$A$8,"",OFFSET(InputPriceData!G$15,CalculationsAndCharts!$A192+$A$11,IF($C$5,8,0),1,1)) -> 3821400 | D192: =IF(A192>$A$8,"",OFFSET(InputPriceData!C$15,CalculationsAndCharts!$A192+$A$11,IF($C$5,8,0),1,1)) -> 109.900002 | E192: =IF(A192>$A$8,"",OFFSET(InputPriceData!D$15,CalculationsAndCharts!$A192+$A$11,IF($C$5,8,0),1,1)) -> 111 | F192: =IF(A192>$A$8,"",OFFSET(InputPriceData!E$15,CalculationsAndCharts!$A192+$A$11,IF($C$5,8,0),1,1)) -> 107.5 | G192: =IF(A192>$A$8,"",OFFSET(InputPriceData!F$15,CalculationsAndCharts!$A192+$A$11,IF($C$5,8,0),1,1)) -> 107.57 | H192: 119.1509998 | I192: 4.416590208 | J192: 7.066544333 | K192: 126.2175442 | L192: 112.0844555 | M192: TRUE | N192: FALSE | O192: FALSE | P192: FALSE | Q192: FALSE | R192: FALSE | S192: 3.5 | T192: 3.307865574 | U192: 104.3242709 | V192: FALSE | X192: 0 | Y192: 0 | Z192: 0 | AA192: 0 | AB192: 0 | AC192: 0 | AQ192: 3821400
A193: 161 | B193: =IF(A193>$A$8,"",OFFSET(InputPriceData!B$15,$A193+$A$11,0,1,1)) -> 2018-12-21 | C193: =IF(A193>$A$8,"",OFFSET(InputPriceData!G$15,CalculationsAndCharts!$A193+$A$11,IF($C$5,8,0),1,1)) -> 10386500 | D193: =IF(A193>$A$8,"",OFFSET(InputPriceData!C$15,CalculationsAndCharts!$A193+$A$11,IF($C$5,8,0),1,1)) -> 112.5 | E193: =IF(A193>$A$8,"",OFFSET(InputPriceData!D$15,CalculationsAndCharts!$A193+$A$11,IF($C$5,8,0),1,1)) -> 115.279999 | F193: =IF(A193>$A$8,"",OFFSET(InputPriceData!E$15,CalculationsAndCharts!$A193+$A$11,IF($C$5,8,0),1,1)) -> 110.440002 | G193: =IF(A193>$A$8,"",OFFSET(InputPriceData!F$15,CalculationsAndCharts!$A193+$A$11,IF($C$5,8,0),1,1)) -> 110.940002 | H193: 119.6319999 | I193: 3.572282985 | J193: 5.715652775 | K193: 125.3476527 | L193: 113.9163472 | M193: TRUE | N193: FALSE | O193: FALSE | P193: FALSE | Q193: FALSE | R193: FALSE | S193: 4.839997 | T193: 3.293086002 | U193: 106.433825 | V193: FALSE | X193: 0 | Y193: 0 | Z193: 0 | AA193: 0 | AB193: 0 | AC193: 0 | AQ193: 10386500
A194: 162 | B194: =IF(A194>$A$8,"",OFFSET(InputPriceData!B$15,$A194+$A$11,0,1,1)) -> 2018-12-20 | C194: =IF(A194>$A$8,"",OFFSET(InputPriceData!G$15,CalculationsAndCharts!$A194+$A$11,IF($C$5,8,0),1,1)) -> 8454400 | D194: =IF(A194>$A$8,"",OFFSET(InputPriceData!C$15,CalculationsAndCharts!$A194+$A$11,IF($C$5,8,0),1,1)) -> 115.699997 | E194: =IF(A194>$A$8,"",OFFSET(InputPriceData!D$15,CalculationsAndCharts!$A194+$A$11,IF($C$5,8,0),1,1)) -> 116.449997 | F194: =IF(A194>$A$8,"",OFFSET(InputPriceData!E$15,CalculationsAndCharts!$A194+$A$11,IF($C$5,8,0),1,1)) -> 111.699997 | G194: =IF(A194>$A$8,"",OFFSET(InputPriceData!F$15,CalculationsAndCharts!$A194+$A$11,IF($C$5,8,0),1,1)) -> 113.019997 | H194: 120.0134998 | I194: 2.982367235 | J194: 4.771787576 | K194: 124.7852874 | L194: 115.2417123 | M194: TRUE | N194: FALSE | O194: FALSE | P194: FALSE | Q194: FALSE | R194: FALSE | S194: 4.75 | T194: 3.174092849 | U194: 110.0818143 | V194: FALSE | X194: 0 | Y194: 0 | Z194: 0 | AA194: 0 | AB194: 0 | AC194: 0 | AQ194: 8454400
A195: 163 | B195: =IF(A195>$A$8,"",OFFSET(InputPriceData!B$15,$A195+$A$11,0,1,1)) -> 2018-12-19 | C195: =IF(A195>$A$8,"",OFFSET(InputPriceData!G$15,CalculationsAndCharts!$A195+$A$11,IF($C$5,8,0),1,1)) -> 6979800 | D195: =IF(A195>$A$8,"",OFFSET(InputPriceData!C$15,CalculationsAndCharts!$A195+$A$11,IF($C$5,8,0),1,1)) -> 117.150002 | E195: =IF(A195>$A$8,"",OFFSET(InputPriceData!D$15,CalculationsAndCharts!$A195+$A$11,IF($C$5,8,0),1,1)) -> 120.269997 | F195: =IF(A195>$A$8,"",OFFSET(InputPriceData!E$15,CalculationsAndCharts!$A195+$A$11,IF($C$5,8,0),1,1)) -> 115.970001 | G195: =IF(A195>$A$8,"",OFFSET(InputPriceData!F$15,CalculationsAndCharts!$A195+$A$11,IF($C$5,8,0),1,1)) -> 116.43 | H195: 120.2224999 | I195: 2.607905124 | J195: 4.172648198 | K195: 124.395148 | L195: 116.0498517 | M195: TRUE | N195: FALSE | O195: FALSE | P195: FALSE | Q195: FALSE | R195: FALSE | S195: 4.299996 | T195: 3.052869222 | U195: 110.5442636 | V195: FALSE | X195: 0 | Y195: 0 | Z195: 0 | AA195: 0 | AB195: 0 | AC195: 0 | AQ195: 6979800
A196: 164 | B196: =IF(A196>$A$8,"",OFFSET(InputPriceData!B$15,$A196+$A$11,0,1,1)) -> 2018-12-18 | C196: =IF(A196>$A$8,"",OFFSET(InputPriceData!G$15,CalculationsAndCharts!$A196+$A$11,IF($C$5,8,0),1,1)) -> 6290200 | D196: =IF(A196>$A$8,"",OFFSET(InputPriceData!C$15,CalculationsAndCharts!$A196+$A$11,IF($C$5,8,0),1,1)) -> 116.900002 | E196: =IF(A196>$A$8,"",OFFSET(InputPriceData!D$15,CalculationsAndCharts!$A196+$A$11,IF($C$5,8,0),1,1)) -> 118.230003 | F196: =IF(A196>$A$8,"",OFFSET(InputPriceData!E$15,CalculationsAndCharts!$A196+$A$11,IF($C$5,8,0),1,1)) -> 116.019997 | G196: =IF(A196>$A$8,"",OFFSET(InputPriceData!F$15,CalculationsAndCharts!$A196+$A$11,IF($C$5,8,0),1,1)) -> 116.650002 | H196: 120.4164998 | I196: 2.458610017 | J196: 3.933776026 | K196: 124.3502758 | L196: 116.4827237 | M196: FALSE | N196: FALSE | O196: FALSE | P196: FALSE | Q196: FALSE | R196: FALSE | S196: 2.210006 | T196: 2.956936393 | U196: 110.1861252 | V196: FALSE | X196: 0 | Y196: 0 | Z196: 0 | AA196: 0 | AB196: 0 | AC196: 0 | AQ196: 6290200
A197: 165 | B197: =IF(A197>$A$8,"",OFFSET(InputPriceData!B$15,$A197+$A$11,0,1,1)) -> 2018-12-17 | C197: =IF(A197>$A$8,"",OFFSET(InputPriceData!G$15,CalculationsAndCharts!$A197+$A$11,IF($C$5,8,0),1,1)) -> 7374500 | D197: =IF(A197>$A$8,"",OFFSET(InputPriceData!C$15,CalculationsAndCharts!$A197+$A$11,IF($C$5,8,0),1,1)) -> 119.07 | E197: =IF(A197>$A$8,"",OFFSET(InputPriceData!D$15,CalculationsAndCharts!$A197+$A$11,IF($C$5,8,0),1,1)) -> 119.779999 | F197: =IF(A197>$A$8,"",OFFSET(InputPriceData!E$15,CalculationsAndCharts!$A197+$A$11,IF($C$5,8,0),1,1)) -> 115.07 | G197: =IF(A197>$A$8,"",OFFSET(InputPriceData!F$15,CalculationsAndCharts!$A197+$A$11,IF($C$5,8,0),1,1)) -> 116.099998 | H197: 120.6624997 | I197: 2.311157749 | J197: 3.697852398 | K197: 124.360352 | L197: 116.9646473 | M197: FALSE | N197: FALSE | O197: FALSE | P197: FALSE | Q197: FALSE | R197: FALSE | S197: 4.830002 | T197: 3.014392577 | U197: 113.8712168 | V197: FALSE | X197: 0 | Y197: 0 | Z197: 0 | AA197: 0 | AB197: 0 | AC197: 0 | AQ197: 7374500
A198: 166 | B198: =IF(A198>$A$8,"",OFFSET(InputPriceData!B$15,$A198+$A$11,0,1,1)) -> 2018-12-14 | C198: =IF(A198>$A$8,"",OFFSET(InputPriceData!G$15,CalculationsAndCharts!$A198+$A$11,IF($C$5,8,0),1,1)) -> 4554200 | D198: =IF(A198>$A$8,"",OFFSET(InputPriceData!C$15,CalculationsAndCharts!$A198+$A$11,IF($C$5,8,0),1,1)) -> 119.5 | E198: =IF(A198>$A$8,"",OFFSET(InputPriceData!D$15,CalculationsAndCharts!$A198+$A$11,IF($C$5,8,0),1,1)) -> 121.110001 | F198: =IF(A198>$A$8,"",OFFSET(InputPriceData!E$15,CalculationsAndCharts!$A198+$A$11,IF($C$5,8,0),1,1)) -> 119.440002 | G198: =IF(A198>$A$8,"",OFFSET(InputPriceData!F$15,CalculationsAndCharts!$A198+$A$11,IF($C$5,8,0),1,1)) -> 119.900002 | H198: 120.9294999 | I198: 2.063871474 | J198: 3.302194359 | K198: 124.2316942 | L198: 117.6273055 | M198: FALSE | N198: FALSE | O198: FALSE | P198: FALSE | Q198: FALSE | R198: FALSE | S198: 1.669999 | T198: 2.874730313 | U198: 114.9805424 | V198: FALSE | X198: 0 | Y198: 0 | Z198: 0 | AA198: 0 | AB198: 0 | AC198: 0 | AP198: 4554200
A199: 167 | B199: =IF(A199>$A$8,"",OFFSET(InputPriceData!B$15,$A199+$A$11,0,1,1)) -> 2018-12-13 | C199: =IF(A199>$A$8,"",OFFSET(InputPriceData!G$15,CalculationsAndCharts!$A199+$A$11,IF($C$5,8,0),1,1)) -> 3993600 | D199: =IF(A199>$A$8,"",OFFSET(InputPriceData!C$15,CalculationsAndCharts!$A199+$A$11,IF($C$5,8,0),1,1)) -> 121.260002 | E199: =IF(A199>$A$8,"",OFFSET(InputPriceData!D$15,CalculationsAndCharts!$A199+$A$11,IF($C$5,8,0),1,1)) -> 121.790001 | F199: =IF(A199>$A$8,"",OFFSET(InputPriceData!E$15,CalculationsAndCharts!$A199+$A$11,IF($C$5,8,0),1,1)) -> 120.169998 | G199: =IF(A199>$A$8,"",OFFSET(InputPriceData!F$15,CalculationsAndCharts!$A199+$A$11,IF($C$5,8,0),1,1)) -> 120.730003 | H199: 120.9444996 | I199: 2.057414858 | J199: 3.291863773 | K199: 124.2363634 | L199: 117.6526358 | M199: FALSE | N199: FALSE | O199: FALSE | P199: FALSE | Q199: FALSE | R199: FALSE | S199: 1.620003 | T199: 2.967401953 | U199: 115.2252001 | V199: FALSE | X199: 0 | Y199: 0 | Z199: 0 | AA199: 0 | AB199: 0 | AC199: 0 | AQ199: 3993600
A200: 168 | B200: =IF(A200>$A$8,"",OFFSET(InputPriceData!B$15,$A200+$A$11,0,1,1)) -> 2018-12-12 | C200: =IF(A200>$A$8,"",OFFSET(InputPriceData!G$15,CalculationsAndCharts!$A200+$A$11,IF($C$5,8,0),1,1)) -> 3560500 | D200: =IF(A200>$A$8,"",OFFSET(InputPriceData!C$15,CalculationsAndCharts!$A200+$A$11,IF($C$5,8,0),1,1)) -> 122.510002 | E200: =IF(A200>$A$8,"",OFFSET(InputPriceData!D$15,CalculationsAndCharts!$A200+$A$11,IF($C$5,8,0),1,1)) -> 122.879997 | F200: =IF(A200>$A$8,"",OFFSET(InputPriceData!E$15,CalculationsAndCharts!$A200+$A$11,IF($C$5,8,0),1,1)) -> 121 | G200: =IF(A200>$A$8,"",OFFSET(InputPriceData!F$15,CalculationsAndCharts!$A200+$A$11,IF($C$5,8,0),1,1)) -> 121.160004 | H200: 120.9499992 | I200: 2.056981104 | J200: 3.291169767 | K200: 124.241169 | L200: 117.6588295 | M200: FALSE | N200: FALSE | O200: FALSE | P200: FALSE | Q200: FALSE | R200: FALSE | S200: 1.989998 | T200: 3.071048026 | U200: 114.7479029 | V200: FALSE | X200: 0 | Y200: 0 | Z200: 0 | AA200: 0 | AB200: 0 | AC200: 0 | AQ200: 3560500
A201: 169 | B201: =IF(A201>$A$8,"",OFFSET(InputPriceData!B$15,$A201+$A$11,0,1,1)) -> 2018-12-11 | C201: =IF(A201>$A$8,"",OFFSET(InputPriceData!G$15,CalculationsAndCharts!$A201+$A$11,IF($C$5,8,0),1,1)) -> 5043100 | D201: =IF(A201>$A$8,"",OFFSET(InputPriceData!C$15,CalculationsAndCharts!$A201+$A$11,IF($C$5,8,0),1,1)) -> 123.25 | E201: =IF(A201>$A$8,"",OFFSET(InputPriceData!D$15,CalculationsAndCharts!$A201+$A$11,IF($C$5,8,0),1,1)) -> 123.809998 | F201: =IF(A201>$A$8,"",OFFSET(InputPriceData!E$15,CalculationsAndCharts!$A201+$A$11,IF($C$5,8,0),1,1)) -> 120 | G201: =IF(A201>$A$8,"",OFFSET(InputPriceData!F$15,CalculationsAndCharts!$A201+$A$11,IF($C$5,8,0),1,1)) -> 120.889999 | H201: 120.9369991 | I201: 2.056434328 | J201: 3.290294925 | K201: 124.2272941 | L201: 117.6467042 | M201: FALSE | N201: FALSE | O201: FALSE | P201: FALSE | Q201: FALSE | R201: FALSE | S201: 3.809998 | T201: 3.15420572 | U201: 114.8215856 | V201: FALSE | X201: 0 | Y201: 0 | Z201: 0 | AA201: 0 | AB201: 0 | AC201: 0 | AQ201: 5043100
... 963 more rows

Sheet Follow
A1: Stocks and Indexes I wish to follow
A3: To ease following a stock, enter a Yahoo Finance acceptable symbol in column "A" anywhere below cell "A9".
A4: Thereafter you may doubleclick the cell containing a symbol of interest to initiate data retrieval and charting for that symbol.
A7: Symbol
A8: To | B8: Description | C8: Last Trade as of most recent check
A9: Follow | C9: Date | D9: Time | E9: Open | F9: High | G9: Low | H9: Close | I9: Volume | J9: Change
A10: A | B10: Agilent Technolog (A) -NYSE (Daily) | C10: 2015-02-02 | D10: 16:03:00 | E10: 37.9 | F10: 38.76 | G10: 37.71 | H10: 38.69 | I10: 2508493 | J10: 0.92
A11: AA | B11: Alcoa Corporation (AA) -NYSE (Weekly) | C11: 2018-06-19 | D11: 16:04:00 | E11: 44.630001 | F11: 44.630001 | G11: 43.349998 | H11: 44.470001 | I11: 3190085 | J11: -1.309998
A12: AAL | B12: American Airlines Group Inc. (AAL) -NasdaqGS (Daily) | C12: 2019-07-12 | D12: 16:00:00 | E12: 33.119999 | F12: 33.900002 | G12: 33 | H12: 33.779999 | I12: 5012200 | J12: 0.75
A13: ADM | B13: Archer-Daniels-Midland Company (ADM) -NYSE (Weekly) | C13: 2018-07-13 | D13: 16:00:00 | E13: 47.5 | F13: 47.84 | G13: 47.169998 | H13: 47.57 | I13: 2402809 | J13: 0
A14: AMC | B14: AMC Entertainment Holdings, Inc. (AMC) -NYSE (Weekly) | C14: 2018-07-13 | D14: 16:02:00 | E14: 17.049999 | F14: 17.15 | G14: 16.525 | H14: 17.049999 | I14: 1442776 | J14: 0
A15: BSX | B15: Boston Scientific Corporation C (BSX) -NYQ (Daily) | C15: 2015-03-13 | D15: 16:01:00 | E15: 16.84 | F15: 16.91 | G15: 16.44 | H15: 16.61 | I15: 7262460 | J15: -0.28
A16: CASY | B16: Casey's General Stores, Inc. (CASY) -NasdaqGS (Daily) | C16: 2019-04-10 | D16: 16:00:00 | E16: 128.979996 | F16: 130.330002 | G16: 128.779999 | H16: 130.179993 | I16: 351300 | J16: 1.489991
A17: CAT | B17: Caterpillar Inc. (CAT) -NYSE (Daily) | C17: 2019-07-19 | D17: 16:00:00 | E17: 134.220001 | F17: 137.050003 | G17: 134.220001 | H17: 136.229996 | I17: 4835600 | J17: 1.339997
A18: CSCO | B18: Cisco Systems, In (CSCO) -NasdaqNM (Daily) | C18: 2015-02-19 | D18: 16:00:00 | E18: 29.32 | F18: 29.39 | G18: 29.13 | H18: 29.31 | I18: 21469012 | J18: -0.18
A19: CVS | B19: CVS Health Corpor (CVS) -NYSE (Daily) | C19: 2015-02-02 | D19: 16:01:00 | E19: 98.34 | F19: 99.22 | G19: 97.06 | H19: 99.11 | I19: 4416094 | J19: 0.95
A20: DIS | B20: Walt Disney Compa (DIS) -NYSE (Daily) | C20: 2015-02-26 | D20: 16:00:00 | E20: 105.5 | F20: 105.71 | G20: 104.14 | H20: 104.56 | I20: 5044969 | J20: -1.01
A21: F | B21: Ford Motor Company (F) -NYSE (Daily) | C21: 2019-08-14 | D21: 10:34:00 | E21: 9.13 | F21: 9.15 | G21: 9.02 | H21: 9.12 | I21: 9151483 | J21: -0.17
A22: FAS | B22: Direxion Daily Financial Bull 3X ETF (FAS) -NYSEArca (Daily) | C22: 2017-10-13 | D22: 16:00:00 | E22: 58.099998 | F22: 58.939999 | G22: 57.43 | H22: 58.450001 | I22: 1709300 | J22: 0.07
A23: FB | B23: Facebook, Inc. (FB) -NasdaqGS (Daily) | C23: 2018-07-13 | D23: 16:00:00 | E23: 207.809998 | F23: 208.429993 | G23: 206.449997 | H23: 207.320007 | I23: 11486800 | J23: 0.400009
A24: GSK | B24: GlaxoSmithKline plc (GSK) -NYSE (Daily) | C24: 2019-08-14 | D24: 11:15:00 | E24: 40.060001 | F24: 40.209999 | G24: 39.895 | H24: 39.93 | I24: 941699 | J24: -0.310002
A25: GDX | B25: VanEck Vectors Gold Miners ETF (GDX) -PCX (Daily) | C25: 2017-02-10 | D25: 20:00:00 | E25: 24.67 | F25: 25.36 | G25: 24.6 | H25: 25.29 | I25: 65396107 | J25: 0.38
A26: HD | B26: The Home Depot, Inc. (HD) -NYSE (Daily) | C26: 2019-06-17 | D26: 15:30:00 | E26: 207 | F26: 208.789993 | G26: 206 | H26: 207.610001 | I26: 3491229 | J26: 1.839997
A27: HSY | B27: The Hershey Company (HSY) -NYSE (Daily) | C27: 2019-04-10 | D27: 16:02:00 | E27: 116.099998 | F27: 116.43 | G27: 115.75 | H27: 116.309998 | I27: 574600 | J27: 0.290001
A28: HTLD | B28: Heartland Express, Inc. (HTLD) -NasdaqGS (Daily) | C28: 2018-04-16 | D28: 13:57:00 | E28: 18.17 | F28: 18.620001 | G28: 18.129999 | H28: 18.540001 | I28: 202134 | J28: 0.540001
A29: IBM | B29: International Business Machines Corporation (IBM) -NYSE (Daily) | C29: 2019-08-14 | D29: 11:24:00 | E29: 133.910004 | F29: 134.160004 | G29: 132.130005 | H29: 132.460098 | I29: 1281528 | J29: -1.659897
A30: INTC | B30: Intel Corporation (INTC) -NasdaqGS (Daily) | C30: 2019-06-17 | D30: 15:32:00 | E30: 46.139999 | F30: 46.529999 | G30: 45.799999 | H30: 46.102501 | I30: 7977641 | J30: -0.087498
A31: JAH | B31: Jarden Corporation Common Stock (JAH) -NYQ (Daily) | C31: 2016-01-08 | D31: 16:02:00 | E31: 53.82 | F31: 53.88 | G31: 52.65 | H31: 52.73 | I31: 4519480 | J31: -0.81
A32: JNJ | B32: Johnson & Johnson (JNJ) -NYSE (Daily) | C32: 2019-08-14 | D32: 10:33:00 | E32: 132.529999 | F32: 132.539993 | G32: 131.419998 | H32: 131.759995 | I32: 870520 | J32: -0.169998
A33: KO | B33: The Coca-Cola Company (KO) -NYSE (Daily) | C33: 2019-07-19 | D33: 16:00:00 | E33: 52.139999 | F33: 52.150002 | G33: 51.369999 | H33: 51.389999 | I33: 10355500 | J33: -0.64
A34: LOW | B34: Lowe's Companies, Inc. (LOW) -NYSE (Daily) | C34: 2019-06-17 | D34: 15:29:00 | E34: 99.769997 | F34: 100.735001 | G34: 99.334999 | H34: 100.360001 | I34: 2967215 | J34: 0.730004
A35: LHO | B35: LaSalle Hotel Properties (LHO) -NYSE (Daily) | C35: 2018-07-13 | E35: 35.009998 | F35: 35.07 | G35: 34.82 | H35: 34.880001 | I35: 168400 | J35: -0.09
A36: LINE | B36: Linn Energy, LLC (LINE) -NasdaqNM (Daily) | C36: 2015-02-02 | D36: 16:00:00 | E36: 10.4 | F36: 10.78 | G36: 10.25 | H36: 10.77 | I36: 3766537 | J36: 0.51
A37: LO | B37: Lorillard, Inc Co (LO) -NYSE (Daily) | C37: 2015-02-02 | D37: 16:03:00 | E37: 65.71 | F37: 66.29 | G37: 65.43 | H37: 66.29 | I37: 1563618 | J37: 0.68
A38: MCD | B38: McDonald's Corporation (MCD) -NYSE (Daily) | C38: 2019-08-14 | D38: 10:34:00 | E38: 218.949997 | F38: 219.740005 | G38: 218.509995 | H38: 218.985001 | I38: 534253 | J38: 1.824997
A39: MDT | B39: Medtronic plc. Or (MDT) -NYSE (Daily) | C39: 2015-02-19 | D39: 16:01:00 | E39: 78.59 | F39: 78.59 | G39: 77.85 | H39: 78.13 | I39: 6900528 | J39: -0.37
A40: MGM | B40: MGM Resorts Inter (MGM) -NYSE (Daily) | C40: 2015-02-02 | D40: 16:00:00 | E40: 19.44 | F40: 19.75 | G40: 19.12 | H40: 19.74 | I40: 7570281 | J40: 0.26
A41: MO | B41: Altria Group, Inc (MO) -NYSE (Daily) | C41: 2015-02-02 | D41: 16:01:00 | E41: 53.25 | F41: 53.84 | G41: 52.98 | H41: 53.8 | I41: 9183582 | J41: 0.7
A42: MSFT | B42: Microsoft Corporation (MSFT) -NasdaqGS (Daily) | C42: 2019-04-10 | D42: 16:00:00 | E42: 119.760002 | F42: 120.349998 | G42: 119.540001 | H42: 120.190002 | I42: 16123400 | J42: 0.910003
A43: NFLX | B43: Netflix, Inc. (NFLX) -NasdaqGS (Weekly) | C43: 2018-06-19 | D43: 14:59:00 | E43: 389.5 | F43: 404.390015 | G43: 388.5 | H43: 404.100006 | I43: 13053145 | J43: 13.700012
A44: NUGT | B44: Direxion Daily Gold Miners Inde (NUGT) -PCX (Daily) | C44: 2016-04-13 | D44: 14:18:00 | E44: 81.48 | F44: 84.97 | G44: 79.59 | H44: 80.5352 | I44: 4380827 | J44: -5.6148
A45: NVS | B45: Novartis AG (NVS) -NYSE (Daily) | C45: 2018-04-13 | D45: 16:02:00 | E45: 81.150002 | F45: 81.269997 | G45: 80.699997 | H45: 81.040001 | I45: 1037000 | J45: -0.400001
A46: NVDA | B46: NVIDIA Corporation (NVDA) -NasdaqGS (Daily) | C46: 2019-08-12 | D46: 16:00:00 | E46: 152.080002 | F46: 154.149994 | G46: 150.589996 | H46: 151.449997 | I46: 5997236 | J46: -2.729996
A47: PRU | B47: Prudential Financ (PRU) -NYSE (Daily) | C47: 2015-02-23 | D47: 12:22:00 | E47: 80.25 | F47: 80.4499 | G47: 79.8 | H47: 80.12 | I47: 1604052 | J47: -0.69
A48: PSEC | B48: Prospect Capital Corporation (PSEC) -NasdaqGS (Daily) | C48: 2019-04-10 | D48: 16:00:00 | E48: 6.57 | F48: 6.59 | G48: 6.55 | H48: 6.58 | I48: 887400 | J48: 0.01
A49: RAI | B49: Reynolds American (RAI) -NYSE (Daily) | C49: 2015-02-02 | D49: 16:03:00 | E49: 68.12 | F49: 69.06 | G49: 67.4346 | H49: 69.05 | I49: 1822013 | J49: 1.1
A50: RPM | B50: RPM International Inc. (RPM) -NYSE (Daily) | C50: 2018-04-13 | D50: 16:02:00 | E50: 49.52 | F50: 49.52 | G50: 48.970001 | H50: 49.240002 | I50: 908200 | J50: 0.010002 | K50: Owns the Rust-Oleum brand
A51: RSP | B51: Guggenheim S&P 500 Equal Weight (RSP) -PCX (Daily) | C51: 2016-01-08 | D51: 11:33:00 | E51: 73.24 | F51: 73.47 | G51: 72.41 | H51: 72.41 | I51: 754279 | J51: -0.48
A52: SPR | B52: Spirit Aerosystems Holdings, In (SPR) -NYQ (Daily) | C52: 2017-02-08 | D52: 16:02:00 | E52: 56.31 | F52: 56.53 | G52: 55.13 | H52: 56.41 | I52: 849196 | J52: 0.06
A53: SWKS | B53: Skyworks Solution (SWKS) -NasdaqNM (Daily) | C53: 2015-02-02 | D53: 16:00:00 | E53: 83.07 | F53: 83.73 | G53: 80.15 | H53: 82.02 | I53: 4119001 | J53: -1.03
A54: TOL | B54: Toll Brothers, Inc. (TOL) -NYSE (Daily) | C54: 2019-08-09 | D54: 16:02:00 | E54: 36.259998 | F54: 36.27 | G54: 35.880001 | H54: 35.959999 | I54: 746100 | J54: -0.510002
A55: TSLA | B55: Tesla, Inc. (TSLA) -NasdaqGS (Daily) | C55: 2019-06-14 | D55: 09:56:00 | E55: 211.25 | F55: 214.160004 | G55: 210.399994 | H55: 212.816193 | I55: 1053711 | J55: -1.093811
A56: UNP | B56: Union Pacific Cor (UNP) -NYSE (Daily) | C56: 2015-02-02 | D56: 16:10:00 | E56: 118.13 | F56: 119.06 | G56: 116.7 | H56: 119.01 | I56: 3259594 | J56: 1.8
A57: VZ | B57: Verizon Communications Inc. (VZ) -NYSE (Daily) | C57: 2019-04-10 | D57: 16:00:00 | E57: 58.400002 | F57: 58.700001 | G57: 58.360001 | H57: 58.610001 | I57: 8022000 | J57: 0.209999
A58: WBA | B58: (WBA) -NasdaqNM (Daily) | C58: 2015-02-02 | D58: 16:00:00 | E58: 73.06 | F58: 74.98 | G58: 73 | H58: 74.89 | I58: 4247395 | J58: 1.14
A59: WMT | B59: Walmart Inc. (WMT) -NYSE (Daily) | C59: 2018-07-13 | D59: 16:00:00 | E59: 86.519997 | F59: 87.989998 | G59: 86.5 | H59: 87.699997 | I59: 6388600 | J59: 1.18
A61: ^NDX | B61: NASDAQ 100 (^NDX) -Nasdaq GIDS (Daily) | C61: 2019-08-12 | D61: 17:26:00 | E61: 7597.193848 | F61: 7623.435059 | G61: 7528.95166 | H61: 7561.682617 | I61: 533392657 | J61: -84.587403
A62: ^FTSE | B62: FTSE 100 (^FTSE) -FTSE (Daily) | C62: 2018-02-14 | D62: 15:51:00 | E62: 7168.009766 | F62: 7243.149902 | G62: 7145.72998 | H62: 7222.319824 | I62: 0 | J62: 54.319824
A63: ^DJI | B63: Dow Jones Industrial Average (^DJI) -DJI (Daily) | C63: 2018-02-14 | D63: 13:58:00 | E63: 24535.82031 | F63: 24835.44922 | G63: 24490.35938 | H63: 24816.16016 | I63: 254641020 | J63: 175.710937
A64: SPY | B64: SPDR S&P 500 ETF (SPY) -NYSEArca (Daily) | C64: 2019-08-12 | D64: 16:00:00 | E64: 289.959991 | F64: 291.605194 | G64: 287.019989 | H64: 287.940002 | I64: 57118534 | J64: -3.679993
A65: ^GSPC | B65: S&P 500 (^GSPC) -SNP (Daily) | C65: 2019-06-04 | D65: 14:27:00 | E65: 2762.639893 | F65: 2796.100098 | G65: 2762.639893 | H65: 2792.830078 | I65: 1396814023 | J65: 48.380127
A66: IWM | B66: iShares Russell 2000 ETF (IWM) -NYSEArca (Daily) | C66: 2018-04-13 | D66: 16:00:00 | E66: 155.289993 | F66: 155.330002 | G66: 153.509995 | H66: 153.949997 | I66: 19710100 | J66: -0.809998
A67: QQQ | B67: Invesco QQQ Trust (QQQ) -NasdaqGM (Daily) | C67: 2019-08-12 | D67: 16:00:00 | E67: 185.339996 | F67: 185.889999 | G67: 183.5 | H67: 184.350006 | I67: 23162601 | J67: -2.139999
A68: ^RUT | B68: Russell 2000 (^RUT) -Chicago Options (Daily) | C68: 2019-08-12 | D68: 16:30:00 | E68: 1512.759766 | F68: 1512.759766 | G68: 1491.612427 | H68: 1494.464233 | I68: 0 | J68: -18.575806
A69: ^VIX | B69: VOLATILITY S&P 500 (^VIX) -WCB (Daily) | C69: 2015-12-04 | D69: 16:14:00 | E69: 17.43 | F69: 17.65 | G69: 14.69 | H69: 14.81 | I69: 0 | J69: -3.3
A70: ^NYA | B70: NYSE COMPOSITE (DJ) (^NYA) -NYSE (Daily) | C70: 2018-07-13 | D70: 16:15:00 | E70: 12744.79981 | F70: 12783.24023 | G70: 12727.75977 | H70: 12769.5 | I70: 2614000000 | J70: 8.040039
A72: ACAD | B72: ACADIA Pharmaceut (ACAD) -NasdaqNM (Daily) | C72: 2014-07-21 | D72: 16:00:00 | E72: 20.13 | F72: 20.55 | G72: 19.8101 | H72: 20.31 | I72: 691016
A73: CLDX | B73: Celldex Therapeut (CLDX) -NasdaqNM (Daily) | C73: 2015-02-02 | D73: 16:00:00 | E73: 21.47 | F73: 21.69 | G73: 20.11 | H73: 21.02 | I73: 1570418 | J73: -0.4
A74: ICPT | B74: Intercept Pharmac (ICPT) -NasdaqNM (Daily) | C74: 2014-07-21 | D74: 16:00:00 | E74: 215.97 | F74: 218.43 | G74: 213.05 | H74: 218.14 | I74: 191276
A75: INO | B75: Inovio Pharmaceut (INO) -AMEX (Daily) | C75: 2014-07-21 | D75: 16:00:00 | E75: 10.3 | F75: 11.08 | G75: 10.1 | H75: 11.01 | I75: 1800796
A76: JCP | B76: J. C. Penney Company, Inc. (JCP) -NYSE (Daily) | C76: 2017-12-07 | D76: 16:01:00 | E76: 3.34 | F76: 3.4 | G76: 3.25 | H76: 3.27 | I76: 14485464 | J76: -0.07
A77: LCI | B77: Lannett Co Inc Co (LCI) -NYSE (Daily) | C77: 2014-07-21 | D77: 16:02:00 | E77: 38.09 | F77: 38.803 | G77: 36.5101 | H77: 37.76 | I77: 611367
A78: NPSP | B78: NPS Pharmaceutica (NPSP) -NasdaqNM (Daily) | C78: 2014-07-21 | D78: 15:59:00 | E78: 28.75 | F78: 29.43 | G78: 28.31 | H78: 29.29 | I78: 1126758
A79: PBYI | B79: Puma Biotechnolog (PBYI) -NYSE (Daily) | C79: 2014-07-21 | D79: 16:02:00 | E79: 58.27 | F79: 59.46 | G79: 57.39 | H79: 58.98 | I79: 348030
